{"text_format":"1","workbook":"xlsx","n_sheets":7,"sheets":["Cover Sheet","Instructions","LA Table","High Needs Places Table","Early Years Proforma","Admin-Lists","Admin-MissingRowCheck"],"not_rendered":{"charts":0,"images":0,"macros":1,"external_links":3,"defined_names":116,"comments":1,"pivot_tables":0},"unopened":[],"bounds":{"document_bytes":16777216,"sheet_cells":100000,"rows_first":2000,"rows_last":500,"rows_between":2000,"halvings":0,"cell_chars":16384,"cell_head_chars":4096},"cells_cut":0,"cells_raw":0,"read":"whole","date_system":"1900"}

{"sheet":"Cover Sheet","index":0,"n_rows":24,"n_cols":5,"rows_kept":24,"cut":false,"hidden":false,"merged":[]}
[]
[]
[]
[]
[null,null,null,"Section 251 Budget 2025-26"]
[null,null,null,"XML Generator"]
[null,null,null,"Version 1.0"]
[]
[]
[]
[]
[null,"Local Authority Number:"]
[]
[null,"Local Authority Name:",{"$f":"IF(ISNA(VLOOKUP(C12,LA, 2, FALSE)),\"\",VLOOKUP(C12, LA, 2, FALSE))","v":""}]
[]
[null,"Contact Name:"]
[]
[null,"Contact Email:"]
[]
[null,"Contact Telephone:"]
[]
[null,null,null,null,{"$f":"LAErrorCount","v":0}]
[null,null,null,null,{"$f":"HNPErrorCount","v":0}]
[null,null,null,null,{"$f":"EYPErrorCount","v":0}]

{"sheet":"Instructions","index":1,"n_rows":36,"n_cols":2,"rows_kept":36,"cut":false,"hidden":false,"merged":[]}
[]
[null,"Completing the return"]
[]
[null,"Before you complete the return you are advised to read the guidance at https://www.gov.uk/government/publications/section-251-2025-to-2026"]
[]
[null,"LA Table"]
[]
[null,"This table is for local authorities to provide an overall picture of the funding being allocated direct to schools, the amount being spent on education centrally and the amount being spent on children’s and young people’s services."]
[]
[null,"Values should be entered in all red cells. If the value entered does not match the data validation restrictions for the cell, an error message will be displayed. You will still be able to submit your return, but you will be prompted to enter an explanation within COLLECT."]
[]
[null,"Error messages will be displayed in column O if the data entered does not match the validation restrictions applied to the table."]
[]
[null,"High Needs Places Table"]
[]
[null,"This table is for local authorities to enter details of the high needs places and funding in the schools that they maintain. Place numbers may be entered to two decimal places."]
[]
[null,"Clicking on the 'Click to Prepopulate Schools' button will populate the table with a list of expected schools. This is based on those schools listed on Get Information About Schools as maintained nursery schools or mainstream schools with a SEN unit and/or resourced provision, pupil referral units, special schools and hospital schools. Schools should be added and removed as required."]
[]
[null,"Error messages will be displayed in column T if the data entered does not match the validation restrictions applied to the table."]
[]
[null,"Early Years Table"]
[]
[null,"This table is to record the total local authority DSG spending on early years entitlements. That is, for eligible working parents of 9-month to 2-year-olds, 2-year-olds from families receiving additional support, eligible working parents of 2-year-olds, and 3 and 4-year-olds, both the universal 15 hours and the additional 15 hours for eligible working parents. This section should also include any budget allocated for the early years special education needs inclusion fund and any other DSG expenditure on early years, including the early years pupil premium and disability access fund."]
[]
[null,"Rows may be added or deleted using the ‘Add/remove data rows’ button."]
[]
[null,"Error messages will be displayed in column U if the data entered does not match the validation restrictions applied to the table."]
[]
[]
[null,"Uploading the return to COLLECT"]
[]
[null,"When you have finished entering your data, click the ‘Convert to XML’ button on the Cover Sheet. This will create an XML file within the same folder as the XML generator for uploading to COLLECT."]
[]
[]
[null," Guidance on using COLLECT to upload and submit your data is available at https://www.gov.uk/government/publications/section-251-2025-to-2026"]

{"sheet":"LA Table","index":2,"n_rows":188,"n_cols":26,"rows_kept":188,"cut":false,"hidden":false,"merged":[[2,16,2,24],[73,4,73,5],[187,4,187,12],[0,4,1,12]]}
[null,"S251 Budget 2025-26",null,null,"PLEASE ENABLE MACROS BEFORE ENTERING DATA",null,null,null,null,null,null,null,null,null,null,null,"Count of headings:",{"$f":"COUNTIF(O:O,\"Error Cell Reference and Description\")","v":1}]
[null,"LA Table:  Local Authority Information",null,null,null,null,null,null,null,null,null,null,null,null,null,null,"Count of cells with errors:",{"$f":"COUNTIF(O:O,\"<>\")-R1-COUNTIF(LAErrorCell,\"<>\")","v":0}]
[null,null,null,null,null,null,null,null,null,null,null,null,null,null,null,null,"Rule Application (offset by 12 columns to data)"]
[null,null,"Description",null,"Early Years","Primary","Secondary","SEN/Special schools","AP/PRUs","\nPost school (e.g. Sixth Form & FE Colleges)\n\n","Gross","Income","Net",null,"Error Cell Reference and Description",null,"Early Years","Primary","Secondary","SEN/    Special schools","AP/    PRUs","Post school (e.g. Sixth Form & FE Colleges)\n","Gross","Income","Net","Notes"]
[null,null,null,null,{"$f":"IF(COUNTA(E9:L186)<456,\"PLEASE ENTER VALUES IN ALL CELLS\",\"\")","v":"PLEASE ENTER VALUES IN ALL CELLS"},null,null,null,null,null,null,null,null,null,null,null,"E","F","G","H","I","J","K","L","M"]
[null,null,null,null,null,null,null,null,null,null,null,null,"LA Table Errors:"]
[null,1,"SCHOOLS BUDGET"]
[]
[null,"1.0.1","Individual Schools Budget (before academy recoupment), including sixth form grant for maintained schools, but excluding high needs place funding",null,null,null,null,null,null,null,{"$f":"SUM(E9,F9,G9)","v":0},null,{"$f":"K9-L9","v":0},null,null,null,"1.1,1.3,1.7","1.1,1.3,1.7","1.1,1.3,1.7",1.6,1.6,1.6,1001,1.6," "]
[null,"1.0.2","High needs place funding within Individual Schools Budget (before academy recoupment), excluding funding for 16-19 academies and free schools and FE colleges and independent learning providers",null,null,null,null,null,null,null,{"$f":"SUM(E10,F10,G10,H10,I10)","v":0},null,{"$f":"K10-L10","v":0},null,null,null,"1.1,1.3,1.7","1.1,1.3,1.7","1.1,1.3,1.7","1.1,1.3,1.7","1.1,1.3,1.7",1.6,"1001, 1022",1.6," "]
[]
[null,null,"DEDELEGATED ITEMS      "]
[null,"1.1.1","Contingencies      ",null,null,null,null," ",null,null,{"$f":"SUM(F13,G13)","v":0},null,{"$f":"K13-L13","v":0},null,null,null,1.6,"1.1,1.3,1.7","1.1,1.3,1.7",1.6,1.6,1.6,"3.1.1,1007","1.1,1.3,1.7"," "]
[null,"1.1.2","Behaviour support services",null,null,null,null,null,null,null,0,null,0,null,null,null,1.6,"1.1,1.3,1.7","1.1,1.3,1.7",1.6,1.6,1.6,"3.1.1,1007","1.1,1.3,1.7"," "]
[null,"1.1.3","Support to UPEG and bilingual learners  ",null,null,null,null,null,null,null,0,null,0,null,null,null,1.6,"1.1,1.3,1.7","1.1,1.3,1.7",1.6,1.6,1.6,"3.1.1,1007","1.1,1.3,1.7"," "]
[null,"1.1.4","Free school meals eligibility",null,null,null,null,null,null,null,0,null,0,null,null,null,1.6,"1.1,1.3,1.7","1.1,1.3,1.7",1.6,1.6,1.6,"3.1.1,1007","1.1,1.3,1.7"," "]
[null,"1.1.5","Insurance",null,null,null,null,null,null,null,0,null,0,null,null,null,1.6,"1.1,1.3,1.7","1.1,1.3,1.7",1.6,1.6,1.6,"3.1.1,1007","1.1,1.3,1.7"," "]
[null,"1.1.6","Museum and Library services",null,null,null,null,null,null,null,0,null,0,null,null,null,1.6,"1.1,1.3,1.7","1.1,1.3,1.7",1.6,1.6,1.6,"3.1.1,1007","1.1,1.3,1.7"," "]
[null,"1.1.7","Licences/subscriptions ",null,null,null,null,null,null,null,0,null,0,null,null,null,1.6,"1.1,1.3,1.7","1.1,1.3,1.7",1.6,1.6,1.6,"3.1.1,1007","1.1,1.3,1.7"," "]
[null,"1.1.8","Staff costs – supply cover excluding cover for facility time",null,null,null,null,null,null,null,0,null,0,null,null,null,1.6,"1.1,1.3,1.7","1.1,1.3,1.7",1.6,1.6,1.6,"3.1.1,1007","1.1,1.3,1.7"," "]
[null,"1.1.9","Staff costs – supply cover for facility time",null,null,null,null,null,null,null,0,null,0,null,null,null,1.6,"1.1,1.3,1.7","1.1,1.3,1.7",1.6,1.6,1.6,"3.1.1,1007","1.1,1.3,1.7"," "]
[]
[null,null,"HIGH NEEDS BUDGET "]
[null,"1.2.1","Top-up funding – maintained schools",null,null,null,null,null,null,null,{"$f":"SUM(E24,F24,G24,H24,I24)","v":0},null,{"$f":"K24-L24","v":0},null,null,null,"1.1,1.3,1.7","1.1,1.3,1.7","1.1,1.3,1.7","1.1,1.3,1.7","1.1,1.3,1.7",1.6,"3.1.1, 1007,1.7,1.7","1.1,1.3,1.7"," "]
[null,"1.2.2","Top-up funding – academies, free schools and colleges",null,null,null,null,null,null,null,{"$f":"SUM(E25,F25,G25,H25,I25,J25)","v":0},null,0,null,null,null,"1.1,1.3,1.7","1.1,1.3,1.7","1.1,1.3,1.7","1.1,1.3,1.7","1.1,1.3,1.7","1.1,1.3,1.7","3.1.1, 1007","1.1,1.3,1.7"," "]
[null,"1.2.3","Top-up and other funding – non-maintained and independent providers",null,null,null,null,null,null,null,{"$f":"SUM(E26,F26,G26,H26,I26,J26)","v":0},null,0,null,null,null,"1.1,1.3,1.7","1.1,1.3,1.7","1.1,1.3,1.7","1.1,1.3,1.7","1.1,1.3,1.7","1.1,1.3,1.7","3.1.1, 1007","1.1,1.3,1.7"," "]
[null,"1.2.4","Additional high needs targeted funding for mainstream schools and academies",null,null,null,null,null,null,null,{"$f":"SUM(E27,F27,G27)","v":0},null,0,null,null,null,"1.1,1.3,1.7","1.1,1.3,1.7","1.1,1.3,1.7",1.6,1.6,1.6,"3.1.1, 1007","1.1,1.3,1.7"," "]
[null,"1.2.5","SEN support services  ",null,null,null,null,null,null,null,{"$f":"SUM(E28,F28,G28,H28,I28,J28)","v":0},null,0,null,null,null,"1.1,1.3,1.7","1.1,1.3,1.7","1.1,1.3,1.7","1.1,1.3,1.7","1.1,1.3,1.7","1.1,1.3,1.7","3.1.1, 1007","1.1,1.3,1.7"," "]
[null,"1.2.6","Hospital education services",null,null,null,null,null,null,null,{"$f":"SUM(H29,I29)","v":0},null,0,null,null,null,1.6,1.6,1.6,"1.1,1.3,1.7,1013","1.1,1.3,1.7,1013",1.6,"3.1.1, 1007,1.7, 1013","1.1,1.3,1.7"," "]
[null,"1.2.7","Other alternative provision services",null,null,null,null,null,null,null,{"$f":"SUM(E30,F30,G30,H30,I30,J30)","v":0},null,0,null,null,null,"1.1,1.3,1.7","1.1,1.3,1.7","1.1,1.3,1.7","1.1,1.3,1.7","1.1,1.3,1.7","1.1,1.3,1.7","3.1.1, 1007","1.1,1.3,1.7"," "]
[null,"1.2.8","Support for inclusion  ",null,null,null,null,null,null,null,{"$f":"SUM(E31,F31,G31,H31,I31,J31)","v":0},null,0,null,null,null,"1.1,1.3,1.7","1.1,1.3,1.7","1.1,1.3,1.7","1.1,1.3,1.7","1.1,1.3,1.7","1.1,1.3,1.7","3.1.1, 1007","1.1,1.3,1.7"," "]
[null,"1.2.9","Special schools and PRUs in financial difficulty",null,null,null,null,null,null,null,{"$f":"SUM(H32,I32)","v":0},null,0,null,null,null,1.6,1.6,1.6,"1.1,1.3,1.7","1.1,1.3,1.7",1.6,"3.1.1, 1007","1.1,1.3,1.7"," "]
[null,"1.2.10","PFI/ BSF costs at special schools, AP/ PRUs and Post 16 institutions only",null,null,null,null,null,null,null,{"$f":"SUM(H33,I33,J33)","v":0},null,0,null,null,null,1.6,1.6,1.6,"1.1,1.3,1.7","1.1,1.3,1.7","1.1,1.3,1.7","3.1.1, 1007","1.1,1.3,1.7"," "]
[null,"1.2.11","Direct payments (SEN and disability)",null,null,null,null,null,null,null,{"$f":"SUM(E34,F34,G34,H34,I34,J34)","v":0},null,0,null,null,null,"1.1,1.3,1.7","1.1,1.3,1.7","1.1,1.3,1.7","1.1,1.3,1.7","1.1,1.3,1.7","1.1,1.3,1.7","3.1.1, 1007","1.1,1.3,1.7"," "]
[null,"1.2.13","Therapies and other health related services",null,null,null,null,null,null,null,{"$f":"SUM(E35,F35,G35,H35,I35,J35)","v":0},null,0,null,null,null,"1.1,1.3,1.7","1.1,1.3,1.7","1.1,1.3,1.7","1.1,1.3,1.7","1.1,1.3,1.7","1.1,1.3,1.7","3.1.1, 1007","1.1,1.3,1.7"," "]
[]
[null,null,"EARLY YEARS BUDGET  "]
[null,"1.3.1","Central expenditure on early years entitlement ",null,null,null,null,null,null,null,{"$f":"E38","v":0},null,{"$f":"K38-L38","v":0},null,null,null,"1.1,1.3,1.7,5.0.9",1.6,1.6,1.6,1.6,1.6,"3.1.1, 1007, 5.0.9","1.1,1.3,1.7"," "]
[]
[null,null,"CENTRAL PROVISION WITHIN SCHOOLS BUDGET "]
[null,"1.4.1","Contribution to combined budgets ",null,null,null,null,null,null,null,{"$f":"SUM(E41,F41,G41,H41,I41)","v":0},null,{"$f":"K41-L41","v":0},null,null,null,"1.1,1.3,1.7","1.1,1.3,1.7","1.1,1.3,1.7","1.1,1.3,1.7","1.1,1.3,1.7",1.6,"3.1.1, 1007","1.1,1.3,1.7"," "]
[null,"1.4.2","School admissions",null,null,null,null,null,null,null,0,null,0,null,null,null,"1.1,1.3,1.7","1.1,1.3,1.7","1.1,1.3,1.7","1.1,1.3,1.7","1.1,1.3,1.7",1.6,"3.1.1, 1007","1.1,1.3,1.7"," "]
[null,"1.4.3","Servicing of schools forums",null,null,null,null,null,null,null,0,null,0,null,null,null,"1.1,1.3,1.7","1.1,1.3,1.7","1.1,1.3,1.7","1.1,1.3,1.7","1.1,1.3,1.7",1.6,"3.1.1, 1007","1.1,1.3,1.7"," "]
[null,"1.4.4","Termination of employment costs",null,null,null,null,null,null,null,0,null,0,null,null,null,"1.1,1.3,1.7","1.1,1.3,1.7","1.1,1.3,1.7","1.1,1.3,1.7","1.1,1.3,1.7",1.6,"3.1.1, 1007","1.1,1.3,1.7"," "]
[null,"1.4.5","Falling Rolls Fund",null,null,null,null,null,null,null,0,null,0,null,null,null,"1.1,1.3,1.7","1.1,1.3,1.7","1.1,1.3,1.7","1.1,1.3,1.7","1.1,1.3,1.7",1.6,"3.1.1, 1007","1.1,1.3,1.7"," "]
[null,"1.4.6","Capital expenditure from revenue (CERA)",null,null,null,null,null,null,null,0,null,0,null,null,null,"1.1,1.3,1.7","1.1,1.3,1.7","1.1,1.3,1.7","1.1,1.3,1.7","1.1,1.3,1.7",1.6,"3.1.1, 1007","1.1,1.3,1.7"," "]
[null,"1.4.7","Prudential borrowing costs",null,null,null,null,null,null,null,0,null,0,null,null,null,"1.1,1.3,1.7","1.1,1.3,1.7","1.1,1.3,1.7","1.1,1.3,1.7","1.1,1.3,1.7",1.6,"3.1.1, 1007","1.1,1.3,1.7"," "]
[null,"1.4.8","Fees to independent schools without SEN ",null,null,null,null,null,null,null,0,null,0,null,null,null,"1.1,1.3,1.7","1.1,1.3,1.7","1.1,1.3,1.7","1.1,1.3,1.7","1.1,1.3,1.7",1.6,"3.1.1, 1007","1.1,1.3,1.7"," "]
[null,"1.4.9","Equal pay - back pay   ",null,null,null,null,null,null,null,0,null,0,null,null,null,"1.1,1.3,1.7","1.1,1.3,1.7","1.1,1.3,1.7","1.1,1.3,1.7","1.1,1.3,1.7",1.6,"3.1.1, 1007","1.1,1.3,1.7"," "]
[null,"1.4.10","Pupil growth ",null,null,null,null,null,null,null,0,null,0,null,null,null,"1.1,1.3,1.7","1.1,1.3,1.7","1.1,1.3,1.7","1.1,1.3,1.7","1.1,1.3,1.7",1.6,"3.1.1, 1007","1.1,1.3,1.7"," "]
[null,"1.4.11","SEN transport",null,null,null,null,null,null,null,{"$f":"SUM(E51,F51,G51,H51,I51,J51)","v":0},null,0,null,null,null,"1.1,1.3,1.7","1.1,1.3,1.7","1.1,1.3,1.7","1.1,1.3,1.7","1.1,1.3,1.7","1.1,1.3,1.7","3.1.1, 1007","1.1,1.3,1.7"," "]
[null,"1.4.12","Exceptions agreed by Secretary of State ",null,null,null,null,null,null,null,{"$f":"SUM(E52,F52,G52,H52,I52,J52)","v":0},null,0,null,null,null,"1.1,1.3,1.7","1.1,1.3,1.7","1.1,1.3,1.7","1.1,1.3,1.7","1.1,1.3,1.7","1.1,1.3,1.7","3.1.1, 1007","1.1,1.3,1.7"," "]
[null,"1.4.13","Infant class sizes",null,null,null,null,null,null,null,{"$f":"F53","v":0},null,0,null,null,null,1.6,"1.1,1.3,1.7",1.6,1.6,1.6,1.6,"3.1.1, 1007","1.1,1.3,1.7"," "]
[null,"1.4.14","Other Items ",null,null,null,null,null,null,null,{"$f":"SUM(E54,F54,G54,H54,I54,J54)","v":0},null,0,null,null,null,"1.1,1.3,1.7","1.1,1.3,1.7","1.1,1.3,1.7","1.1,1.3,1.7","1.1,1.3,1.7","1.1,1.3,1.7","3.1.1, 1007",1.6," "]
[]
[null,null,"CENTRAL PROVISION WITHIN SCHOOLS BUDGET (FORMER ESG RETAINED DUTIES)"]
[null,"1.5.1","Education welfare service",null,null,null,null,null,null,null,null,null,{"$f":"K57-L57","v":0},null,null,null,null,null,null,null,null,null,"1.1,1.3, 3.1.1, 1.7","1.1,1.3,1.7"," "]
[null,"1.5.2","Asset management ",null,null,null,null,null,null,null,null,null,{"$f":"K58-L58","v":0},null,null,null,null,null,null,null,null,null,"1.1,1.3, 3.1.1, 1.7","1.1,1.3,1.7"," "]
[null,"1.5.3","Statutory/Regulatory duties",null,null,null,null,null,null,null,null,null,{"$f":"K59-L59","v":0},null,null,null,null,null,null,null,null,null,"1.1,1.3, 3.1.1, 1.7","1.1,1.3,1.7"," "]
[]
[null,null,"CENTRAL PROVISION FUNDED THROUGH MAINTAINED SCHOOLS BUDGET"]
[null,"1.6.1","Central support services ",null,null,null,null,null,null,null,null,null,{"$f":"K62-L62","v":0},null,null,null,null,null,null,null,null,null,"1.1,1.3, 3.1.1, 1.7","1.1,1.3,1.7"," "]
[null,"1.6.2","Education welfare service",null,null,null,null,null,null,null,null,null,0,null,null,null,null,null,null,null,null,null,"1.1,1.3, 3.1.1, 1.7","1.1,1.3,1.7"," "]
[null,"1.6.3","Asset management ",null,null,null,null,null,null,null,null,null,0,null,null,null,null,null,null,null,null,null,"1.1,1.3, 3.1.1, 1.7","1.1,1.3,1.7"," "]
[null,"1.6.4","Statutory/Regulatory duties",null,null,null,null,null,null,null,null,null,0,null,null,null,null,null,null,null,null,null,"1.1,1.3, 3.1.1, 1.7","1.1,1.3,1.7"," "]
[null,"1.6.5","Premature retirement cost / Redundancy costs (new provisions)",null,null,null,null,null,null,null,null,null,0,null,null,null,null,null,null,null,null,null,"1.1,1.3, 3.1.1, 1.7","1.1,1.3,1.7"]
[null,"1.6.6","Monitoring national curriculum assessment",null,null,null,null,null,null,null,null,null,0,null,null,null,null,null,null,null,null,null,"1.1,1.3, 3.1.1, 1.7","1.1,1.3,1.7"]
[null,"1.6.7","School Improvement",null,null,null,null,null,null,null,null,null,0,null,null,null,null,null,null,null,null,null,"1.1,1.3, 3.1.1, 1.7","1.1,1.3,1.7"]
[]
[null,"1.7.1","Other Specific Grants ",null,null,null,null,null,null,null,{"$f":"SUM(E70:J70)","v":0},null,{"$f":"K70-L70","v":0},null,null,null,"1.1,1.3,1.7,1021","1.1,1.3,1.7","1.1,1.3,1.7","1.1,1.3,1.7","1.1,1.3,1.7","1.1,1.3,1.7","3.1.1, 1007","1.1,1.3,1.7"]
[]
[null,"1.8.1","TOTAL SCHOOLS BUDGET (before academy recoupment)  ",null,{"$f":"SUM(E9, E10,E24:E28,E30:E31,E34:E35,E38,E41:E52,E54,E70)","v":0},{"$f":"SUM(F9:F10,F13:F21,F24:F28,F30:F31,F34:F35,F41:F54,F70)","v":0},{"$f":"SUM(G9:G10,G13:G21,G24:G28,G30:G31,G34:G35,G41:G52,G54,G70)","v":0},{"$f":"SUM(H9:H10,H24:H26,H28:H35,H41:H52,H54,H70)","v":0},{"$f":"SUM(I9:I10,I24:I26,I28:I35,I41:I52,I54,I70)","v":0},{"$f":"SUM(J25:J26,J28,J30:J31,J33:J35,J51:J52,J54,J70)","v":0},{"$f":"SUM(K9:K10,K13:K21,K24:K35,K38,K41:K54,K57:K59,K62:K68,K70)","v":0},{"$f":"SUM(L13:L21,L24:L35,L38,L41:L54,L57:L59,L62:L68,L70)","v":0},{"$f":"SUM(M9:M10,M13:M21,M24:M35,M38,M41:M54,M57:M59,M62:M68,M70)","v":0}]
[]
[null,"1.8.1a","DSG BLOCK PLANNED EXPENDITURE",null,"DSG Block\n",null,"Allocated DSG funding","Planned Spend\n","Net\n"]
[null,"Schools",null,null,"Schools (before Academy recoupment)",null,null,null,{"$f":"G75-H75","v":0},null,null,null,null,null,null,null,null,null,"1.1,1.7, 1.3, 1026","1.1,1.7, 1.3"]
[null,"Central School Services",null,null,"Central School Services",null,null,null,{"$f":"G76-H76","v":0},null,null,null,null,null,null,null,null,null,"1.1,1.7, 1.3, 1027","1.1,1.7, 1.3"]
[null,"High Needs",null,null,"High Needs (excluding post school)",null,null,null,{"$f":"G77-H77","v":0},null,null,null,null,null,null,null,null,null,"1.1,1.7, 1.3, 1028","1.1,1.7, 1.3"]
[null,"Early Years",null,null,"Early Years",null,null,null,{"$f":"G78-H78","v":0},null,null,null,null,null,null,null,null,null,"1.1,1.7, 1.3, 1029","1.1,1.7, 1.3"]
[null,null,null,null,"Total",null,{"$f":"SUM(G75:G78)","v":0},{"$f":"SUM(H75:H78)","v":0},{"$f":"SUM(I75:I78)","v":0}]
[]
[null,null,"RECONCILIATION OF SCHOOLS BUDGET   "]
[null,"1.9.1","Estimated Dedicated Schools Grant for 2025-26 (before academy recoupment), excluding high needs place funding for 16-19 academies and free schools and FE colleges and independent learning providers",null,null,null,null,null,null,null,null,null,null,null,null,null,null,null,null,null,null,null,"1.1, 1.3, 3.1.1,1.7, 1030",null," "]
[null,"1.9.2","Dedicated Schools Grant brought forward from 2024-25 (please show a deficit as a negative) ",null,null,null,null,null,null,null,null,null,null,null,null,null,null,null,null,null,null,null,"1.1,1.7,1031",null," "]
[null,"1.9.3","Dedicated Schools Grant carry forward to 2026-27",null,null,null,null,null,null,null,{"$f":"SUM(M72 - K82 - K83 -K85 - K86)","v":0},null,null,null,null,null,null,null,null,null,null,null,"1.1,1.7, 1032",null," "]
[null,"1.9.4","Grant for maintained school sixth forms",null,null,null,null,null,null,null,null,null,null,null,null,null,null,null,null,null,null,null,"1.1,1.7, 1.3, 3.1.1,1.3",null," "]
[null,"1.9.5","Local Authority additional contribution",null,null,null,null,null,null,null,null,null,null,null,null,null,null,null,null,null,null,null,"1.1,1.7, 1.3"]
[null,"1.9.6","Total funding supporting the Schools Budget (the sum of lines 1.9.1 to 1.9.5)",null,null,null,null,null,null,null,{"$f":"SUM(K82:K83,K85,K86)+K84","v":0},null,null,null,null,null,null,null,null,null,null,null,null,null," "]
[]
[null,"1.10.1","Academy recoupment from the Dedicated Schools Grant of schools block funding (show as a negative)",null,null,null,null,null,null,null,null,null,null,null,null,null,null,null,null,null,null,null,"1.1,1.7,1.5",null," "]
[null,"1.10.2","Academy recoupment from the Dedicated Schools Grant of high needs place funding shown under line 1.0.2 (show as a negative)",null,null,null,null,null,null,null,null,null,null,null,null,null,null,null,null,null,null,null,"1.1,1.7,1.5",null," "]
[]
[null,2,"OTHER EDUCATION AND COMMUNITY BUDGET"]
[]
[null,"2.0.1","Central support services ",null,null,null,null,null,null,null,null,null,{"$f":"K94-L94","v":0},null,null,null,null,null,null,null,null,null,"3.1.1,1.7, 1007,1.3","1.1,1.7, 1.3"," "]
[null,"2.0.2","Education welfare service",null,null,null,null,null,null,null,null,null,0,null,null,null,null,null,null,null,null,null,"3.1.1,1.7, 1007,1.3","1.1,1.7, 1.3"," "]
[null,"2.0.3","School improvement",null,null,null,null,null,null,null,null,null,0,null,null,null,null,null,null,null,null,null,"3.1.1,1.7, 1007,1.3","1.1,1.7, 1.3"]
[null,"2.0.4","Asset management - education",null,null,null,null,null,null,null,null,null,0,null,null,null,null,null,null,null,null,null,"3.1.1,1.7, 1007,1.3","1.1,1.7, 1.3"," "]
[null,"2.0.5","Statutory/ Regulatory duties - education",null,null,null,null,null,null,null,null,null,0,null,null,null,null,null,null,null,null,null,"3.1.1,1.7, 1007,1.3","1.1,1.7, 1.3"]
[null,"2.0.6","Premature retirement cost/ Redundancy costs (new provisions)",null,null,null,null,null,null,null,null,null,0,null,null,null,null,null,null,null,null,null,"3.1.1,1.7, 1007,1.3","1.1,1.7, 1.3"," "]
[null,"2.0.7","Monitoring national curriculum assessment",null,null,null,null,null,null,null,null,null,0,null,null,null,null,null,null,null,null,null,"3.1.1,1.7, 1007,1.3","1.1,1.7, 1.3"," "]
[]
[null,"2.1.1","Educational psychology service",null,null,null,null,null,null,null,null,null,{"$f":"K102-L102","v":0},null,null,null,null,null,null,null,null,null,"3.1.1,1.7, 1007,1.3","1.1,1.7, 1.3"," "]
[null,"2.1.2","SEN administration, assessment and coordination and monitoring",null,null,null,null,null,null,null,null,null,0,null,null,null,null,null,null,null,null,null,"3.1.1,1.7, 1007,1.3","1.1,1.7, 1.3"]
[null,"2.1.3","Independent Advice and Support Services (Parent partnership), guidance and information",null,null,null,null,null,null,null,null,null,0,null,null,null,null,null,null,null,null,null,"3.1.1,1.7, 1007,1.3","1.1,1.7, 1.3"]
[null,"2.1.4","Home to school transport (pre 16): SEN transport expenditure",null,null,null,null,null,null,null,{"$f":"SUM(E105,F105,G105,H105,I105,J105)","v":0},null,0,null,null,null,"1.1,1.7,1.3","1.1,1.7,1.3","1.1,1.7,1.3","1.1,1.7,1.3","1.1,1.7,1.3",1.6,"3.1.1,1.7, 1007","1.1,1.7, 1.3"," "]
[null,"2.1.5","Home to school transport (pre 16): mainstream home to school transport expenditure",null,null,null,null,null,null,null,{"$f":"SUM(E106,F106,G106,H106,I106,J106)","v":0},null,0,null,null,null,"1.1,1.7,1.3","1.1,1.7,1.3","1.1,1.7,1.3","1.1,1.7,1.3","1.1,1.7,1.3",1.6,"3.1.1,1.7, 1007","1.1,1.7, 1.3"]
[null,"2.1.6","Home to post-16 provision: SEN/ LLDD transport expenditure (aged 16-18)",null,null,null,null,null,null,null,{"$f":"SUM(E107,F107,G107,H107,I107,J107)","v":0},null,0,null,null,null,1.6,1.6,"1.1,1.7,1.3","1.1,1.7,1.3","1.1,1.7,1.3","1.1,1.7,1.3","3.1.1,1.7, 1007","1.1,1.7, 1.3"]
[null,"2.1.7","Home to post-16 provision: SEN/ LLDD transport expenditure (aged 19-25)",null,null,null,null,null,null,null,{"$f":"SUM(E108,F108,G108,H108,I108,J108)","v":0},null,0,null,null,null,1.6,1.6,"1.1,1.7,1.3","1.1,1.7,1.3","1.1,1.7,1.3","1.1,1.7,1.3","3.1.1,1.7, 1007","1.1,1.7, 1.3"]
[null,"2.1.8","Home to post-16 provision transport: mainstream home to post-16 transport expenditure",null,null,null,null,null,null,null,{"$f":"SUM(E109,F109,G109,H109,I109,J109)","v":0},null,0,null,null,null,1.6,1.6,"1.1,1.7,1.3","1.1,1.7,1.3","1.1,1.7,1.3","1.1,1.7,1.3","3.1.1,1.7, 1007","1.1,1.7, 1.3"," "]
[null,"2.1.9","Supply of school places",null,null,null,null,null,null,null,null,null,0,null,null,null,null,null,null,null,null,null,"3.1.1,1.7, 1007,1.3","1.1,1.7, 1.3"," "]
[]
[null,"2.2.1","Other spend not funded from the Schools Budget ",null,null,null,null,null,null,null,null,null,{"$f":"K112-L112","v":0},null,null,null,null,null,null,null,null,null,"3.1.1,1.7, 1007,1.3","1.1,1.7, 1.3"]
[]
[null,"2.3.1","Young people's learning and development",null,null,null,null,null,null,null,{"$f":"SUM(G114:J114)","v":0},null,{"$f":"K114-L114","v":0},null,null,null,1.6,1.6,"1.1,1.7,1.3","1.1,1.7,1.3","1.1,1.7,1.3","1.1,1.7,1.3","3.1.1,1.7, 1007","1.1,1.7, 1.3"," "]
[null,"2.3.2","Adult and Community learning",null,null,null,null,null,null,null,null,null,{"$f":"K115-L115","v":0},null,null,null,null,null,null,null,null,null,"3.1.1,1.7, 1007,1.3","1.1,1.7, 1.3"," "]
[null,"2.3.3","Pension costs",null,null,null,null,null,null,null,null,null,{"$f":"K116-L116","v":0},null,null,null,null,null,null,null,null,null,"3.1.1,1.7, 1007,1.3","1.1,1.7, 1.3"," "]
[null,"2.3.4","Joint use arrangements",null,null,null,null,null,null,null,null,null,{"$f":"K117-L117","v":0},null,null,null,null,null,null,null,null,null,"3.1.1,1.7, 1007,1.3","1.1,1.7, 1.3"," "]
[null,"2.3.5","Insurance",null,null,null,null,null,null,null,null,null,{"$f":"K118-L118","v":0},null,null,null,null,null,null,null,null,null,"3.1.1,1.7, 1007,1.3","1.1,1.7, 1.3"," "]
[]
[null,"2.4.1","Other Specific Grant ",null,null,null,null,null,null,null,null,null,{"$f":"K120-L120","v":0},null,null,null,null,null,null,null,null,null,"3.1.1,1.7, 1007,1.3","1.1,1.7, 1.3",1021]
[]
[null,"2.5.1","Total Other education and community budget",null,null,null,null,null,null,null,{"$f":"SUM(K94:K100,K102:K110,K112,K114:K118,K120)","v":0},{"$f":"SUM(L94:L100,L102:L110,L112,L114:L118,L120)","v":0},{"$f":"K122-L122","v":0},null,null,null,null,null,null,null,null,null,null,null," "]
[]
[null,3,"CHILDREN'S AND YOUNG PEOPLE'S SERVICES           "]
[]
[null,null,"SURE START CHILDREN'S CENTRES AND OTHER SPEND ON CHILDREN UNDER 5"]
[null,"3.0.1","Funding for individual Sure Start Children's Centres",null,null,null,null,null,null,null,null,null,{"$f":"K127-L127","v":0},null,null,null,null,null,null,null,null,null,"3.1.1,1.7, 1007,1.3","1.1,1.7, 1.3"]
[null,"3.0.2","Funding for local authority provided or commissioned area wide services delivered through Sure Start Children's Centres",null,null,null,null,null,null,null,null,null,{"$f":"K128-L128","v":0},null,null,null,null,null,null,null,null,null,"3.1.1,1.7, 1007,1.3","1.1,1.7, 1.3"]
[null,"3.0.3","Funding on local authority management costs relating to Sure Start Children's Centres",null,null,null,null,null,null,null,null,null,{"$f":"K129-L129","v":0},null,null,null,null,null,null,null,null,null,"3.1.1,1.7, 1007,1.3","1.1,1.7, 1.3"]
[null,"3.0.4","Other spend on children under 5",null,null,null,null,null,null,null,null,null,{"$f":"K130-L130","v":0},null,null,null,null,null,null,null,null,null,"3.1.1,1.7, 1007,1.3","1.1,1.7, 1.3"]
[null,"3.0.5","Total Sure Start children's centres and other spend on children under 5",null,null,null,null,null,null,null,{"$f":"SUM(K127:K130)","v":0},{"$f":"SUM(L127:L130)","v":0},{"$f":"SUM(M127:M130)","v":0}]
[]
[null,null,"CHILDREN LOOKED AFTER"]
[null,"3.1.1","Residential care",null,null,null,null,null,null,null,null,null,{"$f":"K134-L134","v":0},null,null,null,null,null,null,null,null,null,"3.1.1,1.7, 1007,1.3","1.1,1.7, 1.3"]
[null,"3.1.2a","Fostering services (excluding fees and allowances for LA foster carers)",null,null,null,null,null,null,null,null,null,0,null,null,null,null,null,null,null,null,null,"3.1.1,1.7, 1007,1.3","1.1,1.7, 1.3"]
[null,"3.1.2b","Fostering services (fees and allowances for LA foster carers)",null,null,null,null,null,null,null,null,null,0,null,null,null,null,null,null,null,null,null,"3.1.1,1.7, 1007,1.3","1.1,1.7, 1.3"]
[null,"3.1.3","Adoption services",null,null,null,null,null,null,null,null,null,0,null,null,null,null,null,null,null,null,null,"3.1.1,1.7, 1007,1.3","1.1,1.7, 1.3"]
[null,"3.1.4","Special guardianship support ",null,null,null,null,null,null,null,null,null,0,null,null,null,null,null,null,null,null,null,"3.1.1,1.7, 1007,1.3","1.1,1.7, 1.3"]
[null,"3.1.5","Other children looked after services",null,null,null,null,null,null,null,null,null,0,null,null,null,null,null,null,null,null,null,"3.1.1,1.7, 1007,1.3","1.1,1.7, 1.3"]
[null,"3.1.6","Short breaks (respite) for looked after disabled children",null,null,null,null,null,null,null,null,null,0,null,null,null,null,null,null,null,null,null,"3.1.1,1.7, 1007,1.3","1.1,1.7, 1.3"]
[null,"3.1.7","Children placed with family and friends",null,null,null,null,null,null,null,null,null,0,null,null,null,null,null,null,null,null,null,"3.1.1,1.7, 1007,1.3","1.1,1.7, 1.3"]
[null,"3.1.8","Education of looked after children ",null,null,null,null,null,null,null,{"$f":"SUM(E142,F142,G142,H142,I142)","v":0},null,0,null,null,null,"1.1,1.7,1.3","1.1,1.7,1.3","1.1,1.7,1.3","1.1,1.7,1.3","1.1,1.7,1.3",1.6,"3.1.1,1.7, 1007","1.1,1.7, 1.3"]
[null,"3.1.9","Leaving care support services",null,null,null,null,null,null,null,null,null,0,null,null,null,null,null,null,null,null,null,"3.1.1,1.7, 1007,1.3","1.1,1.7, 1.3"]
[null,"3.1.10","Asylum seeker services children",null,null,null,null,null,null,null,null,null,0,null,null,null,null,null,null,null,null,null,"3.1.1,1.7, 1007,1.3","1.1,1.7, 1.3"]
[null,"3.1.11","Total Children Looked After",null,{"$f":"SUM(E142)","v":0},{"$f":"SUM(F142)","v":0},{"$f":"SUM(G142)","v":0},{"$f":"SUM(H142)","v":0},{"$f":"SUM(I142)","v":0},null,{"$f":"SUM(K134:K144)","v":0},{"$f":"SUM(L134:L144)","v":0},{"$f":"SUM(M134:M144)","v":0}]
[]
[null,null,"OTHER CHILDREN AND FAMILY SERVICES"]
[null,"3.2.1","Other children and families services",null,null,null,null,null,null,null,null,null,{"$f":"K148-L148","v":0},null,null,null,null,null,null,null,null,null,"3.1.1,1.7, 1007,1.3","1.1,1.7, 1.3"]
[]
[null,null,"SAFEGUARDING CHILDREN AND YOUNG PEOPLE'S SERVICES"]
[null,"3.3.1","Social work (including LA functions in relation to child protection)",null,null,null,null,null,null,null,null,null,{"$f":"K151-L151","v":0},null,null,null,null,null,null,null,null,null,"3.1.1,1.7, 1007,1.3","1.1,1.7, 1.3"]
[null,"3.3.2","Commissioning and Children's Services Strategy",null,null,null,null,null,null,null,null,null,{"$f":"K152-L152","v":0},null,null,null,null,null,null,null,null,null,"3.1.1,1.7, 1007,1.3","1.1,1.7, 1.3"]
[null,"3.3.3","Local Safeguarding Children Board",null,null,null,null,null,null,null,null,null,{"$f":"K153-L153","v":0},null,null,null,null,null,null,null,null,null,"3.1.1,1.7, 1007,1.3","1.1,1.7, 1.3"]
[null,"3.3.4","Total Safeguarding Children and Young People's Services",null,null,null,null,null,null,null,{"$f":"SUM(K151:K153)","v":0},{"$f":"SUM(L151:L153)","v":0},{"$f":"SUM(M151:M153)","v":0}]
[]
[null,null,"FAMILY SUPPORT SERVICES"]
[null,"3.4.1","Direct payments",null,null,null,null,null,null,null,null,null,{"$f":"K157-L157","v":0},null,null,null,null,null,null,null,null,null,"3.1.1,1.7, 1007,1.3","1.1,1.7, 1.3"]
[null,"3.4.2","Short breaks (respite) for disabled children",null,null,null,null,null,null,null,null,null,{"$f":"K158-L158","v":0},null,null,null,null,null,null,null,null,null,"3.1.1,1.7, 1007,1.3","1.1,1.7, 1.3"]
[null,"3.4.3","Other support for disabled children",null,null,null,null,null,null,null,null,null,{"$f":"K159-L159","v":0},null,null,null,null,null,null,null,null,null,"3.1.1,1.7, 1007,1.3","1.1,1.7, 1.3"]
[null,"3.4.4","Targeted family support",null,null,null,null,null,null,null,null,null,{"$f":"K160-L160","v":0},null,null,null,null,null,null,null,null,null,"3.1.1,1.7, 1007,1.3","1.1,1.7, 1.3"]
[null,"3.4.5","Universal family support ",null,null,null,null,null,null,null,null,null,{"$f":"K161-L161","v":0},null,null,null,null,null,null,null,null,null,"3.1.1,1.7, 1007,1.3","1.1,1.7, 1.3"]
[null,"3.4.6","Total Family Support Services",null,null,null,null,null,null,null,{"$f":"SUM(K157:K161)","v":0},{"$f":"SUM(L157:L161)","v":0},{"$f":"SUM(M157:M161)","v":0}]
[]
[null,null,"SERVICES FOR YOUNG PEOPLE"]
[null,"3.5.1","Universal services for young people",null,null,null,null,null,null,null,null,null,{"$f":"K165-L165","v":0},null,null,null,null,null,null,null,null,null,"3.1.1,1.7, 1007,1.3","1.1,1.7, 1.3"]
[null,"3.5.2","Targeted services for young people ",null,null,null,null,null,null,null,null,null,{"$f":"K166-L166","v":0},null,null,null,null,null,null,null,null,null,"3.1.1,1.7, 1007,1.3","1.1,1.7, 1.3"]
[null,"3.5.3","Total Services for young people",null,null,null,null,null,null,null,{"$f":"SUM(K165:K166)","v":0},{"$f":"SUM(L165:L166)","v":0},{"$f":"SUM(M165:M166)","v":0}]
[]
[null,null,"YOUTH JUSTICE"]
[null,"3.6.1","Youth justice",null,null,null,null,null,null,null,null,null,{"$f":"K170-L170","v":0},null,null,null,null,null,null,null,null,null,"3.1.1,1.7, 1007,1.3","1.1,1.7, 1.3"]
[]
[null,"4.0.1","Capital Expenditure from Revenue (CERA) (Non-schools budget functions and Children's and young people services)",null,null,null,null,null,null,null,null,null,{"$f":"K172-L172","v":0},null,null,null,null,null,null,null,null,null,"3.1.1,1.7, 1007,1.3","1.1,1.7, 1.3"]
[]
[null,"5.0.1","Total Schools Budget and Other education and community budget (excluding CERA) (lines 1.8.1 and 2.5.1)",null,null,null,null,null,null,null,{"$f":"SUM(K72,K122)","v":0},{"$f":"SUM(L72,L122)","v":0},{"$f":"SUM(M72,M122)","v":0}]
[]
[null,"5.0.2","Total Children and Young People's Services and Youth Justice Budget (excluding CERA)(lines 3.0.5 + 3.1.11 + 3.2.1 + 3.3.4 + 3.4.6 + 3.5.3 + 3.6.1)",null,null,null,null,null,null,null,{"$f":"SUM(K131,K145,K148,K154,K162,K167,K170)","v":0},{"$f":"SUM(L131,L145,L148,L154,L162,L167,L170)","v":0},{"$f":"SUM(M131,M145,M148,M154,M162,M167,M170)","v":0}]
[]
[null,6,"Total Schools Budget, Other education and community budget, Children and Young People's Services and Youth Justice Budget (excluding CERA) (lines 5.0.1 + 5.0.2)",null,null,null,null,null,null,null,{"$f":"SUM(K174,K176)","v":0},{"$f":"SUM(L174,L176)","v":0},{"$f":"SUM(M174,M176)","v":0}]
[]
[null,7,"Capital Expenditure (excluding CERA)",null,null,null,null,null,null,null,{"$f":"SUM(E180,F180,G180,H180,I180)","v":0},null,{"$f":"K180-L180","v":0},null,null,null,"1.1,1.7, 1.3","1.1,1.7, 1.3","1.1,1.7, 1.3","1.1,1.7, 1.3","1.1,1.7, 1.3",null,"3.1.1,1.7, 1007","1.1,1.7, 1.3"]
[]
[null,null,"MEMORANDUM ITEMS"]
[]
[null,8,"Services for young people"]
[null,"8a.1","Substance misuse services (Drugs, Alcohol and Volatile substances) (included in 3.5.1 and 3.5.2 above)",null,null,null,null,null,null,null,null,null,{"$f":"K185-L185","v":0},null,null,null,null,null,null,null,null,null,"3.1.1,1.7, 1007, 6.1,1.3","1.1,1.7, 1.3, 6.1"]
[null,"8a.2","Teenage pregnancy services (included in 3.5.1 and 3.5.2 above)",null,null,null,null,null,null,null,null,null,{"$f":"K186-L186","v":0},null,null,null,null,null,null,null,null,null,"3.1.1,1.7, 1007, 6.2,1.3","1.1,1.7, 1.3, 6.2"]
[]
[null,null,null,"LA Table Notes:"]

{"sheet":"High Needs Places Table","index":3,"n_rows":209,"n_cols":40,"rows_kept":209,"cut":false,"hidden":false,"merged":[[5,19,6,19],[5,13,5,14],[5,17,6,17],[5,33,5,34],[5,37,6,37],[5,22,6,24],[5,25,6,25],[5,26,6,26],[5,27,5,28],[5,30,5,31],[0,5,0,13],[5,2,6,4],[5,5,6,5],[5,6,6,6],[5,7,5,8],[5,10,5,11],[3,5,3,16]]}
[null,"S251 Budget 2025-26",null,null,null,"PLEASE ENABLE MACROS BEFORE ENTERING DATA"]
[null,"Nursery, Pre-16 and Post-16 high needs places in maintained schools. Full-year data should be entered for schools becoming academies on or after 1 April 2025."]
[]
[null,null,null,null,"Schools Table Notes:",null,null,null,null,null,null,null,null,null,null,null,null,"HNP Table Errors:",null,null,null,null,"Count of headings:",{"$f":"COUNTIF(T:T,\"Error Cell Reference and Description\")","v":1}]
[null,null,null,null,null,null,null,null,null,null,null,null,null,null,null,null,null,null,null,null,null,null,"Count of cells with errors:",{"$f":"COUNTIF(T:T,\"<>\")-X4","v":0}]
[null,null,"Special Schools / Pupil Referral Units / Hospital Schools / Special units and resourced provision in mainstream schools",null,null,"Is School/Unit Opening/Closing In-Year?","Date Opening / Closing","Special Educational Needs (SEN) Places",null,"SEN place funding","Alternative provision (AP) places",null,"AP place funding","Hospital education places  ",null,"Hospital education place funding","Total place funding","Comments",null,"Error Cell Reference and Description",null,"Last Row with data entered:","Special Schools / Pupil Referral Units / Hospital Schools / Special units and resourced provision in mainstream schools",null,null,"Is School/Unit Opening/Closing In-Year?","Date Opening / Closing","Special Educational Needs (SEN) Places",null,"SEN place funding","Alternative provision (AP) places",null,"AP place funding","Hospital education places  ",null,"Hospital education place funding","Total Place funding         net ","Comments"]
[null,null,null,null,null,null,null,"April 2025 to August 2025    ","September 2025 to March 2026","April 2025 to March 2026","April 2025 to August 2025","September 2025 to March 2026","April 2025 to March 2026","April 2025 to August 2025","September 2025 to March 2026","April 2025 to March 2026","April 2025 to March 2026",null,null,null,null,{"$f":"IF(MAX(IF(V9:V1002=1, ROW(V9:V1002)-ROW(INDEX(V9:V1002,1,1))+1))+6>6,MAX(IF(V9:V1002=1, ROW(V9:V1002)-ROW(INDEX(V9:V1002,1,1))+1))+8,0)","v":0},null,null,null,null,null,"April 2022 to August 2022       ","September 2022 to March 2023","April 2022 to March 2023","April 2022 to August 2022","September 2022 to March 2023","April 2022 to March 2023","April 2022 to August 2022","September 2022 to March 2023","April 2022 to March 2023","April 2022 to March 2023"]
[null,"School number - for authorities own use","School Name","DfE Number","School Type","O or C","yyyy-mm-dd",null,null,"£",null,null,"£",null,null,"£","£",null,null,null,null,"Count if values are present","School Name","DfE Number","School Type","O or C",null,null,null,"£",null,null,"£",null,null,"£","£",null,"Error1002\nCalc","Error1003\nCalc"]
[null,null,null,null,null,null,null,null,null,null,null,null,null,null,null,null,{"$f":"SUM(J9,M9,P9)","v":0},null,null,null,null,{"$f":"IF(COUNTIF(B9:R9,\"<>\")-1>0,1,0)","v":0},"2.12, 2.5","2.11, 2.5, 1.2,1.7, 2.12","1025, 2.12, 2.5","2.9.1, 2.12, 2.5","2.9.1,2.10.1, 2.12, 2.5","1002, 1012, 1.3,1.7, 2.12, 2.5","1002, 1012, 1.3,1.7, 2.12, 2.5","1003, 1024, 1034, 1035,1.7, 2.12, 2.5","1002, 1012, 1.3,1.7, 2.12, 2.5","1002, 1012, 1.3,1.7, 2.12, 2.5","1004, 1036,1.7, 2.12, 2.5","1002, 1012, 1.3,1.7, 2.12, 2.5","1002, 1012, 1.3,1.7, 2.12, 2.5","1005, 1012, 1013, 1037,1.7, 2.12, 2.5","1011, 1022,1.7, 2.12, 2.5",null,{"$f":"SUM(H9:I9,K9:L9,N9:O9)","v":0},{"$f":"ROUND(H9*5/12+I9*7/12*10000,2)","v":0}]
[null,null,null,null,null,null,null,null,null,null,null,null,null,null,null,null,{"$f":"SUM(J10,M10,P10)","v":0},null,null,null,null,{"$f":"IF(COUNTIF(B10:R10,\"<>\")-1>0,1,0)","v":0},"2.12, 2.5","2.11, 2.5, 1.2,1.7, 2.12","1025, 2.12, 2.5","2.9.1, 2.12, 2.5","2.9.1,2.10.1, 2.12, 2.5","1002, 1012, 1.3,1.7, 2.12, 2.5","1002, 1012, 1.3,1.7, 2.12, 2.5","1003, 1024, 1034, 1035,1.7, 2.12, 2.5","1002, 1012, 1.3,1.7, 2.12, 2.5","1002, 1012, 1.3,1.7, 2.12, 2.5","1004, 1036,1.7, 2.12, 2.5","1002, 1012, 1.3,1.7, 2.12, 2.5","1002, 1012, 1.3,1.7, 2.12, 2.5","1005, 1012, 1013, 1037,1.7, 2.12, 2.5","1011, 1022,1.7, 2.12, 2.5",null,{"$f":"SUM(H10:I10,K10:L10,N10:O10)","v":0},{"$f":"ROUND(H10*5/12+I10*7/12*10000,2)","v":0}]
[null,null,null,null,null,null,null,null,null,null,null,null,null,null,null,null,0,null,null,null,null,0,"2.12, 2.5","2.11, 2.5, 1.2,1.7, 2.12","1025, 2.12, 2.5","2.9.1, 2.12, 2.5","2.9.1,2.10.1, 2.12, 2.5","1002, 1012, 1.3,1.7, 2.12, 2.5","1002, 1012, 1.3,1.7, 2.12, 2.5","1003, 1024, 1034, 1035,1.7, 2.12, 2.5","1002, 1012, 1.3,1.7, 2.12, 2.5","1002, 1012, 1.3,1.7, 2.12, 2.5","1004, 1036,1.7, 2.12, 2.5","1002, 1012, 1.3,1.7, 2.12, 2.5","1002, 1012, 1.3,1.7, 2.12, 2.5","1005, 1012, 1013, 1037,1.7, 2.12, 2.5","1011, 1022,1.7, 2.12, 2.5",null,0,0]
[null,null,null,null,null,null,null,null,null,null,null,null,null,null,null,null,0,null,null,null,null,0,"2.12, 2.5","2.11, 2.5, 1.2,1.7, 2.12","1025, 2.12, 2.5","2.9.1, 2.12, 2.5","2.9.1,2.10.1, 2.12, 2.5","1002, 1012, 1.3,1.7, 2.12, 2.5","1002, 1012, 1.3,1.7, 2.12, 2.5","1003, 1024, 1034, 1035,1.7, 2.12, 2.5","1002, 1012, 1.3,1.7, 2.12, 2.5","1002, 1012, 1.3,1.7, 2.12, 2.5","1004, 1036,1.7, 2.12, 2.5","1002, 1012, 1.3,1.7, 2.12, 2.5","1002, 1012, 1.3,1.7, 2.12, 2.5","1005, 1012, 1013, 1037,1.7, 2.12, 2.5","1011, 1022,1.7, 2.12, 2.5",null,0,0]
[null,null,null,null,null,null,null,null,null,null,null,null,null,null,null,null,0,null,null,null,null,0,"2.12, 2.5","2.11, 2.5, 1.2,1.7, 2.12","1025, 2.12, 2.5","2.9.1, 2.12, 2.5","2.9.1,2.10.1, 2.12, 2.5","1002, 1012, 1.3,1.7, 2.12, 2.5","1002, 1012, 1.3,1.7, 2.12, 2.5","1003, 1024, 1034, 1035,1.7, 2.12, 2.5","1002, 1012, 1.3,1.7, 2.12, 2.5","1002, 1012, 1.3,1.7, 2.12, 2.5","1004, 1036,1.7, 2.12, 2.5","1002, 1012, 1.3,1.7, 2.12, 2.5","1002, 1012, 1.3,1.7, 2.12, 2.5","1005, 1012, 1013, 1037,1.7, 2.12, 2.5","1011, 1022,1.7, 2.12, 2.5",null,0,0]
[null,null,null,null,null,null,null,null,null,null,null,null,null,null,null,null,0,null,null,null,null,0,"2.12, 2.5","2.11, 2.5, 1.2,1.7, 2.12","1025, 2.12, 2.5","2.9.1, 2.12, 2.5","2.9.1,2.10.1, 2.12, 2.5","1002, 1012, 1.3,1.7, 2.12, 2.5","1002, 1012, 1.3,1.7, 2.12, 2.5","1003, 1024, 1034, 1035,1.7, 2.12, 2.5","1002, 1012, 1.3,1.7, 2.12, 2.5","1002, 1012, 1.3,1.7, 2.12, 2.5","1004, 1036,1.7, 2.12, 2.5","1002, 1012, 1.3,1.7, 2.12, 2.5","1002, 1012, 1.3,1.7, 2.12, 2.5","1005, 1012, 1013, 1037,1.7, 2.12, 2.5","1011, 1022,1.7, 2.12, 2.5",null,0,0]
[null,null,null,null,null,null,null,null,null,null,null,null,null,null,null,null,0,null,null,null,null,0,"2.12, 2.5","2.11, 2.5, 1.2,1.7, 2.12","1025, 2.12, 2.5","2.9.1, 2.12, 2.5","2.9.1,2.10.1, 2.12, 2.5","1002, 1012, 1.3,1.7, 2.12, 2.5","1002, 1012, 1.3,1.7, 2.12, 2.5","1003, 1024, 1034, 1035,1.7, 2.12, 2.5","1002, 1012, 1.3,1.7, 2.12, 2.5","1002, 1012, 1.3,1.7, 2.12, 2.5","1004, 1036,1.7, 2.12, 2.5","1002, 1012, 1.3,1.7, 2.12, 2.5","1002, 1012, 1.3,1.7, 2.12, 2.5","1005, 1012, 1013, 1037,1.7, 2.12, 2.5","1011, 1022,1.7, 2.12, 2.5",null,0,0]
[null,null,null,null,null,null,null,null,null,null,null,null,null,null,null,null,0,null,null,null,null,0,"2.12, 2.5","2.11, 2.5, 1.2,1.7, 2.12","1025, 2.12, 2.5","2.9.1, 2.12, 2.5","2.9.1,2.10.1, 2.12, 2.5","1002, 1012, 1.3,1.7, 2.12, 2.5","1002, 1012, 1.3,1.7, 2.12, 2.5","1003, 1024, 1034, 1035,1.7, 2.12, 2.5","1002, 1012, 1.3,1.7, 2.12, 2.5","1002, 1012, 1.3,1.7, 2.12, 2.5","1004, 1036,1.7, 2.12, 2.5","1002, 1012, 1.3,1.7, 2.12, 2.5","1002, 1012, 1.3,1.7, 2.12, 2.5","1005, 1012, 1013, 1037,1.7, 2.12, 2.5","1011, 1022,1.7, 2.12, 2.5",null,0,0]
[null,null,null,null,null,null,null,null,null,null,null,null,null,null,null,null,0,null,null,null,null,0,"2.12, 2.5","2.11, 2.5, 1.2,1.7, 2.12","1025, 2.12, 2.5","2.9.1, 2.12, 2.5","2.9.1,2.10.1, 2.12, 2.5","1002, 1012, 1.3,1.7, 2.12, 2.5","1002, 1012, 1.3,1.7, 2.12, 2.5","1003, 1024, 1034, 1035,1.7, 2.12, 2.5","1002, 1012, 1.3,1.7, 2.12, 2.5","1002, 1012, 1.3,1.7, 2.12, 2.5","1004, 1036,1.7, 2.12, 2.5","1002, 1012, 1.3,1.7, 2.12, 2.5","1002, 1012, 1.3,1.7, 2.12, 2.5","1005, 1012, 1013, 1037,1.7, 2.12, 2.5","1011, 1022,1.7, 2.12, 2.5",null,0,0]
[null,null,null,null,null,null,null,null,null,null,null,null,null,null,null,null,0,null,null,null,null,0,"2.12, 2.5","2.11, 2.5, 1.2,1.7, 2.12","1025, 2.12, 2.5","2.9.1, 2.12, 2.5","2.9.1,2.10.1, 2.12, 2.5","1002, 1012, 1.3,1.7, 2.12, 2.5","1002, 1012, 1.3,1.7, 2.12, 2.5","1003, 1024, 1034, 1035,1.7, 2.12, 2.5","1002, 1012, 1.3,1.7, 2.12, 2.5","1002, 1012, 1.3,1.7, 2.12, 2.5","1004, 1036,1.7, 2.12, 2.5","1002, 1012, 1.3,1.7, 2.12, 2.5","1002, 1012, 1.3,1.7, 2.12, 2.5","1005, 1012, 1013, 1037,1.7, 2.12, 2.5","1011, 1022,1.7, 2.12, 2.5",null,0,0]
[null,null,null,null,null,null,null,null,null,null,null,null,null,null,null,null,0,null,null,null,null,0,"2.12, 2.5","2.11, 2.5, 1.2,1.7, 2.12","1025, 2.12, 2.5","2.9.1, 2.12, 2.5","2.9.1,2.10.1, 2.12, 2.5","1002, 1012, 1.3,1.7, 2.12, 2.5","1002, 1012, 1.3,1.7, 2.12, 2.5","1003, 1024, 1034, 1035,1.7, 2.12, 2.5","1002, 1012, 1.3,1.7, 2.12, 2.5","1002, 1012, 1.3,1.7, 2.12, 2.5","1004, 1036,1.7, 2.12, 2.5","1002, 1012, 1.3,1.7, 2.12, 2.5","1002, 1012, 1.3,1.7, 2.12, 2.5","1005, 1012, 1013, 1037,1.7, 2.12, 2.5","1011, 1022,1.7, 2.12, 2.5",null,0,0]
[null,null,null,null,null,null,null,null,null,null,null,null,null,null,null,null,0,null,null,null,null,0,"2.12, 2.5","2.11, 2.5, 1.2,1.7, 2.12","1025, 2.12, 2.5","2.9.1, 2.12, 2.5","2.9.1,2.10.1, 2.12, 2.5","1002, 1012, 1.3,1.7, 2.12, 2.5","1002, 1012, 1.3,1.7, 2.12, 2.5","1003, 1024, 1034, 1035,1.7, 2.12, 2.5","1002, 1012, 1.3,1.7, 2.12, 2.5","1002, 1012, 1.3,1.7, 2.12, 2.5","1004, 1036,1.7, 2.12, 2.5","1002, 1012, 1.3,1.7, 2.12, 2.5","1002, 1012, 1.3,1.7, 2.12, 2.5","1005, 1012, 1013, 1037,1.7, 2.12, 2.5","1011, 1022,1.7, 2.12, 2.5",null,0,0]
[null,null,null,null,null,null,null,null,null,null,null,null,null,null,null,null,0,null,null,null,null,0,"2.12, 2.5","2.11, 2.5, 1.2,1.7, 2.12","1025, 2.12, 2.5","2.9.1, 2.12, 2.5","2.9.1,2.10.1, 2.12, 2.5","1002, 1012, 1.3,1.7, 2.12, 2.5","1002, 1012, 1.3,1.7, 2.12, 2.5","1003, 1024, 1034, 1035,1.7, 2.12, 2.5","1002, 1012, 1.3,1.7, 2.12, 2.5","1002, 1012, 1.3,1.7, 2.12, 2.5","1004, 1036,1.7, 2.12, 2.5","1002, 1012, 1.3,1.7, 2.12, 2.5","1002, 1012, 1.3,1.7, 2.12, 2.5","1005, 1012, 1013, 1037,1.7, 2.12, 2.5","1011, 1022,1.7, 2.12, 2.5",null,0,0]
[null,null,null,null,null,null,null,null,null,null,null,null,null,null,null,null,0,null,null,null,null,0,"2.12, 2.5","2.11, 2.5, 1.2,1.7, 2.12","1025, 2.12, 2.5","2.9.1, 2.12, 2.5","2.9.1,2.10.1, 2.12, 2.5","1002, 1012, 1.3,1.7, 2.12, 2.5","1002, 1012, 1.3,1.7, 2.12, 2.5","1003, 1024, 1034, 1035,1.7, 2.12, 2.5","1002, 1012, 1.3,1.7, 2.12, 2.5","1002, 1012, 1.3,1.7, 2.12, 2.5","1004, 1036,1.7, 2.12, 2.5","1002, 1012, 1.3,1.7, 2.12, 2.5","1002, 1012, 1.3,1.7, 2.12, 2.5","1005, 1012, 1013, 1037,1.7, 2.12, 2.5","1011, 1022,1.7, 2.12, 2.5",null,0,0]
[null,null,null,null,null,null,null,null,null,null,null,null,null,null,null,null,0,null,null,null,null,0,"2.12, 2.5","2.11, 2.5, 1.2,1.7, 2.12","1025, 2.12, 2.5","2.9.1, 2.12, 2.5","2.9.1,2.10.1, 2.12, 2.5","1002, 1012, 1.3,1.7, 2.12, 2.5","1002, 1012, 1.3,1.7, 2.12, 2.5","1003, 1024, 1034, 1035,1.7, 2.12, 2.5","1002, 1012, 1.3,1.7, 2.12, 2.5","1002, 1012, 1.3,1.7, 2.12, 2.5","1004, 1036,1.7, 2.12, 2.5","1002, 1012, 1.3,1.7, 2.12, 2.5","1002, 1012, 1.3,1.7, 2.12, 2.5","1005, 1012, 1013, 1037,1.7, 2.12, 2.5","1011, 1022,1.7, 2.12, 2.5",null,0,0]
[null,null,null,null,null,null,null,null,null,null,null,null,null,null,null,null,0,null,null,null,null,0,"2.12, 2.5","2.11, 2.5, 1.2,1.7, 2.12","1025, 2.12, 2.5","2.9.1, 2.12, 2.5","2.9.1,2.10.1, 2.12, 2.5","1002, 1012, 1.3,1.7, 2.12, 2.5","1002, 1012, 1.3,1.7, 2.12, 2.5","1003, 1024, 1034, 1035,1.7, 2.12, 2.5","1002, 1012, 1.3,1.7, 2.12, 2.5","1002, 1012, 1.3,1.7, 2.12, 2.5","1004, 1036,1.7, 2.12, 2.5","1002, 1012, 1.3,1.7, 2.12, 2.5","1002, 1012, 1.3,1.7, 2.12, 2.5","1005, 1012, 1013, 1037,1.7, 2.12, 2.5","1011, 1022,1.7, 2.12, 2.5",null,0,0]
[null,null,null,null,null,null,null,null,null,null,null,null,null,null,null,null,0,null,null,null,null,0,"2.12, 2.5","2.11, 2.5, 1.2,1.7, 2.12","1025, 2.12, 2.5","2.9.1, 2.12, 2.5","2.9.1,2.10.1, 2.12, 2.5","1002, 1012, 1.3,1.7, 2.12, 2.5","1002, 1012, 1.3,1.7, 2.12, 2.5","1003, 1024, 1034, 1035,1.7, 2.12, 2.5","1002, 1012, 1.3,1.7, 2.12, 2.5","1002, 1012, 1.3,1.7, 2.12, 2.5","1004, 1036,1.7, 2.12, 2.5","1002, 1012, 1.3,1.7, 2.12, 2.5","1002, 1012, 1.3,1.7, 2.12, 2.5","1005, 1012, 1013, 1037,1.7, 2.12, 2.5","1011, 1022,1.7, 2.12, 2.5",null,0,0]
[null,null,null,null,null,null,null,null,null,null,null,null,null,null,null,null,0,null,null,null,null,0,"2.12, 2.5","2.11, 2.5, 1.2,1.7, 2.12","1025, 2.12, 2.5","2.9.1, 2.12, 2.5","2.9.1,2.10.1, 2.12, 2.5","1002, 1012, 1.3,1.7, 2.12, 2.5","1002, 1012, 1.3,1.7, 2.12, 2.5","1003, 1024, 1034, 1035,1.7, 2.12, 2.5","1002, 1012, 1.3,1.7, 2.12, 2.5","1002, 1012, 1.3,1.7, 2.12, 2.5","1004, 1036,1.7, 2.12, 2.5","1002, 1012, 1.3,1.7, 2.12, 2.5","1002, 1012, 1.3,1.7, 2.12, 2.5","1005, 1012, 1013, 1037,1.7, 2.12, 2.5","1011, 1022,1.7, 2.12, 2.5",null,0,0]
[null,null,null,null,null,null,null,null,null,null,null,null,null,null,null,null,0,null,null,null,null,0,"2.12, 2.5","2.11, 2.5, 1.2,1.7, 2.12","1025, 2.12, 2.5","2.9.1, 2.12, 2.5","2.9.1,2.10.1, 2.12, 2.5","1002, 1012, 1.3,1.7, 2.12, 2.5","1002, 1012, 1.3,1.7, 2.12, 2.5","1003, 1024, 1034, 1035,1.7, 2.12, 2.5","1002, 1012, 1.3,1.7, 2.12, 2.5","1002, 1012, 1.3,1.7, 2.12, 2.5","1004, 1036,1.7, 2.12, 2.5","1002, 1012, 1.3,1.7, 2.12, 2.5","1002, 1012, 1.3,1.7, 2.12, 2.5","1005, 1012, 1013, 1037,1.7, 2.12, 2.5","1011, 1022,1.7, 2.12, 2.5",null,0,0]
[null,null,null,null,null,null,null,null,null,null,null,null,null,null,null,null,0,null,null,null,null,0,"2.12, 2.5","2.11, 2.5, 1.2,1.7, 2.12","1025, 2.12, 2.5","2.9.1, 2.12, 2.5","2.9.1,2.10.1, 2.12, 2.5","1002, 1012, 1.3,1.7, 2.12, 2.5","1002, 1012, 1.3,1.7, 2.12, 2.5","1003, 1024, 1034, 1035,1.7, 2.12, 2.5","1002, 1012, 1.3,1.7, 2.12, 2.5","1002, 1012, 1.3,1.7, 2.12, 2.5","1004, 1036,1.7, 2.12, 2.5","1002, 1012, 1.3,1.7, 2.12, 2.5","1002, 1012, 1.3,1.7, 2.12, 2.5","1005, 1012, 1013, 1037,1.7, 2.12, 2.5","1011, 1022,1.7, 2.12, 2.5",null,0,0]
[null,null,null,null,null,null,null,null,null,null,null,null,null,null,null,null,0,null,null,null,null,0,"2.12, 2.5","2.11, 2.5, 1.2,1.7, 2.12","1025, 2.12, 2.5","2.9.1, 2.12, 2.5","2.9.1,2.10.1, 2.12, 2.5","1002, 1012, 1.3,1.7, 2.12, 2.5","1002, 1012, 1.3,1.7, 2.12, 2.5","1003, 1024, 1034, 1035,1.7, 2.12, 2.5","1002, 1012, 1.3,1.7, 2.12, 2.5","1002, 1012, 1.3,1.7, 2.12, 2.5","1004, 1036,1.7, 2.12, 2.5","1002, 1012, 1.3,1.7, 2.12, 2.5","1002, 1012, 1.3,1.7, 2.12, 2.5","1005, 1012, 1013, 1037,1.7, 2.12, 2.5","1011, 1022,1.7, 2.12, 2.5",null,0,0]
[null,null,null,null,null,null,null,null,null,null,null,null,null,null,null,null,0,null,null,null,null,0,"2.12, 2.5","2.11, 2.5, 1.2,1.7, 2.12","1025, 2.12, 2.5","2.9.1, 2.12, 2.5","2.9.1,2.10.1, 2.12, 2.5","1002, 1012, 1.3,1.7, 2.12, 2.5","1002, 1012, 1.3,1.7, 2.12, 2.5","1003, 1024, 1034, 1035,1.7, 2.12, 2.5","1002, 1012, 1.3,1.7, 2.12, 2.5","1002, 1012, 1.3,1.7, 2.12, 2.5","1004, 1036,1.7, 2.12, 2.5","1002, 1012, 1.3,1.7, 2.12, 2.5","1002, 1012, 1.3,1.7, 2.12, 2.5","1005, 1012, 1013, 1037,1.7, 2.12, 2.5","1011, 1022,1.7, 2.12, 2.5",null,0,0]
[null,null,null,null,null,null,null,null,null,null,null,null,null,null,null,null,0,null,null,null,null,0,"2.12, 2.5","2.11, 2.5, 1.2,1.7, 2.12","1025, 2.12, 2.5","2.9.1, 2.12, 2.5","2.9.1,2.10.1, 2.12, 2.5","1002, 1012, 1.3,1.7, 2.12, 2.5","1002, 1012, 1.3,1.7, 2.12, 2.5","1003, 1024, 1034, 1035,1.7, 2.12, 2.5","1002, 1012, 1.3,1.7, 2.12, 2.5","1002, 1012, 1.3,1.7, 2.12, 2.5","1004, 1036,1.7, 2.12, 2.5","1002, 1012, 1.3,1.7, 2.12, 2.5","1002, 1012, 1.3,1.7, 2.12, 2.5","1005, 1012, 1013, 1037,1.7, 2.12, 2.5","1011, 1022,1.7, 2.12, 2.5",null,0,0]
[null,null,null,null,null,null,null,null,null,null,null,null,null,null,null,null,0,null,null,null,null,0,"2.12, 2.5","2.11, 2.5, 1.2,1.7, 2.12","1025, 2.12, 2.5","2.9.1, 2.12, 2.5","2.9.1,2.10.1, 2.12, 2.5","1002, 1012, 1.3,1.7, 2.12, 2.5","1002, 1012, 1.3,1.7, 2.12, 2.5","1003, 1024, 1034, 1035,1.7, 2.12, 2.5","1002, 1012, 1.3,1.7, 2.12, 2.5","1002, 1012, 1.3,1.7, 2.12, 2.5","1004, 1036,1.7, 2.12, 2.5","1002, 1012, 1.3,1.7, 2.12, 2.5","1002, 1012, 1.3,1.7, 2.12, 2.5","1005, 1012, 1013, 1037,1.7, 2.12, 2.5","1011, 1022,1.7, 2.12, 2.5",null,0,0]
[null,null,null,null,null,null,null,null,null,null,null,null,null,null,null,null,0,null,null,null,null,0,"2.12, 2.5","2.11, 2.5, 1.2,1.7, 2.12","1025, 2.12, 2.5","2.9.1, 2.12, 2.5","2.9.1,2.10.1, 2.12, 2.5","1002, 1012, 1.3,1.7, 2.12, 2.5","1002, 1012, 1.3,1.7, 2.12, 2.5","1003, 1024, 1034, 1035,1.7, 2.12, 2.5","1002, 1012, 1.3,1.7, 2.12, 2.5","1002, 1012, 1.3,1.7, 2.12, 2.5","1004, 1036,1.7, 2.12, 2.5","1002, 1012, 1.3,1.7, 2.12, 2.5","1002, 1012, 1.3,1.7, 2.12, 2.5","1005, 1012, 1013, 1037,1.7, 2.12, 2.5","1011, 1022,1.7, 2.12, 2.5",null,0,0]
[null,null,null,null,null,null,null,null,null,null,null,null,null,null,null,null,0,null,null,null,null,0,"2.12, 2.5","2.11, 2.5, 1.2,1.7, 2.12","1025, 2.12, 2.5","2.9.1, 2.12, 2.5","2.9.1,2.10.1, 2.12, 2.5","1002, 1012, 1.3,1.7, 2.12, 2.5","1002, 1012, 1.3,1.7, 2.12, 2.5","1003, 1024, 1034, 1035,1.7, 2.12, 2.5","1002, 1012, 1.3,1.7, 2.12, 2.5","1002, 1012, 1.3,1.7, 2.12, 2.5","1004, 1036,1.7, 2.12, 2.5","1002, 1012, 1.3,1.7, 2.12, 2.5","1002, 1012, 1.3,1.7, 2.12, 2.5","1005, 1012, 1013, 1037,1.7, 2.12, 2.5","1011, 1022,1.7, 2.12, 2.5",null,0,0]
[null,null,null,null,null,null,null,null,null,null,null,null,null,null,null,null,0,null,null,null,null,0,"2.12, 2.5","2.11, 2.5, 1.2,1.7, 2.12","1025, 2.12, 2.5","2.9.1, 2.12, 2.5","2.9.1,2.10.1, 2.12, 2.5","1002, 1012, 1.3,1.7, 2.12, 2.5","1002, 1012, 1.3,1.7, 2.12, 2.5","1003, 1024, 1034, 1035,1.7, 2.12, 2.5","1002, 1012, 1.3,1.7, 2.12, 2.5","1002, 1012, 1.3,1.7, 2.12, 2.5","1004, 1036,1.7, 2.12, 2.5","1002, 1012, 1.3,1.7, 2.12, 2.5","1002, 1012, 1.3,1.7, 2.12, 2.5","1005, 1012, 1013, 1037,1.7, 2.12, 2.5","1011, 1022,1.7, 2.12, 2.5",null,0,0]
[null,null,null,null,null,null,null,null,null,null,null,null,null,null,null,null,0,null,null,null,null,0,"2.12, 2.5","2.11, 2.5, 1.2,1.7, 2.12","1025, 2.12, 2.5","2.9.1, 2.12, 2.5","2.9.1,2.10.1, 2.12, 2.5","1002, 1012, 1.3,1.7, 2.12, 2.5","1002, 1012, 1.3,1.7, 2.12, 2.5","1003, 1024, 1034, 1035,1.7, 2.12, 2.5","1002, 1012, 1.3,1.7, 2.12, 2.5","1002, 1012, 1.3,1.7, 2.12, 2.5","1004, 1036,1.7, 2.12, 2.5","1002, 1012, 1.3,1.7, 2.12, 2.5","1002, 1012, 1.3,1.7, 2.12, 2.5","1005, 1012, 1013, 1037,1.7, 2.12, 2.5","1011, 1022,1.7, 2.12, 2.5",null,0,0]
[null,null,null,null,null,null,null,null,null,null,null,null,null,null,null,null,0,null,null,null,null,0,"2.12, 2.5","2.11, 2.5, 1.2,1.7, 2.12","1025, 2.12, 2.5","2.9.1, 2.12, 2.5","2.9.1,2.10.1, 2.12, 2.5","1002, 1012, 1.3,1.7, 2.12, 2.5","1002, 1012, 1.3,1.7, 2.12, 2.5","1003, 1024, 1034, 1035,1.7, 2.12, 2.5","1002, 1012, 1.3,1.7, 2.12, 2.5","1002, 1012, 1.3,1.7, 2.12, 2.5","1004, 1036,1.7, 2.12, 2.5","1002, 1012, 1.3,1.7, 2.12, 2.5","1002, 1012, 1.3,1.7, 2.12, 2.5","1005, 1012, 1013, 1037,1.7, 2.12, 2.5","1011, 1022,1.7, 2.12, 2.5",null,0,0]
[null,null,null,null,null,null,null,null,null,null,null,null,null,null,null,null,0,null,null,null,null,0,"2.12, 2.5","2.11, 2.5, 1.2,1.7, 2.12","1025, 2.12, 2.5","2.9.1, 2.12, 2.5","2.9.1,2.10.1, 2.12, 2.5","1002, 1012, 1.3,1.7, 2.12, 2.5","1002, 1012, 1.3,1.7, 2.12, 2.5","1003, 1024, 1034, 1035,1.7, 2.12, 2.5","1002, 1012, 1.3,1.7, 2.12, 2.5","1002, 1012, 1.3,1.7, 2.12, 2.5","1004, 1036,1.7, 2.12, 2.5","1002, 1012, 1.3,1.7, 2.12, 2.5","1002, 1012, 1.3,1.7, 2.12, 2.5","1005, 1012, 1013, 1037,1.7, 2.12, 2.5","1011, 1022,1.7, 2.12, 2.5",null,0,0]
[null,null,null,null,null,null,null,null,null,null,null,null,null,null,null,null,0,null,null,null,null,0,"2.12, 2.5","2.11, 2.5, 1.2,1.7, 2.12","1025, 2.12, 2.5","2.9.1, 2.12, 2.5","2.9.1,2.10.1, 2.12, 2.5","1002, 1012, 1.3,1.7, 2.12, 2.5","1002, 1012, 1.3,1.7, 2.12, 2.5","1003, 1024, 1034, 1035,1.7, 2.12, 2.5","1002, 1012, 1.3,1.7, 2.12, 2.5","1002, 1012, 1.3,1.7, 2.12, 2.5","1004, 1036,1.7, 2.12, 2.5","1002, 1012, 1.3,1.7, 2.12, 2.5","1002, 1012, 1.3,1.7, 2.12, 2.5","1005, 1012, 1013, 1037,1.7, 2.12, 2.5","1011, 1022,1.7, 2.12, 2.5",null,0,0]
[null,null,null,null,null,null,null,null,null,null,null,null,null,null,null,null,0,null,null,null,null,0,"2.12, 2.5","2.11, 2.5, 1.2,1.7, 2.12","1025, 2.12, 2.5","2.9.1, 2.12, 2.5","2.9.1,2.10.1, 2.12, 2.5","1002, 1012, 1.3,1.7, 2.12, 2.5","1002, 1012, 1.3,1.7, 2.12, 2.5","1003, 1024, 1034, 1035,1.7, 2.12, 2.5","1002, 1012, 1.3,1.7, 2.12, 2.5","1002, 1012, 1.3,1.7, 2.12, 2.5","1004, 1036,1.7, 2.12, 2.5","1002, 1012, 1.3,1.7, 2.12, 2.5","1002, 1012, 1.3,1.7, 2.12, 2.5","1005, 1012, 1013, 1037,1.7, 2.12, 2.5","1011, 1022,1.7, 2.12, 2.5",null,0,0]
[null,null,null,null,null,null,null,null,null,null,null,null,null,null,null,null,0,null,null,null,null,0,"2.12, 2.5","2.11, 2.5, 1.2,1.7, 2.12","1025, 2.12, 2.5","2.9.1, 2.12, 2.5","2.9.1,2.10.1, 2.12, 2.5","1002, 1012, 1.3,1.7, 2.12, 2.5","1002, 1012, 1.3,1.7, 2.12, 2.5","1003, 1024, 1034, 1035,1.7, 2.12, 2.5","1002, 1012, 1.3,1.7, 2.12, 2.5","1002, 1012, 1.3,1.7, 2.12, 2.5","1004, 1036,1.7, 2.12, 2.5","1002, 1012, 1.3,1.7, 2.12, 2.5","1002, 1012, 1.3,1.7, 2.12, 2.5","1005, 1012, 1013, 1037,1.7, 2.12, 2.5","1011, 1022,1.7, 2.12, 2.5",null,0,0]
[null,null,null,null,null,null,null,null,null,null,null,null,null,null,null,null,0,null,null,null,null,0,"2.12, 2.5","2.11, 2.5, 1.2,1.7, 2.12","1025, 2.12, 2.5","2.9.1, 2.12, 2.5","2.9.1,2.10.1, 2.12, 2.5","1002, 1012, 1.3,1.7, 2.12, 2.5","1002, 1012, 1.3,1.7, 2.12, 2.5","1003, 1024, 1034, 1035,1.7, 2.12, 2.5","1002, 1012, 1.3,1.7, 2.12, 2.5","1002, 1012, 1.3,1.7, 2.12, 2.5","1004, 1036,1.7, 2.12, 2.5","1002, 1012, 1.3,1.7, 2.12, 2.5","1002, 1012, 1.3,1.7, 2.12, 2.5","1005, 1012, 1013, 1037,1.7, 2.12, 2.5","1011, 1022,1.7, 2.12, 2.5",null,0,0]
[null,null,null,null,null,null,null,null,null,null,null,null,null,null,null,null,0,null,null,null,null,0,"2.12, 2.5","2.11, 2.5, 1.2,1.7, 2.12","1025, 2.12, 2.5","2.9.1, 2.12, 2.5","2.9.1,2.10.1, 2.12, 2.5","1002, 1012, 1.3,1.7, 2.12, 2.5","1002, 1012, 1.3,1.7, 2.12, 2.5","1003, 1024, 1034, 1035,1.7, 2.12, 2.5","1002, 1012, 1.3,1.7, 2.12, 2.5","1002, 1012, 1.3,1.7, 2.12, 2.5","1004, 1036,1.7, 2.12, 2.5","1002, 1012, 1.3,1.7, 2.12, 2.5","1002, 1012, 1.3,1.7, 2.12, 2.5","1005, 1012, 1013, 1037,1.7, 2.12, 2.5","1011, 1022,1.7, 2.12, 2.5",null,0,0]
[null,null,null,null,null,null,null,null,null,null,null,null,null,null,null,null,0,null,null,null,null,0,"2.12, 2.5","2.11, 2.5, 1.2,1.7, 2.12","1025, 2.12, 2.5","2.9.1, 2.12, 2.5","2.9.1,2.10.1, 2.12, 2.5","1002, 1012, 1.3,1.7, 2.12, 2.5","1002, 1012, 1.3,1.7, 2.12, 2.5","1003, 1024, 1034, 1035,1.7, 2.12, 2.5","1002, 1012, 1.3,1.7, 2.12, 2.5","1002, 1012, 1.3,1.7, 2.12, 2.5","1004, 1036,1.7, 2.12, 2.5","1002, 1012, 1.3,1.7, 2.12, 2.5","1002, 1012, 1.3,1.7, 2.12, 2.5","1005, 1012, 1013, 1037,1.7, 2.12, 2.5","1011, 1022,1.7, 2.12, 2.5",null,0,0]
[null,null,null,null,null,null,null,null,null,null,null,null,null,null,null,null,0,null,null,null,null,0,"2.12, 2.5","2.11, 2.5, 1.2,1.7, 2.12","1025, 2.12, 2.5","2.9.1, 2.12, 2.5","2.9.1,2.10.1, 2.12, 2.5","1002, 1012, 1.3,1.7, 2.12, 2.5","1002, 1012, 1.3,1.7, 2.12, 2.5","1003, 1024, 1034, 1035,1.7, 2.12, 2.5","1002, 1012, 1.3,1.7, 2.12, 2.5","1002, 1012, 1.3,1.7, 2.12, 2.5","1004, 1036,1.7, 2.12, 2.5","1002, 1012, 1.3,1.7, 2.12, 2.5","1002, 1012, 1.3,1.7, 2.12, 2.5","1005, 1012, 1013, 1037,1.7, 2.12, 2.5","1011, 1022,1.7, 2.12, 2.5",null,0,0]
[null,null,null,null,null,null,null,null,null,null,null,null,null,null,null,null,0,null,null,null,null,0,"2.12, 2.5","2.11, 2.5, 1.2,1.7, 2.12","1025, 2.12, 2.5","2.9.1, 2.12, 2.5","2.9.1,2.10.1, 2.12, 2.5","1002, 1012, 1.3,1.7, 2.12, 2.5","1002, 1012, 1.3,1.7, 2.12, 2.5","1003, 1024, 1034, 1035,1.7, 2.12, 2.5","1002, 1012, 1.3,1.7, 2.12, 2.5","1002, 1012, 1.3,1.7, 2.12, 2.5","1004, 1036,1.7, 2.12, 2.5","1002, 1012, 1.3,1.7, 2.12, 2.5","1002, 1012, 1.3,1.7, 2.12, 2.5","1005, 1012, 1013, 1037,1.7, 2.12, 2.5","1011, 1022,1.7, 2.12, 2.5",null,0,0]
[null,null,null,null,null,null,null,null,null,null,null,null,null,null,null,null,0,null,null,null,null,0,"2.12, 2.5","2.11, 2.5, 1.2,1.7, 2.12","1025, 2.12, 2.5","2.9.1, 2.12, 2.5","2.9.1,2.10.1, 2.12, 2.5","1002, 1012, 1.3,1.7, 2.12, 2.5","1002, 1012, 1.3,1.7, 2.12, 2.5","1003, 1024, 1034, 1035,1.7, 2.12, 2.5","1002, 1012, 1.3,1.7, 2.12, 2.5","1002, 1012, 1.3,1.7, 2.12, 2.5","1004, 1036,1.7, 2.12, 2.5","1002, 1012, 1.3,1.7, 2.12, 2.5","1002, 1012, 1.3,1.7, 2.12, 2.5","1005, 1012, 1013, 1037,1.7, 2.12, 2.5","1011, 1022,1.7, 2.12, 2.5",null,0,0]
[null,null,null,null,null,null,null,null,null,null,null,null,null,null,null,null,0,null,null,null,null,0,"2.12, 2.5","2.11, 2.5, 1.2,1.7, 2.12","1025, 2.12, 2.5","2.9.1, 2.12, 2.5","2.9.1,2.10.1, 2.12, 2.5","1002, 1012, 1.3,1.7, 2.12, 2.5","1002, 1012, 1.3,1.7, 2.12, 2.5","1003, 1024, 1034, 1035,1.7, 2.12, 2.5","1002, 1012, 1.3,1.7, 2.12, 2.5","1002, 1012, 1.3,1.7, 2.12, 2.5","1004, 1036,1.7, 2.12, 2.5","1002, 1012, 1.3,1.7, 2.12, 2.5","1002, 1012, 1.3,1.7, 2.12, 2.5","1005, 1012, 1013, 1037,1.7, 2.12, 2.5","1011, 1022,1.7, 2.12, 2.5",null,0,0]
[null,null,null,null,null,null,null,null,null,null,null,null,null,null,null,null,0,null,null,null,null,0,"2.12, 2.5","2.11, 2.5, 1.2,1.7, 2.12","1025, 2.12, 2.5","2.9.1, 2.12, 2.5","2.9.1,2.10.1, 2.12, 2.5","1002, 1012, 1.3,1.7, 2.12, 2.5","1002, 1012, 1.3,1.7, 2.12, 2.5","1003, 1024, 1034, 1035,1.7, 2.12, 2.5","1002, 1012, 1.3,1.7, 2.12, 2.5","1002, 1012, 1.3,1.7, 2.12, 2.5","1004, 1036,1.7, 2.12, 2.5","1002, 1012, 1.3,1.7, 2.12, 2.5","1002, 1012, 1.3,1.7, 2.12, 2.5","1005, 1012, 1013, 1037,1.7, 2.12, 2.5","1011, 1022,1.7, 2.12, 2.5",null,0,0]
[null,null,null,null,null,null,null,null,null,null,null,null,null,null,null,null,0,null,null,null,null,0,"2.12, 2.5","2.11, 2.5, 1.2,1.7, 2.12","1025, 2.12, 2.5","2.9.1, 2.12, 2.5","2.9.1,2.10.1, 2.12, 2.5","1002, 1012, 1.3,1.7, 2.12, 2.5","1002, 1012, 1.3,1.7, 2.12, 2.5","1003, 1024, 1034, 1035,1.7, 2.12, 2.5","1002, 1012, 1.3,1.7, 2.12, 2.5","1002, 1012, 1.3,1.7, 2.12, 2.5","1004, 1036,1.7, 2.12, 2.5","1002, 1012, 1.3,1.7, 2.12, 2.5","1002, 1012, 1.3,1.7, 2.12, 2.5","1005, 1012, 1013, 1037,1.7, 2.12, 2.5","1011, 1022,1.7, 2.12, 2.5",null,0,0]
[null,null,null,null,null,null,null,null,null,null,null,null,null,null,null,null,0,null,null,null,null,0,"2.12, 2.5","2.11, 2.5, 1.2,1.7, 2.12","1025, 2.12, 2.5","2.9.1, 2.12, 2.5","2.9.1,2.10.1, 2.12, 2.5","1002, 1012, 1.3,1.7, 2.12, 2.5","1002, 1012, 1.3,1.7, 2.12, 2.5","1003, 1024, 1034, 1035,1.7, 2.12, 2.5","1002, 1012, 1.3,1.7, 2.12, 2.5","1002, 1012, 1.3,1.7, 2.12, 2.5","1004, 1036,1.7, 2.12, 2.5","1002, 1012, 1.3,1.7, 2.12, 2.5","1002, 1012, 1.3,1.7, 2.12, 2.5","1005, 1012, 1013, 1037,1.7, 2.12, 2.5","1011, 1022,1.7, 2.12, 2.5",null,0,0]
[null,null,null,null,null,null,null,null,null,null,null,null,null,null,null,null,0,null,null,null,null,0,"2.12, 2.5","2.11, 2.5, 1.2,1.7, 2.12","1025, 2.12, 2.5","2.9.1, 2.12, 2.5","2.9.1,2.10.1, 2.12, 2.5","1002, 1012, 1.3,1.7, 2.12, 2.5","1002, 1012, 1.3,1.7, 2.12, 2.5","1003, 1024, 1034, 1035,1.7, 2.12, 2.5","1002, 1012, 1.3,1.7, 2.12, 2.5","1002, 1012, 1.3,1.7, 2.12, 2.5","1004, 1036,1.7, 2.12, 2.5","1002, 1012, 1.3,1.7, 2.12, 2.5","1002, 1012, 1.3,1.7, 2.12, 2.5","1005, 1012, 1013, 1037,1.7, 2.12, 2.5","1011, 1022,1.7, 2.12, 2.5",null,0,0]
[null,null,null,null,null,null,null,null,null,null,null,null,null,null,null,null,0,null,null,null,null,0,"2.12, 2.5","2.11, 2.5, 1.2,1.7, 2.12","1025, 2.12, 2.5","2.9.1, 2.12, 2.5","2.9.1,2.10.1, 2.12, 2.5","1002, 1012, 1.3,1.7, 2.12, 2.5","1002, 1012, 1.3,1.7, 2.12, 2.5","1003, 1024, 1034, 1035,1.7, 2.12, 2.5","1002, 1012, 1.3,1.7, 2.12, 2.5","1002, 1012, 1.3,1.7, 2.12, 2.5","1004, 1036,1.7, 2.12, 2.5","1002, 1012, 1.3,1.7, 2.12, 2.5","1002, 1012, 1.3,1.7, 2.12, 2.5","1005, 1012, 1013, 1037,1.7, 2.12, 2.5","1011, 1022,1.7, 2.12, 2.5",null,0,0]
[null,null,null,null,null,null,null,null,null,null,null,null,null,null,null,null,0,null,null,null,null,0,"2.12, 2.5","2.11, 2.5, 1.2,1.7, 2.12","1025, 2.12, 2.5","2.9.1, 2.12, 2.5","2.9.1,2.10.1, 2.12, 2.5","1002, 1012, 1.3,1.7, 2.12, 2.5","1002, 1012, 1.3,1.7, 2.12, 2.5","1003, 1024, 1034, 1035,1.7, 2.12, 2.5","1002, 1012, 1.3,1.7, 2.12, 2.5","1002, 1012, 1.3,1.7, 2.12, 2.5","1004, 1036,1.7, 2.12, 2.5","1002, 1012, 1.3,1.7, 2.12, 2.5","1002, 1012, 1.3,1.7, 2.12, 2.5","1005, 1012, 1013, 1037,1.7, 2.12, 2.5","1011, 1022,1.7, 2.12, 2.5",null,0,0]
[null,null,null,null,null,null,null,null,null,null,null,null,null,null,null,null,0,null,null,null,null,0,"2.12, 2.5","2.11, 2.5, 1.2,1.7, 2.12","1025, 2.12, 2.5","2.9.1, 2.12, 2.5","2.9.1,2.10.1, 2.12, 2.5","1002, 1012, 1.3,1.7, 2.12, 2.5","1002, 1012, 1.3,1.7, 2.12, 2.5","1003, 1024, 1034, 1035,1.7, 2.12, 2.5","1002, 1012, 1.3,1.7, 2.12, 2.5","1002, 1012, 1.3,1.7, 2.12, 2.5","1004, 1036,1.7, 2.12, 2.5","1002, 1012, 1.3,1.7, 2.12, 2.5","1002, 1012, 1.3,1.7, 2.12, 2.5","1005, 1012, 1013, 1037,1.7, 2.12, 2.5","1011, 1022,1.7, 2.12, 2.5",null,0,0]
[null,null,null,null,null,null,null,null,null,null,null,null,null,null,null,null,0,null,null,null,null,0,"2.12, 2.5","2.11, 2.5, 1.2,1.7, 2.12","1025, 2.12, 2.5","2.9.1, 2.12, 2.5","2.9.1,2.10.1, 2.12, 2.5","1002, 1012, 1.3,1.7, 2.12, 2.5","1002, 1012, 1.3,1.7, 2.12, 2.5","1003, 1024, 1034, 1035,1.7, 2.12, 2.5","1002, 1012, 1.3,1.7, 2.12, 2.5","1002, 1012, 1.3,1.7, 2.12, 2.5","1004, 1036,1.7, 2.12, 2.5","1002, 1012, 1.3,1.7, 2.12, 2.5","1002, 1012, 1.3,1.7, 2.12, 2.5","1005, 1012, 1013, 1037,1.7, 2.12, 2.5","1011, 1022,1.7, 2.12, 2.5",null,0,0]
[null,null,null,null,null,null,null,null,null,null,null,null,null,null,null,null,0,null,null,null,null,0,"2.12, 2.5","2.11, 2.5, 1.2,1.7, 2.12","1025, 2.12, 2.5","2.9.1, 2.12, 2.5","2.9.1,2.10.1, 2.12, 2.5","1002, 1012, 1.3,1.7, 2.12, 2.5","1002, 1012, 1.3,1.7, 2.12, 2.5","1003, 1024, 1034, 1035,1.7, 2.12, 2.5","1002, 1012, 1.3,1.7, 2.12, 2.5","1002, 1012, 1.3,1.7, 2.12, 2.5","1004, 1036,1.7, 2.12, 2.5","1002, 1012, 1.3,1.7, 2.12, 2.5","1002, 1012, 1.3,1.7, 2.12, 2.5","1005, 1012, 1013, 1037,1.7, 2.12, 2.5","1011, 1022,1.7, 2.12, 2.5",null,0,0]
[null,null,null,null,null,null,null,null,null,null,null,null,null,null,null,null,0,null,null,null,null,0,"2.12, 2.5","2.11, 2.5, 1.2,1.7, 2.12","1025, 2.12, 2.5","2.9.1, 2.12, 2.5","2.9.1,2.10.1, 2.12, 2.5","1002, 1012, 1.3,1.7, 2.12, 2.5","1002, 1012, 1.3,1.7, 2.12, 2.5","1003, 1024, 1034, 1035,1.7, 2.12, 2.5","1002, 1012, 1.3,1.7, 2.12, 2.5","1002, 1012, 1.3,1.7, 2.12, 2.5","1004, 1036,1.7, 2.12, 2.5","1002, 1012, 1.3,1.7, 2.12, 2.5","1002, 1012, 1.3,1.7, 2.12, 2.5","1005, 1012, 1013, 1037,1.7, 2.12, 2.5","1011, 1022,1.7, 2.12, 2.5",null,0,0]
[null,null,null,null,null,null,null,null,null,null,null,null,null,null,null,null,0,null,null,null,null,0,"2.12, 2.5","2.11, 2.5, 1.2,1.7, 2.12","1025, 2.12, 2.5","2.9.1, 2.12, 2.5","2.9.1,2.10.1, 2.12, 2.5","1002, 1012, 1.3,1.7, 2.12, 2.5","1002, 1012, 1.3,1.7, 2.12, 2.5","1003, 1024, 1034, 1035,1.7, 2.12, 2.5","1002, 1012, 1.3,1.7, 2.12, 2.5","1002, 1012, 1.3,1.7, 2.12, 2.5","1004, 1036,1.7, 2.12, 2.5","1002, 1012, 1.3,1.7, 2.12, 2.5","1002, 1012, 1.3,1.7, 2.12, 2.5","1005, 1012, 1013, 1037,1.7, 2.12, 2.5","1011, 1022,1.7, 2.12, 2.5",null,0,0]
[null,null,null,null,null,null,null,null,null,null,null,null,null,null,null,null,0,null,null,null,null,0,"2.12, 2.5","2.11, 2.5, 1.2,1.7, 2.12","1025, 2.12, 2.5","2.9.1, 2.12, 2.5","2.9.1,2.10.1, 2.12, 2.5","1002, 1012, 1.3,1.7, 2.12, 2.5","1002, 1012, 1.3,1.7, 2.12, 2.5","1003, 1024, 1034, 1035,1.7, 2.12, 2.5","1002, 1012, 1.3,1.7, 2.12, 2.5","1002, 1012, 1.3,1.7, 2.12, 2.5","1004, 1036,1.7, 2.12, 2.5","1002, 1012, 1.3,1.7, 2.12, 2.5","1002, 1012, 1.3,1.7, 2.12, 2.5","1005, 1012, 1013, 1037,1.7, 2.12, 2.5","1011, 1022,1.7, 2.12, 2.5",null,0,0]
[null,null,null,null,null,null,null,null,null,null,null,null,null,null,null,null,0,null,null,null,null,0,"2.12, 2.5","2.11, 2.5, 1.2,1.7, 2.12","1025, 2.12, 2.5","2.9.1, 2.12, 2.5","2.9.1,2.10.1, 2.12, 2.5","1002, 1012, 1.3,1.7, 2.12, 2.5","1002, 1012, 1.3,1.7, 2.12, 2.5","1003, 1024, 1034, 1035,1.7, 2.12, 2.5","1002, 1012, 1.3,1.7, 2.12, 2.5","1002, 1012, 1.3,1.7, 2.12, 2.5","1004, 1036,1.7, 2.12, 2.5","1002, 1012, 1.3,1.7, 2.12, 2.5","1002, 1012, 1.3,1.7, 2.12, 2.5","1005, 1012, 1013, 1037,1.7, 2.12, 2.5","1011, 1022,1.7, 2.12, 2.5",null,0,0]
[null,null,null,null,null,null,null,null,null,null,null,null,null,null,null,null,0,null,null,null,null,0,"2.12, 2.5","2.11, 2.5, 1.2,1.7, 2.12","1025, 2.12, 2.5","2.9.1, 2.12, 2.5","2.9.1,2.10.1, 2.12, 2.5","1002, 1012, 1.3,1.7, 2.12, 2.5","1002, 1012, 1.3,1.7, 2.12, 2.5","1003, 1024, 1034, 1035,1.7, 2.12, 2.5","1002, 1012, 1.3,1.7, 2.12, 2.5","1002, 1012, 1.3,1.7, 2.12, 2.5","1004, 1036,1.7, 2.12, 2.5","1002, 1012, 1.3,1.7, 2.12, 2.5","1002, 1012, 1.3,1.7, 2.12, 2.5","1005, 1012, 1013, 1037,1.7, 2.12, 2.5","1011, 1022,1.7, 2.12, 2.5",null,0,0]
[null,null,null,null,null,null,null,null,null,null,null,null,null,null,null,null,0,null,null,null,null,0,"2.12, 2.5","2.11, 2.5, 1.2,1.7, 2.12","1025, 2.12, 2.5","2.9.1, 2.12, 2.5","2.9.1,2.10.1, 2.12, 2.5","1002, 1012, 1.3,1.7, 2.12, 2.5","1002, 1012, 1.3,1.7, 2.12, 2.5","1003, 1024, 1034, 1035,1.7, 2.12, 2.5","1002, 1012, 1.3,1.7, 2.12, 2.5","1002, 1012, 1.3,1.7, 2.12, 2.5","1004, 1036,1.7, 2.12, 2.5","1002, 1012, 1.3,1.7, 2.12, 2.5","1002, 1012, 1.3,1.7, 2.12, 2.5","1005, 1012, 1013, 1037,1.7, 2.12, 2.5","1011, 1022,1.7, 2.12, 2.5",null,0,0]
[null,null,null,null,null,null,null,null,null,null,null,null,null,null,null,null,0,null,null,null,null,0,"2.12, 2.5","2.11, 2.5, 1.2,1.7, 2.12","1025, 2.12, 2.5","2.9.1, 2.12, 2.5","2.9.1,2.10.1, 2.12, 2.5","1002, 1012, 1.3,1.7, 2.12, 2.5","1002, 1012, 1.3,1.7, 2.12, 2.5","1003, 1024, 1034, 1035,1.7, 2.12, 2.5","1002, 1012, 1.3,1.7, 2.12, 2.5","1002, 1012, 1.3,1.7, 2.12, 2.5","1004, 1036,1.7, 2.12, 2.5","1002, 1012, 1.3,1.7, 2.12, 2.5","1002, 1012, 1.3,1.7, 2.12, 2.5","1005, 1012, 1013, 1037,1.7, 2.12, 2.5","1011, 1022,1.7, 2.12, 2.5",null,0,0]
[null,null,null,null,null,null,null,null,null,null,null,null,null,null,null,null,0,null,null,null,null,0,"2.12, 2.5","2.11, 2.5, 1.2,1.7, 2.12","1025, 2.12, 2.5","2.9.1, 2.12, 2.5","2.9.1,2.10.1, 2.12, 2.5","1002, 1012, 1.3,1.7, 2.12, 2.5","1002, 1012, 1.3,1.7, 2.12, 2.5","1003, 1024, 1034, 1035,1.7, 2.12, 2.5","1002, 1012, 1.3,1.7, 2.12, 2.5","1002, 1012, 1.3,1.7, 2.12, 2.5","1004, 1036,1.7, 2.12, 2.5","1002, 1012, 1.3,1.7, 2.12, 2.5","1002, 1012, 1.3,1.7, 2.12, 2.5","1005, 1012, 1013, 1037,1.7, 2.12, 2.5","1011, 1022,1.7, 2.12, 2.5",null,0,0]
[null,null,null,null,null,null,null,null,null,null,null,null,null,null,null,null,0,null,null,null,null,0,"2.12, 2.5","2.11, 2.5, 1.2,1.7, 2.12","1025, 2.12, 2.5","2.9.1, 2.12, 2.5","2.9.1,2.10.1, 2.12, 2.5","1002, 1012, 1.3,1.7, 2.12, 2.5","1002, 1012, 1.3,1.7, 2.12, 2.5","1003, 1024, 1034, 1035,1.7, 2.12, 2.5","1002, 1012, 1.3,1.7, 2.12, 2.5","1002, 1012, 1.3,1.7, 2.12, 2.5","1004, 1036,1.7, 2.12, 2.5","1002, 1012, 1.3,1.7, 2.12, 2.5","1002, 1012, 1.3,1.7, 2.12, 2.5","1005, 1012, 1013, 1037,1.7, 2.12, 2.5","1011, 1022,1.7, 2.12, 2.5",null,0,0]
[null,null,null,null,null,null,null,null,null,null,null,null,null,null,null,null,0,null,null,null,null,0,"2.12, 2.5","2.11, 2.5, 1.2,1.7, 2.12","1025, 2.12, 2.5","2.9.1, 2.12, 2.5","2.9.1,2.10.1, 2.12, 2.5","1002, 1012, 1.3,1.7, 2.12, 2.5","1002, 1012, 1.3,1.7, 2.12, 2.5","1003, 1024, 1034, 1035,1.7, 2.12, 2.5","1002, 1012, 1.3,1.7, 2.12, 2.5","1002, 1012, 1.3,1.7, 2.12, 2.5","1004, 1036,1.7, 2.12, 2.5","1002, 1012, 1.3,1.7, 2.12, 2.5","1002, 1012, 1.3,1.7, 2.12, 2.5","1005, 1012, 1013, 1037,1.7, 2.12, 2.5","1011, 1022,1.7, 2.12, 2.5",null,0,0]
[null,null,null,null,null,null,null,null,null,null,null,null,null,null,null,null,0,null,null,null,null,0,"2.12, 2.5","2.11, 2.5, 1.2,1.7, 2.12","1025, 2.12, 2.5","2.9.1, 2.12, 2.5","2.9.1,2.10.1, 2.12, 2.5","1002, 1012, 1.3,1.7, 2.12, 2.5","1002, 1012, 1.3,1.7, 2.12, 2.5","1003, 1024, 1034, 1035,1.7, 2.12, 2.5","1002, 1012, 1.3,1.7, 2.12, 2.5","1002, 1012, 1.3,1.7, 2.12, 2.5","1004, 1036,1.7, 2.12, 2.5","1002, 1012, 1.3,1.7, 2.12, 2.5","1002, 1012, 1.3,1.7, 2.12, 2.5","1005, 1012, 1013, 1037,1.7, 2.12, 2.5","1011, 1022,1.7, 2.12, 2.5",null,0,0]
[null,null,null,null,null,null,null,null,null,null,null,null,null,null,null,null,0,null,null,null,null,0,"2.12, 2.5","2.11, 2.5, 1.2,1.7, 2.12","1025, 2.12, 2.5","2.9.1, 2.12, 2.5","2.9.1,2.10.1, 2.12, 2.5","1002, 1012, 1.3,1.7, 2.12, 2.5","1002, 1012, 1.3,1.7, 2.12, 2.5","1003, 1024, 1034, 1035,1.7, 2.12, 2.5","1002, 1012, 1.3,1.7, 2.12, 2.5","1002, 1012, 1.3,1.7, 2.12, 2.5","1004, 1036,1.7, 2.12, 2.5","1002, 1012, 1.3,1.7, 2.12, 2.5","1002, 1012, 1.3,1.7, 2.12, 2.5","1005, 1012, 1013, 1037,1.7, 2.12, 2.5","1011, 1022,1.7, 2.12, 2.5",null,0,0]
[null,null,null,null,null,null,null,null,null,null,null,null,null,null,null,null,0,null,null,null,null,0,"2.12, 2.5","2.11, 2.5, 1.2,1.7, 2.12","1025, 2.12, 2.5","2.9.1, 2.12, 2.5","2.9.1,2.10.1, 2.12, 2.5","1002, 1012, 1.3,1.7, 2.12, 2.5","1002, 1012, 1.3,1.7, 2.12, 2.5","1003, 1024, 1034, 1035,1.7, 2.12, 2.5","1002, 1012, 1.3,1.7, 2.12, 2.5","1002, 1012, 1.3,1.7, 2.12, 2.5","1004, 1036,1.7, 2.12, 2.5","1002, 1012, 1.3,1.7, 2.12, 2.5","1002, 1012, 1.3,1.7, 2.12, 2.5","1005, 1012, 1013, 1037,1.7, 2.12, 2.5","1011, 1022,1.7, 2.12, 2.5",null,0,0]
[null,null,null,null,null,null,null,null,null,null,null,null,null,null,null,null,0,null,null,null,null,0,"2.12, 2.5","2.11, 2.5, 1.2,1.7, 2.12","1025, 2.12, 2.5","2.9.1, 2.12, 2.5","2.9.1,2.10.1, 2.12, 2.5","1002, 1012, 1.3,1.7, 2.12, 2.5","1002, 1012, 1.3,1.7, 2.12, 2.5","1003, 1024, 1034, 1035,1.7, 2.12, 2.5","1002, 1012, 1.3,1.7, 2.12, 2.5","1002, 1012, 1.3,1.7, 2.12, 2.5","1004, 1036,1.7, 2.12, 2.5","1002, 1012, 1.3,1.7, 2.12, 2.5","1002, 1012, 1.3,1.7, 2.12, 2.5","1005, 1012, 1013, 1037,1.7, 2.12, 2.5","1011, 1022,1.7, 2.12, 2.5",null,0,0]
[null,null,null,null,null,null,null,null,null,null,null,null,null,null,null,null,0,null,null,null,null,0,"2.12, 2.5","2.11, 2.5, 1.2,1.7, 2.12","1025, 2.12, 2.5","2.9.1, 2.12, 2.5","2.9.1,2.10.1, 2.12, 2.5","1002, 1012, 1.3,1.7, 2.12, 2.5","1002, 1012, 1.3,1.7, 2.12, 2.5","1003, 1024, 1034, 1035,1.7, 2.12, 2.5","1002, 1012, 1.3,1.7, 2.12, 2.5","1002, 1012, 1.3,1.7, 2.12, 2.5","1004, 1036,1.7, 2.12, 2.5","1002, 1012, 1.3,1.7, 2.12, 2.5","1002, 1012, 1.3,1.7, 2.12, 2.5","1005, 1012, 1013, 1037,1.7, 2.12, 2.5","1011, 1022,1.7, 2.12, 2.5",null,0,0]
[null,null,null,null,null,null,null,null,null,null,null,null,null,null,null,null,0,null,null,null,null,0,"2.12, 2.5","2.11, 2.5, 1.2,1.7, 2.12","1025, 2.12, 2.5","2.9.1, 2.12, 2.5","2.9.1,2.10.1, 2.12, 2.5","1002, 1012, 1.3,1.7, 2.12, 2.5","1002, 1012, 1.3,1.7, 2.12, 2.5","1003, 1024, 1034, 1035,1.7, 2.12, 2.5","1002, 1012, 1.3,1.7, 2.12, 2.5","1002, 1012, 1.3,1.7, 2.12, 2.5","1004, 1036,1.7, 2.12, 2.5","1002, 1012, 1.3,1.7, 2.12, 2.5","1002, 1012, 1.3,1.7, 2.12, 2.5","1005, 1012, 1013, 1037,1.7, 2.12, 2.5","1011, 1022,1.7, 2.12, 2.5",null,0,0]
[null,null,null,null,null,null,null,null,null,null,null,null,null,null,null,null,{"$f":"SUM(J74,M74,P74)","v":0},null,null,null,null,{"$f":"IF(COUNTIF(B74:R74,\"<>\")-1>0,1,0)","v":0},"2.12, 2.5","2.11, 2.5, 1.2,1.7, 2.12","1025, 2.12, 2.5","2.9.1, 2.12, 2.5","2.9.1,2.10.1, 2.12, 2.5","1002, 1012, 1.3,1.7, 2.12, 2.5","1002, 1012, 1.3,1.7, 2.12, 2.5","1003, 1024, 1034, 1035,1.7, 2.12, 2.5","1002, 1012, 1.3,1.7, 2.12, 2.5","1002, 1012, 1.3,1.7, 2.12, 2.5","1004, 1036,1.7, 2.12, 2.5","1002, 1012, 1.3,1.7, 2.12, 2.5","1002, 1012, 1.3,1.7, 2.12, 2.5","1005, 1012, 1013, 1037,1.7, 2.12, 2.5","1011, 1022,1.7, 2.12, 2.5",null,{"$f":"SUM(H74:I74,K74:L74,N74:O74)","v":0},{"$f":"ROUND(H74*5/12+I74*7/12*10000,2)","v":0}]
[null,null,null,null,null,null,null,null,null,null,null,null,null,null,null,null,0,null,null,null,null,0,"2.12, 2.5","2.11, 2.5, 1.2,1.7, 2.12","1025, 2.12, 2.5","2.9.1, 2.12, 2.5","2.9.1,2.10.1, 2.12, 2.5","1002, 1012, 1.3,1.7, 2.12, 2.5","1002, 1012, 1.3,1.7, 2.12, 2.5","1003, 1024, 1034, 1035,1.7, 2.12, 2.5","1002, 1012, 1.3,1.7, 2.12, 2.5","1002, 1012, 1.3,1.7, 2.12, 2.5","1004, 1036,1.7, 2.12, 2.5","1002, 1012, 1.3,1.7, 2.12, 2.5","1002, 1012, 1.3,1.7, 2.12, 2.5","1005, 1012, 1013, 1037,1.7, 2.12, 2.5","1011, 1022,1.7, 2.12, 2.5",null,0,0]
[null,null,null,null,null,null,null,null,null,null,null,null,null,null,null,null,0,null,null,null,null,0,"2.12, 2.5","2.11, 2.5, 1.2,1.7, 2.12","1025, 2.12, 2.5","2.9.1, 2.12, 2.5","2.9.1,2.10.1, 2.12, 2.5","1002, 1012, 1.3,1.7, 2.12, 2.5","1002, 1012, 1.3,1.7, 2.12, 2.5","1003, 1024, 1034, 1035,1.7, 2.12, 2.5","1002, 1012, 1.3,1.7, 2.12, 2.5","1002, 1012, 1.3,1.7, 2.12, 2.5","1004, 1036,1.7, 2.12, 2.5","1002, 1012, 1.3,1.7, 2.12, 2.5","1002, 1012, 1.3,1.7, 2.12, 2.5","1005, 1012, 1013, 1037,1.7, 2.12, 2.5","1011, 1022,1.7, 2.12, 2.5",null,0,0]
[null,null,null,null,null,null,null,null,null,null,null,null,null,null,null,null,0,null,null,null,null,0,"2.12, 2.5","2.11, 2.5, 1.2,1.7, 2.12","1025, 2.12, 2.5","2.9.1, 2.12, 2.5","2.9.1,2.10.1, 2.12, 2.5","1002, 1012, 1.3,1.7, 2.12, 2.5","1002, 1012, 1.3,1.7, 2.12, 2.5","1003, 1024, 1034, 1035,1.7, 2.12, 2.5","1002, 1012, 1.3,1.7, 2.12, 2.5","1002, 1012, 1.3,1.7, 2.12, 2.5","1004, 1036,1.7, 2.12, 2.5","1002, 1012, 1.3,1.7, 2.12, 2.5","1002, 1012, 1.3,1.7, 2.12, 2.5","1005, 1012, 1013, 1037,1.7, 2.12, 2.5","1011, 1022,1.7, 2.12, 2.5",null,0,0]
[null,null,null,null,null,null,null,null,null,null,null,null,null,null,null,null,0,null,null,null,null,0,"2.12, 2.5","2.11, 2.5, 1.2,1.7, 2.12","1025, 2.12, 2.5","2.9.1, 2.12, 2.5","2.9.1,2.10.1, 2.12, 2.5","1002, 1012, 1.3,1.7, 2.12, 2.5","1002, 1012, 1.3,1.7, 2.12, 2.5","1003, 1024, 1034, 1035,1.7, 2.12, 2.5","1002, 1012, 1.3,1.7, 2.12, 2.5","1002, 1012, 1.3,1.7, 2.12, 2.5","1004, 1036,1.7, 2.12, 2.5","1002, 1012, 1.3,1.7, 2.12, 2.5","1002, 1012, 1.3,1.7, 2.12, 2.5","1005, 1012, 1013, 1037,1.7, 2.12, 2.5","1011, 1022,1.7, 2.12, 2.5",null,0,0]
[null,null,null,null,null,null,null,null,null,null,null,null,null,null,null,null,0,null,null,null,null,0,"2.12, 2.5","2.11, 2.5, 1.2,1.7, 2.12","1025, 2.12, 2.5","2.9.1, 2.12, 2.5","2.9.1,2.10.1, 2.12, 2.5","1002, 1012, 1.3,1.7, 2.12, 2.5","1002, 1012, 1.3,1.7, 2.12, 2.5","1003, 1024, 1034, 1035,1.7, 2.12, 2.5","1002, 1012, 1.3,1.7, 2.12, 2.5","1002, 1012, 1.3,1.7, 2.12, 2.5","1004, 1036,1.7, 2.12, 2.5","1002, 1012, 1.3,1.7, 2.12, 2.5","1002, 1012, 1.3,1.7, 2.12, 2.5","1005, 1012, 1013, 1037,1.7, 2.12, 2.5","1011, 1022,1.7, 2.12, 2.5",null,0,0]
[null,null,null,null,null,null,null,null,null,null,null,null,null,null,null,null,0,null,null,null,null,0,"2.12, 2.5","2.11, 2.5, 1.2,1.7, 2.12","1025, 2.12, 2.5","2.9.1, 2.12, 2.5","2.9.1,2.10.1, 2.12, 2.5","1002, 1012, 1.3,1.7, 2.12, 2.5","1002, 1012, 1.3,1.7, 2.12, 2.5","1003, 1024, 1034, 1035,1.7, 2.12, 2.5","1002, 1012, 1.3,1.7, 2.12, 2.5","1002, 1012, 1.3,1.7, 2.12, 2.5","1004, 1036,1.7, 2.12, 2.5","1002, 1012, 1.3,1.7, 2.12, 2.5","1002, 1012, 1.3,1.7, 2.12, 2.5","1005, 1012, 1013, 1037,1.7, 2.12, 2.5","1011, 1022,1.7, 2.12, 2.5",null,0,0]
[null,null,null,null,null,null,null,null,null,null,null,null,null,null,null,null,0,null,null,null,null,0,"2.12, 2.5","2.11, 2.5, 1.2,1.7, 2.12","1025, 2.12, 2.5","2.9.1, 2.12, 2.5","2.9.1,2.10.1, 2.12, 2.5","1002, 1012, 1.3,1.7, 2.12, 2.5","1002, 1012, 1.3,1.7, 2.12, 2.5","1003, 1024, 1034, 1035,1.7, 2.12, 2.5","1002, 1012, 1.3,1.7, 2.12, 2.5","1002, 1012, 1.3,1.7, 2.12, 2.5","1004, 1036,1.7, 2.12, 2.5","1002, 1012, 1.3,1.7, 2.12, 2.5","1002, 1012, 1.3,1.7, 2.12, 2.5","1005, 1012, 1013, 1037,1.7, 2.12, 2.5","1011, 1022,1.7, 2.12, 2.5",null,0,0]
[null,null,null,null,null,null,null,null,null,null,null,null,null,null,null,null,0,null,null,null,null,0,"2.12, 2.5","2.11, 2.5, 1.2,1.7, 2.12","1025, 2.12, 2.5","2.9.1, 2.12, 2.5","2.9.1,2.10.1, 2.12, 2.5","1002, 1012, 1.3,1.7, 2.12, 2.5","1002, 1012, 1.3,1.7, 2.12, 2.5","1003, 1024, 1034, 1035,1.7, 2.12, 2.5","1002, 1012, 1.3,1.7, 2.12, 2.5","1002, 1012, 1.3,1.7, 2.12, 2.5","1004, 1036,1.7, 2.12, 2.5","1002, 1012, 1.3,1.7, 2.12, 2.5","1002, 1012, 1.3,1.7, 2.12, 2.5","1005, 1012, 1013, 1037,1.7, 2.12, 2.5","1011, 1022,1.7, 2.12, 2.5",null,0,0]
[null,null,null,null,null,null,null,null,null,null,null,null,null,null,null,null,0,null,null,null,null,0,"2.12, 2.5","2.11, 2.5, 1.2,1.7, 2.12","1025, 2.12, 2.5","2.9.1, 2.12, 2.5","2.9.1,2.10.1, 2.12, 2.5","1002, 1012, 1.3,1.7, 2.12, 2.5","1002, 1012, 1.3,1.7, 2.12, 2.5","1003, 1024, 1034, 1035,1.7, 2.12, 2.5","1002, 1012, 1.3,1.7, 2.12, 2.5","1002, 1012, 1.3,1.7, 2.12, 2.5","1004, 1036,1.7, 2.12, 2.5","1002, 1012, 1.3,1.7, 2.12, 2.5","1002, 1012, 1.3,1.7, 2.12, 2.5","1005, 1012, 1013, 1037,1.7, 2.12, 2.5","1011, 1022,1.7, 2.12, 2.5",null,0,0]
[null,null,null,null,null,null,null,null,null,null,null,null,null,null,null,null,0,null,null,null,null,0,"2.12, 2.5","2.11, 2.5, 1.2,1.7, 2.12","1025, 2.12, 2.5","2.9.1, 2.12, 2.5","2.9.1,2.10.1, 2.12, 2.5","1002, 1012, 1.3,1.7, 2.12, 2.5","1002, 1012, 1.3,1.7, 2.12, 2.5","1003, 1024, 1034, 1035,1.7, 2.12, 2.5","1002, 1012, 1.3,1.7, 2.12, 2.5","1002, 1012, 1.3,1.7, 2.12, 2.5","1004, 1036,1.7, 2.12, 2.5","1002, 1012, 1.3,1.7, 2.12, 2.5","1002, 1012, 1.3,1.7, 2.12, 2.5","1005, 1012, 1013, 1037,1.7, 2.12, 2.5","1011, 1022,1.7, 2.12, 2.5",null,0,0]
[null,null,null,null,null,null,null,null,null,null,null,null,null,null,null,null,0,null,null,null,null,0,"2.12, 2.5","2.11, 2.5, 1.2,1.7, 2.12","1025, 2.12, 2.5","2.9.1, 2.12, 2.5","2.9.1,2.10.1, 2.12, 2.5","1002, 1012, 1.3,1.7, 2.12, 2.5","1002, 1012, 1.3,1.7, 2.12, 2.5","1003, 1024, 1034, 1035,1.7, 2.12, 2.5","1002, 1012, 1.3,1.7, 2.12, 2.5","1002, 1012, 1.3,1.7, 2.12, 2.5","1004, 1036,1.7, 2.12, 2.5","1002, 1012, 1.3,1.7, 2.12, 2.5","1002, 1012, 1.3,1.7, 2.12, 2.5","1005, 1012, 1013, 1037,1.7, 2.12, 2.5","1011, 1022,1.7, 2.12, 2.5",null,0,0]
[null,null,null,null,null,null,null,null,null,null,null,null,null,null,null,null,0,null,null,null,null,0,"2.12, 2.5","2.11, 2.5, 1.2,1.7, 2.12","1025, 2.12, 2.5","2.9.1, 2.12, 2.5","2.9.1,2.10.1, 2.12, 2.5","1002, 1012, 1.3,1.7, 2.12, 2.5","1002, 1012, 1.3,1.7, 2.12, 2.5","1003, 1024, 1034, 1035,1.7, 2.12, 2.5","1002, 1012, 1.3,1.7, 2.12, 2.5","1002, 1012, 1.3,1.7, 2.12, 2.5","1004, 1036,1.7, 2.12, 2.5","1002, 1012, 1.3,1.7, 2.12, 2.5","1002, 1012, 1.3,1.7, 2.12, 2.5","1005, 1012, 1013, 1037,1.7, 2.12, 2.5","1011, 1022,1.7, 2.12, 2.5",null,0,0]
[null,null,null,null,null,null,null,null,null,null,null,null,null,null,null,null,0,null,null,null,null,0,"2.12, 2.5","2.11, 2.5, 1.2,1.7, 2.12","1025, 2.12, 2.5","2.9.1, 2.12, 2.5","2.9.1,2.10.1, 2.12, 2.5","1002, 1012, 1.3,1.7, 2.12, 2.5","1002, 1012, 1.3,1.7, 2.12, 2.5","1003, 1024, 1034, 1035,1.7, 2.12, 2.5","1002, 1012, 1.3,1.7, 2.12, 2.5","1002, 1012, 1.3,1.7, 2.12, 2.5","1004, 1036,1.7, 2.12, 2.5","1002, 1012, 1.3,1.7, 2.12, 2.5","1002, 1012, 1.3,1.7, 2.12, 2.5","1005, 1012, 1013, 1037,1.7, 2.12, 2.5","1011, 1022,1.7, 2.12, 2.5",null,0,0]
[null,null,null,null,null,null,null,null,null,null,null,null,null,null,null,null,0,null,null,null,null,0,"2.12, 2.5","2.11, 2.5, 1.2,1.7, 2.12","1025, 2.12, 2.5","2.9.1, 2.12, 2.5","2.9.1,2.10.1, 2.12, 2.5","1002, 1012, 1.3,1.7, 2.12, 2.5","1002, 1012, 1.3,1.7, 2.12, 2.5","1003, 1024, 1034, 1035,1.7, 2.12, 2.5","1002, 1012, 1.3,1.7, 2.12, 2.5","1002, 1012, 1.3,1.7, 2.12, 2.5","1004, 1036,1.7, 2.12, 2.5","1002, 1012, 1.3,1.7, 2.12, 2.5","1002, 1012, 1.3,1.7, 2.12, 2.5","1005, 1012, 1013, 1037,1.7, 2.12, 2.5","1011, 1022,1.7, 2.12, 2.5",null,0,0]
[null,null,null,null,null,null,null,null,null,null,null,null,null,null,null,null,0,null,null,null,null,0,"2.12, 2.5","2.11, 2.5, 1.2,1.7, 2.12","1025, 2.12, 2.5","2.9.1, 2.12, 2.5","2.9.1,2.10.1, 2.12, 2.5","1002, 1012, 1.3,1.7, 2.12, 2.5","1002, 1012, 1.3,1.7, 2.12, 2.5","1003, 1024, 1034, 1035,1.7, 2.12, 2.5","1002, 1012, 1.3,1.7, 2.12, 2.5","1002, 1012, 1.3,1.7, 2.12, 2.5","1004, 1036,1.7, 2.12, 2.5","1002, 1012, 1.3,1.7, 2.12, 2.5","1002, 1012, 1.3,1.7, 2.12, 2.5","1005, 1012, 1013, 1037,1.7, 2.12, 2.5","1011, 1022,1.7, 2.12, 2.5",null,0,0]
[null,null,null,null,null,null,null,null,null,null,null,null,null,null,null,null,0,null,null,null,null,0,"2.12, 2.5","2.11, 2.5, 1.2,1.7, 2.12","1025, 2.12, 2.5","2.9.1, 2.12, 2.5","2.9.1,2.10.1, 2.12, 2.5","1002, 1012, 1.3,1.7, 2.12, 2.5","1002, 1012, 1.3,1.7, 2.12, 2.5","1003, 1024, 1034, 1035,1.7, 2.12, 2.5","1002, 1012, 1.3,1.7, 2.12, 2.5","1002, 1012, 1.3,1.7, 2.12, 2.5","1004, 1036,1.7, 2.12, 2.5","1002, 1012, 1.3,1.7, 2.12, 2.5","1002, 1012, 1.3,1.7, 2.12, 2.5","1005, 1012, 1013, 1037,1.7, 2.12, 2.5","1011, 1022,1.7, 2.12, 2.5",null,0,0]
[null,null,null,null,null,null,null,null,null,null,null,null,null,null,null,null,0,null,null,null,null,0,"2.12, 2.5","2.11, 2.5, 1.2,1.7, 2.12","1025, 2.12, 2.5","2.9.1, 2.12, 2.5","2.9.1,2.10.1, 2.12, 2.5","1002, 1012, 1.3,1.7, 2.12, 2.5","1002, 1012, 1.3,1.7, 2.12, 2.5","1003, 1024, 1034, 1035,1.7, 2.12, 2.5","1002, 1012, 1.3,1.7, 2.12, 2.5","1002, 1012, 1.3,1.7, 2.12, 2.5","1004, 1036,1.7, 2.12, 2.5","1002, 1012, 1.3,1.7, 2.12, 2.5","1002, 1012, 1.3,1.7, 2.12, 2.5","1005, 1012, 1013, 1037,1.7, 2.12, 2.5","1011, 1022,1.7, 2.12, 2.5",null,0,0]
[null,null,null,null,null,null,null,null,null,null,null,null,null,null,null,null,0,null,null,null,null,0,"2.12, 2.5","2.11, 2.5, 1.2,1.7, 2.12","1025, 2.12, 2.5","2.9.1, 2.12, 2.5","2.9.1,2.10.1, 2.12, 2.5","1002, 1012, 1.3,1.7, 2.12, 2.5","1002, 1012, 1.3,1.7, 2.12, 2.5","1003, 1024, 1034, 1035,1.7, 2.12, 2.5","1002, 1012, 1.3,1.7, 2.12, 2.5","1002, 1012, 1.3,1.7, 2.12, 2.5","1004, 1036,1.7, 2.12, 2.5","1002, 1012, 1.3,1.7, 2.12, 2.5","1002, 1012, 1.3,1.7, 2.12, 2.5","1005, 1012, 1013, 1037,1.7, 2.12, 2.5","1011, 1022,1.7, 2.12, 2.5",null,0,0]
[null,null,null,null,null,null,null,null,null,null,null,null,null,null,null,null,0,null,null,null,null,0,"2.12, 2.5","2.11, 2.5, 1.2,1.7, 2.12","1025, 2.12, 2.5","2.9.1, 2.12, 2.5","2.9.1,2.10.1, 2.12, 2.5","1002, 1012, 1.3,1.7, 2.12, 2.5","1002, 1012, 1.3,1.7, 2.12, 2.5","1003, 1024, 1034, 1035,1.7, 2.12, 2.5","1002, 1012, 1.3,1.7, 2.12, 2.5","1002, 1012, 1.3,1.7, 2.12, 2.5","1004, 1036,1.7, 2.12, 2.5","1002, 1012, 1.3,1.7, 2.12, 2.5","1002, 1012, 1.3,1.7, 2.12, 2.5","1005, 1012, 1013, 1037,1.7, 2.12, 2.5","1011, 1022,1.7, 2.12, 2.5",null,0,0]
[null,null,null,null,null,null,null,null,null,null,null,null,null,null,null,null,0,null,null,null,null,0,"2.12, 2.5","2.11, 2.5, 1.2,1.7, 2.12","1025, 2.12, 2.5","2.9.1, 2.12, 2.5","2.9.1,2.10.1, 2.12, 2.5","1002, 1012, 1.3,1.7, 2.12, 2.5","1002, 1012, 1.3,1.7, 2.12, 2.5","1003, 1024, 1034, 1035,1.7, 2.12, 2.5","1002, 1012, 1.3,1.7, 2.12, 2.5","1002, 1012, 1.3,1.7, 2.12, 2.5","1004, 1036,1.7, 2.12, 2.5","1002, 1012, 1.3,1.7, 2.12, 2.5","1002, 1012, 1.3,1.7, 2.12, 2.5","1005, 1012, 1013, 1037,1.7, 2.12, 2.5","1011, 1022,1.7, 2.12, 2.5",null,0,0]
[null,null,null,null,null,null,null,null,null,null,null,null,null,null,null,null,0,null,null,null,null,0,"2.12, 2.5","2.11, 2.5, 1.2,1.7, 2.12","1025, 2.12, 2.5","2.9.1, 2.12, 2.5","2.9.1,2.10.1, 2.12, 2.5","1002, 1012, 1.3,1.7, 2.12, 2.5","1002, 1012, 1.3,1.7, 2.12, 2.5","1003, 1024, 1034, 1035,1.7, 2.12, 2.5","1002, 1012, 1.3,1.7, 2.12, 2.5","1002, 1012, 1.3,1.7, 2.12, 2.5","1004, 1036,1.7, 2.12, 2.5","1002, 1012, 1.3,1.7, 2.12, 2.5","1002, 1012, 1.3,1.7, 2.12, 2.5","1005, 1012, 1013, 1037,1.7, 2.12, 2.5","1011, 1022,1.7, 2.12, 2.5",null,0,0]
[null,null,null,null,null,null,null,null,null,null,null,null,null,null,null,null,0,null,null,null,null,0,"2.12, 2.5","2.11, 2.5, 1.2,1.7, 2.12","1025, 2.12, 2.5","2.9.1, 2.12, 2.5","2.9.1,2.10.1, 2.12, 2.5","1002, 1012, 1.3,1.7, 2.12, 2.5","1002, 1012, 1.3,1.7, 2.12, 2.5","1003, 1024, 1034, 1035,1.7, 2.12, 2.5","1002, 1012, 1.3,1.7, 2.12, 2.5","1002, 1012, 1.3,1.7, 2.12, 2.5","1004, 1036,1.7, 2.12, 2.5","1002, 1012, 1.3,1.7, 2.12, 2.5","1002, 1012, 1.3,1.7, 2.12, 2.5","1005, 1012, 1013, 1037,1.7, 2.12, 2.5","1011, 1022,1.7, 2.12, 2.5",null,0,0]
[null,null,null,null,null,null,null,null,null,null,null,null,null,null,null,null,0,null,null,null,null,0,"2.12, 2.5","2.11, 2.5, 1.2,1.7, 2.12","1025, 2.12, 2.5","2.9.1, 2.12, 2.5","2.9.1,2.10.1, 2.12, 2.5","1002, 1012, 1.3,1.7, 2.12, 2.5","1002, 1012, 1.3,1.7, 2.12, 2.5","1003, 1024, 1034, 1035,1.7, 2.12, 2.5","1002, 1012, 1.3,1.7, 2.12, 2.5","1002, 1012, 1.3,1.7, 2.12, 2.5","1004, 1036,1.7, 2.12, 2.5","1002, 1012, 1.3,1.7, 2.12, 2.5","1002, 1012, 1.3,1.7, 2.12, 2.5","1005, 1012, 1013, 1037,1.7, 2.12, 2.5","1011, 1022,1.7, 2.12, 2.5",null,0,0]
[null,null,null,null,null,null,null,null,null,null,null,null,null,null,null,null,0,null,null,null,null,0,"2.12, 2.5","2.11, 2.5, 1.2,1.7, 2.12","1025, 2.12, 2.5","2.9.1, 2.12, 2.5","2.9.1,2.10.1, 2.12, 2.5","1002, 1012, 1.3,1.7, 2.12, 2.5","1002, 1012, 1.3,1.7, 2.12, 2.5","1003, 1024, 1034, 1035,1.7, 2.12, 2.5","1002, 1012, 1.3,1.7, 2.12, 2.5","1002, 1012, 1.3,1.7, 2.12, 2.5","1004, 1036,1.7, 2.12, 2.5","1002, 1012, 1.3,1.7, 2.12, 2.5","1002, 1012, 1.3,1.7, 2.12, 2.5","1005, 1012, 1013, 1037,1.7, 2.12, 2.5","1011, 1022,1.7, 2.12, 2.5",null,0,0]
[null,null,null,null,null,null,null,null,null,null,null,null,null,null,null,null,0,null,null,null,null,0,"2.12, 2.5","2.11, 2.5, 1.2,1.7, 2.12","1025, 2.12, 2.5","2.9.1, 2.12, 2.5","2.9.1,2.10.1, 2.12, 2.5","1002, 1012, 1.3,1.7, 2.12, 2.5","1002, 1012, 1.3,1.7, 2.12, 2.5","1003, 1024, 1034, 1035,1.7, 2.12, 2.5","1002, 1012, 1.3,1.7, 2.12, 2.5","1002, 1012, 1.3,1.7, 2.12, 2.5","1004, 1036,1.7, 2.12, 2.5","1002, 1012, 1.3,1.7, 2.12, 2.5","1002, 1012, 1.3,1.7, 2.12, 2.5","1005, 1012, 1013, 1037,1.7, 2.12, 2.5","1011, 1022,1.7, 2.12, 2.5",null,0,0]
[null,null,null,null,null,null,null,null,null,null,null,null,null,null,null,null,0,null,null,null,null,0,"2.12, 2.5","2.11, 2.5, 1.2,1.7, 2.12","1025, 2.12, 2.5","2.9.1, 2.12, 2.5","2.9.1,2.10.1, 2.12, 2.5","1002, 1012, 1.3,1.7, 2.12, 2.5","1002, 1012, 1.3,1.7, 2.12, 2.5","1003, 1024, 1034, 1035,1.7, 2.12, 2.5","1002, 1012, 1.3,1.7, 2.12, 2.5","1002, 1012, 1.3,1.7, 2.12, 2.5","1004, 1036,1.7, 2.12, 2.5","1002, 1012, 1.3,1.7, 2.12, 2.5","1002, 1012, 1.3,1.7, 2.12, 2.5","1005, 1012, 1013, 1037,1.7, 2.12, 2.5","1011, 1022,1.7, 2.12, 2.5",null,0,0]
[null,null,null,null,null,null,null,null,null,null,null,null,null,null,null,null,0,null,null,null,null,0,"2.12, 2.5","2.11, 2.5, 1.2,1.7, 2.12","1025, 2.12, 2.5","2.9.1, 2.12, 2.5","2.9.1,2.10.1, 2.12, 2.5","1002, 1012, 1.3,1.7, 2.12, 2.5","1002, 1012, 1.3,1.7, 2.12, 2.5","1003, 1024, 1034, 1035,1.7, 2.12, 2.5","1002, 1012, 1.3,1.7, 2.12, 2.5","1002, 1012, 1.3,1.7, 2.12, 2.5","1004, 1036,1.7, 2.12, 2.5","1002, 1012, 1.3,1.7, 2.12, 2.5","1002, 1012, 1.3,1.7, 2.12, 2.5","1005, 1012, 1013, 1037,1.7, 2.12, 2.5","1011, 1022,1.7, 2.12, 2.5",null,0,0]
[null,null,null,null,null,null,null,null,null,null,null,null,null,null,null,null,0,null,null,null,null,0,"2.12, 2.5","2.11, 2.5, 1.2,1.7, 2.12","1025, 2.12, 2.5","2.9.1, 2.12, 2.5","2.9.1,2.10.1, 2.12, 2.5","1002, 1012, 1.3,1.7, 2.12, 2.5","1002, 1012, 1.3,1.7, 2.12, 2.5","1003, 1024, 1034, 1035,1.7, 2.12, 2.5","1002, 1012, 1.3,1.7, 2.12, 2.5","1002, 1012, 1.3,1.7, 2.12, 2.5","1004, 1036,1.7, 2.12, 2.5","1002, 1012, 1.3,1.7, 2.12, 2.5","1002, 1012, 1.3,1.7, 2.12, 2.5","1005, 1012, 1013, 1037,1.7, 2.12, 2.5","1011, 1022,1.7, 2.12, 2.5",null,0,0]
[null,null,null,null,null,null,null,null,null,null,null,null,null,null,null,null,0,null,null,null,null,0,"2.12, 2.5","2.11, 2.5, 1.2,1.7, 2.12","1025, 2.12, 2.5","2.9.1, 2.12, 2.5","2.9.1,2.10.1, 2.12, 2.5","1002, 1012, 1.3,1.7, 2.12, 2.5","1002, 1012, 1.3,1.7, 2.12, 2.5","1003, 1024, 1034, 1035,1.7, 2.12, 2.5","1002, 1012, 1.3,1.7, 2.12, 2.5","1002, 1012, 1.3,1.7, 2.12, 2.5","1004, 1036,1.7, 2.12, 2.5","1002, 1012, 1.3,1.7, 2.12, 2.5","1002, 1012, 1.3,1.7, 2.12, 2.5","1005, 1012, 1013, 1037,1.7, 2.12, 2.5","1011, 1022,1.7, 2.12, 2.5",null,0,0]
[null,null,null,null,null,null,null,null,null,null,null,null,null,null,null,null,0,null,null,null,null,0,"2.12, 2.5","2.11, 2.5, 1.2,1.7, 2.12","1025, 2.12, 2.5","2.9.1, 2.12, 2.5","2.9.1,2.10.1, 2.12, 2.5","1002, 1012, 1.3,1.7, 2.12, 2.5","1002, 1012, 1.3,1.7, 2.12, 2.5","1003, 1024, 1034, 1035,1.7, 2.12, 2.5","1002, 1012, 1.3,1.7, 2.12, 2.5","1002, 1012, 1.3,1.7, 2.12, 2.5","1004, 1036,1.7, 2.12, 2.5","1002, 1012, 1.3,1.7, 2.12, 2.5","1002, 1012, 1.3,1.7, 2.12, 2.5","1005, 1012, 1013, 1037,1.7, 2.12, 2.5","1011, 1022,1.7, 2.12, 2.5",null,0,0]
[null,null,null,null,null,null,null,null,null,null,null,null,null,null,null,null,0,null,null,null,null,0,"2.12, 2.5","2.11, 2.5, 1.2,1.7, 2.12","1025, 2.12, 2.5","2.9.1, 2.12, 2.5","2.9.1,2.10.1, 2.12, 2.5","1002, 1012, 1.3,1.7, 2.12, 2.5","1002, 1012, 1.3,1.7, 2.12, 2.5","1003, 1024, 1034, 1035,1.7, 2.12, 2.5","1002, 1012, 1.3,1.7, 2.12, 2.5","1002, 1012, 1.3,1.7, 2.12, 2.5","1004, 1036,1.7, 2.12, 2.5","1002, 1012, 1.3,1.7, 2.12, 2.5","1002, 1012, 1.3,1.7, 2.12, 2.5","1005, 1012, 1013, 1037,1.7, 2.12, 2.5","1011, 1022,1.7, 2.12, 2.5",null,0,0]
[null,null,null,null,null,null,null,null,null,null,null,null,null,null,null,null,0,null,null,null,null,0,"2.12, 2.5","2.11, 2.5, 1.2,1.7, 2.12","1025, 2.12, 2.5","2.9.1, 2.12, 2.5","2.9.1,2.10.1, 2.12, 2.5","1002, 1012, 1.3,1.7, 2.12, 2.5","1002, 1012, 1.3,1.7, 2.12, 2.5","1003, 1024, 1034, 1035,1.7, 2.12, 2.5","1002, 1012, 1.3,1.7, 2.12, 2.5","1002, 1012, 1.3,1.7, 2.12, 2.5","1004, 1036,1.7, 2.12, 2.5","1002, 1012, 1.3,1.7, 2.12, 2.5","1002, 1012, 1.3,1.7, 2.12, 2.5","1005, 1012, 1013, 1037,1.7, 2.12, 2.5","1011, 1022,1.7, 2.12, 2.5",null,0,0]
[null,null,null,null,null,null,null,null,null,null,null,null,null,null,null,null,0,null,null,null,null,0,"2.12, 2.5","2.11, 2.5, 1.2,1.7, 2.12","1025, 2.12, 2.5","2.9.1, 2.12, 2.5","2.9.1,2.10.1, 2.12, 2.5","1002, 1012, 1.3,1.7, 2.12, 2.5","1002, 1012, 1.3,1.7, 2.12, 2.5","1003, 1024, 1034, 1035,1.7, 2.12, 2.5","1002, 1012, 1.3,1.7, 2.12, 2.5","1002, 1012, 1.3,1.7, 2.12, 2.5","1004, 1036,1.7, 2.12, 2.5","1002, 1012, 1.3,1.7, 2.12, 2.5","1002, 1012, 1.3,1.7, 2.12, 2.5","1005, 1012, 1013, 1037,1.7, 2.12, 2.5","1011, 1022,1.7, 2.12, 2.5",null,0,0]
[null,null,null,null,null,null,null,null,null,null,null,null,null,null,null,null,0,null,null,null,null,0,"2.12, 2.5","2.11, 2.5, 1.2,1.7, 2.12","1025, 2.12, 2.5","2.9.1, 2.12, 2.5","2.9.1,2.10.1, 2.12, 2.5","1002, 1012, 1.3,1.7, 2.12, 2.5","1002, 1012, 1.3,1.7, 2.12, 2.5","1003, 1024, 1034, 1035,1.7, 2.12, 2.5","1002, 1012, 1.3,1.7, 2.12, 2.5","1002, 1012, 1.3,1.7, 2.12, 2.5","1004, 1036,1.7, 2.12, 2.5","1002, 1012, 1.3,1.7, 2.12, 2.5","1002, 1012, 1.3,1.7, 2.12, 2.5","1005, 1012, 1013, 1037,1.7, 2.12, 2.5","1011, 1022,1.7, 2.12, 2.5",null,0,0]
[null,null,null,null,null,null,null,null,null,null,null,null,null,null,null,null,0,null,null,null,null,0,"2.12, 2.5","2.11, 2.5, 1.2,1.7, 2.12","1025, 2.12, 2.5","2.9.1, 2.12, 2.5","2.9.1,2.10.1, 2.12, 2.5","1002, 1012, 1.3,1.7, 2.12, 2.5","1002, 1012, 1.3,1.7, 2.12, 2.5","1003, 1024, 1034, 1035,1.7, 2.12, 2.5","1002, 1012, 1.3,1.7, 2.12, 2.5","1002, 1012, 1.3,1.7, 2.12, 2.5","1004, 1036,1.7, 2.12, 2.5","1002, 1012, 1.3,1.7, 2.12, 2.5","1002, 1012, 1.3,1.7, 2.12, 2.5","1005, 1012, 1013, 1037,1.7, 2.12, 2.5","1011, 1022,1.7, 2.12, 2.5",null,0,0]
[null,null,null,null,null,null,null,null,null,null,null,null,null,null,null,null,0,null,null,null,null,0,"2.12, 2.5","2.11, 2.5, 1.2,1.7, 2.12","1025, 2.12, 2.5","2.9.1, 2.12, 2.5","2.9.1,2.10.1, 2.12, 2.5","1002, 1012, 1.3,1.7, 2.12, 2.5","1002, 1012, 1.3,1.7, 2.12, 2.5","1003, 1024, 1034, 1035,1.7, 2.12, 2.5","1002, 1012, 1.3,1.7, 2.12, 2.5","1002, 1012, 1.3,1.7, 2.12, 2.5","1004, 1036,1.7, 2.12, 2.5","1002, 1012, 1.3,1.7, 2.12, 2.5","1002, 1012, 1.3,1.7, 2.12, 2.5","1005, 1012, 1013, 1037,1.7, 2.12, 2.5","1011, 1022,1.7, 2.12, 2.5",null,0,0]
[null,null,null,null,null,null,null,null,null,null,null,null,null,null,null,null,0,null,null,null,null,0,"2.12, 2.5","2.11, 2.5, 1.2,1.7, 2.12","1025, 2.12, 2.5","2.9.1, 2.12, 2.5","2.9.1,2.10.1, 2.12, 2.5","1002, 1012, 1.3,1.7, 2.12, 2.5","1002, 1012, 1.3,1.7, 2.12, 2.5","1003, 1024, 1034, 1035,1.7, 2.12, 2.5","1002, 1012, 1.3,1.7, 2.12, 2.5","1002, 1012, 1.3,1.7, 2.12, 2.5","1004, 1036,1.7, 2.12, 2.5","1002, 1012, 1.3,1.7, 2.12, 2.5","1002, 1012, 1.3,1.7, 2.12, 2.5","1005, 1012, 1013, 1037,1.7, 2.12, 2.5","1011, 1022,1.7, 2.12, 2.5",null,0,0]
[null,null,null,null,null,null,null,null,null,null,null,null,null,null,null,null,0,null,null,null,null,0,"2.12, 2.5","2.11, 2.5, 1.2,1.7, 2.12","1025, 2.12, 2.5","2.9.1, 2.12, 2.5","2.9.1,2.10.1, 2.12, 2.5","1002, 1012, 1.3,1.7, 2.12, 2.5","1002, 1012, 1.3,1.7, 2.12, 2.5","1003, 1024, 1034, 1035,1.7, 2.12, 2.5","1002, 1012, 1.3,1.7, 2.12, 2.5","1002, 1012, 1.3,1.7, 2.12, 2.5","1004, 1036,1.7, 2.12, 2.5","1002, 1012, 1.3,1.7, 2.12, 2.5","1002, 1012, 1.3,1.7, 2.12, 2.5","1005, 1012, 1013, 1037,1.7, 2.12, 2.5","1011, 1022,1.7, 2.12, 2.5",null,0,0]
[null,null,null,null,null,null,null,null,null,null,null,null,null,null,null,null,0,null,null,null,null,0,"2.12, 2.5","2.11, 2.5, 1.2,1.7, 2.12","1025, 2.12, 2.5","2.9.1, 2.12, 2.5","2.9.1,2.10.1, 2.12, 2.5","1002, 1012, 1.3,1.7, 2.12, 2.5","1002, 1012, 1.3,1.7, 2.12, 2.5","1003, 1024, 1034, 1035,1.7, 2.12, 2.5","1002, 1012, 1.3,1.7, 2.12, 2.5","1002, 1012, 1.3,1.7, 2.12, 2.5","1004, 1036,1.7, 2.12, 2.5","1002, 1012, 1.3,1.7, 2.12, 2.5","1002, 1012, 1.3,1.7, 2.12, 2.5","1005, 1012, 1013, 1037,1.7, 2.12, 2.5","1011, 1022,1.7, 2.12, 2.5",null,0,0]
[null,null,null,null,null,null,null,null,null,null,null,null,null,null,null,null,0,null,null,null,null,0,"2.12, 2.5","2.11, 2.5, 1.2,1.7, 2.12","1025, 2.12, 2.5","2.9.1, 2.12, 2.5","2.9.1,2.10.1, 2.12, 2.5","1002, 1012, 1.3,1.7, 2.12, 2.5","1002, 1012, 1.3,1.7, 2.12, 2.5","1003, 1024, 1034, 1035,1.7, 2.12, 2.5","1002, 1012, 1.3,1.7, 2.12, 2.5","1002, 1012, 1.3,1.7, 2.12, 2.5","1004, 1036,1.7, 2.12, 2.5","1002, 1012, 1.3,1.7, 2.12, 2.5","1002, 1012, 1.3,1.7, 2.12, 2.5","1005, 1012, 1013, 1037,1.7, 2.12, 2.5","1011, 1022,1.7, 2.12, 2.5",null,0,0]
[null,null,null,null,null,null,null,null,null,null,null,null,null,null,null,null,0,null,null,null,null,0,"2.12, 2.5","2.11, 2.5, 1.2,1.7, 2.12","1025, 2.12, 2.5","2.9.1, 2.12, 2.5","2.9.1,2.10.1, 2.12, 2.5","1002, 1012, 1.3,1.7, 2.12, 2.5","1002, 1012, 1.3,1.7, 2.12, 2.5","1003, 1024, 1034, 1035,1.7, 2.12, 2.5","1002, 1012, 1.3,1.7, 2.12, 2.5","1002, 1012, 1.3,1.7, 2.12, 2.5","1004, 1036,1.7, 2.12, 2.5","1002, 1012, 1.3,1.7, 2.12, 2.5","1002, 1012, 1.3,1.7, 2.12, 2.5","1005, 1012, 1013, 1037,1.7, 2.12, 2.5","1011, 1022,1.7, 2.12, 2.5",null,0,0]
[null,null,null,null,null,null,null,null,null,null,null,null,null,null,null,null,0,null,null,null,null,0,"2.12, 2.5","2.11, 2.5, 1.2,1.7, 2.12","1025, 2.12, 2.5","2.9.1, 2.12, 2.5","2.9.1,2.10.1, 2.12, 2.5","1002, 1012, 1.3,1.7, 2.12, 2.5","1002, 1012, 1.3,1.7, 2.12, 2.5","1003, 1024, 1034, 1035,1.7, 2.12, 2.5","1002, 1012, 1.3,1.7, 2.12, 2.5","1002, 1012, 1.3,1.7, 2.12, 2.5","1004, 1036,1.7, 2.12, 2.5","1002, 1012, 1.3,1.7, 2.12, 2.5","1002, 1012, 1.3,1.7, 2.12, 2.5","1005, 1012, 1013, 1037,1.7, 2.12, 2.5","1011, 1022,1.7, 2.12, 2.5",null,0,0]
[null,null,null,null,null,null,null,null,null,null,null,null,null,null,null,null,0,null,null,null,null,0,"2.12, 2.5","2.11, 2.5, 1.2,1.7, 2.12","1025, 2.12, 2.5","2.9.1, 2.12, 2.5","2.9.1,2.10.1, 2.12, 2.5","1002, 1012, 1.3,1.7, 2.12, 2.5","1002, 1012, 1.3,1.7, 2.12, 2.5","1003, 1024, 1034, 1035,1.7, 2.12, 2.5","1002, 1012, 1.3,1.7, 2.12, 2.5","1002, 1012, 1.3,1.7, 2.12, 2.5","1004, 1036,1.7, 2.12, 2.5","1002, 1012, 1.3,1.7, 2.12, 2.5","1002, 1012, 1.3,1.7, 2.12, 2.5","1005, 1012, 1013, 1037,1.7, 2.12, 2.5","1011, 1022,1.7, 2.12, 2.5",null,0,0]
[null,null,null,null,null,null,null,null,null,null,null,null,null,null,null,null,0,null,null,null,null,0,"2.12, 2.5","2.11, 2.5, 1.2,1.7, 2.12","1025, 2.12, 2.5","2.9.1, 2.12, 2.5","2.9.1,2.10.1, 2.12, 2.5","1002, 1012, 1.3,1.7, 2.12, 2.5","1002, 1012, 1.3,1.7, 2.12, 2.5","1003, 1024, 1034, 1035,1.7, 2.12, 2.5","1002, 1012, 1.3,1.7, 2.12, 2.5","1002, 1012, 1.3,1.7, 2.12, 2.5","1004, 1036,1.7, 2.12, 2.5","1002, 1012, 1.3,1.7, 2.12, 2.5","1002, 1012, 1.3,1.7, 2.12, 2.5","1005, 1012, 1013, 1037,1.7, 2.12, 2.5","1011, 1022,1.7, 2.12, 2.5",null,0,0]
[null,null,null,null,null,null,null,null,null,null,null,null,null,null,null,null,0,null,null,null,null,0,"2.12, 2.5","2.11, 2.5, 1.2,1.7, 2.12","1025, 2.12, 2.5","2.9.1, 2.12, 2.5","2.9.1,2.10.1, 2.12, 2.5","1002, 1012, 1.3,1.7, 2.12, 2.5","1002, 1012, 1.3,1.7, 2.12, 2.5","1003, 1024, 1034, 1035,1.7, 2.12, 2.5","1002, 1012, 1.3,1.7, 2.12, 2.5","1002, 1012, 1.3,1.7, 2.12, 2.5","1004, 1036,1.7, 2.12, 2.5","1002, 1012, 1.3,1.7, 2.12, 2.5","1002, 1012, 1.3,1.7, 2.12, 2.5","1005, 1012, 1013, 1037,1.7, 2.12, 2.5","1011, 1022,1.7, 2.12, 2.5",null,0,0]
[null,null,null,null,null,null,null,null,null,null,null,null,null,null,null,null,0,null,null,null,null,0,"2.12, 2.5","2.11, 2.5, 1.2,1.7, 2.12","1025, 2.12, 2.5","2.9.1, 2.12, 2.5","2.9.1,2.10.1, 2.12, 2.5","1002, 1012, 1.3,1.7, 2.12, 2.5","1002, 1012, 1.3,1.7, 2.12, 2.5","1003, 1024, 1034, 1035,1.7, 2.12, 2.5","1002, 1012, 1.3,1.7, 2.12, 2.5","1002, 1012, 1.3,1.7, 2.12, 2.5","1004, 1036,1.7, 2.12, 2.5","1002, 1012, 1.3,1.7, 2.12, 2.5","1002, 1012, 1.3,1.7, 2.12, 2.5","1005, 1012, 1013, 1037,1.7, 2.12, 2.5","1011, 1022,1.7, 2.12, 2.5",null,0,0]
[null,null,null,null,null,null,null,null,null,null,null,null,null,null,null,null,0,null,null,null,null,0,"2.12, 2.5","2.11, 2.5, 1.2,1.7, 2.12","1025, 2.12, 2.5","2.9.1, 2.12, 2.5","2.9.1,2.10.1, 2.12, 2.5","1002, 1012, 1.3,1.7, 2.12, 2.5","1002, 1012, 1.3,1.7, 2.12, 2.5","1003, 1024, 1034, 1035,1.7, 2.12, 2.5","1002, 1012, 1.3,1.7, 2.12, 2.5","1002, 1012, 1.3,1.7, 2.12, 2.5","1004, 1036,1.7, 2.12, 2.5","1002, 1012, 1.3,1.7, 2.12, 2.5","1002, 1012, 1.3,1.7, 2.12, 2.5","1005, 1012, 1013, 1037,1.7, 2.12, 2.5","1011, 1022,1.7, 2.12, 2.5",null,0,0]
[null,null,null,null,null,null,null,null,null,null,null,null,null,null,null,null,0,null,null,null,null,0,"2.12, 2.5","2.11, 2.5, 1.2,1.7, 2.12","1025, 2.12, 2.5","2.9.1, 2.12, 2.5","2.9.1,2.10.1, 2.12, 2.5","1002, 1012, 1.3,1.7, 2.12, 2.5","1002, 1012, 1.3,1.7, 2.12, 2.5","1003, 1024, 1034, 1035,1.7, 2.12, 2.5","1002, 1012, 1.3,1.7, 2.12, 2.5","1002, 1012, 1.3,1.7, 2.12, 2.5","1004, 1036,1.7, 2.12, 2.5","1002, 1012, 1.3,1.7, 2.12, 2.5","1002, 1012, 1.3,1.7, 2.12, 2.5","1005, 1012, 1013, 1037,1.7, 2.12, 2.5","1011, 1022,1.7, 2.12, 2.5",null,0,0]
[null,null,null,null,null,null,null,null,null,null,null,null,null,null,null,null,0,null,null,null,null,0,"2.12, 2.5","2.11, 2.5, 1.2,1.7, 2.12","1025, 2.12, 2.5","2.9.1, 2.12, 2.5","2.9.1,2.10.1, 2.12, 2.5","1002, 1012, 1.3,1.7, 2.12, 2.5","1002, 1012, 1.3,1.7, 2.12, 2.5","1003, 1024, 1034, 1035,1.7, 2.12, 2.5","1002, 1012, 1.3,1.7, 2.12, 2.5","1002, 1012, 1.3,1.7, 2.12, 2.5","1004, 1036,1.7, 2.12, 2.5","1002, 1012, 1.3,1.7, 2.12, 2.5","1002, 1012, 1.3,1.7, 2.12, 2.5","1005, 1012, 1013, 1037,1.7, 2.12, 2.5","1011, 1022,1.7, 2.12, 2.5",null,0,0]
[null,null,null,null,null,null,null,null,null,null,null,null,null,null,null,null,0,null,null,null,null,0,"2.12, 2.5","2.11, 2.5, 1.2,1.7, 2.12","1025, 2.12, 2.5","2.9.1, 2.12, 2.5","2.9.1,2.10.1, 2.12, 2.5","1002, 1012, 1.3,1.7, 2.12, 2.5","1002, 1012, 1.3,1.7, 2.12, 2.5","1003, 1024, 1034, 1035,1.7, 2.12, 2.5","1002, 1012, 1.3,1.7, 2.12, 2.5","1002, 1012, 1.3,1.7, 2.12, 2.5","1004, 1036,1.7, 2.12, 2.5","1002, 1012, 1.3,1.7, 2.12, 2.5","1002, 1012, 1.3,1.7, 2.12, 2.5","1005, 1012, 1013, 1037,1.7, 2.12, 2.5","1011, 1022,1.7, 2.12, 2.5",null,0,0]
[null,null,null,null,null,null,null,null,null,null,null,null,null,null,null,null,0,null,null,null,null,0,"2.12, 2.5","2.11, 2.5, 1.2,1.7, 2.12","1025, 2.12, 2.5","2.9.1, 2.12, 2.5","2.9.1,2.10.1, 2.12, 2.5","1002, 1012, 1.3,1.7, 2.12, 2.5","1002, 1012, 1.3,1.7, 2.12, 2.5","1003, 1024, 1034, 1035,1.7, 2.12, 2.5","1002, 1012, 1.3,1.7, 2.12, 2.5","1002, 1012, 1.3,1.7, 2.12, 2.5","1004, 1036,1.7, 2.12, 2.5","1002, 1012, 1.3,1.7, 2.12, 2.5","1002, 1012, 1.3,1.7, 2.12, 2.5","1005, 1012, 1013, 1037,1.7, 2.12, 2.5","1011, 1022,1.7, 2.12, 2.5",null,0,0]
[null,null,null,null,null,null,null,null,null,null,null,null,null,null,null,null,0,null,null,null,null,0,"2.12, 2.5","2.11, 2.5, 1.2,1.7, 2.12","1025, 2.12, 2.5","2.9.1, 2.12, 2.5","2.9.1,2.10.1, 2.12, 2.5","1002, 1012, 1.3,1.7, 2.12, 2.5","1002, 1012, 1.3,1.7, 2.12, 2.5","1003, 1024, 1034, 1035,1.7, 2.12, 2.5","1002, 1012, 1.3,1.7, 2.12, 2.5","1002, 1012, 1.3,1.7, 2.12, 2.5","1004, 1036,1.7, 2.12, 2.5","1002, 1012, 1.3,1.7, 2.12, 2.5","1002, 1012, 1.3,1.7, 2.12, 2.5","1005, 1012, 1013, 1037,1.7, 2.12, 2.5","1011, 1022,1.7, 2.12, 2.5",null,0,0]
[null,null,null,null,null,null,null,null,null,null,null,null,null,null,null,null,0,null,null,null,null,0,"2.12, 2.5","2.11, 2.5, 1.2,1.7, 2.12","1025, 2.12, 2.5","2.9.1, 2.12, 2.5","2.9.1,2.10.1, 2.12, 2.5","1002, 1012, 1.3,1.7, 2.12, 2.5","1002, 1012, 1.3,1.7, 2.12, 2.5","1003, 1024, 1034, 1035,1.7, 2.12, 2.5","1002, 1012, 1.3,1.7, 2.12, 2.5","1002, 1012, 1.3,1.7, 2.12, 2.5","1004, 1036,1.7, 2.12, 2.5","1002, 1012, 1.3,1.7, 2.12, 2.5","1002, 1012, 1.3,1.7, 2.12, 2.5","1005, 1012, 1013, 1037,1.7, 2.12, 2.5","1011, 1022,1.7, 2.12, 2.5",null,0,0]
[null,null,null,null,null,null,null,null,null,null,null,null,null,null,null,null,0,null,null,null,null,0,"2.12, 2.5","2.11, 2.5, 1.2,1.7, 2.12","1025, 2.12, 2.5","2.9.1, 2.12, 2.5","2.9.1,2.10.1, 2.12, 2.5","1002, 1012, 1.3,1.7, 2.12, 2.5","1002, 1012, 1.3,1.7, 2.12, 2.5","1003, 1024, 1034, 1035,1.7, 2.12, 2.5","1002, 1012, 1.3,1.7, 2.12, 2.5","1002, 1012, 1.3,1.7, 2.12, 2.5","1004, 1036,1.7, 2.12, 2.5","1002, 1012, 1.3,1.7, 2.12, 2.5","1002, 1012, 1.3,1.7, 2.12, 2.5","1005, 1012, 1013, 1037,1.7, 2.12, 2.5","1011, 1022,1.7, 2.12, 2.5",null,0,0]
[null,null,null,null,null,null,null,null,null,null,null,null,null,null,null,null,0,null,null,null,null,0,"2.12, 2.5","2.11, 2.5, 1.2,1.7, 2.12","1025, 2.12, 2.5","2.9.1, 2.12, 2.5","2.9.1,2.10.1, 2.12, 2.5","1002, 1012, 1.3,1.7, 2.12, 2.5","1002, 1012, 1.3,1.7, 2.12, 2.5","1003, 1024, 1034, 1035,1.7, 2.12, 2.5","1002, 1012, 1.3,1.7, 2.12, 2.5","1002, 1012, 1.3,1.7, 2.12, 2.5","1004, 1036,1.7, 2.12, 2.5","1002, 1012, 1.3,1.7, 2.12, 2.5","1002, 1012, 1.3,1.7, 2.12, 2.5","1005, 1012, 1013, 1037,1.7, 2.12, 2.5","1011, 1022,1.7, 2.12, 2.5",null,0,0]
[null,null,null,null,null,null,null,null,null,null,null,null,null,null,null,null,0,null,null,null,null,0,"2.12, 2.5","2.11, 2.5, 1.2,1.7, 2.12","1025, 2.12, 2.5","2.9.1, 2.12, 2.5","2.9.1,2.10.1, 2.12, 2.5","1002, 1012, 1.3,1.7, 2.12, 2.5","1002, 1012, 1.3,1.7, 2.12, 2.5","1003, 1024, 1034, 1035,1.7, 2.12, 2.5","1002, 1012, 1.3,1.7, 2.12, 2.5","1002, 1012, 1.3,1.7, 2.12, 2.5","1004, 1036,1.7, 2.12, 2.5","1002, 1012, 1.3,1.7, 2.12, 2.5","1002, 1012, 1.3,1.7, 2.12, 2.5","1005, 1012, 1013, 1037,1.7, 2.12, 2.5","1011, 1022,1.7, 2.12, 2.5",null,0,0]
[null,null,null,null,null,null,null,null,null,null,null,null,null,null,null,null,0,null,null,null,null,0,"2.12, 2.5","2.11, 2.5, 1.2,1.7, 2.12","1025, 2.12, 2.5","2.9.1, 2.12, 2.5","2.9.1,2.10.1, 2.12, 2.5","1002, 1012, 1.3,1.7, 2.12, 2.5","1002, 1012, 1.3,1.7, 2.12, 2.5","1003, 1024, 1034, 1035,1.7, 2.12, 2.5","1002, 1012, 1.3,1.7, 2.12, 2.5","1002, 1012, 1.3,1.7, 2.12, 2.5","1004, 1036,1.7, 2.12, 2.5","1002, 1012, 1.3,1.7, 2.12, 2.5","1002, 1012, 1.3,1.7, 2.12, 2.5","1005, 1012, 1013, 1037,1.7, 2.12, 2.5","1011, 1022,1.7, 2.12, 2.5",null,0,0]
[null,null,null,null,null,null,null,null,null,null,null,null,null,null,null,null,0,null,null,null,null,0,"2.12, 2.5","2.11, 2.5, 1.2,1.7, 2.12","1025, 2.12, 2.5","2.9.1, 2.12, 2.5","2.9.1,2.10.1, 2.12, 2.5","1002, 1012, 1.3,1.7, 2.12, 2.5","1002, 1012, 1.3,1.7, 2.12, 2.5","1003, 1024, 1034, 1035,1.7, 2.12, 2.5","1002, 1012, 1.3,1.7, 2.12, 2.5","1002, 1012, 1.3,1.7, 2.12, 2.5","1004, 1036,1.7, 2.12, 2.5","1002, 1012, 1.3,1.7, 2.12, 2.5","1002, 1012, 1.3,1.7, 2.12, 2.5","1005, 1012, 1013, 1037,1.7, 2.12, 2.5","1011, 1022,1.7, 2.12, 2.5",null,0,0]
[null,null,null,null,null,null,null,null,null,null,null,null,null,null,null,null,0,null,null,null,null,0,"2.12, 2.5","2.11, 2.5, 1.2,1.7, 2.12","1025, 2.12, 2.5","2.9.1, 2.12, 2.5","2.9.1,2.10.1, 2.12, 2.5","1002, 1012, 1.3,1.7, 2.12, 2.5","1002, 1012, 1.3,1.7, 2.12, 2.5","1003, 1024, 1034, 1035,1.7, 2.12, 2.5","1002, 1012, 1.3,1.7, 2.12, 2.5","1002, 1012, 1.3,1.7, 2.12, 2.5","1004, 1036,1.7, 2.12, 2.5","1002, 1012, 1.3,1.7, 2.12, 2.5","1002, 1012, 1.3,1.7, 2.12, 2.5","1005, 1012, 1013, 1037,1.7, 2.12, 2.5","1011, 1022,1.7, 2.12, 2.5",null,0,0]
[null,null,null,null,null,null,null,null,null,null,null,null,null,null,null,null,0,null,null,null,null,0,"2.12, 2.5","2.11, 2.5, 1.2,1.7, 2.12","1025, 2.12, 2.5","2.9.1, 2.12, 2.5","2.9.1,2.10.1, 2.12, 2.5","1002, 1012, 1.3,1.7, 2.12, 2.5","1002, 1012, 1.3,1.7, 2.12, 2.5","1003, 1024, 1034, 1035,1.7, 2.12, 2.5","1002, 1012, 1.3,1.7, 2.12, 2.5","1002, 1012, 1.3,1.7, 2.12, 2.5","1004, 1036,1.7, 2.12, 2.5","1002, 1012, 1.3,1.7, 2.12, 2.5","1002, 1012, 1.3,1.7, 2.12, 2.5","1005, 1012, 1013, 1037,1.7, 2.12, 2.5","1011, 1022,1.7, 2.12, 2.5",null,0,0]
[null,null,null,null,null,null,null,null,null,null,null,null,null,null,null,null,0,null,null,null,null,0,"2.12, 2.5","2.11, 2.5, 1.2,1.7, 2.12","1025, 2.12, 2.5","2.9.1, 2.12, 2.5","2.9.1,2.10.1, 2.12, 2.5","1002, 1012, 1.3,1.7, 2.12, 2.5","1002, 1012, 1.3,1.7, 2.12, 2.5","1003, 1024, 1034, 1035,1.7, 2.12, 2.5","1002, 1012, 1.3,1.7, 2.12, 2.5","1002, 1012, 1.3,1.7, 2.12, 2.5","1004, 1036,1.7, 2.12, 2.5","1002, 1012, 1.3,1.7, 2.12, 2.5","1002, 1012, 1.3,1.7, 2.12, 2.5","1005, 1012, 1013, 1037,1.7, 2.12, 2.5","1011, 1022,1.7, 2.12, 2.5",null,0,0]
[null,null,null,null,null,null,null,null,null,null,null,null,null,null,null,null,0,null,null,null,null,0,"2.12, 2.5","2.11, 2.5, 1.2,1.7, 2.12","1025, 2.12, 2.5","2.9.1, 2.12, 2.5","2.9.1,2.10.1, 2.12, 2.5","1002, 1012, 1.3,1.7, 2.12, 2.5","1002, 1012, 1.3,1.7, 2.12, 2.5","1003, 1024, 1034, 1035,1.7, 2.12, 2.5","1002, 1012, 1.3,1.7, 2.12, 2.5","1002, 1012, 1.3,1.7, 2.12, 2.5","1004, 1036,1.7, 2.12, 2.5","1002, 1012, 1.3,1.7, 2.12, 2.5","1002, 1012, 1.3,1.7, 2.12, 2.5","1005, 1012, 1013, 1037,1.7, 2.12, 2.5","1011, 1022,1.7, 2.12, 2.5",null,0,0]
[null,null,null,null,null,null,null,null,null,null,null,null,null,null,null,null,0,null,null,null,null,0,"2.12, 2.5","2.11, 2.5, 1.2,1.7, 2.12","1025, 2.12, 2.5","2.9.1, 2.12, 2.5","2.9.1,2.10.1, 2.12, 2.5","1002, 1012, 1.3,1.7, 2.12, 2.5","1002, 1012, 1.3,1.7, 2.12, 2.5","1003, 1024, 1034, 1035,1.7, 2.12, 2.5","1002, 1012, 1.3,1.7, 2.12, 2.5","1002, 1012, 1.3,1.7, 2.12, 2.5","1004, 1036,1.7, 2.12, 2.5","1002, 1012, 1.3,1.7, 2.12, 2.5","1002, 1012, 1.3,1.7, 2.12, 2.5","1005, 1012, 1013, 1037,1.7, 2.12, 2.5","1011, 1022,1.7, 2.12, 2.5",null,0,0]
[null,null,null,null,null,null,null,null,null,null,null,null,null,null,null,null,{"$f":"SUM(J138,M138,P138)","v":0},null,null,null,null,{"$f":"IF(COUNTIF(B138:R138,\"<>\")-1>0,1,0)","v":0},"2.12, 2.5","2.11, 2.5, 1.2,1.7, 2.12","1025, 2.12, 2.5","2.9.1, 2.12, 2.5","2.9.1,2.10.1, 2.12, 2.5","1002, 1012, 1.3,1.7, 2.12, 2.5","1002, 1012, 1.3,1.7, 2.12, 2.5","1003, 1024, 1034, 1035,1.7, 2.12, 2.5","1002, 1012, 1.3,1.7, 2.12, 2.5","1002, 1012, 1.3,1.7, 2.12, 2.5","1004, 1036,1.7, 2.12, 2.5","1002, 1012, 1.3,1.7, 2.12, 2.5","1002, 1012, 1.3,1.7, 2.12, 2.5","1005, 1012, 1013, 1037,1.7, 2.12, 2.5","1011, 1022,1.7, 2.12, 2.5",null,{"$f":"SUM(H138:I138,K138:L138,N138:O138)","v":0},{"$f":"ROUND(H138*5/12+I138*7/12*10000,2)","v":0}]
[null,null,null,null,null,null,null,null,null,null,null,null,null,null,null,null,0,null,null,null,null,0,"2.12, 2.5","2.11, 2.5, 1.2,1.7, 2.12","1025, 2.12, 2.5","2.9.1, 2.12, 2.5","2.9.1,2.10.1, 2.12, 2.5","1002, 1012, 1.3,1.7, 2.12, 2.5","1002, 1012, 1.3,1.7, 2.12, 2.5","1003, 1024, 1034, 1035,1.7, 2.12, 2.5","1002, 1012, 1.3,1.7, 2.12, 2.5","1002, 1012, 1.3,1.7, 2.12, 2.5","1004, 1036,1.7, 2.12, 2.5","1002, 1012, 1.3,1.7, 2.12, 2.5","1002, 1012, 1.3,1.7, 2.12, 2.5","1005, 1012, 1013, 1037,1.7, 2.12, 2.5","1011, 1022,1.7, 2.12, 2.5",null,0,0]
[null,null,null,null,null,null,null,null,null,null,null,null,null,null,null,null,0,null,null,null,null,0,"2.12, 2.5","2.11, 2.5, 1.2,1.7, 2.12","1025, 2.12, 2.5","2.9.1, 2.12, 2.5","2.9.1,2.10.1, 2.12, 2.5","1002, 1012, 1.3,1.7, 2.12, 2.5","1002, 1012, 1.3,1.7, 2.12, 2.5","1003, 1024, 1034, 1035,1.7, 2.12, 2.5","1002, 1012, 1.3,1.7, 2.12, 2.5","1002, 1012, 1.3,1.7, 2.12, 2.5","1004, 1036,1.7, 2.12, 2.5","1002, 1012, 1.3,1.7, 2.12, 2.5","1002, 1012, 1.3,1.7, 2.12, 2.5","1005, 1012, 1013, 1037,1.7, 2.12, 2.5","1011, 1022,1.7, 2.12, 2.5",null,0,0]
[null,null,null,null,null,null,null,null,null,null,null,null,null,null,null,null,0,null,null,null,null,0,"2.12, 2.5","2.11, 2.5, 1.2,1.7, 2.12","1025, 2.12, 2.5","2.9.1, 2.12, 2.5","2.9.1,2.10.1, 2.12, 2.5","1002, 1012, 1.3,1.7, 2.12, 2.5","1002, 1012, 1.3,1.7, 2.12, 2.5","1003, 1024, 1034, 1035,1.7, 2.12, 2.5","1002, 1012, 1.3,1.7, 2.12, 2.5","1002, 1012, 1.3,1.7, 2.12, 2.5","1004, 1036,1.7, 2.12, 2.5","1002, 1012, 1.3,1.7, 2.12, 2.5","1002, 1012, 1.3,1.7, 2.12, 2.5","1005, 1012, 1013, 1037,1.7, 2.12, 2.5","1011, 1022,1.7, 2.12, 2.5",null,0,0]
[null,null,null,null,null,null,null,null,null,null,null,null,null,null,null,null,0,null,null,null,null,0,"2.12, 2.5","2.11, 2.5, 1.2,1.7, 2.12","1025, 2.12, 2.5","2.9.1, 2.12, 2.5","2.9.1,2.10.1, 2.12, 2.5","1002, 1012, 1.3,1.7, 2.12, 2.5","1002, 1012, 1.3,1.7, 2.12, 2.5","1003, 1024, 1034, 1035,1.7, 2.12, 2.5","1002, 1012, 1.3,1.7, 2.12, 2.5","1002, 1012, 1.3,1.7, 2.12, 2.5","1004, 1036,1.7, 2.12, 2.5","1002, 1012, 1.3,1.7, 2.12, 2.5","1002, 1012, 1.3,1.7, 2.12, 2.5","1005, 1012, 1013, 1037,1.7, 2.12, 2.5","1011, 1022,1.7, 2.12, 2.5",null,0,0]
[null,null,null,null,null,null,null,null,null,null,null,null,null,null,null,null,0,null,null,null,null,0,"2.12, 2.5","2.11, 2.5, 1.2,1.7, 2.12","1025, 2.12, 2.5","2.9.1, 2.12, 2.5","2.9.1,2.10.1, 2.12, 2.5","1002, 1012, 1.3,1.7, 2.12, 2.5","1002, 1012, 1.3,1.7, 2.12, 2.5","1003, 1024, 1034, 1035,1.7, 2.12, 2.5","1002, 1012, 1.3,1.7, 2.12, 2.5","1002, 1012, 1.3,1.7, 2.12, 2.5","1004, 1036,1.7, 2.12, 2.5","1002, 1012, 1.3,1.7, 2.12, 2.5","1002, 1012, 1.3,1.7, 2.12, 2.5","1005, 1012, 1013, 1037,1.7, 2.12, 2.5","1011, 1022,1.7, 2.12, 2.5",null,0,0]
[null,null,null,null,null,null,null,null,null,null,null,null,null,null,null,null,0,null,null,null,null,0,"2.12, 2.5","2.11, 2.5, 1.2,1.7, 2.12","1025, 2.12, 2.5","2.9.1, 2.12, 2.5","2.9.1,2.10.1, 2.12, 2.5","1002, 1012, 1.3,1.7, 2.12, 2.5","1002, 1012, 1.3,1.7, 2.12, 2.5","1003, 1024, 1034, 1035,1.7, 2.12, 2.5","1002, 1012, 1.3,1.7, 2.12, 2.5","1002, 1012, 1.3,1.7, 2.12, 2.5","1004, 1036,1.7, 2.12, 2.5","1002, 1012, 1.3,1.7, 2.12, 2.5","1002, 1012, 1.3,1.7, 2.12, 2.5","1005, 1012, 1013, 1037,1.7, 2.12, 2.5","1011, 1022,1.7, 2.12, 2.5",null,0,0]
[null,null,null,null,null,null,null,null,null,null,null,null,null,null,null,null,0,null,null,null,null,0,"2.12, 2.5","2.11, 2.5, 1.2,1.7, 2.12","1025, 2.12, 2.5","2.9.1, 2.12, 2.5","2.9.1,2.10.1, 2.12, 2.5","1002, 1012, 1.3,1.7, 2.12, 2.5","1002, 1012, 1.3,1.7, 2.12, 2.5","1003, 1024, 1034, 1035,1.7, 2.12, 2.5","1002, 1012, 1.3,1.7, 2.12, 2.5","1002, 1012, 1.3,1.7, 2.12, 2.5","1004, 1036,1.7, 2.12, 2.5","1002, 1012, 1.3,1.7, 2.12, 2.5","1002, 1012, 1.3,1.7, 2.12, 2.5","1005, 1012, 1013, 1037,1.7, 2.12, 2.5","1011, 1022,1.7, 2.12, 2.5",null,0,0]
[null,null,null,null,null,null,null,null,null,null,null,null,null,null,null,null,0,null,null,null,null,0,"2.12, 2.5","2.11, 2.5, 1.2,1.7, 2.12","1025, 2.12, 2.5","2.9.1, 2.12, 2.5","2.9.1,2.10.1, 2.12, 2.5","1002, 1012, 1.3,1.7, 2.12, 2.5","1002, 1012, 1.3,1.7, 2.12, 2.5","1003, 1024, 1034, 1035,1.7, 2.12, 2.5","1002, 1012, 1.3,1.7, 2.12, 2.5","1002, 1012, 1.3,1.7, 2.12, 2.5","1004, 1036,1.7, 2.12, 2.5","1002, 1012, 1.3,1.7, 2.12, 2.5","1002, 1012, 1.3,1.7, 2.12, 2.5","1005, 1012, 1013, 1037,1.7, 2.12, 2.5","1011, 1022,1.7, 2.12, 2.5",null,0,0]
[null,null,null,null,null,null,null,null,null,null,null,null,null,null,null,null,0,null,null,null,null,0,"2.12, 2.5","2.11, 2.5, 1.2,1.7, 2.12","1025, 2.12, 2.5","2.9.1, 2.12, 2.5","2.9.1,2.10.1, 2.12, 2.5","1002, 1012, 1.3,1.7, 2.12, 2.5","1002, 1012, 1.3,1.7, 2.12, 2.5","1003, 1024, 1034, 1035,1.7, 2.12, 2.5","1002, 1012, 1.3,1.7, 2.12, 2.5","1002, 1012, 1.3,1.7, 2.12, 2.5","1004, 1036,1.7, 2.12, 2.5","1002, 1012, 1.3,1.7, 2.12, 2.5","1002, 1012, 1.3,1.7, 2.12, 2.5","1005, 1012, 1013, 1037,1.7, 2.12, 2.5","1011, 1022,1.7, 2.12, 2.5",null,0,0]
[null,null,null,null,null,null,null,null,null,null,null,null,null,null,null,null,0,null,null,null,null,0,"2.12, 2.5","2.11, 2.5, 1.2,1.7, 2.12","1025, 2.12, 2.5","2.9.1, 2.12, 2.5","2.9.1,2.10.1, 2.12, 2.5","1002, 1012, 1.3,1.7, 2.12, 2.5","1002, 1012, 1.3,1.7, 2.12, 2.5","1003, 1024, 1034, 1035,1.7, 2.12, 2.5","1002, 1012, 1.3,1.7, 2.12, 2.5","1002, 1012, 1.3,1.7, 2.12, 2.5","1004, 1036,1.7, 2.12, 2.5","1002, 1012, 1.3,1.7, 2.12, 2.5","1002, 1012, 1.3,1.7, 2.12, 2.5","1005, 1012, 1013, 1037,1.7, 2.12, 2.5","1011, 1022,1.7, 2.12, 2.5",null,0,0]
[null,null,null,null,null,null,null,null,null,null,null,null,null,null,null,null,0,null,null,null,null,0,"2.12, 2.5","2.11, 2.5, 1.2,1.7, 2.12","1025, 2.12, 2.5","2.9.1, 2.12, 2.5","2.9.1,2.10.1, 2.12, 2.5","1002, 1012, 1.3,1.7, 2.12, 2.5","1002, 1012, 1.3,1.7, 2.12, 2.5","1003, 1024, 1034, 1035,1.7, 2.12, 2.5","1002, 1012, 1.3,1.7, 2.12, 2.5","1002, 1012, 1.3,1.7, 2.12, 2.5","1004, 1036,1.7, 2.12, 2.5","1002, 1012, 1.3,1.7, 2.12, 2.5","1002, 1012, 1.3,1.7, 2.12, 2.5","1005, 1012, 1013, 1037,1.7, 2.12, 2.5","1011, 1022,1.7, 2.12, 2.5",null,0,0]
[null,null,null,null,null,null,null,null,null,null,null,null,null,null,null,null,0,null,null,null,null,0,"2.12, 2.5","2.11, 2.5, 1.2,1.7, 2.12","1025, 2.12, 2.5","2.9.1, 2.12, 2.5","2.9.1,2.10.1, 2.12, 2.5","1002, 1012, 1.3,1.7, 2.12, 2.5","1002, 1012, 1.3,1.7, 2.12, 2.5","1003, 1024, 1034, 1035,1.7, 2.12, 2.5","1002, 1012, 1.3,1.7, 2.12, 2.5","1002, 1012, 1.3,1.7, 2.12, 2.5","1004, 1036,1.7, 2.12, 2.5","1002, 1012, 1.3,1.7, 2.12, 2.5","1002, 1012, 1.3,1.7, 2.12, 2.5","1005, 1012, 1013, 1037,1.7, 2.12, 2.5","1011, 1022,1.7, 2.12, 2.5",null,0,0]
[null,null,null,null,null,null,null,null,null,null,null,null,null,null,null,null,0,null,null,null,null,0,"2.12, 2.5","2.11, 2.5, 1.2,1.7, 2.12","1025, 2.12, 2.5","2.9.1, 2.12, 2.5","2.9.1,2.10.1, 2.12, 2.5","1002, 1012, 1.3,1.7, 2.12, 2.5","1002, 1012, 1.3,1.7, 2.12, 2.5","1003, 1024, 1034, 1035,1.7, 2.12, 2.5","1002, 1012, 1.3,1.7, 2.12, 2.5","1002, 1012, 1.3,1.7, 2.12, 2.5","1004, 1036,1.7, 2.12, 2.5","1002, 1012, 1.3,1.7, 2.12, 2.5","1002, 1012, 1.3,1.7, 2.12, 2.5","1005, 1012, 1013, 1037,1.7, 2.12, 2.5","1011, 1022,1.7, 2.12, 2.5",null,0,0]
[null,null,null,null,null,null,null,null,null,null,null,null,null,null,null,null,0,null,null,null,null,0,"2.12, 2.5","2.11, 2.5, 1.2,1.7, 2.12","1025, 2.12, 2.5","2.9.1, 2.12, 2.5","2.9.1,2.10.1, 2.12, 2.5","1002, 1012, 1.3,1.7, 2.12, 2.5","1002, 1012, 1.3,1.7, 2.12, 2.5","1003, 1024, 1034, 1035,1.7, 2.12, 2.5","1002, 1012, 1.3,1.7, 2.12, 2.5","1002, 1012, 1.3,1.7, 2.12, 2.5","1004, 1036,1.7, 2.12, 2.5","1002, 1012, 1.3,1.7, 2.12, 2.5","1002, 1012, 1.3,1.7, 2.12, 2.5","1005, 1012, 1013, 1037,1.7, 2.12, 2.5","1011, 1022,1.7, 2.12, 2.5",null,0,0]
[null,null,null,null,null,null,null,null,null,null,null,null,null,null,null,null,0,null,null,null,null,0,"2.12, 2.5","2.11, 2.5, 1.2,1.7, 2.12","1025, 2.12, 2.5","2.9.1, 2.12, 2.5","2.9.1,2.10.1, 2.12, 2.5","1002, 1012, 1.3,1.7, 2.12, 2.5","1002, 1012, 1.3,1.7, 2.12, 2.5","1003, 1024, 1034, 1035,1.7, 2.12, 2.5","1002, 1012, 1.3,1.7, 2.12, 2.5","1002, 1012, 1.3,1.7, 2.12, 2.5","1004, 1036,1.7, 2.12, 2.5","1002, 1012, 1.3,1.7, 2.12, 2.5","1002, 1012, 1.3,1.7, 2.12, 2.5","1005, 1012, 1013, 1037,1.7, 2.12, 2.5","1011, 1022,1.7, 2.12, 2.5",null,0,0]
[null,null,null,null,null,null,null,null,null,null,null,null,null,null,null,null,0,null,null,null,null,0,"2.12, 2.5","2.11, 2.5, 1.2,1.7, 2.12","1025, 2.12, 2.5","2.9.1, 2.12, 2.5","2.9.1,2.10.1, 2.12, 2.5","1002, 1012, 1.3,1.7, 2.12, 2.5","1002, 1012, 1.3,1.7, 2.12, 2.5","1003, 1024, 1034, 1035,1.7, 2.12, 2.5","1002, 1012, 1.3,1.7, 2.12, 2.5","1002, 1012, 1.3,1.7, 2.12, 2.5","1004, 1036,1.7, 2.12, 2.5","1002, 1012, 1.3,1.7, 2.12, 2.5","1002, 1012, 1.3,1.7, 2.12, 2.5","1005, 1012, 1013, 1037,1.7, 2.12, 2.5","1011, 1022,1.7, 2.12, 2.5",null,0,0]
[null,null,null,null,null,null,null,null,null,null,null,null,null,null,null,null,0,null,null,null,null,0,"2.12, 2.5","2.11, 2.5, 1.2,1.7, 2.12","1025, 2.12, 2.5","2.9.1, 2.12, 2.5","2.9.1,2.10.1, 2.12, 2.5","1002, 1012, 1.3,1.7, 2.12, 2.5","1002, 1012, 1.3,1.7, 2.12, 2.5","1003, 1024, 1034, 1035,1.7, 2.12, 2.5","1002, 1012, 1.3,1.7, 2.12, 2.5","1002, 1012, 1.3,1.7, 2.12, 2.5","1004, 1036,1.7, 2.12, 2.5","1002, 1012, 1.3,1.7, 2.12, 2.5","1002, 1012, 1.3,1.7, 2.12, 2.5","1005, 1012, 1013, 1037,1.7, 2.12, 2.5","1011, 1022,1.7, 2.12, 2.5",null,0,0]
[null,null,null,null,null,null,null,null,null,null,null,null,null,null,null,null,0,null,null,null,null,0,"2.12, 2.5","2.11, 2.5, 1.2,1.7, 2.12","1025, 2.12, 2.5","2.9.1, 2.12, 2.5","2.9.1,2.10.1, 2.12, 2.5","1002, 1012, 1.3,1.7, 2.12, 2.5","1002, 1012, 1.3,1.7, 2.12, 2.5","1003, 1024, 1034, 1035,1.7, 2.12, 2.5","1002, 1012, 1.3,1.7, 2.12, 2.5","1002, 1012, 1.3,1.7, 2.12, 2.5","1004, 1036,1.7, 2.12, 2.5","1002, 1012, 1.3,1.7, 2.12, 2.5","1002, 1012, 1.3,1.7, 2.12, 2.5","1005, 1012, 1013, 1037,1.7, 2.12, 2.5","1011, 1022,1.7, 2.12, 2.5",null,0,0]
[null,null,null,null,null,null,null,null,null,null,null,null,null,null,null,null,0,null,null,null,null,0,"2.12, 2.5","2.11, 2.5, 1.2,1.7, 2.12","1025, 2.12, 2.5","2.9.1, 2.12, 2.5","2.9.1,2.10.1, 2.12, 2.5","1002, 1012, 1.3,1.7, 2.12, 2.5","1002, 1012, 1.3,1.7, 2.12, 2.5","1003, 1024, 1034, 1035,1.7, 2.12, 2.5","1002, 1012, 1.3,1.7, 2.12, 2.5","1002, 1012, 1.3,1.7, 2.12, 2.5","1004, 1036,1.7, 2.12, 2.5","1002, 1012, 1.3,1.7, 2.12, 2.5","1002, 1012, 1.3,1.7, 2.12, 2.5","1005, 1012, 1013, 1037,1.7, 2.12, 2.5","1011, 1022,1.7, 2.12, 2.5",null,0,0]
[null,null,null,null,null,null,null,null,null,null,null,null,null,null,null,null,0,null,null,null,null,0,"2.12, 2.5","2.11, 2.5, 1.2,1.7, 2.12","1025, 2.12, 2.5","2.9.1, 2.12, 2.5","2.9.1,2.10.1, 2.12, 2.5","1002, 1012, 1.3,1.7, 2.12, 2.5","1002, 1012, 1.3,1.7, 2.12, 2.5","1003, 1024, 1034, 1035,1.7, 2.12, 2.5","1002, 1012, 1.3,1.7, 2.12, 2.5","1002, 1012, 1.3,1.7, 2.12, 2.5","1004, 1036,1.7, 2.12, 2.5","1002, 1012, 1.3,1.7, 2.12, 2.5","1002, 1012, 1.3,1.7, 2.12, 2.5","1005, 1012, 1013, 1037,1.7, 2.12, 2.5","1011, 1022,1.7, 2.12, 2.5",null,0,0]
[null,null,null,null,null,null,null,null,null,null,null,null,null,null,null,null,0,null,null,null,null,0,"2.12, 2.5","2.11, 2.5, 1.2,1.7, 2.12","1025, 2.12, 2.5","2.9.1, 2.12, 2.5","2.9.1,2.10.1, 2.12, 2.5","1002, 1012, 1.3,1.7, 2.12, 2.5","1002, 1012, 1.3,1.7, 2.12, 2.5","1003, 1024, 1034, 1035,1.7, 2.12, 2.5","1002, 1012, 1.3,1.7, 2.12, 2.5","1002, 1012, 1.3,1.7, 2.12, 2.5","1004, 1036,1.7, 2.12, 2.5","1002, 1012, 1.3,1.7, 2.12, 2.5","1002, 1012, 1.3,1.7, 2.12, 2.5","1005, 1012, 1013, 1037,1.7, 2.12, 2.5","1011, 1022,1.7, 2.12, 2.5",null,0,0]
[null,null,null,null,null,null,null,null,null,null,null,null,null,null,null,null,0,null,null,null,null,0,"2.12, 2.5","2.11, 2.5, 1.2,1.7, 2.12","1025, 2.12, 2.5","2.9.1, 2.12, 2.5","2.9.1,2.10.1, 2.12, 2.5","1002, 1012, 1.3,1.7, 2.12, 2.5","1002, 1012, 1.3,1.7, 2.12, 2.5","1003, 1024, 1034, 1035,1.7, 2.12, 2.5","1002, 1012, 1.3,1.7, 2.12, 2.5","1002, 1012, 1.3,1.7, 2.12, 2.5","1004, 1036,1.7, 2.12, 2.5","1002, 1012, 1.3,1.7, 2.12, 2.5","1002, 1012, 1.3,1.7, 2.12, 2.5","1005, 1012, 1013, 1037,1.7, 2.12, 2.5","1011, 1022,1.7, 2.12, 2.5",null,0,0]
[null,null,null,null,null,null,null,null,null,null,null,null,null,null,null,null,0,null,null,null,null,0,"2.12, 2.5","2.11, 2.5, 1.2,1.7, 2.12","1025, 2.12, 2.5","2.9.1, 2.12, 2.5","2.9.1,2.10.1, 2.12, 2.5","1002, 1012, 1.3,1.7, 2.12, 2.5","1002, 1012, 1.3,1.7, 2.12, 2.5","1003, 1024, 1034, 1035,1.7, 2.12, 2.5","1002, 1012, 1.3,1.7, 2.12, 2.5","1002, 1012, 1.3,1.7, 2.12, 2.5","1004, 1036,1.7, 2.12, 2.5","1002, 1012, 1.3,1.7, 2.12, 2.5","1002, 1012, 1.3,1.7, 2.12, 2.5","1005, 1012, 1013, 1037,1.7, 2.12, 2.5","1011, 1022,1.7, 2.12, 2.5",null,0,0]
[null,null,null,null,null,null,null,null,null,null,null,null,null,null,null,null,0,null,null,null,null,0,"2.12, 2.5","2.11, 2.5, 1.2,1.7, 2.12","1025, 2.12, 2.5","2.9.1, 2.12, 2.5","2.9.1,2.10.1, 2.12, 2.5","1002, 1012, 1.3,1.7, 2.12, 2.5","1002, 1012, 1.3,1.7, 2.12, 2.5","1003, 1024, 1034, 1035,1.7, 2.12, 2.5","1002, 1012, 1.3,1.7, 2.12, 2.5","1002, 1012, 1.3,1.7, 2.12, 2.5","1004, 1036,1.7, 2.12, 2.5","1002, 1012, 1.3,1.7, 2.12, 2.5","1002, 1012, 1.3,1.7, 2.12, 2.5","1005, 1012, 1013, 1037,1.7, 2.12, 2.5","1011, 1022,1.7, 2.12, 2.5",null,0,0]
[null,null,null,null,null,null,null,null,null,null,null,null,null,null,null,null,0,null,null,null,null,0,"2.12, 2.5","2.11, 2.5, 1.2,1.7, 2.12","1025, 2.12, 2.5","2.9.1, 2.12, 2.5","2.9.1,2.10.1, 2.12, 2.5","1002, 1012, 1.3,1.7, 2.12, 2.5","1002, 1012, 1.3,1.7, 2.12, 2.5","1003, 1024, 1034, 1035,1.7, 2.12, 2.5","1002, 1012, 1.3,1.7, 2.12, 2.5","1002, 1012, 1.3,1.7, 2.12, 2.5","1004, 1036,1.7, 2.12, 2.5","1002, 1012, 1.3,1.7, 2.12, 2.5","1002, 1012, 1.3,1.7, 2.12, 2.5","1005, 1012, 1013, 1037,1.7, 2.12, 2.5","1011, 1022,1.7, 2.12, 2.5",null,0,0]
[null,null,null,null,null,null,null,null,null,null,null,null,null,null,null,null,0,null,null,null,null,0,"2.12, 2.5","2.11, 2.5, 1.2,1.7, 2.12","1025, 2.12, 2.5","2.9.1, 2.12, 2.5","2.9.1,2.10.1, 2.12, 2.5","1002, 1012, 1.3,1.7, 2.12, 2.5","1002, 1012, 1.3,1.7, 2.12, 2.5","1003, 1024, 1034, 1035,1.7, 2.12, 2.5","1002, 1012, 1.3,1.7, 2.12, 2.5","1002, 1012, 1.3,1.7, 2.12, 2.5","1004, 1036,1.7, 2.12, 2.5","1002, 1012, 1.3,1.7, 2.12, 2.5","1002, 1012, 1.3,1.7, 2.12, 2.5","1005, 1012, 1013, 1037,1.7, 2.12, 2.5","1011, 1022,1.7, 2.12, 2.5",null,0,0]
[null,null,null,null,null,null,null,null,null,null,null,null,null,null,null,null,0,null,null,null,null,0,"2.12, 2.5","2.11, 2.5, 1.2,1.7, 2.12","1025, 2.12, 2.5","2.9.1, 2.12, 2.5","2.9.1,2.10.1, 2.12, 2.5","1002, 1012, 1.3,1.7, 2.12, 2.5","1002, 1012, 1.3,1.7, 2.12, 2.5","1003, 1024, 1034, 1035,1.7, 2.12, 2.5","1002, 1012, 1.3,1.7, 2.12, 2.5","1002, 1012, 1.3,1.7, 2.12, 2.5","1004, 1036,1.7, 2.12, 2.5","1002, 1012, 1.3,1.7, 2.12, 2.5","1002, 1012, 1.3,1.7, 2.12, 2.5","1005, 1012, 1013, 1037,1.7, 2.12, 2.5","1011, 1022,1.7, 2.12, 2.5",null,0,0]
[null,null,null,null,null,null,null,null,null,null,null,null,null,null,null,null,0,null,null,null,null,0,"2.12, 2.5","2.11, 2.5, 1.2,1.7, 2.12","1025, 2.12, 2.5","2.9.1, 2.12, 2.5","2.9.1,2.10.1, 2.12, 2.5","1002, 1012, 1.3,1.7, 2.12, 2.5","1002, 1012, 1.3,1.7, 2.12, 2.5","1003, 1024, 1034, 1035,1.7, 2.12, 2.5","1002, 1012, 1.3,1.7, 2.12, 2.5","1002, 1012, 1.3,1.7, 2.12, 2.5","1004, 1036,1.7, 2.12, 2.5","1002, 1012, 1.3,1.7, 2.12, 2.5","1002, 1012, 1.3,1.7, 2.12, 2.5","1005, 1012, 1013, 1037,1.7, 2.12, 2.5","1011, 1022,1.7, 2.12, 2.5",null,0,0]
[null,null,null,null,null,null,null,null,null,null,null,null,null,null,null,null,0,null,null,null,null,0,"2.12, 2.5","2.11, 2.5, 1.2,1.7, 2.12","1025, 2.12, 2.5","2.9.1, 2.12, 2.5","2.9.1,2.10.1, 2.12, 2.5","1002, 1012, 1.3,1.7, 2.12, 2.5","1002, 1012, 1.3,1.7, 2.12, 2.5","1003, 1024, 1034, 1035,1.7, 2.12, 2.5","1002, 1012, 1.3,1.7, 2.12, 2.5","1002, 1012, 1.3,1.7, 2.12, 2.5","1004, 1036,1.7, 2.12, 2.5","1002, 1012, 1.3,1.7, 2.12, 2.5","1002, 1012, 1.3,1.7, 2.12, 2.5","1005, 1012, 1013, 1037,1.7, 2.12, 2.5","1011, 1022,1.7, 2.12, 2.5",null,0,0]
[null,null,null,null,null,null,null,null,null,null,null,null,null,null,null,null,0,null,null,null,null,0,"2.12, 2.5","2.11, 2.5, 1.2,1.7, 2.12","1025, 2.12, 2.5","2.9.1, 2.12, 2.5","2.9.1,2.10.1, 2.12, 2.5","1002, 1012, 1.3,1.7, 2.12, 2.5","1002, 1012, 1.3,1.7, 2.12, 2.5","1003, 1024, 1034, 1035,1.7, 2.12, 2.5","1002, 1012, 1.3,1.7, 2.12, 2.5","1002, 1012, 1.3,1.7, 2.12, 2.5","1004, 1036,1.7, 2.12, 2.5","1002, 1012, 1.3,1.7, 2.12, 2.5","1002, 1012, 1.3,1.7, 2.12, 2.5","1005, 1012, 1013, 1037,1.7, 2.12, 2.5","1011, 1022,1.7, 2.12, 2.5",null,0,0]
[null,null,null,null,null,null,null,null,null,null,null,null,null,null,null,null,0,null,null,null,null,0,"2.12, 2.5","2.11, 2.5, 1.2,1.7, 2.12","1025, 2.12, 2.5","2.9.1, 2.12, 2.5","2.9.1,2.10.1, 2.12, 2.5","1002, 1012, 1.3,1.7, 2.12, 2.5","1002, 1012, 1.3,1.7, 2.12, 2.5","1003, 1024, 1034, 1035,1.7, 2.12, 2.5","1002, 1012, 1.3,1.7, 2.12, 2.5","1002, 1012, 1.3,1.7, 2.12, 2.5","1004, 1036,1.7, 2.12, 2.5","1002, 1012, 1.3,1.7, 2.12, 2.5","1002, 1012, 1.3,1.7, 2.12, 2.5","1005, 1012, 1013, 1037,1.7, 2.12, 2.5","1011, 1022,1.7, 2.12, 2.5",null,0,0]
[null,null,null,null,null,null,null,null,null,null,null,null,null,null,null,null,0,null,null,null,null,0,"2.12, 2.5","2.11, 2.5, 1.2,1.7, 2.12","1025, 2.12, 2.5","2.9.1, 2.12, 2.5","2.9.1,2.10.1, 2.12, 2.5","1002, 1012, 1.3,1.7, 2.12, 2.5","1002, 1012, 1.3,1.7, 2.12, 2.5","1003, 1024, 1034, 1035,1.7, 2.12, 2.5","1002, 1012, 1.3,1.7, 2.12, 2.5","1002, 1012, 1.3,1.7, 2.12, 2.5","1004, 1036,1.7, 2.12, 2.5","1002, 1012, 1.3,1.7, 2.12, 2.5","1002, 1012, 1.3,1.7, 2.12, 2.5","1005, 1012, 1013, 1037,1.7, 2.12, 2.5","1011, 1022,1.7, 2.12, 2.5",null,0,0]
[null,null,null,null,null,null,null,null,null,null,null,null,null,null,null,null,0,null,null,null,null,0,"2.12, 2.5","2.11, 2.5, 1.2,1.7, 2.12","1025, 2.12, 2.5","2.9.1, 2.12, 2.5","2.9.1,2.10.1, 2.12, 2.5","1002, 1012, 1.3,1.7, 2.12, 2.5","1002, 1012, 1.3,1.7, 2.12, 2.5","1003, 1024, 1034, 1035,1.7, 2.12, 2.5","1002, 1012, 1.3,1.7, 2.12, 2.5","1002, 1012, 1.3,1.7, 2.12, 2.5","1004, 1036,1.7, 2.12, 2.5","1002, 1012, 1.3,1.7, 2.12, 2.5","1002, 1012, 1.3,1.7, 2.12, 2.5","1005, 1012, 1013, 1037,1.7, 2.12, 2.5","1011, 1022,1.7, 2.12, 2.5",null,0,0]
[null,null,null,null,null,null,null,null,null,null,null,null,null,null,null,null,0,null,null,null,null,0,"2.12, 2.5","2.11, 2.5, 1.2,1.7, 2.12","1025, 2.12, 2.5","2.9.1, 2.12, 2.5","2.9.1,2.10.1, 2.12, 2.5","1002, 1012, 1.3,1.7, 2.12, 2.5","1002, 1012, 1.3,1.7, 2.12, 2.5","1003, 1024, 1034, 1035,1.7, 2.12, 2.5","1002, 1012, 1.3,1.7, 2.12, 2.5","1002, 1012, 1.3,1.7, 2.12, 2.5","1004, 1036,1.7, 2.12, 2.5","1002, 1012, 1.3,1.7, 2.12, 2.5","1002, 1012, 1.3,1.7, 2.12, 2.5","1005, 1012, 1013, 1037,1.7, 2.12, 2.5","1011, 1022,1.7, 2.12, 2.5",null,0,0]
[null,null,null,null,null,null,null,null,null,null,null,null,null,null,null,null,0,null,null,null,null,0,"2.12, 2.5","2.11, 2.5, 1.2,1.7, 2.12","1025, 2.12, 2.5","2.9.1, 2.12, 2.5","2.9.1,2.10.1, 2.12, 2.5","1002, 1012, 1.3,1.7, 2.12, 2.5","1002, 1012, 1.3,1.7, 2.12, 2.5","1003, 1024, 1034, 1035,1.7, 2.12, 2.5","1002, 1012, 1.3,1.7, 2.12, 2.5","1002, 1012, 1.3,1.7, 2.12, 2.5","1004, 1036,1.7, 2.12, 2.5","1002, 1012, 1.3,1.7, 2.12, 2.5","1002, 1012, 1.3,1.7, 2.12, 2.5","1005, 1012, 1013, 1037,1.7, 2.12, 2.5","1011, 1022,1.7, 2.12, 2.5",null,0,0]
[null,null,null,null,null,null,null,null,null,null,null,null,null,null,null,null,0,null,null,null,null,0,"2.12, 2.5","2.11, 2.5, 1.2,1.7, 2.12","1025, 2.12, 2.5","2.9.1, 2.12, 2.5","2.9.1,2.10.1, 2.12, 2.5","1002, 1012, 1.3,1.7, 2.12, 2.5","1002, 1012, 1.3,1.7, 2.12, 2.5","1003, 1024, 1034, 1035,1.7, 2.12, 2.5","1002, 1012, 1.3,1.7, 2.12, 2.5","1002, 1012, 1.3,1.7, 2.12, 2.5","1004, 1036,1.7, 2.12, 2.5","1002, 1012, 1.3,1.7, 2.12, 2.5","1002, 1012, 1.3,1.7, 2.12, 2.5","1005, 1012, 1013, 1037,1.7, 2.12, 2.5","1011, 1022,1.7, 2.12, 2.5",null,0,0]
[null,null,null,null,null,null,null,null,null,null,null,null,null,null,null,null,0,null,null,null,null,0,"2.12, 2.5","2.11, 2.5, 1.2,1.7, 2.12","1025, 2.12, 2.5","2.9.1, 2.12, 2.5","2.9.1,2.10.1, 2.12, 2.5","1002, 1012, 1.3,1.7, 2.12, 2.5","1002, 1012, 1.3,1.7, 2.12, 2.5","1003, 1024, 1034, 1035,1.7, 2.12, 2.5","1002, 1012, 1.3,1.7, 2.12, 2.5","1002, 1012, 1.3,1.7, 2.12, 2.5","1004, 1036,1.7, 2.12, 2.5","1002, 1012, 1.3,1.7, 2.12, 2.5","1002, 1012, 1.3,1.7, 2.12, 2.5","1005, 1012, 1013, 1037,1.7, 2.12, 2.5","1011, 1022,1.7, 2.12, 2.5",null,0,0]
[null,null,null,null,null,null,null,null,null,null,null,null,null,null,null,null,0,null,null,null,null,0,"2.12, 2.5","2.11, 2.5, 1.2,1.7, 2.12","1025, 2.12, 2.5","2.9.1, 2.12, 2.5","2.9.1,2.10.1, 2.12, 2.5","1002, 1012, 1.3,1.7, 2.12, 2.5","1002, 1012, 1.3,1.7, 2.12, 2.5","1003, 1024, 1034, 1035,1.7, 2.12, 2.5","1002, 1012, 1.3,1.7, 2.12, 2.5","1002, 1012, 1.3,1.7, 2.12, 2.5","1004, 1036,1.7, 2.12, 2.5","1002, 1012, 1.3,1.7, 2.12, 2.5","1002, 1012, 1.3,1.7, 2.12, 2.5","1005, 1012, 1013, 1037,1.7, 2.12, 2.5","1011, 1022,1.7, 2.12, 2.5",null,0,0]
[null,null,null,null,null,null,null,null,null,null,null,null,null,null,null,null,0,null,null,null,null,0,"2.12, 2.5","2.11, 2.5, 1.2,1.7, 2.12","1025, 2.12, 2.5","2.9.1, 2.12, 2.5","2.9.1,2.10.1, 2.12, 2.5","1002, 1012, 1.3,1.7, 2.12, 2.5","1002, 1012, 1.3,1.7, 2.12, 2.5","1003, 1024, 1034, 1035,1.7, 2.12, 2.5","1002, 1012, 1.3,1.7, 2.12, 2.5","1002, 1012, 1.3,1.7, 2.12, 2.5","1004, 1036,1.7, 2.12, 2.5","1002, 1012, 1.3,1.7, 2.12, 2.5","1002, 1012, 1.3,1.7, 2.12, 2.5","1005, 1012, 1013, 1037,1.7, 2.12, 2.5","1011, 1022,1.7, 2.12, 2.5",null,0,0]
[null,null,null,null,null,null,null,null,null,null,null,null,null,null,null,null,0,null,null,null,null,0,"2.12, 2.5","2.11, 2.5, 1.2,1.7, 2.12","1025, 2.12, 2.5","2.9.1, 2.12, 2.5","2.9.1,2.10.1, 2.12, 2.5","1002, 1012, 1.3,1.7, 2.12, 2.5","1002, 1012, 1.3,1.7, 2.12, 2.5","1003, 1024, 1034, 1035,1.7, 2.12, 2.5","1002, 1012, 1.3,1.7, 2.12, 2.5","1002, 1012, 1.3,1.7, 2.12, 2.5","1004, 1036,1.7, 2.12, 2.5","1002, 1012, 1.3,1.7, 2.12, 2.5","1002, 1012, 1.3,1.7, 2.12, 2.5","1005, 1012, 1013, 1037,1.7, 2.12, 2.5","1011, 1022,1.7, 2.12, 2.5",null,0,0]
[null,null,null,null,null,null,null,null,null,null,null,null,null,null,null,null,0,null,null,null,null,0,"2.12, 2.5","2.11, 2.5, 1.2,1.7, 2.12","1025, 2.12, 2.5","2.9.1, 2.12, 2.5","2.9.1,2.10.1, 2.12, 2.5","1002, 1012, 1.3,1.7, 2.12, 2.5","1002, 1012, 1.3,1.7, 2.12, 2.5","1003, 1024, 1034, 1035,1.7, 2.12, 2.5","1002, 1012, 1.3,1.7, 2.12, 2.5","1002, 1012, 1.3,1.7, 2.12, 2.5","1004, 1036,1.7, 2.12, 2.5","1002, 1012, 1.3,1.7, 2.12, 2.5","1002, 1012, 1.3,1.7, 2.12, 2.5","1005, 1012, 1013, 1037,1.7, 2.12, 2.5","1011, 1022,1.7, 2.12, 2.5",null,0,0]
[null,null,null,null,null,null,null,null,null,null,null,null,null,null,null,null,0,null,null,null,null,0,"2.12, 2.5","2.11, 2.5, 1.2,1.7, 2.12","1025, 2.12, 2.5","2.9.1, 2.12, 2.5","2.9.1,2.10.1, 2.12, 2.5","1002, 1012, 1.3,1.7, 2.12, 2.5","1002, 1012, 1.3,1.7, 2.12, 2.5","1003, 1024, 1034, 1035,1.7, 2.12, 2.5","1002, 1012, 1.3,1.7, 2.12, 2.5","1002, 1012, 1.3,1.7, 2.12, 2.5","1004, 1036,1.7, 2.12, 2.5","1002, 1012, 1.3,1.7, 2.12, 2.5","1002, 1012, 1.3,1.7, 2.12, 2.5","1005, 1012, 1013, 1037,1.7, 2.12, 2.5","1011, 1022,1.7, 2.12, 2.5",null,0,0]
[null,null,null,null,null,null,null,null,null,null,null,null,null,null,null,null,0,null,null,null,null,0,"2.12, 2.5","2.11, 2.5, 1.2,1.7, 2.12","1025, 2.12, 2.5","2.9.1, 2.12, 2.5","2.9.1,2.10.1, 2.12, 2.5","1002, 1012, 1.3,1.7, 2.12, 2.5","1002, 1012, 1.3,1.7, 2.12, 2.5","1003, 1024, 1034, 1035,1.7, 2.12, 2.5","1002, 1012, 1.3,1.7, 2.12, 2.5","1002, 1012, 1.3,1.7, 2.12, 2.5","1004, 1036,1.7, 2.12, 2.5","1002, 1012, 1.3,1.7, 2.12, 2.5","1002, 1012, 1.3,1.7, 2.12, 2.5","1005, 1012, 1013, 1037,1.7, 2.12, 2.5","1011, 1022,1.7, 2.12, 2.5",null,0,0]
[null,null,null,null,null,null,null,null,null,null,null,null,null,null,null,null,0,null,null,null,null,0,"2.12, 2.5","2.11, 2.5, 1.2,1.7, 2.12","1025, 2.12, 2.5","2.9.1, 2.12, 2.5","2.9.1,2.10.1, 2.12, 2.5","1002, 1012, 1.3,1.7, 2.12, 2.5","1002, 1012, 1.3,1.7, 2.12, 2.5","1003, 1024, 1034, 1035,1.7, 2.12, 2.5","1002, 1012, 1.3,1.7, 2.12, 2.5","1002, 1012, 1.3,1.7, 2.12, 2.5","1004, 1036,1.7, 2.12, 2.5","1002, 1012, 1.3,1.7, 2.12, 2.5","1002, 1012, 1.3,1.7, 2.12, 2.5","1005, 1012, 1013, 1037,1.7, 2.12, 2.5","1011, 1022,1.7, 2.12, 2.5",null,0,0]
[null,null,null,null,null,null,null,null,null,null,null,null,null,null,null,null,0,null,null,null,null,0,"2.12, 2.5","2.11, 2.5, 1.2,1.7, 2.12","1025, 2.12, 2.5","2.9.1, 2.12, 2.5","2.9.1,2.10.1, 2.12, 2.5","1002, 1012, 1.3,1.7, 2.12, 2.5","1002, 1012, 1.3,1.7, 2.12, 2.5","1003, 1024, 1034, 1035,1.7, 2.12, 2.5","1002, 1012, 1.3,1.7, 2.12, 2.5","1002, 1012, 1.3,1.7, 2.12, 2.5","1004, 1036,1.7, 2.12, 2.5","1002, 1012, 1.3,1.7, 2.12, 2.5","1002, 1012, 1.3,1.7, 2.12, 2.5","1005, 1012, 1013, 1037,1.7, 2.12, 2.5","1011, 1022,1.7, 2.12, 2.5",null,0,0]
[null,null,null,null,null,null,null,null,null,null,null,null,null,null,null,null,0,null,null,null,null,0,"2.12, 2.5","2.11, 2.5, 1.2,1.7, 2.12","1025, 2.12, 2.5","2.9.1, 2.12, 2.5","2.9.1,2.10.1, 2.12, 2.5","1002, 1012, 1.3,1.7, 2.12, 2.5","1002, 1012, 1.3,1.7, 2.12, 2.5","1003, 1024, 1034, 1035,1.7, 2.12, 2.5","1002, 1012, 1.3,1.7, 2.12, 2.5","1002, 1012, 1.3,1.7, 2.12, 2.5","1004, 1036,1.7, 2.12, 2.5","1002, 1012, 1.3,1.7, 2.12, 2.5","1002, 1012, 1.3,1.7, 2.12, 2.5","1005, 1012, 1013, 1037,1.7, 2.12, 2.5","1011, 1022,1.7, 2.12, 2.5",null,0,0]
[null,null,null,null,null,null,null,null,null,null,null,null,null,null,null,null,0,null,null,null,null,0,"2.12, 2.5","2.11, 2.5, 1.2,1.7, 2.12","1025, 2.12, 2.5","2.9.1, 2.12, 2.5","2.9.1,2.10.1, 2.12, 2.5","1002, 1012, 1.3,1.7, 2.12, 2.5","1002, 1012, 1.3,1.7, 2.12, 2.5","1003, 1024, 1034, 1035,1.7, 2.12, 2.5","1002, 1012, 1.3,1.7, 2.12, 2.5","1002, 1012, 1.3,1.7, 2.12, 2.5","1004, 1036,1.7, 2.12, 2.5","1002, 1012, 1.3,1.7, 2.12, 2.5","1002, 1012, 1.3,1.7, 2.12, 2.5","1005, 1012, 1013, 1037,1.7, 2.12, 2.5","1011, 1022,1.7, 2.12, 2.5",null,0,0]
[null,null,null,null,null,null,null,null,null,null,null,null,null,null,null,null,0,null,null,null,null,0,"2.12, 2.5","2.11, 2.5, 1.2,1.7, 2.12","1025, 2.12, 2.5","2.9.1, 2.12, 2.5","2.9.1,2.10.1, 2.12, 2.5","1002, 1012, 1.3,1.7, 2.12, 2.5","1002, 1012, 1.3,1.7, 2.12, 2.5","1003, 1024, 1034, 1035,1.7, 2.12, 2.5","1002, 1012, 1.3,1.7, 2.12, 2.5","1002, 1012, 1.3,1.7, 2.12, 2.5","1004, 1036,1.7, 2.12, 2.5","1002, 1012, 1.3,1.7, 2.12, 2.5","1002, 1012, 1.3,1.7, 2.12, 2.5","1005, 1012, 1013, 1037,1.7, 2.12, 2.5","1011, 1022,1.7, 2.12, 2.5",null,0,0]
[null,null,null,null,null,null,null,null,null,null,null,null,null,null,null,null,0,null,null,null,null,0,"2.12, 2.5","2.11, 2.5, 1.2,1.7, 2.12","1025, 2.12, 2.5","2.9.1, 2.12, 2.5","2.9.1,2.10.1, 2.12, 2.5","1002, 1012, 1.3,1.7, 2.12, 2.5","1002, 1012, 1.3,1.7, 2.12, 2.5","1003, 1024, 1034, 1035,1.7, 2.12, 2.5","1002, 1012, 1.3,1.7, 2.12, 2.5","1002, 1012, 1.3,1.7, 2.12, 2.5","1004, 1036,1.7, 2.12, 2.5","1002, 1012, 1.3,1.7, 2.12, 2.5","1002, 1012, 1.3,1.7, 2.12, 2.5","1005, 1012, 1013, 1037,1.7, 2.12, 2.5","1011, 1022,1.7, 2.12, 2.5",null,0,0]
[null,null,null,null,null,null,null,null,null,null,null,null,null,null,null,null,0,null,null,null,null,0,"2.12, 2.5","2.11, 2.5, 1.2,1.7, 2.12","1025, 2.12, 2.5","2.9.1, 2.12, 2.5","2.9.1,2.10.1, 2.12, 2.5","1002, 1012, 1.3,1.7, 2.12, 2.5","1002, 1012, 1.3,1.7, 2.12, 2.5","1003, 1024, 1034, 1035,1.7, 2.12, 2.5","1002, 1012, 1.3,1.7, 2.12, 2.5","1002, 1012, 1.3,1.7, 2.12, 2.5","1004, 1036,1.7, 2.12, 2.5","1002, 1012, 1.3,1.7, 2.12, 2.5","1002, 1012, 1.3,1.7, 2.12, 2.5","1005, 1012, 1013, 1037,1.7, 2.12, 2.5","1011, 1022,1.7, 2.12, 2.5",null,0,0]
[null,null,null,null,null,null,null,null,null,null,null,null,null,null,null,null,0,null,null,null,null,0,"2.12, 2.5","2.11, 2.5, 1.2,1.7, 2.12","1025, 2.12, 2.5","2.9.1, 2.12, 2.5","2.9.1,2.10.1, 2.12, 2.5","1002, 1012, 1.3,1.7, 2.12, 2.5","1002, 1012, 1.3,1.7, 2.12, 2.5","1003, 1024, 1034, 1035,1.7, 2.12, 2.5","1002, 1012, 1.3,1.7, 2.12, 2.5","1002, 1012, 1.3,1.7, 2.12, 2.5","1004, 1036,1.7, 2.12, 2.5","1002, 1012, 1.3,1.7, 2.12, 2.5","1002, 1012, 1.3,1.7, 2.12, 2.5","1005, 1012, 1013, 1037,1.7, 2.12, 2.5","1011, 1022,1.7, 2.12, 2.5",null,0,0]
[null,null,null,null,null,null,null,null,null,null,null,null,null,null,null,null,0,null,null,null,null,0,"2.12, 2.5","2.11, 2.5, 1.2,1.7, 2.12","1025, 2.12, 2.5","2.9.1, 2.12, 2.5","2.9.1,2.10.1, 2.12, 2.5","1002, 1012, 1.3,1.7, 2.12, 2.5","1002, 1012, 1.3,1.7, 2.12, 2.5","1003, 1024, 1034, 1035,1.7, 2.12, 2.5","1002, 1012, 1.3,1.7, 2.12, 2.5","1002, 1012, 1.3,1.7, 2.12, 2.5","1004, 1036,1.7, 2.12, 2.5","1002, 1012, 1.3,1.7, 2.12, 2.5","1002, 1012, 1.3,1.7, 2.12, 2.5","1005, 1012, 1013, 1037,1.7, 2.12, 2.5","1011, 1022,1.7, 2.12, 2.5",null,0,0]
[null,null,null,null,null,null,null,null,null,null,null,null,null,null,null,null,0,null,null,null,null,0,"2.12, 2.5","2.11, 2.5, 1.2,1.7, 2.12","1025, 2.12, 2.5","2.9.1, 2.12, 2.5","2.9.1,2.10.1, 2.12, 2.5","1002, 1012, 1.3,1.7, 2.12, 2.5","1002, 1012, 1.3,1.7, 2.12, 2.5","1003, 1024, 1034, 1035,1.7, 2.12, 2.5","1002, 1012, 1.3,1.7, 2.12, 2.5","1002, 1012, 1.3,1.7, 2.12, 2.5","1004, 1036,1.7, 2.12, 2.5","1002, 1012, 1.3,1.7, 2.12, 2.5","1002, 1012, 1.3,1.7, 2.12, 2.5","1005, 1012, 1013, 1037,1.7, 2.12, 2.5","1011, 1022,1.7, 2.12, 2.5",null,0,0]
[null,null,null,null,null,null,null,null,null,null,null,null,null,null,null,null,0,null,null,null,null,0,"2.12, 2.5","2.11, 2.5, 1.2,1.7, 2.12","1025, 2.12, 2.5","2.9.1, 2.12, 2.5","2.9.1,2.10.1, 2.12, 2.5","1002, 1012, 1.3,1.7, 2.12, 2.5","1002, 1012, 1.3,1.7, 2.12, 2.5","1003, 1024, 1034, 1035,1.7, 2.12, 2.5","1002, 1012, 1.3,1.7, 2.12, 2.5","1002, 1012, 1.3,1.7, 2.12, 2.5","1004, 1036,1.7, 2.12, 2.5","1002, 1012, 1.3,1.7, 2.12, 2.5","1002, 1012, 1.3,1.7, 2.12, 2.5","1005, 1012, 1013, 1037,1.7, 2.12, 2.5","1011, 1022,1.7, 2.12, 2.5",null,0,0]
[null,null,null,null,null,null,null,null,null,null,null,null,null,null,null,null,0,null,null,null,null,0,"2.12, 2.5","2.11, 2.5, 1.2,1.7, 2.12","1025, 2.12, 2.5","2.9.1, 2.12, 2.5","2.9.1,2.10.1, 2.12, 2.5","1002, 1012, 1.3,1.7, 2.12, 2.5","1002, 1012, 1.3,1.7, 2.12, 2.5","1003, 1024, 1034, 1035,1.7, 2.12, 2.5","1002, 1012, 1.3,1.7, 2.12, 2.5","1002, 1012, 1.3,1.7, 2.12, 2.5","1004, 1036,1.7, 2.12, 2.5","1002, 1012, 1.3,1.7, 2.12, 2.5","1002, 1012, 1.3,1.7, 2.12, 2.5","1005, 1012, 1013, 1037,1.7, 2.12, 2.5","1011, 1022,1.7, 2.12, 2.5",null,0,0]
[null,null,null,null,null,null,null,null,null,null,null,null,null,null,null,null,0,null,null,null,null,0,"2.12, 2.5","2.11, 2.5, 1.2,1.7, 2.12","1025, 2.12, 2.5","2.9.1, 2.12, 2.5","2.9.1,2.10.1, 2.12, 2.5","1002, 1012, 1.3,1.7, 2.12, 2.5","1002, 1012, 1.3,1.7, 2.12, 2.5","1003, 1024, 1034, 1035,1.7, 2.12, 2.5","1002, 1012, 1.3,1.7, 2.12, 2.5","1002, 1012, 1.3,1.7, 2.12, 2.5","1004, 1036,1.7, 2.12, 2.5","1002, 1012, 1.3,1.7, 2.12, 2.5","1002, 1012, 1.3,1.7, 2.12, 2.5","1005, 1012, 1013, 1037,1.7, 2.12, 2.5","1011, 1022,1.7, 2.12, 2.5",null,0,0]
[null,null,null,null,null,null,null,null,null,null,null,null,null,null,null,null,0,null,null,null,null,0,"2.12, 2.5","2.11, 2.5, 1.2,1.7, 2.12","1025, 2.12, 2.5","2.9.1, 2.12, 2.5","2.9.1,2.10.1, 2.12, 2.5","1002, 1012, 1.3,1.7, 2.12, 2.5","1002, 1012, 1.3,1.7, 2.12, 2.5","1003, 1024, 1034, 1035,1.7, 2.12, 2.5","1002, 1012, 1.3,1.7, 2.12, 2.5","1002, 1012, 1.3,1.7, 2.12, 2.5","1004, 1036,1.7, 2.12, 2.5","1002, 1012, 1.3,1.7, 2.12, 2.5","1002, 1012, 1.3,1.7, 2.12, 2.5","1005, 1012, 1013, 1037,1.7, 2.12, 2.5","1011, 1022,1.7, 2.12, 2.5",null,0,0]
[null,null,null,null,null,null,null,null,null,null,null,null,null,null,null,null,0,null,null,null,null,0,"2.12, 2.5","2.11, 2.5, 1.2,1.7, 2.12","1025, 2.12, 2.5","2.9.1, 2.12, 2.5","2.9.1,2.10.1, 2.12, 2.5","1002, 1012, 1.3,1.7, 2.12, 2.5","1002, 1012, 1.3,1.7, 2.12, 2.5","1003, 1024, 1034, 1035,1.7, 2.12, 2.5","1002, 1012, 1.3,1.7, 2.12, 2.5","1002, 1012, 1.3,1.7, 2.12, 2.5","1004, 1036,1.7, 2.12, 2.5","1002, 1012, 1.3,1.7, 2.12, 2.5","1002, 1012, 1.3,1.7, 2.12, 2.5","1005, 1012, 1013, 1037,1.7, 2.12, 2.5","1011, 1022,1.7, 2.12, 2.5",null,0,0]
[null,null,null,null,null,null,null,null,null,null,null,null,null,null,null,null,0,null,null,null,null,0,"2.12, 2.5","2.11, 2.5, 1.2,1.7, 2.12","1025, 2.12, 2.5","2.9.1, 2.12, 2.5","2.9.1,2.10.1, 2.12, 2.5","1002, 1012, 1.3,1.7, 2.12, 2.5","1002, 1012, 1.3,1.7, 2.12, 2.5","1003, 1024, 1034, 1035,1.7, 2.12, 2.5","1002, 1012, 1.3,1.7, 2.12, 2.5","1002, 1012, 1.3,1.7, 2.12, 2.5","1004, 1036,1.7, 2.12, 2.5","1002, 1012, 1.3,1.7, 2.12, 2.5","1002, 1012, 1.3,1.7, 2.12, 2.5","1005, 1012, 1013, 1037,1.7, 2.12, 2.5","1011, 1022,1.7, 2.12, 2.5",null,0,0]
[null,null,null,null,null,null,null,null,null,null,null,null,null,null,null,null,0,null,null,null,null,0,"2.12, 2.5","2.11, 2.5, 1.2,1.7, 2.12","1025, 2.12, 2.5","2.9.1, 2.12, 2.5","2.9.1,2.10.1, 2.12, 2.5","1002, 1012, 1.3,1.7, 2.12, 2.5","1002, 1012, 1.3,1.7, 2.12, 2.5","1003, 1024, 1034, 1035,1.7, 2.12, 2.5","1002, 1012, 1.3,1.7, 2.12, 2.5","1002, 1012, 1.3,1.7, 2.12, 2.5","1004, 1036,1.7, 2.12, 2.5","1002, 1012, 1.3,1.7, 2.12, 2.5","1002, 1012, 1.3,1.7, 2.12, 2.5","1005, 1012, 1013, 1037,1.7, 2.12, 2.5","1011, 1022,1.7, 2.12, 2.5",null,0,0]
[null,null,null,null,null,null,null,null,null,null,null,null,null,null,null,null,0,null,null,null,null,0,"2.12, 2.5","2.11, 2.5, 1.2,1.7, 2.12","1025, 2.12, 2.5","2.9.1, 2.12, 2.5","2.9.1,2.10.1, 2.12, 2.5","1002, 1012, 1.3,1.7, 2.12, 2.5","1002, 1012, 1.3,1.7, 2.12, 2.5","1003, 1024, 1034, 1035,1.7, 2.12, 2.5","1002, 1012, 1.3,1.7, 2.12, 2.5","1002, 1012, 1.3,1.7, 2.12, 2.5","1004, 1036,1.7, 2.12, 2.5","1002, 1012, 1.3,1.7, 2.12, 2.5","1002, 1012, 1.3,1.7, 2.12, 2.5","1005, 1012, 1013, 1037,1.7, 2.12, 2.5","1011, 1022,1.7, 2.12, 2.5",null,0,0]
[null,null,null,null,null,null,null,null,null,null,null,null,null,null,null,null,0,null,null,null,null,0,"2.12, 2.5","2.11, 2.5, 1.2,1.7, 2.12","1025, 2.12, 2.5","2.9.1, 2.12, 2.5","2.9.1,2.10.1, 2.12, 2.5","1002, 1012, 1.3,1.7, 2.12, 2.5","1002, 1012, 1.3,1.7, 2.12, 2.5","1003, 1024, 1034, 1035,1.7, 2.12, 2.5","1002, 1012, 1.3,1.7, 2.12, 2.5","1002, 1012, 1.3,1.7, 2.12, 2.5","1004, 1036,1.7, 2.12, 2.5","1002, 1012, 1.3,1.7, 2.12, 2.5","1002, 1012, 1.3,1.7, 2.12, 2.5","1005, 1012, 1013, 1037,1.7, 2.12, 2.5","1011, 1022,1.7, 2.12, 2.5",null,0,0]
[null,null,null,null,null,null,null,null,null,null,null,null,null,null,null,null,0,null,null,null,null,0,"2.12, 2.5","2.11, 2.5, 1.2,1.7, 2.12","1025, 2.12, 2.5","2.9.1, 2.12, 2.5","2.9.1,2.10.1, 2.12, 2.5","1002, 1012, 1.3,1.7, 2.12, 2.5","1002, 1012, 1.3,1.7, 2.12, 2.5","1003, 1024, 1034, 1035,1.7, 2.12, 2.5","1002, 1012, 1.3,1.7, 2.12, 2.5","1002, 1012, 1.3,1.7, 2.12, 2.5","1004, 1036,1.7, 2.12, 2.5","1002, 1012, 1.3,1.7, 2.12, 2.5","1002, 1012, 1.3,1.7, 2.12, 2.5","1005, 1012, 1013, 1037,1.7, 2.12, 2.5","1011, 1022,1.7, 2.12, 2.5",null,0,0]
[null,null,null,null,null,null,null,null,null,null,null,null,null,null,null,null,{"$f":"SUM(J202,M202,P202)","v":0},null,null,null,null,{"$f":"IF(COUNTIF(B202:R202,\"<>\")-1>0,1,0)","v":0},"2.12, 2.5","2.11, 2.5, 1.2,1.7, 2.12","1025, 2.12, 2.5","2.9.1, 2.12, 2.5","2.9.1,2.10.1, 2.12, 2.5","1002, 1012, 1.3,1.7, 2.12, 2.5","1002, 1012, 1.3,1.7, 2.12, 2.5","1003, 1024, 1034, 1035,1.7, 2.12, 2.5","1002, 1012, 1.3,1.7, 2.12, 2.5","1002, 1012, 1.3,1.7, 2.12, 2.5","1004, 1036,1.7, 2.12, 2.5","1002, 1012, 1.3,1.7, 2.12, 2.5","1002, 1012, 1.3,1.7, 2.12, 2.5","1005, 1012, 1013, 1037,1.7, 2.12, 2.5","1011, 1022,1.7, 2.12, 2.5",null,{"$f":"SUM(H202:I202,K202:L202,N202:O202)","v":0},{"$f":"ROUND(H202*5/12+I202*7/12*10000,2)","v":0}]
[null,null,null,null,null,null,null,null,null,null,null,null,null,null,null,null,0,null,null,null,null,0,"2.12, 2.5","2.11, 2.5, 1.2,1.7, 2.12","1025, 2.12, 2.5","2.9.1, 2.12, 2.5","2.9.1,2.10.1, 2.12, 2.5","1002, 1012, 1.3,1.7, 2.12, 2.5","1002, 1012, 1.3,1.7, 2.12, 2.5","1003, 1024, 1034, 1035,1.7, 2.12, 2.5","1002, 1012, 1.3,1.7, 2.12, 2.5","1002, 1012, 1.3,1.7, 2.12, 2.5","1004, 1036,1.7, 2.12, 2.5","1002, 1012, 1.3,1.7, 2.12, 2.5","1002, 1012, 1.3,1.7, 2.12, 2.5","1005, 1012, 1013, 1037,1.7, 2.12, 2.5","1011, 1022,1.7, 2.12, 2.5",null,0,0]
[null,null,null,null,null,null,null,null,null,null,null,null,null,null,null,null,0,null,null,null,null,0,"2.12, 2.5","2.11, 2.5, 1.2,1.7, 2.12","1025, 2.12, 2.5","2.9.1, 2.12, 2.5","2.9.1,2.10.1, 2.12, 2.5","1002, 1012, 1.3,1.7, 2.12, 2.5","1002, 1012, 1.3,1.7, 2.12, 2.5","1003, 1024, 1034, 1035,1.7, 2.12, 2.5","1002, 1012, 1.3,1.7, 2.12, 2.5","1002, 1012, 1.3,1.7, 2.12, 2.5","1004, 1036,1.7, 2.12, 2.5","1002, 1012, 1.3,1.7, 2.12, 2.5","1002, 1012, 1.3,1.7, 2.12, 2.5","1005, 1012, 1013, 1037,1.7, 2.12, 2.5","1011, 1022,1.7, 2.12, 2.5",null,0,0]
[null,null,null,null,null,null,null,null,null,null,null,null,null,null,null,null,0,null,null,null,null,0,"2.12, 2.5","2.11, 2.5, 1.2,1.7, 2.12","1025, 2.12, 2.5","2.9.1, 2.12, 2.5","2.9.1,2.10.1, 2.12, 2.5","1002, 1012, 1.3,1.7, 2.12, 2.5","1002, 1012, 1.3,1.7, 2.12, 2.5","1003, 1024, 1034, 1035,1.7, 2.12, 2.5","1002, 1012, 1.3,1.7, 2.12, 2.5","1002, 1012, 1.3,1.7, 2.12, 2.5","1004, 1036,1.7, 2.12, 2.5","1002, 1012, 1.3,1.7, 2.12, 2.5","1002, 1012, 1.3,1.7, 2.12, 2.5","1005, 1012, 1013, 1037,1.7, 2.12, 2.5","1011, 1022,1.7, 2.12, 2.5",null,0,0]
[null,null,null,null,null,null,null,null,null,null,null,null,null,null,null,null,0,null,null,null,null,0,"2.12, 2.5","2.11, 2.5, 1.2,1.7, 2.12","1025, 2.12, 2.5","2.9.1, 2.12, 2.5","2.9.1,2.10.1, 2.12, 2.5","1002, 1012, 1.3,1.7, 2.12, 2.5","1002, 1012, 1.3,1.7, 2.12, 2.5","1003, 1024, 1034, 1035,1.7, 2.12, 2.5","1002, 1012, 1.3,1.7, 2.12, 2.5","1002, 1012, 1.3,1.7, 2.12, 2.5","1004, 1036,1.7, 2.12, 2.5","1002, 1012, 1.3,1.7, 2.12, 2.5","1002, 1012, 1.3,1.7, 2.12, 2.5","1005, 1012, 1013, 1037,1.7, 2.12, 2.5","1011, 1022,1.7, 2.12, 2.5",null,0,0]
[null,null,null,null,null,null,null,null,null,null,null,null,null,null,null,null,0,null,null,null,null,0,"2.12, 2.5","2.11, 2.5, 1.2,1.7, 2.12","1025, 2.12, 2.5","2.9.1, 2.12, 2.5","2.9.1,2.10.1, 2.12, 2.5","1002, 1012, 1.3,1.7, 2.12, 2.5","1002, 1012, 1.3,1.7, 2.12, 2.5","1003, 1024, 1034, 1035,1.7, 2.12, 2.5","1002, 1012, 1.3,1.7, 2.12, 2.5","1002, 1012, 1.3,1.7, 2.12, 2.5","1004, 1036,1.7, 2.12, 2.5","1002, 1012, 1.3,1.7, 2.12, 2.5","1002, 1012, 1.3,1.7, 2.12, 2.5","1005, 1012, 1013, 1037,1.7, 2.12, 2.5","1011, 1022,1.7, 2.12, 2.5",null,0,0]
[null,null,null,null,null,null,null,null,null,null,null,null,null,null,null,null,0,null,null,null,null,0,"2.12, 2.5","2.11, 2.5, 1.2,1.7, 2.12","1025, 2.12, 2.5","2.9.1, 2.12, 2.5","2.9.1,2.10.1, 2.12, 2.5","1002, 1012, 1.3,1.7, 2.12, 2.5","1002, 1012, 1.3,1.7, 2.12, 2.5","1003, 1024, 1034, 1035,1.7, 2.12, 2.5","1002, 1012, 1.3,1.7, 2.12, 2.5","1002, 1012, 1.3,1.7, 2.12, 2.5","1004, 1036,1.7, 2.12, 2.5","1002, 1012, 1.3,1.7, 2.12, 2.5","1002, 1012, 1.3,1.7, 2.12, 2.5","1005, 1012, 1013, 1037,1.7, 2.12, 2.5","1011, 1022,1.7, 2.12, 2.5",null,0,0]
[null,null,null,null,null,null,null,null,null,null,null,null,null,null,null,null,0,null,null,null,null,0,"2.12, 2.5","2.11, 2.5, 1.2,1.7, 2.12","1025, 2.12, 2.5","2.9.1, 2.12, 2.5","2.9.1,2.10.1, 2.12, 2.5","1002, 1012, 1.3,1.7, 2.12, 2.5","1002, 1012, 1.3,1.7, 2.12, 2.5","1003, 1024, 1034, 1035,1.7, 2.12, 2.5","1002, 1012, 1.3,1.7, 2.12, 2.5","1002, 1012, 1.3,1.7, 2.12, 2.5","1004, 1036,1.7, 2.12, 2.5","1002, 1012, 1.3,1.7, 2.12, 2.5","1002, 1012, 1.3,1.7, 2.12, 2.5","1005, 1012, 1013, 1037,1.7, 2.12, 2.5","1011, 1022,1.7, 2.12, 2.5",null,0,0]

{"sheet":"Early Years Proforma","index":4,"n_rows":131,"n_cols":41,"rows_kept":131,"cut":false,"hidden":false,"merged":[[112,25,112,35],[81,4,81,14],[81,25,81,35],[105,25,105,35],[106,4,106,14],[106,25,106,35],[108,4,108,14],[108,25,108,35],[109,4,109,14],[109,25,109,35],[111,4,111,14],[111,25,111,35],[87,25,87,35],[89,4,89,14],[89,25,89,35],[90,4,90,14],[90,25,90,35],[102,4,102,14],[102,25,102,35],[103,4,103,14],[103,25,103,35],[93,3,93,14],[93,15,93,17],[94,25,94,35],[66,20,67,20],[67,12,67,14],[126,25,126,35],[74,15,74,17],[77,15,77,18],[117,15,117,17],[118,15,118,17],[116,25,116,35],[123,25,123,35],[124,15,124,17],[125,15,125,17],[117,25,117,35],[118,25,118,35],[119,25,119,35],[124,25,124,35],[125,25,125,35],[80,4,80,14],[80,25,80,35],[83,4,83,14],[95,25,95,35],[96,4,96,14],[96,25,96,35],[97,4,97,14],[97,25,97,35],[100,1,100,2],[100,3,100,14],[100,15,100,17],[93,1,93,2],[95,4,95,14],[105,4,105,14],[112,4,112,14],[130,4,130,18],[116,15,116,17],[122,3,122,14],[122,15,122,17],[115,1,115,2],[122,1,122,2],[115,3,115,14],[115,15,115,17],[119,15,119,17],[123,15,123,17],[126,15,126,17],[94,4,94,14],[8,14,8,17],[77,20,78,20],[28,9,28,11],[28,20,29,20],[14,20,15,20],[10,20,11,20],[28,15,28,18],[29,12,29,14],[10,15,10,18],[22,15,22,17],[32,9,32,14],[32,15,32,18],[32,20,33,20],[33,12,33,14],[40,15,40,17],[42,15,42,18],[42,20,43,20],[42,4,43,14],[44,3,44,14],[47,9,47,11],[47,15,47,18],[47,20,48,20],[48,12,48,14],[47,3,48,3],[14,15,14,18],[24,12,24,14],[15,12,15,14],[14,8,15,8],[77,1,78,2],[77,3,78,14],[28,1,29,2],[28,3,29,3],[28,4,29,4],[28,5,28,7],[28,8,29,8],[32,1,33,2],[32,3,33,3],[32,4,33,4],[32,5,32,7],[32,8,33,8],[34,1,34,3],[14,1,15,2],[14,3,15,3],[14,4,15,4],[44,1,44,2],[42,1,43,2],[42,3,43,3],[47,1,48,2],[24,1,24,2],[16,1,16,3],[0,36,0,39],[0,22,1,23],[0,24,1,24],[0,25,1,25],[0,26,0,28],[0,29,1,29],[0,30,0,32],[10,5,10,7],[10,4,11,4],[10,8,11,8],[0,33,0,35],[0,4,1,13],[10,1,11,2],[10,3,11,3],[10,9,10,11],[10,12,10,14],[12,1,12,2],[7,14,7,17],[6,14,6,17],[5,14,5,17],[14,5,14,7],[14,9,14,14],[25,1,25,2],[30,1,30,2],[49,1,49,2],[64,1,64,2],[47,4,48,4],[47,5,47,7],[47,8,48,8],[51,9,51,14],[51,15,51,18],[62,1,63,2],[62,3,63,3],[62,4,63,4],[62,5,62,7],[62,8,63,8],[62,9,62,11],[62,15,62,18],[63,12,63,14],[83,25,83,35],[84,4,84,14],[84,25,84,35],[86,4,86,14],[86,25,86,35],[87,4,87,14],[51,20,52,20],[52,12,52,14],[53,1,53,3],[51,1,52,2],[51,3,52,3],[51,4,52,4],[51,5,51,7],[51,8,52,8],[59,15,59,17],[68,1,68,3],[62,20,63,20],[66,1,67,2],[66,3,67,3],[66,4,67,4],[66,5,66,7],[66,8,67,8],[66,9,66,14],[66,15,66,18]]}
[null,"S251 Budget 2025-26",null,null,"PLEASE ENABLE MACROS BEFORE ENTERING DATA",null,null,null,null,null,null,null,null,null,null,null,null,null,null,null,null,null,"EYSFF (3 & 4 year olds): \nBase rate",null,"Row No.","Description","Unit Value (£)",null,null,"Unit\nApplied","Number of Units (Universal 15 hours)",null,null,"Number of Units (Additional 15 hours)",null,null,"Anticipated Budget (£)"]
[null,"Early Years Proforma Table",null,null,null,null,null,null,null,null,null,null,null,null,null,null,null,null,null,null,null,null,null,null,null,null,"PVI","Nursery School","Primary Nursery Class",null,"PVI","Nursery School","Primary Nursery Class","PVI","Nursery School","Primary Nursery Class","PVI","Nursery School","Primary Nursery Class","TOTAL","Is Data Present on Row?"]
[null,null,null,null,null,null,null,null,null,null,null,null,null,null,null,null,null,null,"EYP Errors:",null,null,null,null,null,"Count of headings:",{"$f":"COUNTIF(U:U,\"Error Cell Reference and Description\")","v":17}]
[null,null,null,null,null,null,null,null,null,null,null,null,null,null,null,null,null,null,null,null,null,null,null,null,"Count of cells with errors:",{"$f":"COUNTIF(U:U,\"<>\")-Z3","v":0}]
[null,null,null,null,null,null,null,null,null,null,null,null,null,null,null,null,null,null,null,null,"Error Cell Reference and Description"]
[null,null,null,null,null,null,null,null,null,null,null,null,null,null,"Pass-through rate for 3 & 4 Year Olds:     ",null,null,null,{"$f":"IF(AND(LANumber<>\"\",LANumber<> 201,LANumber<> 420,SUM(Total1a)<>0),(SUM(Total1, Total2, Total3, Total11a, Total12a)-VLOOKUP(LANumber,'Admin-Lists'!A:F,4,FALSE))/SUM(Total1a)/VLOOKUP(LANumber,'Admin-Lists'!A:F,3,FALSE),\"\")","v":""},null,null,null,null,null,null,null,null,null,null,null,null,null,null,null,null,null,null,null,null,1023]
[null,null,null,null,null,null,null,null,null,null,null,null,null,null,"Pass-through rate for 2 Year Olds - Families receiving additional support:     ",null,null,null,{"$f":"IF(AND(LANumber<>\"\",LANumber<> 201,LANumber<> 420,SUM(Total4a)<>0),(SUM(Total4, Total5, Total11b, Total12b))/SUM(Total4a)/VLOOKUP(LANumber,'Admin-Lists'!A:F,5,FALSE),\"\")","v":""},null,null,null,null,null,null,null,null,null,null,null,null,null,null,null,null,null,null,null,null,1023]
[null,null,null,null,null,null,null,null,null,null,null,null,null,null,"Pass-through rate for 2 Year Olds - Working Parents:     ",null,null,null,{"$f":"IF(AND(LANumber<>\"\",LANumber<> 201,LANumber<> 420,SUM(Total7a)<>0),(SUM(Total7, Total8, Total11c, Total12c))/SUM(Total7a)/VLOOKUP(LANumber,'Admin-Lists'!A:F,5,FALSE),\"\")","v":""},null,null,null,null,null,null,null,null,null,null,null,null,null,null,null,null,null,null,null,null,1023]
[null,null,null,null,null,null,null,null,null,null,null,null,null,null,"Pass-through rate for 9 Month to 2 Year Olds - Working Parents:     ",null,null,null,{"$f":"IF(AND(LANumber<>\"\",LANumber<> 201,LANumber<> 420,SUM(Total9a)<>0),(SUM(Total9, Total10, Total11d, Total12d))/SUM(Total9a)/VLOOKUP(LANumber,'Admin-Lists'!A:F,6,FALSE),\"\")","v":""},null,null,null,null,null,null,null,null,null,null,null,null,null,null,null,null,null,null,null,null,1023]
[]
[null,"(3 & 4 Year Olds): \nBase Rate",null,"Row No.","Description\n(Max 250 characters)","Unit Value (£)",null,null,"Unit\nApplied","Number of Units (Universal 15 hours)",null,null,"Number of Units (Additional 15 hours)",null,null,"Anticipated Budget (£)",null,null,null,null,"Error Cell Reference and Description"]
[null,null,null,null,null,"PVI","Nursery School","Primary Nursery Class",null,"PVI","Nursery School","Primary Nursery Class","PVI","Nursery School","Primary Nursery Class","PVI","Nursery School","Primary Nursery Class","TOTAL"]
["EY1","1. Base Rate(s) per hour, per provider type  ",null,1,null,null,null,null,null,null,null,null,null,null,null,{"$f":"IF(AND(F13=\"\",J13=\"\",M13=\"\"),\"\",F13*(J13+M13))","v":""},{"$f":"IF(AND(G13=\"\",K13=\"\",N13=\"\"),\"\",G13*(K13+N13))","v":""},{"$f":"IF(AND(H13=\"\",L13=\"\",O13=\"\"),\"\",H13*(L13+O13))","v":""},{"$f":"IF(AND(P13=\"\",Q13=\"\",R13=\"\"),\"\",SUM(P13:R13))","v":""},null,null,null,1.1000000000000001,null,1.1000000000000001,"5.0.13, 5.0.14, 1009, 1010, LENGTH","1.3, 5.0.0, 5.07, 5.0.8, 5.0.11, 1038, 1039","1.3, 5.0.0, 5.07, 5.0.8, 5.0.11, 1038, 1039","1.3, 5.0.0, 5.07, 5.0.8, 5.0.11, 1038, 1039","5.0.0, 5.07,  5.0.11, 5.0.12, 1039","1.3, 5.0.0,5.0.12, 1040, 1039","1.3, 5.0.0,5.0.12, 1040, 1039","1.3, 5.0.0,5.0.12, 1040, 1039","1.3, 5.0.0,5.0.12, 1040, 1039","1.3, 5.0.0,5.0.12, 1040, 1039","1.3, 5.0.0,5.0.12, 1040, 1039",1.3,1.3,1.3,1.3,{"$f":"IF(F13&G13&H13&I13&J13&K13&L13&M13&N13&O13&P13&Q13&R13&S13=\"\",0,1)","v":0}]
[null,null,"End of section 1"]
[null,"(3 & 4 Year Olds):\nOther Formula Factors",null,null,"Description\n(Max 250 characters)","Unit Value (£)",null,null,"Unit\nApplied","Number of Units (Universal & Additional 15 hours)",null,null,null,null,null,"Anticipated Budget (£)",null,null,null,null,"Error Cell Reference and Description"]
[null,null,null,null,null,"PVI","Nursery School","Primary Nursery Class",null,"PVI","Nursery School","Primary Nursery Class","Not used",null,null,"PVI","Nursery School","Primary Nursery Class","TOTAL"]
[null,"2. Supplements (please provide in written format a short explanation of your supplement payments)"]
["EY2a",null,"(a) Deprivation",1,null,null,null,null,null,null,null,null,null,null,null,{"$f":"IF(AND(F18=\"\",J18=\"\",M18=\"\"),\"\",F18*(J18+M18))","v":""},{"$f":"IF(AND(G18=\"\",K18=\"\",N18=\"\"),\"\",G18*(K18+N18))","v":""},{"$f":"IF(AND(H18=\"\",L18=\"\",O18=\"\"),\"\",H18*(L18+O18))","v":""},{"$f":"IF(AND(P18=\"\",Q18=\"\",R18=\"\"),\"\",SUM(P18:R18))","v":""},null,null,null,1.1000000000000001,null,1.1000000000000001,"5.0.13, 5.0.14, 1009, 1010, LENGTH","1.3, 5.0.0, 5.07, 5.0.8, 5.0.11, 1038, 1039","1.3, 5.0.0, 5.07, 5.0.8, 5.0.11, 1038, 1039","1.3, 5.0.0, 5.07, 5.0.8, 5.0.11, 1038, 1039","5.0.0, 5.07,  5.0.11, 5.0.12, 1039","1.3, 5.0.0,5.0.12, 1040, 1039","1.3, 5.0.0,5.0.12, 1040, 1039","1.3, 5.0.0,5.0.12, 1040, 1039","1.3, 5.0.0,5.0.12, 1040, 1039","1.3, 5.0.0,5.0.12, 1040, 1039","1.3, 5.0.0,5.0.12, 1040, 1039",1.3,1.3,1.3,1.3,{"$f":"IF(F18&G18&H18&I18&J18&K18&L18&M18&N18&O18&P18&Q18&R18&S18=\"\",0,1)","v":0}]
["EY2b",null,"(b) Quality",1,null,null,null,null,null,null,null,null,null,null,null,{"$f":"IF(AND(F19=\"\",J19=\"\",M19=\"\"),\"\",F19*(J19+M19))","v":""},{"$f":"IF(AND(G19=\"\",K19=\"\",N19=\"\"),\"\",G19*(K19+N19))","v":""},{"$f":"IF(AND(H19=\"\",L19=\"\",O19=\"\"),\"\",H19*(L19+O19))","v":""},{"$f":"IF(AND(P19=\"\",Q19=\"\",R19=\"\"),\"\",SUM(P19:R19))","v":""},null,null,null,1.1000000000000001,null,1.1000000000000001,"5.0.13, 5.0.14, 1009, 1010, LENGTH","1.3, 5.0.0, 5.07, 5.0.8, 5.0.11, 1038, 1039","1.3, 5.0.0, 5.07, 5.0.8, 5.0.11, 1038, 1039","1.3, 5.0.0, 5.07, 5.0.8, 5.0.11, 1038, 1039","5.0.0, 5.07,  5.0.11, 5.0.12, 1039","1.3, 5.0.0,5.0.12, 1040, 1039","1.3, 5.0.0,5.0.12, 1040, 1039","1.3, 5.0.0,5.0.12, 1040, 1039","1.3, 5.0.0,5.0.12, 1040, 1039","1.3, 5.0.0,5.0.12, 1040, 1039","1.3, 5.0.0,5.0.12, 1040, 1039",1.3,1.3,1.3,1.3,{"$f":"IF(F19&G19&H19&I19&J19&K19&L19&M19&N19&O19&P19&Q19&R19&S19=\"\",0,1)","v":0}]
["EY2c",null,"(c) Flexibility",1,null,null,null,null,null,null,null,null,null,null,null,{"$f":"IF(AND(F20=\"\",J20=\"\",M20=\"\"),\"\",F20*(J20+M20))","v":""},{"$f":"IF(AND(G20=\"\",K20=\"\",N20=\"\"),\"\",G20*(K20+N20))","v":""},{"$f":"IF(AND(H20=\"\",L20=\"\",O20=\"\"),\"\",H20*(L20+O20))","v":""},{"$f":"IF(AND(P20=\"\",Q20=\"\",R20=\"\"),\"\",SUM(P20:R20))","v":""},null,null,null,1.1000000000000001,null,1.1000000000000001,"5.0.13, 5.0.14, 1009, 1010, LENGTH","1.3, 5.0.0, 5.07, 5.0.8, 5.0.11, 1038, 1039","1.3, 5.0.0, 5.07, 5.0.8, 5.0.11, 1038, 1039","1.3, 5.0.0, 5.07, 5.0.8, 5.0.11, 1038, 1039","5.0.0, 5.07,  5.0.11, 5.0.12, 1039","1.3, 5.0.0,5.0.12, 1040, 1039","1.3, 5.0.0,5.0.12, 1040, 1039","1.3, 5.0.0,5.0.12, 1040, 1039","1.3, 5.0.0,5.0.12, 1040, 1039","1.3, 5.0.0,5.0.12, 1040, 1039","1.3, 5.0.0,5.0.12, 1040, 1039",1.3,1.3,1.3,1.3,{"$f":"IF(F20&G20&H20&I20&J20&K20&L20&M20&N20&O20&P20&Q20&R20&S20=\"\",0,1)","v":0}]
["EY2d",null,"(d) Rurality / Sparsity",1,null,null,null,null,null,null,null,null,null,null,null,{"$f":"IF(AND(F21=\"\",J21=\"\",M21=\"\"),\"\",F21*(J21+M21))","v":""},{"$f":"IF(AND(G21=\"\",K21=\"\",N21=\"\"),\"\",G21*(K21+N21))","v":""},{"$f":"IF(AND(H21=\"\",L21=\"\",O21=\"\"),\"\",H21*(L21+O21))","v":""},{"$f":"IF(AND(P21=\"\",Q21=\"\",R21=\"\"),\"\",SUM(P21:R21))","v":""},null,null,null,1.1000000000000001,null,1.1000000000000001,"5.0.13, 5.0.14, 1009, 1010, LENGTH","1.3, 5.0.0, 5.07, 5.0.8, 5.0.11, 1038, 1039","1.3, 5.0.0, 5.07, 5.0.8, 5.0.11, 1038, 1039","1.3, 5.0.0, 5.07, 5.0.8, 5.0.11, 1038, 1039","5.0.0, 5.07,  5.0.11, 5.0.12, 1039","1.3, 5.0.0,5.0.12, 1040, 1039","1.3, 5.0.0,5.0.12, 1040, 1039","1.3, 5.0.0,5.0.12, 1040, 1039","1.3, 5.0.0,5.0.12, 1040, 1039","1.3, 5.0.0,5.0.12, 1040, 1039","1.3, 5.0.0,5.0.12, 1040, 1039",1.3,1.3,1.3,1.3,{"$f":"IF(F21&G21&H21&I21&J21&K21&L21&M21&N21&O21&P21&Q21&R21&S21=\"\",0,1)","v":0}]
["EY2e",null,"(e) EAL",1,null,null,null,null,null,null,null,null,null,null,null,{"$f":"IF(AND(F22=\"\",J22=\"\",M22=\"\"),\"\",F22*(J22+M22))","v":""},{"$f":"IF(AND(G22=\"\",K22=\"\",N22=\"\"),\"\",G22*(K22+N22))","v":""},{"$f":"IF(AND(H22=\"\",L22=\"\",O22=\"\"),\"\",H22*(L22+O22))","v":""},{"$f":"IF(AND(P22=\"\",Q22=\"\",R22=\"\"),\"\",SUM(P22:R22))","v":""},null,null,null,1.1000000000000001,null,1.1000000000000001,"5.0.13, 5.0.14, 1009, 1010, LENGTH","1.3, 5.0.0, 5.07, 5.0.8, 5.0.11, 1038, 1039","1.3, 5.0.0, 5.07, 5.0.8, 5.0.11, 1038, 1039","1.3, 5.0.0, 5.07, 5.0.8, 5.0.11, 1038, 1039","5.0.0, 5.07,  5.0.11, 5.0.12, 1039","1.3, 5.0.0,5.0.12, 1040, 1039","1.3, 5.0.0,5.0.12, 1040, 1039","1.3, 5.0.0,5.0.12, 1040, 1039","1.3, 5.0.0,5.0.12, 1040, 1039","1.3, 5.0.0,5.0.12, 1040, 1039","1.3, 5.0.0,5.0.12, 1040, 1039",1.3,1.3,1.3,1.3,{"$f":"IF(F22&G22&H22&I22&J22&K22&L22&M22&N22&O22&P22&Q22&R22&S22=\"\",0,1)","v":0}]
[null,null,null,null,null,null,null,null,null,null,null,null,null,null,null,"Funding provided through supplements:",null,null,{"$f":"IF(SUM(Total1,Total2)<>0, SUM(Total2)/SUM(Total1,Total2), 0)","v":0}]
[]
[null,null,null,null,"Description\n(Max 250 characters)","PVI","Nursery School","Primary Nursery Class","Unit\nApplied","PVI","Nursery School","Primary Nursery Class","Not used",null,null,"PVI","Nursery School","Primary Nursery Class","TOTAL",null,"Error Cell Reference and Description"]
["EY3","3. Maintained nursery school (MNS) lump sums",null,1,null,null,null,null,null,null,null,null,null,null,null,null,{"$f":"IF(AND(G26=\"\",K26=\"\",N26=\"\"),\"\",G26*(K26+N26))","v":""},null,{"$f":"IF(AND(P26=\"\",Q26=\"\",R26=\"\"),\"\",SUM(P26:R26))","v":""},null,null,null,1.1000000000000001,null,1.1000000000000001,"5.0.13, 5.0.14, 1009, 1010, LENGTH","1.3, 5.0.0, 5.07, 5.0.8, 5.0.11, 1038, 1039","1.3, 5.0.0, 5.07, 5.0.8, 5.0.11, 1038, 1039","1.3, 5.0.0, 5.07, 5.0.8, 5.0.11, 1038, 1039","5.0.0, 5.07,  5.0.11, 5.0.12, 1039","1.3, 5.0.0,5.0.12, 1040, 1039","1.3, 5.0.0,5.0.12, 1040, 1039","1.3, 5.0.0,5.0.12, 1040, 1039","1.3, 5.0.0,5.0.12, 1040, 1039","1.3, 5.0.0,5.0.12, 1040, 1039","1.3, 5.0.0,5.0.12, 1040, 1039",1.3,1.3,1.3,1.3,{"$f":"IF(F26&G26&H26&I26&J26&K26&L26&M26&N26&O26&P26&Q26&R26&S26=\"\",0,1)","v":0}]
[null,null,"End of Section 3 ",null,"Description",null,null,null,null,null,null,null,null,null,null,null,null,"TOTAL FUNDING FOR EARLY YEARS SINGLE FUNDING FORMULA (3 & 4 YEAR OLDS):",{"$f":"SUM(Total1)+SUM(Total2)+SUM(Total3)","v":0}]
[]
[null,"2 Year Olds - Families receiving additional support:     \nBase Rate",null,null,"Description\n(Max 250 characters)","Unit Value (£)",null,null,"Unit\nApplied","Number of Units",null,null,null,null,null,"Anticipated Budget (£)",null,null,null,null,"Error Cell Reference and Description"]
[null,null,null,null,null,"PVI","Nursery School","Primary Nursery Class",null,"PVI","Nursery School","Primary Nursery Class","Not used",null,null,"PVI","Nursery School","Primary Nursery Class","TOTAL"]
["EY4","4. Base Rate(s) per hour, per provider type",null,1,null,null,null,null,null,null,null,null,null,null,null,{"$f":"IF(AND(F31=\"\",J31=\"\",K31=\"\"),\"\",F31*J31)","v":""},{"$f":"IF(AND(G31=\"\",K31=\"\",L31=\"\"),\"\",G31*K31)","v":""},{"$f":"IF(AND(H31=\"\",L31=\"\",O31=\"\"),\"\",H31*(L31+O31))","v":""},{"$f":"IF(AND(P31=\"\",Q31=\"\",R31=\"\"),\"\",SUM(P31:R31))","v":""},null,null,null,1.1000000000000001,null,1.1000000000000001,"5.0.13, 5.0.14, 1009, 1010, LENGTH","1.3, 5.0.0, 5.07, 5.0.8, 5.0.11, 1038, 1039","1.3, 5.0.0, 5.07, 5.0.8, 5.0.11, 1038, 1039","1.3, 5.0.0, 5.07, 5.0.8, 5.0.11, 1038, 1039","5.0.0, 5.07,  5.0.11, 5.0.12, 1039","1.3, 5.0.0,5.0.12, 1040, 1039","1.3, 5.0.0,5.0.12, 1040, 1039","1.3, 5.0.0,5.0.12, 1040, 1039","1.3, 5.0.0,5.0.12, 1040, 1039","1.3, 5.0.0,5.0.12, 1040, 1039","1.3, 5.0.0,5.0.12, 1040, 1039",1.3,1.3,1.3,1.3,{"$f":"IF(F31&G31&H31&I31&J31&K31&L31&M31&N31&O31&P31&Q31&R31&S31=\"\",0,1)","v":0}]
[null,null,"End of section 1"]
[null,"2 Year Olds - Families receiving additional support:     \nOther Formula Factors",null,null,"Description\n(Max 250 characters)","Unit Value (£)",null,null,"Unit\nApplied","Number of Units",null,null,null,null,null,"Anticipated Budget (£)",null,null,null,null,"Error Cell Reference and Description"]
[null,null,null,null,null,"PVI","Nursery School","Primary Nursery Class",null,"PVI","Nursery School","Primary Nursery Class","Not used",null,null,"PVI","Nursery School","Primary Nursery Class","TOTAL"]
[null,"5. Supplements (please provide in written format a short explanation of your supplement payments)"]
["EY5a",null,"(a) Deprivation",1,null,null,null,null,null,null,null,null,null,null,null,{"$f":"IF(AND(F36=\"\",J36=\"\",M36=\"\"),\"\",F36*(J36+M36))","v":""},{"$f":"IF(AND(G36=\"\",K36=\"\",N36=\"\"),\"\",G36*(K36+N36))","v":""},{"$f":"IF(AND(H36=\"\",L36=\"\",O36=\"\"),\"\",H36*(L36+O36))","v":""},{"$f":"IF(AND(P36=\"\",Q36=\"\",R36=\"\"),\"\",SUM(P36:R36))","v":""},null,null,null,1.1000000000000001,null,1.1000000000000001,"5.0.13, 5.0.14, 1009, 1010, LENGTH","1.3, 5.0.0, 5.07, 5.0.8, 5.0.11, 1038, 1039","1.3, 5.0.0, 5.07, 5.0.8, 5.0.11, 1038, 1039","1.3, 5.0.0, 5.07, 5.0.8, 5.0.11, 1038, 1039","5.0.0, 5.07,  5.0.11, 5.0.12, 1039","1.3, 5.0.0,5.0.12, 1040, 1039","1.3, 5.0.0,5.0.12, 1040, 1039","1.3, 5.0.0,5.0.12, 1040, 1039","1.3, 5.0.0,5.0.12, 1040, 1039","1.3, 5.0.0,5.0.12, 1040, 1039","1.3, 5.0.0,5.0.12, 1040, 1039",1.3,1.3,1.3,1.3,{"$f":"IF(F36&G36&H36&I36&J36&K36&L36&M36&N36&O36&P36&Q36&R36&S36=\"\",0,1)","v":0}]
["EY5b",null,"(b) Quality",1,null,null,null,null,null,null,null,null,null,null,null,{"$f":"IF(AND(F37=\"\",J37=\"\",M37=\"\"),\"\",F37*(J37+M37))","v":""},{"$f":"IF(AND(G37=\"\",K37=\"\",N37=\"\"),\"\",G37*(K37+N37))","v":""},{"$f":"IF(AND(H37=\"\",L37=\"\",O37=\"\"),\"\",H37*(L37+O37))","v":""},{"$f":"IF(AND(P37=\"\",Q37=\"\",R37=\"\"),\"\",SUM(P37:R37))","v":""},null,null,null,1.1000000000000001,null,1.1000000000000001,"5.0.13, 5.0.14, 1009, 1010, LENGTH","1.3, 5.0.0, 5.07, 5.0.8, 5.0.11, 1038, 1039","1.3, 5.0.0, 5.07, 5.0.8, 5.0.11, 1038, 1039","1.3, 5.0.0, 5.07, 5.0.8, 5.0.11, 1038, 1039","5.0.0, 5.07,  5.0.11, 5.0.12, 1039","1.3, 5.0.0,5.0.12, 1040, 1039","1.3, 5.0.0,5.0.12, 1040, 1039","1.3, 5.0.0,5.0.12, 1040, 1039","1.3, 5.0.0,5.0.12, 1040, 1039","1.3, 5.0.0,5.0.12, 1040, 1039","1.3, 5.0.0,5.0.12, 1040, 1039",1.3,1.3,1.3,1.3,{"$f":"IF(F37&G37&H37&I37&J37&K37&L37&M37&N37&O37&P37&Q37&R37&S37=\"\",0,1)","v":0}]
["EY5c",null,"(c) Flexibility",1,null,null,null,null,null,null,null,null,null,null,null,{"$f":"IF(AND(F38=\"\",J38=\"\",M38=\"\"),\"\",F38*(J38+M38))","v":""},{"$f":"IF(AND(G38=\"\",K38=\"\",N38=\"\"),\"\",G38*(K38+N38))","v":""},{"$f":"IF(AND(H38=\"\",L38=\"\",O38=\"\"),\"\",H38*(L38+O38))","v":""},{"$f":"IF(AND(P38=\"\",Q38=\"\",R38=\"\"),\"\",SUM(P38:R38))","v":""},null,null,null,1.1000000000000001,null,1.1000000000000001,"5.0.13, 5.0.14, 1009, 1010, LENGTH","1.3, 5.0.0, 5.07, 5.0.8, 5.0.11, 1038, 1039","1.3, 5.0.0, 5.07, 5.0.8, 5.0.11, 1038, 1039","1.3, 5.0.0, 5.07, 5.0.8, 5.0.11, 1038, 1039","5.0.0, 5.07,  5.0.11, 5.0.12, 1039","1.3, 5.0.0,5.0.12, 1040, 1039","1.3, 5.0.0,5.0.12, 1040, 1039","1.3, 5.0.0,5.0.12, 1040, 1039","1.3, 5.0.0,5.0.12, 1040, 1039","1.3, 5.0.0,5.0.12, 1040, 1039","1.3, 5.0.0,5.0.12, 1040, 1039",1.3,1.3,1.3,1.3,{"$f":"IF(F38&G38&H38&I38&J38&K38&L38&M38&N38&O38&P38&Q38&R38&S38=\"\",0,1)","v":0}]
["EY5d",null,"(d) Rurality / Sparsity",1,null,null,null,null,null,null,null,null,null,null,null,{"$f":"IF(AND(F39=\"\",J39=\"\",M39=\"\"),\"\",F39*(J39+M39))","v":""},{"$f":"IF(AND(G39=\"\",K39=\"\",N39=\"\"),\"\",G39*(K39+N39))","v":""},{"$f":"IF(AND(H39=\"\",L39=\"\",O39=\"\"),\"\",H39*(L39+O39))","v":""},{"$f":"IF(AND(P39=\"\",Q39=\"\",R39=\"\"),\"\",SUM(P39:R39))","v":""},null,null,null,1.1000000000000001,null,1.1000000000000001,"5.0.13, 5.0.14, 1009, 1010, LENGTH","1.3, 5.0.0, 5.07, 5.0.8, 5.0.11, 1038, 1039","1.3, 5.0.0, 5.07, 5.0.8, 5.0.11, 1038, 1039","1.3, 5.0.0, 5.07, 5.0.8, 5.0.11, 1038, 1039","5.0.0, 5.07,  5.0.11, 5.0.12, 1039","1.3, 5.0.0,5.0.12, 1040, 1039","1.3, 5.0.0,5.0.12, 1040, 1039","1.3, 5.0.0,5.0.12, 1040, 1039","1.3, 5.0.0,5.0.12, 1040, 1039","1.3, 5.0.0,5.0.12, 1040, 1039","1.3, 5.0.0,5.0.12, 1040, 1039",1.3,1.3,1.3,1.3,{"$f":"IF(F39&G39&H39&I39&J39&K39&L39&M39&N39&O39&P39&Q39&R39&S39=\"\",0,1)","v":0}]
["EY5e",null,"(e) EAL",1,null,null,null,null,null,null,null,null,null,null,null,{"$f":"IF(AND(F40=\"\",J40=\"\",M40=\"\"),\"\",F40*(J40+M40))","v":""},{"$f":"IF(AND(G40=\"\",K40=\"\",N40=\"\"),\"\",G40*(K40+N40))","v":""},{"$f":"IF(AND(H40=\"\",L40=\"\",O40=\"\"),\"\",H40*(L40+O40))","v":""},{"$f":"IF(AND(P40=\"\",Q40=\"\",R40=\"\"),\"\",SUM(P40:R40))","v":""},null,null,null,1.1000000000000001,null,1.1000000000000001,"5.0.13, 5.0.14, 1009, 1010, LENGTH","1.3, 5.0.0, 5.07, 5.0.8, 5.0.11, 1038, 1039","1.3, 5.0.0, 5.07, 5.0.8, 5.0.11, 1038, 1039","1.3, 5.0.0, 5.07, 5.0.8, 5.0.11, 1038, 1039","5.0.0, 5.07,  5.0.11, 5.0.12, 1039","1.3, 5.0.0,5.0.12, 1040, 1039","1.3, 5.0.0,5.0.12, 1040, 1039","1.3, 5.0.0,5.0.12, 1040, 1039","1.3, 5.0.0,5.0.12, 1040, 1039","1.3, 5.0.0,5.0.12, 1040, 1039","1.3, 5.0.0,5.0.12, 1040, 1039",1.3,1.3,1.3,1.3,{"$f":"IF(F40&G40&H40&I40&J40&K40&L40&M40&N40&O40&P40&Q40&R40&S40=\"\",0,1)","v":0}]
[null,null,null,null,null,null,null,null,null,null,null,null,null,null,null,"Funding provided through supplements:",null,null,{"$f":"IF(SUM(Total4,Total5)<>0, SUM(Total5)/SUM(Total4,Total5), 0)","v":0}]
[]
[null,null,null,null,null,null,null,null,null,null,null,null,null,null,null,"Anticipated Budget (£)",null,null,null,null,"Error Cell Reference and Description"]
[null,null,null,null,null,null,null,null,null,null,null,null,null,null,null,"PVI","Nursery School","Primary Nursery Class","TOTAL"]
["EY6","6. Total 'top-up' amount paid to individual providers to ensure the rate for 2 year olds from families receiving additional support is at least equal to the 2 year old working parent rate",null,null,null,null,null,null,null,null,null,null,null,null,null,null,null,null,{"$f":"IF(AND(P45=\"\",Q45=\"\",R45=\"\"),\"\",SUM(P45:R45))","v":""},null,null,null,1.1000000000000001,null,1.1000000000000001,"5.0.13, 5.0.14, 1009, 1010, LENGTH","1.3, 5.0.0, 5.07, 5.0.8, 5.0.11, 1038, 1039","1.3, 5.0.0, 5.07, 5.0.8, 5.0.11, 1038, 1039","1.3, 5.0.0, 5.07, 5.0.8, 5.0.11, 1038, 1039","5.0.0, 5.07,  5.0.11, 5.0.12, 1039","1.3, 5.0.0,5.0.12, 1040, 1039","1.3, 5.0.0,5.0.12, 1040, 1039","1.3, 5.0.0,5.0.12, 1040, 1039","1.3, 5.0.0,5.0.12, 1040, 1039","1.3, 5.0.0,5.0.12, 1040, 1039","1.3, 5.0.0,5.0.12, 1040, 1039",1.3,1.3,1.3,1.3,{"$f":"IF(F45&G45&H45&I45&J45&K45&L45&M45&N45&O45&P45&Q45&R45&S45=\"\",0,1)","v":0}]
[null,null,null,null,null,null,null,null,null,null,null,null,null,null,null,null,null,"TOTAL FUNDING FOR EARLY YEARS LOCAL FUNDING FORMULA (2 YEAR OLDS - DISADVANTAGED):",{"$f":"SUM(Total4)+SUM(Total5)+SUM(Total6)","v":0},null,null,null,null,null,null,null,null,null,null,null,null,null,null,null,null,null,null,null,null,1015]
[null,null,"End of section 1"]
[null,"2 Year Olds - Working Parents:\nBase Rate",null,null,"Description\n(Max 250 characters)","Unit Value (£)",null,null,"Unit\nApplied","Number of Units",null,null,null,null,null,"Anticipated Budget (£)",null,null,null,null,"Error Cell Reference and Description"]
[null,null,null,null,null,"PVI","Nursery School","Primary Nursery Class",null,"PVI","Nursery School","Primary Nursery Class","Not used",null,null,"PVI","Nursery School","Primary Nursery Class","TOTAL"]
["EY7","7. Base Rate(s) per hour, per provider type",null,1,null,null,null,null,null,null,null,null,null,null,null,{"$f":"IF(AND(F50=\"\",J50=\"\",K50=\"\"),\"\",F50*J50)","v":""},{"$f":"IF(AND(G50=\"\",K50=\"\",L50=\"\"),\"\",G50*K50)","v":""},{"$f":"IF(AND(H50=\"\",L50=\"\",O50=\"\"),\"\",H50*(L50+O50))","v":""},{"$f":"IF(AND(P50=\"\",Q50=\"\",R50=\"\"),\"\",SUM(P50:R50))","v":""},null,null,null,1.1000000000000001,null,1.1000000000000001,"5.0.13, 5.0.14, 1009, 1010, LENGTH","1.3, 5.0.0, 5.07, 5.0.8, 5.0.11, 1038, 1039","1.3, 5.0.0, 5.07, 5.0.8, 5.0.11, 1038, 1039","1.3, 5.0.0, 5.07, 5.0.8, 5.0.11, 1038, 1039","5.0.0, 5.07,  5.0.11, 5.0.12, 1039","1.3, 5.0.0,5.0.12, 1040, 1039","1.3, 5.0.0,5.0.12, 1040, 1039","1.3, 5.0.0,5.0.12, 1040, 1039","1.3, 5.0.0,5.0.12, 1040, 1039","1.3, 5.0.0,5.0.12, 1040, 1039","1.3, 5.0.0,5.0.12, 1040, 1039",1.3,1.3,1.3,1.3,{"$f":"IF(F50&G50&H50&I50&J50&K50&L50&M50&N50&O50&P50&Q50&R50&S50=\"\",0,1)","v":0}]
[null,null,"End of section 1"]
[null,"2 Year Olds - Working Parents:\nOther Formula Factors",null,null,"Description\n(Max 250 characters)","Unit Value (£)",null,null,"Unit\nApplied","Number of Units",null,null,null,null,null,"Anticipated Budget (£)",null,null,null,null,"Error Cell Reference and Description"]
[null,null,null,null,null,"PVI","Nursery School","Primary Nursery Class",null,"PVI","Nursery School","Primary Nursery Class","Not used",null,null,"PVI","Nursery School","Primary Nursery Class","TOTAL"]
[null,"8. Supplements (please provide in written format a short explanation of your supplement payments)"]
["EY8a",null,"(a) Deprivation",1,null,null,null,null,null,null,null,null,null,null,null,{"$f":"IF(AND(F55=\"\",J55=\"\",M55=\"\"),\"\",F55*(J55+M55))","v":""},{"$f":"IF(AND(G55=\"\",K55=\"\",N55=\"\"),\"\",G55*(K55+N55))","v":""},{"$f":"IF(AND(H55=\"\",L55=\"\",O55=\"\"),\"\",H55*(L55+O55))","v":""},{"$f":"IF(AND(P55=\"\",Q55=\"\",R55=\"\"),\"\",SUM(P55:R55))","v":""},null,null,null,1.1000000000000001,null,1.1000000000000001,"5.0.13, 5.0.14, 1009, 1010, LENGTH","1.3, 5.0.0, 5.07, 5.0.8, 5.0.11, 1038, 1039","1.3, 5.0.0, 5.07, 5.0.8, 5.0.11, 1038, 1039","1.3, 5.0.0, 5.07, 5.0.8, 5.0.11, 1038, 1039","5.0.0, 5.07,  5.0.11, 5.0.12, 1039","1.3, 5.0.0,5.0.12, 1040, 1039","1.3, 5.0.0,5.0.12, 1040, 1039","1.3, 5.0.0,5.0.12, 1040, 1039","1.3, 5.0.0,5.0.12, 1040, 1039","1.3, 5.0.0,5.0.12, 1040, 1039","1.3, 5.0.0,5.0.12, 1040, 1039",1.3,1.3,1.3,1.3,{"$f":"IF(F55&G55&H55&I55&J55&K55&L55&M55&N55&O55&P55&Q55&R55&S55=\"\",0,1)","v":0}]
["EY8b",null,"(b) Quality",1,null,null,null,null,null,null,null,null,null,null,null,{"$f":"IF(AND(F56=\"\",J56=\"\",M56=\"\"),\"\",F56*(J56+M56))","v":""},{"$f":"IF(AND(G56=\"\",K56=\"\",N56=\"\"),\"\",G56*(K56+N56))","v":""},{"$f":"IF(AND(H56=\"\",L56=\"\",O56=\"\"),\"\",H56*(L56+O56))","v":""},{"$f":"IF(AND(P56=\"\",Q56=\"\",R56=\"\"),\"\",SUM(P56:R56))","v":""},null,null,null,1.1000000000000001,null,1.1000000000000001,"5.0.13, 5.0.14, 1009, 1010, LENGTH","1.3, 5.0.0, 5.07, 5.0.8, 5.0.11, 1038, 1039","1.3, 5.0.0, 5.07, 5.0.8, 5.0.11, 1038, 1039","1.3, 5.0.0, 5.07, 5.0.8, 5.0.11, 1038, 1039","5.0.0, 5.07,  5.0.11, 5.0.12, 1039","1.3, 5.0.0,5.0.12, 1040, 1039","1.3, 5.0.0,5.0.12, 1040, 1039","1.3, 5.0.0,5.0.12, 1040, 1039","1.3, 5.0.0,5.0.12, 1040, 1039","1.3, 5.0.0,5.0.12, 1040, 1039","1.3, 5.0.0,5.0.12, 1040, 1039",1.3,1.3,1.3,1.3,{"$f":"IF(F56&G56&H56&I56&J56&K56&L56&M56&N56&O56&P56&Q56&R56&S56=\"\",0,1)","v":0}]
["EY8c",null,"(c) Flexibility",1,null,null,null,null,null,null,null,null,null,null,null,{"$f":"IF(AND(F57=\"\",J57=\"\",M57=\"\"),\"\",F57*(J57+M57))","v":""},{"$f":"IF(AND(G57=\"\",K57=\"\",N57=\"\"),\"\",G57*(K57+N57))","v":""},{"$f":"IF(AND(H57=\"\",L57=\"\",O57=\"\"),\"\",H57*(L57+O57))","v":""},{"$f":"IF(AND(P57=\"\",Q57=\"\",R57=\"\"),\"\",SUM(P57:R57))","v":""},null,null,null,1.1000000000000001,null,1.1000000000000001,"5.0.13, 5.0.14, 1009, 1010, LENGTH","1.3, 5.0.0, 5.07, 5.0.8, 5.0.11, 1038, 1039","1.3, 5.0.0, 5.07, 5.0.8, 5.0.11, 1038, 1039","1.3, 5.0.0, 5.07, 5.0.8, 5.0.11, 1038, 1039","5.0.0, 5.07,  5.0.11, 5.0.12, 1039","1.3, 5.0.0,5.0.12, 1040, 1039","1.3, 5.0.0,5.0.12, 1040, 1039","1.3, 5.0.0,5.0.12, 1040, 1039","1.3, 5.0.0,5.0.12, 1040, 1039","1.3, 5.0.0,5.0.12, 1040, 1039","1.3, 5.0.0,5.0.12, 1040, 1039",1.3,1.3,1.3,1.3,{"$f":"IF(F57&G57&H57&I57&J57&K57&L57&M57&N57&O57&P57&Q57&R57&S57=\"\",0,1)","v":0}]
["EY8d",null,"(d) Rurality / Sparsity",1,null,null,null,null,null,null,null,null,null,null,null,{"$f":"IF(AND(F58=\"\",J58=\"\",M58=\"\"),\"\",F58*(J58+M58))","v":""},{"$f":"IF(AND(G58=\"\",K58=\"\",N58=\"\"),\"\",G58*(K58+N58))","v":""},{"$f":"IF(AND(H58=\"\",L58=\"\",O58=\"\"),\"\",H58*(L58+O58))","v":""},{"$f":"IF(AND(P58=\"\",Q58=\"\",R58=\"\"),\"\",SUM(P58:R58))","v":""},null,null,null,1.1000000000000001,null,1.1000000000000001,"5.0.13, 5.0.14, 1009, 1010, LENGTH","1.3, 5.0.0, 5.07, 5.0.8, 5.0.11, 1038, 1039","1.3, 5.0.0, 5.07, 5.0.8, 5.0.11, 1038, 1039","1.3, 5.0.0, 5.07, 5.0.8, 5.0.11, 1038, 1039","5.0.0, 5.07,  5.0.11, 5.0.12, 1039","1.3, 5.0.0,5.0.12, 1040, 1039","1.3, 5.0.0,5.0.12, 1040, 1039","1.3, 5.0.0,5.0.12, 1040, 1039","1.3, 5.0.0,5.0.12, 1040, 1039","1.3, 5.0.0,5.0.12, 1040, 1039","1.3, 5.0.0,5.0.12, 1040, 1039",1.3,1.3,1.3,1.3,{"$f":"IF(F58&G58&H58&I58&J58&K58&L58&M58&N58&O58&P58&Q58&R58&S58=\"\",0,1)","v":0}]
["EY8e",null,"(e) EAL",1,null,null,null,null,null,null,null,null,null,null,null,{"$f":"IF(AND(F59=\"\",J59=\"\",M59=\"\"),\"\",F59*(J59+M59))","v":""},{"$f":"IF(AND(G59=\"\",K59=\"\",N59=\"\"),\"\",G59*(K59+N59))","v":""},{"$f":"IF(AND(H59=\"\",L59=\"\",O59=\"\"),\"\",H59*(L59+O59))","v":""},{"$f":"IF(AND(P59=\"\",Q59=\"\",R59=\"\"),\"\",SUM(P59:R59))","v":""},null,null,null,1.1000000000000001,null,1.1000000000000001,"5.0.13, 5.0.14, 1009, 1010, LENGTH","1.3, 5.0.0, 5.07, 5.0.8, 5.0.11, 1038, 1039","1.3, 5.0.0, 5.07, 5.0.8, 5.0.11, 1038, 1039","1.3, 5.0.0, 5.07, 5.0.8, 5.0.11, 1038, 1039","5.0.0, 5.07,  5.0.11, 5.0.12, 1039","1.3, 5.0.0,5.0.12, 1040, 1039","1.3, 5.0.0,5.0.12, 1040, 1039","1.3, 5.0.0,5.0.12, 1040, 1039","1.3, 5.0.0,5.0.12, 1040, 1039","1.3, 5.0.0,5.0.12, 1040, 1039","1.3, 5.0.0,5.0.12, 1040, 1039",1.3,1.3,1.3,1.3,{"$f":"IF(F59&G59&H59&I59&J59&K59&L59&M59&N59&O59&P59&Q59&R59&S59=\"\",0,1)","v":0}]
[null,null,null,null,null,null,null,null,null,null,null,null,null,null,null,"Funding provided through supplements:",null,null,{"$f":"IF(SUM(Total7,Total8)<>0, SUM(Total8)/SUM(Total7,Total8), 0)","v":0}]
[null,null,null,null,null,null,null,null,null,null,null,null,null,null,null,null,null,"TOTAL FUNDING FOR EARLY YEARS LOCAL FUNDING FORMULA (2 YEAR OLDS - WORKING PARENTS):",{"$f":"SUM(Total7)+SUM(Total8)","v":0},null,null,null,null,null,null,null,null,null,null,null,null,null,null,null,null,null,null,null,null,1015]
[]
[null,"9 Month to 2 Year Olds - Working Parents:\nBase Rate",null,null,"Description\n(Max 250 characters)","Unit Value (£)",null,null,"Unit\nApplied","Number of Units",null,null,null,null,null,"Anticipated Budget (£)",null,null,null,null,"Error Cell Reference and Description"]
[null,null,null,null,null,"PVI","Nursery School","Primary Nursery Class",null,"PVI","Nursery School","Primary Nursery Class","Not used",null,null,"PVI","Nursery School","Primary Nursery Class","TOTAL"]
["EY9","9. Base Rate(s) per hour, per provider type",null,1,null,null,null,null,null,null,null,null,null,null,null,{"$f":"IF(AND(F65=\"\",J65=\"\",K65=\"\"),\"\",F65*J65)","v":""},{"$f":"IF(AND(G65=\"\",K65=\"\",L65=\"\"),\"\",G65*K65)","v":""},{"$f":"IF(AND(H65=\"\",L65=\"\",O65=\"\"),\"\",H65*(L65+O65))","v":""},{"$f":"IF(AND(P65=\"\",Q65=\"\",R65=\"\"),\"\",SUM(P65:R65))","v":""},null,null,null,1.1000000000000001,null,1.1000000000000001,"5.0.13, 5.0.14, 1009, 1010, LENGTH","1.3, 5.0.0, 5.07, 5.0.8, 5.0.11, 1038, 1039","1.3, 5.0.0, 5.07, 5.0.8, 5.0.11, 1038, 1039","1.3, 5.0.0, 5.07, 5.0.8, 5.0.11, 1038, 1039","5.0.0, 5.07,  5.0.11, 5.0.12, 1039","1.3, 5.0.0,5.0.12, 1040, 1039","1.3, 5.0.0,5.0.12, 1040, 1039","1.3, 5.0.0,5.0.12, 1040, 1039","1.3, 5.0.0,5.0.12, 1040, 1039","1.3, 5.0.0,5.0.12, 1040, 1039","1.3, 5.0.0,5.0.12, 1040, 1039",1.3,1.3,1.3,1.3,{"$f":"IF(F65&G65&H65&I65&J65&K65&L65&M65&N65&O65&P65&Q65&R65&S65=\"\",0,1)","v":0}]
[null,null,"End of section 1"]
[null,"9 Month to 2 Year Olds - Working Parents:\nOther Formula Factors",null,null,"Description\n(Max 250 characters)","Unit Value (£)",null,null,"Unit\nApplied","Number of Units",null,null,null,null,null,"Anticipated Budget (£)",null,null,null,null,"Error Cell Reference and Description"]
[null,null,null,null,null,"PVI","Nursery School","Primary Nursery Class",null,"PVI","Nursery School","Primary Nursery Class","Not used",null,null,"PVI","Nursery School","Primary Nursery Class","TOTAL"]
[null,"10. Supplements (please provide in written format a short explanation of your supplement payments)"]
["EY10a",null,"(a) Deprivation",1,null,null,null,null,null,null,null,null,null,null,null,{"$f":"IF(AND(F70=\"\",J70=\"\",M70=\"\"),\"\",F70*(J70+M70))","v":""},{"$f":"IF(AND(G70=\"\",K70=\"\",N70=\"\"),\"\",G70*(K70+N70))","v":""},{"$f":"IF(AND(H70=\"\",L70=\"\",O70=\"\"),\"\",H70*(L70+O70))","v":""},{"$f":"IF(AND(P70=\"\",Q70=\"\",R70=\"\"),\"\",SUM(P70:R70))","v":""},null,null,null,1.1000000000000001,null,1.1000000000000001,"5.0.13, 5.0.14, 1009, 1010, LENGTH","1.3, 5.0.0, 5.07, 5.0.8, 5.0.11, 1038, 1039","1.3, 5.0.0, 5.07, 5.0.8, 5.0.11, 1038, 1039","1.3, 5.0.0, 5.07, 5.0.8, 5.0.11, 1038, 1039","5.0.0, 5.07,  5.0.11, 5.0.12, 1039","1.3, 5.0.0,5.0.12, 1040, 1039","1.3, 5.0.0,5.0.12, 1040, 1039","1.3, 5.0.0,5.0.12, 1040, 1039","1.3, 5.0.0,5.0.12, 1040, 1039","1.3, 5.0.0,5.0.12, 1040, 1039","1.3, 5.0.0,5.0.12, 1040, 1039",1.3,1.3,1.3,1.3,{"$f":"IF(F70&G70&H70&I70&J70&K70&L70&M70&N70&O70&P70&Q70&R70&S70=\"\",0,1)","v":0}]
["EY10b",null,"(b) Quality",1,null,null,null,null,null,null,null,null,null,null,null,{"$f":"IF(AND(F71=\"\",J71=\"\",M71=\"\"),\"\",F71*(J71+M71))","v":""},{"$f":"IF(AND(G71=\"\",K71=\"\",N71=\"\"),\"\",G71*(K71+N71))","v":""},{"$f":"IF(AND(H71=\"\",L71=\"\",O71=\"\"),\"\",H71*(L71+O71))","v":""},{"$f":"IF(AND(P71=\"\",Q71=\"\",R71=\"\"),\"\",SUM(P71:R71))","v":""},null,null,null,1.1000000000000001,null,1.1000000000000001,"5.0.13, 5.0.14, 1009, 1010, LENGTH","1.3, 5.0.0, 5.07, 5.0.8, 5.0.11, 1038, 1039","1.3, 5.0.0, 5.07, 5.0.8, 5.0.11, 1038, 1039","1.3, 5.0.0, 5.07, 5.0.8, 5.0.11, 1038, 1039","5.0.0, 5.07,  5.0.11, 5.0.12, 1039","1.3, 5.0.0,5.0.12, 1040, 1039","1.3, 5.0.0,5.0.12, 1040, 1039","1.3, 5.0.0,5.0.12, 1040, 1039","1.3, 5.0.0,5.0.12, 1040, 1039","1.3, 5.0.0,5.0.12, 1040, 1039","1.3, 5.0.0,5.0.12, 1040, 1039",1.3,1.3,1.3,1.3,{"$f":"IF(F71&G71&H71&I71&J71&K71&L71&M71&N71&O71&P71&Q71&R71&S71=\"\",0,1)","v":0}]
["EY10c",null,"(c) Flexibility",1,null,null,null,null,null,null,null,null,null,null,null,{"$f":"IF(AND(F72=\"\",J72=\"\",M72=\"\"),\"\",F72*(J72+M72))","v":""},{"$f":"IF(AND(G72=\"\",K72=\"\",N72=\"\"),\"\",G72*(K72+N72))","v":""},{"$f":"IF(AND(H72=\"\",L72=\"\",O72=\"\"),\"\",H72*(L72+O72))","v":""},{"$f":"IF(AND(P72=\"\",Q72=\"\",R72=\"\"),\"\",SUM(P72:R72))","v":""},null,null,null,1.1000000000000001,null,1.1000000000000001,"5.0.13, 5.0.14, 1009, 1010, LENGTH","1.3, 5.0.0, 5.07, 5.0.8, 5.0.11, 1038, 1039","1.3, 5.0.0, 5.07, 5.0.8, 5.0.11, 1038, 1039","1.3, 5.0.0, 5.07, 5.0.8, 5.0.11, 1038, 1039","5.0.0, 5.07,  5.0.11, 5.0.12, 1039","1.3, 5.0.0,5.0.12, 1040, 1039","1.3, 5.0.0,5.0.12, 1040, 1039","1.3, 5.0.0,5.0.12, 1040, 1039","1.3, 5.0.0,5.0.12, 1040, 1039","1.3, 5.0.0,5.0.12, 1040, 1039","1.3, 5.0.0,5.0.12, 1040, 1039",1.3,1.3,1.3,1.3,{"$f":"IF(F72&G72&H72&I72&J72&K72&L72&M72&N72&O72&P72&Q72&R72&S72=\"\",0,1)","v":0}]
["EY10d",null,"(d) Rurality / Sparsity",1,null,null,null,null,null,null,null,null,null,null,null,{"$f":"IF(AND(F73=\"\",J73=\"\",M73=\"\"),\"\",F73*(J73+M73))","v":""},{"$f":"IF(AND(G73=\"\",K73=\"\",N73=\"\"),\"\",G73*(K73+N73))","v":""},{"$f":"IF(AND(H73=\"\",L73=\"\",O73=\"\"),\"\",H73*(L73+O73))","v":""},{"$f":"IF(AND(P73=\"\",Q73=\"\",R73=\"\"),\"\",SUM(P73:R73))","v":""},null,null,null,1.1000000000000001,null,1.1000000000000001,"5.0.13, 5.0.14, 1009, 1010, LENGTH","1.3, 5.0.0, 5.07, 5.0.8, 5.0.11, 1038, 1039","1.3, 5.0.0, 5.07, 5.0.8, 5.0.11, 1038, 1039","1.3, 5.0.0, 5.07, 5.0.8, 5.0.11, 1038, 1039","5.0.0, 5.07,  5.0.11, 5.0.12, 1039","1.3, 5.0.0,5.0.12, 1040, 1039","1.3, 5.0.0,5.0.12, 1040, 1039","1.3, 5.0.0,5.0.12, 1040, 1039","1.3, 5.0.0,5.0.12, 1040, 1039","1.3, 5.0.0,5.0.12, 1040, 1039","1.3, 5.0.0,5.0.12, 1040, 1039",1.3,1.3,1.3,1.3,{"$f":"IF(F73&G73&H73&I73&J73&K73&L73&M73&N73&O73&P73&Q73&R73&S73=\"\",0,1)","v":0}]
["EY10e",null,"(e) EAL",1,null,null,null,null,null,null,null,null,null,null,null,{"$f":"IF(AND(F74=\"\",J74=\"\",M74=\"\"),\"\",F74*(J74+M74))","v":""},{"$f":"IF(AND(G74=\"\",K74=\"\",N74=\"\"),\"\",G74*(K74+N74))","v":""},{"$f":"IF(AND(H74=\"\",L74=\"\",O74=\"\"),\"\",H74*(L74+O74))","v":""},{"$f":"IF(AND(P74=\"\",Q74=\"\",R74=\"\"),\"\",SUM(P74:R74))","v":""},null,null,null,1.1000000000000001,null,1.1000000000000001,"5.0.13, 5.0.14, 1009, 1010, LENGTH","1.3, 5.0.0, 5.07, 5.0.8, 5.0.11, 1038, 1039","1.3, 5.0.0, 5.07, 5.0.8, 5.0.11, 1038, 1039","1.3, 5.0.0, 5.07, 5.0.8, 5.0.11, 1038, 1039","5.0.0, 5.07,  5.0.11, 5.0.12, 1039","1.3, 5.0.0,5.0.12, 1040, 1039","1.3, 5.0.0,5.0.12, 1040, 1039","1.3, 5.0.0,5.0.12, 1040, 1039","1.3, 5.0.0,5.0.12, 1040, 1039","1.3, 5.0.0,5.0.12, 1040, 1039","1.3, 5.0.0,5.0.12, 1040, 1039",1.3,1.3,1.3,1.3,{"$f":"IF(F74&G74&H74&I74&J74&K74&L74&M74&N74&O74&P74&Q74&R74&S74=\"\",0,1)","v":0}]
[null,null,null,null,null,null,null,null,null,null,null,null,null,null,null,"Funding provided through supplements:",null,null,{"$f":"IF(SUM(Total9,Total10)<>0, SUM(Total10)/SUM(Total9,Total10), 0)","v":0}]
[null,null,null,null,null,null,null,null,null,null,null,null,null,null,null,null,null,"TOTAL FUNDING FOR EARLY YEARS LOCAL FUNDING FORMULA (9 MONTHS TO 2 YEARS OLD - WORKING PARENTS):",{"$f":"SUM(Total9)+SUM(Total10)","v":0},null,null,null,null,null,null,null,null,null,null,null,null,null,null,null,null,null,null,null,null,1015]
[]
[null,"11. SENIF (funding paid directly to providers) ",null,"Description\n(Max 250 characters)",null,null,null,null,null,null,null,null,null,null,null,"Anticipated Budget (£)",null,null,null,null,"Error Cell Reference and Description"]
[null,null,null,null,null,null,null,null,null,null,null,null,null,null,null,"PVI","Nursery School","Primary Nursery Class","TOTAL"]
[null,"(a) 3 & 4 Year Olds"]
["EY11ai",null,"(ai) Funding allocated from EY Block",1,null,null,null,null,null,null,null,null,null,null,null,null,null,null,{"$f":"IF(AND(P81=\"\",Q81=\"\",R81=\"\"),\"\",SUM(P81:R81))","v":""},null,null,null,1.1000000000000001,null,1.1000000000000001,"LENGTH",null,null,null,null,null,null,null,null,null,null,1.3,1.3,1.3,1.3,{"$f":"IF(F81&G81&H81&I81&J81&K81&L81&M81&N81&O81&P81&Q81&R81&S81=\"\",0,1)","v":0}]
["EY11aii",null,"(aii) Funding allocated from HN Block",1,null,null,null,null,null,null,null,null,null,null,null,null,null,null,{"$f":"IF(AND(P82=\"\",Q82=\"\",R82=\"\"),\"\",SUM(P82:R82))","v":""},null,null,null,1.1000000000000001,null,1.1000000000000001,"LENGTH",null,null,null,null,null,null,null,null,null,null,1.3,1.3,1.3,1.3,0]
[null,"(b) 2 Year Olds - Families receiving additional support"]
["EY11bi",null,"(bi) Funding allocated from EY Block",1,null,null,null,null,null,null,null,null,null,null,null,null,null,null,{"$f":"IF(AND(P84=\"\",Q84=\"\",R84=\"\"),\"\",SUM(P84:R84))","v":""},null,null,null,1.1000000000000001,null,1.1000000000000001,"LENGTH",null,null,null,null,null,null,null,null,null,null,1.3,1.3,1.3,1.3,{"$f":"IF(F84&G84&H84&I84&J84&K84&L84&M84&N84&O84&P84&Q84&R84&S84=\"\",0,1)","v":0}]
["EY11bii",null,"(bii) Funding allocated from HN Block",1,null,null,null,null,null,null,null,null,null,null,null,null,null,null,{"$f":"IF(AND(P85=\"\",Q85=\"\",R85=\"\"),\"\",SUM(P85:R85))","v":""},null,null,null,1.1000000000000001,null,1.1000000000000001,"LENGTH",null,null,null,null,null,null,null,null,null,null,1.3,1.3,1.3,1.3,{"$f":"IF(F85&G85&H85&I85&J85&K85&L85&M85&N85&O85&P85&Q85&R85&S85=\"\",0,1)","v":0}]
[null,"(c) 2 Year Olds - Working Parents"]
["EY11ci",null,"(ci) Funding allocated from EY Block",1,null,null,null,null,null,null,null,null,null,null,null,null,null,null,{"$f":"IF(AND(P87=\"\",Q87=\"\",R87=\"\"),\"\",SUM(P87:R87))","v":""},null,null,null,1.1000000000000001,null,1.1000000000000001,"LENGTH",null,null,null,null,null,null,null,null,null,null,1.3,1.3,1.3,1.3,{"$f":"IF(F87&G87&H87&I87&J87&K87&L87&M87&N87&O87&P87&Q87&R87&S87=\"\",0,1)","v":0}]
["EY11cii",null,"(cii) Funding allocated from HN Block",1,null,null,null,null,null,null,null,null,null,null,null,null,null,null,{"$f":"IF(AND(P88=\"\",Q88=\"\",R88=\"\"),\"\",SUM(P88:R88))","v":""},null,null,null,1.1000000000000001,null,1.1000000000000001,"LENGTH",null,null,null,null,null,null,null,null,null,null,1.3,1.3,1.3,1.3,{"$f":"IF(F88&G88&H88&I88&J88&K88&L88&M88&N88&O88&P88&Q88&R88&S88=\"\",0,1)","v":0}]
[null,"(d) 9 Month to 2 Year Olds - Working parents",null,null,null,null,null,null,null,null,null,null,null,null,null,null,null,null,null,null,null,null,null,null,null,null,null,null,null,null,null,null,null,null,null,null,null,null,null,1.3]
["EY11di",null,"(di) Funding allocated from EY Block",1,null,null,null,null,null,null,null,null,null,null,null,null,null,null,{"$f":"IF(AND(P90=\"\",Q90=\"\",R90=\"\"),\"\",SUM(P90:R90))","v":""},null,null,null,1.1000000000000001,null,1.1000000000000001,"LENGTH",null,null,null,null,null,null,null,null,null,null,1.3,1.3,1.3,1.3,{"$f":"IF(F90&G90&H90&I90&J90&K90&L90&M90&N90&O90&P90&Q90&R90&S90=\"\",0,1)","v":0}]
["EY11dii",null,"(dii) Funding allocated from HN Block",1,null,null,null,null,null,null,null,null,null,null,null,null,null,null,{"$f":"IF(AND(P91=\"\",Q91=\"\",R91=\"\"),\"\",SUM(P91:R91))","v":""},null,null,null,1.1000000000000001,null,1.1000000000000001,"LENGTH",null,null,null,null,null,null,null,null,null,null,1.3,1.3,1.3,1.3,{"$f":"IF(F91&G91&H91&I91&J91&K91&L91&M91&N91&O91&P91&Q91&R91&S91=\"\",0,1)","v":0}]
[null,null,null,null,null,null,null,null,null,null,null,null,null,null,null,null,null,"TOTAL FUNDING FOR SENIF (FUNDING PAID DIRECTLY TO PROVIDERS):",{"$f":"SUM(Total11a, Total11b, Total11c, Total11d)","v":0}]
[]
[null,"12. Early years contingency funding ",null,"Description\n(Max 250 characters)",null,null,null,null,null,null,null,null,null,null,null,"Anticipated total budget (£)",null,null,"Total",null,"Error Cell Reference and Description"]
["EY12a","(a) 3 & 4 Year Olds",null,1,null,null,null,null,null,null,null,null,null,null,null,null,null,null,null,null,null,null,null,null,null,"LENGTH",null,null,null,null,null,null,null,null,null,null,1.3,1.3,1.3,1.3,{"$f":"IF(F95&G95&H95&I95&J95&K95&L95&M95&N95&O95&P95&Q95&R95&S95=\"\",0,1)","v":0}]
["EY12b","(b) 2 Year Olds - Families receiving additional support",null,1,null,null,null,null,null,null,null,null,null,null,null,null,null,null,null,null,null,null,null,null,null,"LENGTH",null,null,null,null,null,null,null,null,null,null,1.3,1.3,1.3,1.3,{"$f":"IF(F96&G96&H96&I96&J96&K96&L96&M96&N96&O96&P96&Q96&R96&S96=\"\",0,1)","v":0}]
["EY12c","(c) 2 Year Olds - Working Parents",null,1,null,null,null,null,null,null,null,null,null,null,null,null,null,null,null,null,null,null,null,null,null,"LENGTH",null,null,null,null,null,null,null,null,null,null,1.3,1.3,1.3,1.3,{"$f":"IF(F97&G97&H97&I97&J97&K97&L97&M97&N97&O97&P97&Q97&R97&S97=\"\",0,1)","v":0}]
["EY12d","(d) 9 Month to 2 Year Olds - Working Parents",null,1,null,null,null,null,null,null,null,null,null,null,null,null,null,null,null,null,null,null,null,null,null,"LENGTH",null,null,null,null,null,null,null,null,null,null,1.3,1.3,1.3,1.3,{"$f":"IF(F98&G98&H98&I98&J98&K98&L98&M98&N98&O98&P98&Q98&R98&S98=\"\",0,1)","v":0}]
[null,null,null,null,null,null,null,null,null,null,null,null,null,null,null,null,null,"TOTAL FUNDING FOR EARLY YEARS CONTINGENCY FUNDING:  ",{"$f":"SUM(Total12)","v":0}]
[]
[null,"13. Early years centrally retained funding",null,"Description\n(Max 250 characters)",null,null,null,null,null,null,null,null,null,null,null,"Anticipated total budget (£)",null,null,"Total",null,"Error Cell Reference and Description"]
[null,"(a) 3 & 4 Year Olds"]
["EY13ai",null,"(ai) SENIF",1,null,null,null,null,null,null,null,null,null,null,null,null,null,null,null,null,null,null,1.1000000000000001,null,1.1000000000000001,"LENGTH",null,null,null,null,null,null,null,null,null,null,null,null,null,1.3,{"$f":"IF(F103&G103&H103&I103&J103&K103&L103&M103&N103&O103&P103&Q103&R103&S103=\"\",0,1)","v":0}]
["EY13aii",null,"(aii) Other",1,null,null,null,null,null,null,null,null,null,null,null,null,null,null,null,null,null,null,1.1000000000000001,null,1.1000000000000001,"LENGTH",null,null,null,null,null,null,null,null,null,null,null,null,null,1.3,{"$f":"IF(F104&G104&H104&I104&J104&K104&L104&M104&N104&O104&P104&Q104&R104&S104=\"\",0,1)","v":0}]
[null,"(b) 2 Year Olds - Families receiving additional support"]
["EY13bi",null,"(bi) SENIF",1,null,null,null,null,null,null,null,null,null,null,null,null,null,null,null,null,null,null,1.1000000000000001,null,1.1000000000000001,"LENGTH",null,null,null,null,null,null,null,null,null,null,null,null,null,1.3,{"$f":"IF(F106&G106&H106&I106&J106&K106&L106&M106&N106&O106&P106&Q106&R106&S106=\"\",0,1)","v":0}]
["EY13bii",null,"(bii) Other",1,null,null,null,null,null,null,null,null,null,null,null,null,null,null,null,null,null,null,1.1000000000000001,null,1.1000000000000001,"LENGTH",null,null,null,null,null,null,null,null,null,null,null,null,null,1.3,{"$f":"IF(F107&G107&H107&I107&J107&K107&L107&M107&N107&O107&P107&Q107&R107&S107=\"\",0,1)","v":0}]
[null,"(c) 2 Year Olds - Working Parents"]
["EY13ci",null,"(ci) SENIF",1,null,null,null,null,null,null,null,null,null,null,null,null,null,null,null,null,null,null,1.1000000000000001,null,1.1000000000000001,"LENGTH",null,null,null,null,null,null,null,null,null,null,null,null,null,1.3,{"$f":"IF(F109&G109&H109&I109&J109&K109&L109&M109&N109&O109&P109&Q109&R109&S109=\"\",0,1)","v":0}]
["EY13cii",null,"(cii) Other",1,null,null,null,null,null,null,null,null,null,null,null,null,null,null,null,null,null,null,1.1000000000000001,null,1.1000000000000001,"LENGTH",null,null,null,null,null,null,null,null,null,null,null,null,null,1.3,{"$f":"IF(F110&G110&H110&I110&J110&K110&L110&M110&N110&O110&P110&Q110&R110&S110=\"\",0,1)","v":0}]
[null,"(d) 9 Month to 2 Year Olds - Working Parents"]
["EY13di",null,"(di) SENIF",1,null,null,null,null,null,null,null,null,null,null,null,null,null,null,null,null,null,null,1.1000000000000001,null,1.1000000000000001,"LENGTH",null,null,null,null,null,null,null,null,null,null,null,null,null,1.3,{"$f":"IF(F112&G112&H112&I112&J112&K112&L112&M112&N112&O112&P112&Q112&R112&S112=\"\",0,1)","v":0}]
["EY13dii",null,"(dii) Other",1,null,null,null,null,null,null,null,null,null,null,null,null,null,null,null,null,null,null,1.1000000000000001,null,1.1000000000000001,"LENGTH",null,null,null,null,null,null,null,null,null,null,null,null,null,1.3,{"$f":"IF(F113&G113&H113&I113&J113&K113&L113&M113&N113&O113&P113&Q113&R113&S113=\"\",0,1)","v":0}]
[null,null,null,null,null,null,null,null,null,null,null,null,null,null,null,null,null,"TOTAL FUNDING FOR EARLY YEARS CENTRAL EXPENDITURE:",{"$f":"SUM(Total13a, Total13b, Total13c, Total13d)","v":0}]
[]
[null,"14. Early years pupil premium",null,null,null,null,null,null,null,null,null,null,null,null,null,"Anticipated total budget (£)",null,null,"Total",null,"Error Cell Reference and Description"]
["EY14a","(a) 3 & 4 Year Olds",null,null,null,null,null,null,null,null,null,null,null,null,null,null,null,null,null,null,null,null,1.1000000000000001,null,1.1000000000000001,null,null,null,null,null,null,null,null,null,null,null,null,null,null,"1.1,1.4,1043",{"$f":"IF(F117&G117&H117&I117&J117&K117&L117&M117&N117&O117&P117&Q117&R117&S117=\"\",0,1)","v":0}]
["EY14b","(b) 2 Year Olds - Families receiving additional support",null,null,null,null,null,null,null,null,null,null,null,null,null,null,null,null,null,null,null,null,1.1000000000000001,null,1.1000000000000001,null,null,null,null,null,null,null,null,null,null,null,null,null,null,"1.1,1.4,1043",{"$f":"IF(F118&G118&H118&I118&J118&K118&L118&M118&N118&O118&P118&Q118&R118&S118=\"\",0,1)","v":0}]
["EY14c","(c) 2 Year Olds - Working Parents",null,null,null,null,null,null,null,null,null,null,null,null,null,null,null,null,null,null,null,null,1.1000000000000001,null,1.1000000000000001,null,null,null,null,null,null,null,null,null,null,null,null,null,null,"1.1,1.4,1043",0]
["EY14d","(d) 9 Month to 2 Year Olds - Working Parents",null,null,null,null,null,null,null,null,null,null,null,null,null,null,null,null,null,null,null,null,1.1000000000000001,null,1.1000000000000001,null,null,null,null,null,null,null,null,null,null,null,null,null,null,"1.1,1.4,1043",0]
[null,null,null,null,null,null,null,null,null,null,null,null,null,null,null,null,null,"TOTAL FUNDING FOR EARLY YEARS PUPIL PREMIUM:",{"$f":"SUM(Total14)","v":0}]
[]
[null,"15. Disability access fund",null,null,null,null,null,null,null,null,null,null,null,null,null,"Anticipated total budget (£)",null,null,"Total",null,"Error Cell Reference and Description"]
["EY15a","(a) 3 & 4 Year Olds",null,null,null,null,null,null,null,null,null,null,null,null,null,null,null,null,null,null,null,null,1.1000000000000001,null,1.1000000000000001,null,null,null,null,null,null,null,null,null,null,null,null,null,null,"1.1,1.4,1043",{"$f":"IF(F124&G124&H124&I124&J124&K124&L124&M124&N124&O124&P124&Q124&R124&S124=\"\",0,1)","v":0}]
["EY15b","(b) 2 Year Olds - Families receiving additional support",null,null,null,null,null,null,null,null,null,null,null,null,null,null,null,null,null,null,null,null,1.1000000000000001,null,1.1000000000000001,null,null,null,null,null,null,null,null,null,null,null,null,null,null,"1.1,1.4,1043",0]
["EY15c","(c) 2 Year Olds - Working Parents",null,null,null,null,null,null,null,null,null,null,null,null,null,null,null,null,null,null,null,null,1.1000000000000001,null,1.1000000000000001,null,null,null,null,null,null,null,null,null,null,null,null,null,null,"1.1,1.4,1043",0]
["EY15d","(d) 9 Month to 2 Year Olds - Working Parents",null,null,null,null,null,null,null,null,null,null,null,null,null,null,null,null,null,null,null,null,1.1000000000000001,null,1.1000000000000001,null,null,null,null,null,null,null,null,null,null,null,null,null,null,"1.1,1.4,1043",0]
[null,null,null,null,null,null,null,null,null,null,null,null,null,null,null,null,null,"TOTAL FUNDING FOR EARLY YEARS DISABILITY ACCESS FUND:",{"$f":"SUM(Total15)","v":0}]
[]
[null,null,null,null,null,null,null,null,null,null,null,null,null,null,null,null,null,null,null,null,"Error Cell Reference and Description"]
[null,null,null,"Early Years Table Notes:"]

{"sheet":"Admin-Lists","index":5,"n_rows":1621,"n_cols":20,"rows_kept":1621,"cut":false,"hidden":true,"merged":[[0,18,0,19],[0,11,0,16]]}
["Local Authority List",null,"EYNFF_Hourly_Rate","MNS_Supp_Funding","Hourly rate for 2 year old entitlement Dec 2023 (£)","Hourly rate for under 2s entitlement Dec 2023 (£)",null,"School States",null,"SchoolTypes",null,"School List for Pre-population",null,null,null,null,null,null,"Section Names For EY Dropdowns"]
[201,"Common Council of The City Of London",0,0,0,"",null,"Open",null,"Mainstream",null,"LA Number","School Name","DFE Number","School Type\n","O/C","O/C Date",null,"Section Name","Abbreviation"]
[202,"Camden London Borough Council",9.23,231301,12.23,16.829999999999998,null,"Closed",null,"Hospital",null,202,"Thomas Coram Centre",1048,"Mainstream","Open",null,null,"1 - 3 and 4 Year Olds: Base Rate","EY1"]
[203,"Royal Borough of Greenwich",7.87,1216580,11.68,16.04,null,null,null,"Pupil Referral Unit",null,202,"Heath School",1100,"Pupil Referral Unit","Open",null,null,"2a - 3 and 4 Year Olds - Supplements: deprivation","EY2a"]
[204,"Hackney London Borough Council",7.99,687700,11.51,15.79,null,null,null,"Special",null,202,"Camden Primary Pupil Referral Unit",1101,"Pupil Referral Unit","Open",null,null,"2b - 3 and 4 Year Olds - Supplements: quality","EY2b"]
[205,"Hammersmith and Fulham London Borough Council",8.8699999999999992,1102551,11.98,16.579999999999998,null,null,null,null,null,202,"Netley Primary School & Centre for Autism",2436,"Mainstream","Open",null,null,"2c - 3 and 4 Year Olds - Supplements: flexibility","EY2c"]
[206,"Islington London Borough Council",8.6,520029,11.85,16.37,null,null,null,null,null,202,"Primrose Hill School",2475,"Mainstream","Open",null,null,"2d - 3 and 4 Year Olds - Supplements: rurality/sparsity","EY2d"]
[207,"Royal Borough of Kensington And Chelsea",8.7200000000000006,831420,11.88,16.29,null,null,null,"RED = OLD DATA",null,202,"Torriano Primary School",2603,"Mainstream","Open",null,null,"2e - 3 and 4 Year Olds - Supplements: EAL","EY2e"]
[208,"Lambeth London Borough Council",8.07,817061,11.61,15.95,null,null,null,null,null,202,"Kentish Town Church of England Primary School",3370,"Mainstream","Open",null,null,"3 - 3 and 4 Year Olds - Maintained nursery school (MNS) lump sums","EY3"]
[209,"Lewisham London Borough Council",7.52,543359,11.04,15.06,null,null,null,null,null,202,"Haverstock School",4104,"Mainstream","Open",null,null,"4 - 2 Year Olds - Families receiving additional support: Base Rate","EY4"]
[210,"Southwark London Borough Council",7.91,1574204,11.48,15.8,null,null,null,null,null,202,"Regent High School",4196,"Mainstream","Open",null,null,"5a - 2 Year Olds - Families receiving additional support - Supplements: deprivation","EY5a"]
[211,"Tower Hamlets London Borough Council",8.91,781014,11.79,16.28,null,null,null,null,null,202,"Acland Burghley School",4285,"Mainstream","Open",null,null,"5b - 2 Year Olds - Families receiving additional support - Supplements: quality","EY5b"]
[212,"Wandsworth London Borough Council",8.01,490599,11.55,15.82,null,null,null,null,null,202,"Children's Hospital School at Gt Ormond Street and UCH",5950,"Hospital","Open",null,null,"5c - 2 Year Olds - Families receiving additional support - Supplements: flexibility","EY5c"]
[213,"Westminster City Council",8.77,1026000,12.43,17.440000000000001,null,null,null,null,null,202,"Frank Barnes School for Deaf Children",7008,"Special","Open",null,null,"5d - 2 Year Olds - Families receiving additional support - Supplements: rurality/sparsity","EY5d"]
[301,"Barking & Dagenham London Borough Council",6.48,0,9.41,12.83,null,null,null,null,null,202,"Harmood School",7137,"Special","Open",null,null,"5e - 2 Year Olds - Families receiving additional support- Supplements: EAL","EY5e"]
[302,"Barnet London Borough Council",7,988284,9.99,13.66,null,null,null,null,null,202,"Royal Free Hospital Children's School",7201,"Hospital","Open",null,null,"7 - 2 Year Olds - Working Parents: Base Rate","EY7"]
[303,"Bexley London Borough Council",6.76,0,9.77,13.26,null,null,null,null,null,202,"Swiss Cottage School - Development & Research Centre",7205,"Special","Open",null,null,"8a - 2 Year Olds - Working Parents - Supplements: deprivation","EY8a"]
[304,"Brent London Borough Council",6.8,1000829,9.77,13.32,null,null,null,null,null,203,"Newhaven Pupil Referral Unit",1101,"Pupil Referral Unit","Open",null,null,"8b - 2 Year Olds - Working Parents - Supplements: quality","EY8b"]
[305,"Bromley London Borough Council",6.68,0,9.67,13.11,null,null,null,null,null,203,"Meridian Primary School",2410,"Mainstream","Open",null,null,"8c - 2 Year Olds - Working Parents - Supplements: flexibility","EY8c"]
[306,"Croydon London Borough Council",7.08,1051365,10.49,14.34,null,null,null,null,null,203,"James Wolfe Primary School and Centre for the Deaf",2921,"Mainstream","Open",null,null,"8d - 2 Year Olds - Working Parents - Supplements: rurality/sparsity","EY8d"]
[307,"Ealing London Borough Council",6.99,1077563,9.98,13.61,null,null,null,null,null,203,"Discovery Primary School",3670,"Mainstream","Open",null,null,"8e - 2 Year Olds - Working Parents - Supplements: EAL","EY8e"]
[308,"Enfield London Borough Council",6.93,0,10.1,13.91,null,null,null,null,null,203,"Plumstead Manor School",4130,"Mainstream","Open",null,null,"9 - 9 Month to 2 Year Olds - Working Parents: Base Rate","EY9"]
[309,"Haringey London Borough Council",6.77,1447800,10.23,14.1,null,null,null,null,null,203,"Thomas Tallis School",4294,"Mainstream","Open",null,null,"10a - 9 Month to 2 Year Olds - Working Parents - Supplements: deprivation","EY10a"]
[310,"Harrow London Borough Council",6.85,234305,9.69,13.15,null,null,null,null,null,203,"King's Oak School",7118,"Special","Open",null,null,"10b - 9 Month to 2 Year Olds - Working Parents - Supplements: quality","EY10b"]
[311,"Havering London Borough Council",6.4,0,9.17,12.45,null,null,null,null,null,203,"Waterside School",7200,"Special","Open",null,null,"10c - 9 Month to 2 Year Olds - Working Parents - Supplements: flexibility","EY10c"]
[312,"Hillingdon London Borough Council",6.81,383628,9.85,13.4,null,null,null,null,null,204,"New Regent's College",1103,"Pupil Referral Unit","Open",null,null,"10d - 9 Month to 2 Year Olds - Working Parents - Supplements: rurality/sparsity","EY10d"]
[313,"Hounslow London Borough Council",7,0,10.15,13.86,null,null,null,null,null,204,"Gainsborough Primary School",2238,"Mainstream","Open",null,null,"10e - 9 Month to 2 Year Olds - Working Parents - Supplements: EAL","EY10e"]
[314,"Royal Borough of Kingston Upon Thames",7.1,307209,10.09,13.74,null,null,null,null,null,204,"Millfields Community School",2421,"Mainstream","Open",null,null,"11ai - SENIF (3 and 4 Year Olds) funding allocated from EY block","EY11ai"]
[315,"Merton Borough Council",7.08,0,10.29,13.99,null,null,null,null,null,204,"Queensbridge Primary School",2487,"Mainstream","Open",null,null,"11aii - SENIF (3 and 4 Year Olds) funding allocated from HN block","EY11aii"]
[316,"Newham London Borough Council",6.74,2692397,9.6199999999999992,13.22,null,null,null,null,null,204,"Thomas Fairchild Community School",2592,"Mainstream","Open",null,null,"11bi - SENIF (2 Year Olds - Families receiving additional support) funding allocated from EY block","EY11bi"]
[317,"Redbridge London Borough Council",6.49,0,9.3000000000000007,12.62,null,null,null,null,null,204,"Oldhill Community School",2615,"Mainstream","Open",null,null,"11bii - SENIF (2 Year Olds - Families receiving additional support) funding allocated from HN block","EY11bii"]
[318,"Richmond upon Thames London Borough Council",7.14,204266,10.08,13.65,null,null,null,null,null,204,"Shoreditch Park Primary School",2636,"Mainstream","Open",null,null,"11ci - SENIF (2 Year Olds - Working Parents) funding allocated from EY block","EY11ci"]
[319,"Sutton London Borough Council",7.06,462441,10.25,13.94,null,null,null,null,null,204,"Sir Thomas Abney School",2795,"Mainstream","Open",null,null,"11cii - SENIF (2 Year Olds - Working Parents) funding allocated from HN block","EY11cii"]
[320,"Waltham Forest London Borough Council",6.52,648843,9.2799999999999994,12.66,null,null,null,null,null,204,"Nightingale Primary School",2860,"Mainstream","Open",null,null,"11di - SENIF (9 Month to 2 Year Olds) funding allocated from EY block","EY11di"]
[330,"Birmingham City Council",6.2,6724231,9,12.36,null,null,null,null,null,204,"Simon Marks Jewish Primary School",3663,"Mainstream","Open",null,null,"11dii - SENIF (9 Month to 2 Year Olds) funding allocated from HN block","EY11dii"]
[331,"Coventry City Council",5.93,369680,8.59,11.72,null,null,null,null,null,204,"Stormont House School",7097,"Special","Open",null,null,"12a - Early years contingency funding: 3 & 4 year olds","EY12a"]
[332,"Dudley Metropolitan Borough Council",5.71,369873,8.09,11.01,null,null,null,null,null,204,"The Garden School",7161,"Special","Open",null,null,"12b - Early years contingency funding: 2 Year Olds - Families receiving additional support","EY12b"]
[333,"Sandwell Metropolitan Borough Council",6.01,0,8.84,12.07,null,null,null,null,null,204,"Ickburgh School",7171,"Special","Open",null,null,"12c - Early years contingency funding: 2 Year Olds - Working Parents","EY12c"]
[334,"Solihull Metropolitan Borough Council",5.77,0,8.26,11.23,null,null,null,null,null,205,"Miles Coverdale Primary School",2134,"Mainstream","Open",null,null,"12d - Early years contingency funding: 9 Month to 2 Year Olds - Working Parents","EY12d"]
[335,"Walsall Metropolitan Borough Council",5.81,2174824,8.3800000000000008,11.45,null,null,null,null,null,205,"Woodlane High School",7153,"Special","Open",null,null,"13ai - Early years centrally retained funding (3 and 4 Year Olds) - SENIF","EY13ai"]
[336,"Wolverhampton City Council",6,1740761,8.56,11.7,null,null,null,null,null,205,"Jack Tizard School",7203,"Special","Open",null,null,"13aii - Early years centrally retained funding (3 and 4 Year Olds) - Other","EY13aii"]
[340,"Knowsley Metropolitan Borough Council",5.86,0,8.5399999999999991,11.65,null,null,null,null,null,205,"Cambridge School",7204,"Special","Open",null,null,"13bi - Early years centrally retained funding (2 Year Olds - Families receiving additional support) - SENIF","EY13bi"]
[341,"Liverpool City Council",5.86,2157804,8.58,11.75,null,null,null,null,null,206,"New River College Primary",1101,"Pupil Referral Unit","Open",null,null,"13bii - Early years centrally retained funding (2 Year Olds - Families receiving additional support) - Other","EY13bii"]
[342,"St Helens Metropolitan Borough Council",5.76,189246,8.41,11.48,null,null,null,null,null,206,"New River College Secondary",1104,"Pupil Referral Unit","Open",null,null,"13ci - Early years centrally retained funding (2 Year Olds - Working Parents) - SENIF","EY13ci"]
[343,"Sefton Metropolitan Borough Council",5.71,656467,7.95,10.82,null,null,null,null,null,206,"New River College Medical",1110,"Hospital","Open",null,null,"13cii - Early years centrally retained funding (2 Year Olds - Working Parents) - Other","EY13cii"]
[344,"Wirral Metropolitan Borough Council",5.77,615488,8.2799999999999994,11.32,null,null,null,null,null,206,"Laycock Primary School",2379,"Mainstream","Open",null,null,"13di - Early years centrally retained funding (9 Month to 2 Year Olds) - SENIF","EY13di"]
[350,"Bolton Metropolitan Borough Council",5.85,504656,8.3800000000000008,11.42,null,null,null,null,null,206,"Richard Cloudesley School",7030,"Special","Open",null,null,"13dii - Early years centrally retained funding (9 Month to 2 Year Olds) - Other","EY13dii"]
[351,"Bury Metropolitan Borough Council",5.71,260245,8.14,11.06,null,null,null,null,null,206,"Samuel Rhodes MLD School",7146,"Special","Open"]
[352,"Manchester City Council",6.12,377021,8.83,12.07,null,null,null,null,null,207,"Golborne & Maxilla Nursery School",1010,"Mainstream","Open"]
[353,"Oldham Metropolitan Borough Council",5.92,0,8.43,11.5,null,null,null,null,null,207,"Barlby Primary School",2030,"Mainstream","Open"]
[354,"Rochdale Borough Council",5.85,354945,8.39,11.43,null,null,null,null,null,207,"Marlborough Primary School",2399,"Mainstream","Open"]
[355,"Salford City Council",5.94,0,8.5,11.58,null,null,null,null,null,207,"Oxford Gardens Primary School",2452,"Mainstream","Open"]
[356,"Stockport Metropolitan Borough Council",5.71,843372,7.86,10.66,null,null,null,null,null,207,"All Saints Catholic College",4801,"Mainstream","Open"]
[357,"Tameside Metropolitan Borough Council",5.91,0,8.34,11.36,null,null,null,null,null,207,"Chelsea Community Hospital School",7165,"Hospital","Open"]
[358,"Trafford Metropolitan Borough Council",5.71,0,8.0299999999999994,10.88,null,null,null,null,null,208,"Triangle Nursery School",1027,"Mainstream","Open"]
[359,"Wigan Metropolitan Borough Council",5.83,373085,8.1999999999999993,11.15,null,null,null,null,null,208,"Effra Nursery School and Children's Centre",1043,"Mainstream","Open"]
[370,"Barnsley Metropolitan Borough Council",5.71,0,8.01,10.89,null,null,null,null,null,208,"Ethelred Nursery School and Children's Centre",1049,"Mainstream","Open"]
[371,"Doncaster Council",5.71,0,8.1999999999999993,11.17,null,null,null,null,null,208,"Maytree Nursery School",1055,"Mainstream","Open"]
[372,"Rotherham Borough Council",5.71,1279058,8.15,11.12,null,null,null,null,null,208,"Larkhall Primary Campus",2371,"Mainstream","Open"]
[373,"Sheffield City Council",5.8,453379,8.26,11.29,null,null,null,null,null,208,"Richard Atkins Primary School",2504,"Mainstream","Open"]
[380,"Bradford City Council",5.78,2014416,8.35,11.43,null,null,null,null,null,208,"Wyvil Primary School and Resource Bases for Speech, Language and Communication Needs, and Autism",2664,"Mainstream","Open"]
[381,"Calderdale Metropolitan Borough Council",5.71,0,7.94,10.79,null,null,null,null,null,208,"Crown Lane Primary School",2783,"Mainstream","Open"]
[382,"Kirklees Metropolitan Council",5.71,222990,7.93,10.77,null,null,null,null,null,208,"Allen Edwards Primary School",2808,"Mainstream","Open"]
[383,"Leeds City Council",5.82,0,8.44,11.5,null,null,null,null,null,208,"Hill Mead Primary School",2898,"Mainstream","Open"]
[384,"Wakefield City Council",5.71,531691,8.19,11.16,null,null,null,null,null,208,"Jubilee Primary School",3000,"Mainstream","Open"]
[390,"Gateshead Council",5.71,309111,7.94,10.79,null,null,null,null,null,208,"Archbishop Sumner Church of England Primary School",3307,"Mainstream","Open"]
[391,"Newcastle upon Tyne City Council",5.84,612796,8.25,11.26,null,null,null,null,null,208,"Turney Primary and Secondary Special School",5950,"Special","Open"]
[392,"North Tyneside Metropolitan Borough Council",5.71,174227,7.76,10.53,null,null,null,null,null,208,"Lansdowne School",7001,"Special","Open"]
[393,"South Tyneside Council",5.71,671072,8.07,10.98,null,null,null,null,null,208,"Elm Court School",7115,"Special","Open"]
[394,"Sunderland City Metropolitan Borough Council",5.71,1501950,8.11,11.04,null,null,null,null,null,208,"The Livity School",7194,"Special","Open"]
[420,"Council of the Isles of Scilly","","","","",null,null,null,null,null,209,"Abbey Manor College",1103,"Pupil Referral Unit","Open"]
[800,"Bath & North East Somerset Council",5.94,0,8.35,11.33,null,null,null,null,null,209,"Athelney Primary School",2023,"Mainstream","Open"]
[801,"Bristol City Council",6.12,3523575,8.75,11.99,null,null,null,null,null,209,"Cooper's Lane Primary School",2127,"Mainstream","Open"]
[802,"North Somerset Council",5.84,0,8.26,11.19,null,null,null,null,null,209,"Edmund Waller Primary School",2187,"Mainstream","Open"]
[803,"South Gloucestershire Council",5.89,0,8.36,11.31,null,null,null,null,null,209,"Forster Park Primary School",2225,"Mainstream","Open"]
[805,"Hartlepool Borough Council",5.9,0,8.2799999999999994,11.27,null,null,null,null,null,209,"Kelvin Grove Primary School",2347,"Mainstream","Open"]
[806,"Middlesbrough Council",5.91,0,8.4700000000000006,11.58,null,null,null,null,null,209,"Launcelot Primary School and Nursery",2374,"Mainstream","Open"]
[807,"Redcar and Cleveland Borough Council",5.75,0,8.06,10.95,null,null,null,null,null,209,"Rushey Green Primary School",2529,"Mainstream","Open"]
[808,"Stockton-on-Tees Borough Council",5.71,0,7.98,10.84,null,null,null,null,null,209,"Torridon Primary School",2606,"Mainstream","Open"]
[810,"Kingston upon Hull City Council",5.71,313158,8.23,11.22,null,null,null,null,null,209,"Deptford Green School",4047,"Mainstream","Open"]
[811,"East Riding of Yorkshire Council",5.71,781916,7.62,10.31,null,null,null,null,null,209,"Addey and Stanhope School",4600,"Mainstream","Open"]
[812,"North East Lincolnshire Council",5.71,210874,8.11,11.06,null,null,null,null,null,209,"Brent Knoll School",7038,"Special","Open"]
[813,"North Lincolnshire Council",5.71,0,7.84,10.64,null,null,null,null,null,209,"New Woodlands School",7141,"Special","Open"]
[815,"North Yorkshire County Council",5.71,451997,7.74,10.48,null,null,null,null,null,209,"Greenvale School",7180,"Special","Open"]
[816,"City of York Council",5.71,166026,7.91,10.72,null,null,null,null,null,209,"Watergate School",7182,"Special","Open"]
[821,"Luton Borough Council",6.1,2019225,8.6300000000000008,11.76,null,null,null,null,null,209,"Drumbeat School and ASD Service",7183,"Special","Open"]
[822,"Bedford Borough Council",6.04,651036,8.48,11.52,null,null,null,null,null,210,"Southwark Inclusive Learning Service (Sils)",1104,"Pupil Referral Unit","Open"]
[823,"Central Bedfordshire Council",5.78,495644,8.11,10.98,null,null,null,null,null,210,"John Ruskin Primary School and Language Classes",2339,"Mainstream","Open"]
[825,"Buckinghamshire Council",6.44,524181,9.16,12.46,null,null,null,null,null,210,"Robert Browning Primary School",2516,"Mainstream","Open"]
[826,"Milton Keynes Council",6.36,270351,8.85,12.01,null,null,null,null,null,210,"Snowsfields Primary School",2560,"Mainstream","Open"]
[830,"Derbyshire County Council",5.71,1408367,7.75,10.51,null,null,null,null,null,210,"Brunswick Park Primary School",2858,"Mainstream","Open"]
[831,"Derby City Council",5.94,1671525,8.43,11.51,null,null,null,null,null,210,"St John's and St Clement's Church of England Primary School",3460,"Mainstream","Open"]
[838,"Dorset Council",5.71,0,7.72,10.44,null,null,null,null,null,210,"Peter Hills with St Mary's and St Paul's CofE Primary School",3516,"Mainstream","Open"]
[839,"Bournemouth, Christchurch and Poole Council",5.84,0,8.36,11.34,null,null,null,null,null,210,"Rye Oak Primary School",3670,"Mainstream","Open"]
[840,"County Durham Council",5.71,1864521,7.98,10.85,null,null,null,null,null,210,"Highshore School",7007,"Special","Open"]
[841,"Darlington Borough Council",5.71,434064,8.09,11.02,null,null,null,null,null,210,"Evelina Hospital School",7066,"Hospital","Open"]
[845,"East Sussex County Council",5.97,0,8.56,11.63,null,null,null,null,null,210,"Maudsley and Bethlem Hospital School",7073,"Hospital","Open"]
[846,"Brighton & Hove City Council",6.1,390507,9.6199999999999992,13.1,null,null,null,null,null,210,"Haymerle School",7126,"Special","Open"]
[850,"Hampshire County Council",6.16,1531419,8.48,11.49,null,null,null,null,null,210,"Beormund Primary School",7167,"Special","Open"]
[851,"Portsmouth City Council",6.4,0,9.36,12.76,null,null,null,null,null,210,"Tuke School",7174,"Special","Open"]
[852,"Southampton City Council",6.62,147402,9.34,12.74,null,null,null,null,null,210,"Cherry Garden School",7186,"Special","Open"]
[855,"Leicestershire County Council",5.71,301074,7.53,10.18,null,null,null,null,null,211,"Childrens House Nursery School",1012,"Mainstream","Open"]
[856,"Leicester City Council",5.74,0,8.27,11.27,null,null,null,null,null,211,"London East Alternative Provision",1100,"Pupil Referral Unit","Open"]
[857,"Rutland County Council",5.71,0,7.23,9.76,null,null,null,null,null,211,"Ben Jonson Primary School",2043,"Mainstream","Open"]
[860,"Staffordshire County Council",5.71,249546,7.94,10.77,null,null,null,null,null,211,"Globe Primary School",2254,"Mainstream","Open"]
[861,"Stoke-on-Trent City Council",5.9,130610,8.35,11.38,null,null,null,null,null,211,"Hague Primary School",2270,"Mainstream","Open"]
[865,"The Wiltshire Council",5.71,0,7.76,10.48,null,null,null,null,null,211,"Harbinger Primary School",2281,"Mainstream","Open"]
[866,"Swindon Borough Council",5.87,0,8.33,11.32,null,null,null,null,null,211,"Elizabeth Selby Infants' School",2378,"Mainstream","Open"]
[867,"Bracknell Forest Borough Council",6.73,0,9.8000000000000007,13.24,null,null,null,null,null,211,"Bangabandhu Primary School",2912,"Mainstream","Open"]
[868,"Royal Borough of Windsor And Maidenhead",6.73,672874,9.4499999999999993,12.8,null,null,null,null,null,211,"George Green's School",4505,"Mainstream","Open"]
[869,"West Berkshire Council",6.49,500961,9.06,12.3,null,null,null,null,null,211,"Bowden House School",7084,"Special","Open"]
[870,"Reading Borough Council",6.86,1041152,10.02,13.76,null,null,null,null,null,211,"Phoenix School",7095,"Special","Open"]
[871,"Slough Borough Council",6.95,1504954,10.08,13.76,null,null,null,null,null,211,"Beatrice Tate School",7168,"Special","Open"]
[872,"Wokingham Council",6.53,351247,9.27,12.54,null,null,null,null,null,211,"Stephen Hawking School",7169,"Special","Open"]
[873,"Cambridgeshire County Council",6.06,1512433,8.4,11.38,null,null,null,null,null,212,"Francis Barber Pupil Referral Unit",1101,"Pupil Referral Unit","Open"]
[874,"Peterborough City Council",6.24,331814,8.81,12.01,null,null,null,null,null,212,"Victoria Drive Primary Pupil Referral Unit",1102,"Pupil Referral Unit","Open"]
[876,"Halton Borough Council",5.97,534695,8.52,11.6,null,null,null,null,null,212,"Wandsworth Hospital and Home Tuition Service",1103,"Pupil Referral Unit","Open"]
[877,"Warrington Borough Council",5.76,219285,8.0500000000000007,10.94,null,null,null,null,null,212,"Riversdale Primary School",2511,"Mainstream","Open"]
[878,"Devon County Council",5.71,397116,7.68,10.39,null,null,null,null,null,212,"Sellincourt Primary School",2541,"Mainstream","Open"]
[879,"Plymouth City Council",5.87,571626,8.3699999999999992,11.39,null,null,null,null,null,212,"Smallwood Primary School and Language Unit",2558,"Mainstream","Open"]
[880,"Torbay Council",5.93,0,8.5,11.58,null,null,null,null,null,212,"Swaffield School",2584,"Mainstream","Open"]
[881,"Essex County Council",5.87,516671,8.1999999999999993,11.11,null,null,null,null,null,212,"Southmead Primary School",2780,"Mainstream","Open"]
[882,"Southend City Council",5.88,0,8.4,11.43,null,null,null,null,null,212,"Granard Primary School",2781,"Mainstream","Open"]
[883,"Thurrock Council",6.13,0,8.75,11.89,null,null,null,null,null,212,"Sacred Heart Catholic Primary School, Battersea",3645,"Mainstream","Open"]
[884,"Herefordshire Council",5.71,0,7.44,10.07,null,null,null,null,null,212,"Saint John Bosco College",4008,"Mainstream","Open"]
[885,"Worcestershire County Council",5.71,182638,7.71,10.45,null,null,null,null,null,212,"Hillbrook School",5201,"Mainstream","Open"]
[886,"Kent County Council",5.99,273355,8.33,11.31,null,null,null,null,null,212,"Oak Lodge School",7068,"Special","Open"]
[887,"Medway Council",5.79,0,8.1999999999999993,11.15,null,null,null,null,null,212,"Bradstow School",7077,"Special","Open"]
[888,"Lancashire County Council",5.71,5353947,7.83,10.63,null,null,null,null,null,212,"Greenmead School",7123,"Special","Open"]
[889,"Blackburn with Darwen Borough Council",5.71,744968,8.14,11.08,null,null,null,null,null,212,"Paddock School",7183,"Special","Open"]
[890,"Blackpool Borough Council",5.86,0,8.4,11.46,null,null,null,null,null,212,"Garratt Park School",7207,"Special","Open"]
[891,"Nottinghamshire County Council",5.71,0,7.86,10.66,null,null,null,null,null,213,"Dorothy Gardner Nursery School",1046,"Mainstream","Open"]
[892,"Nottingham City Council",5.94,194017,8.6199999999999992,11.78,null,null,null,null,null,213,"Portman Early Childhood Centre",1053,"Mainstream","Open"]
[893,"The Shropshire Council",5.71,0,7.55,10.23,null,null,null,null,null,213,"Edward Wilson Primary School",2189,"Mainstream","Open"]
[894,"Borough of Telford And Wrekin",5.71,394112,8.0299999999999994,10.92,null,null,null,null,null,213,"Hallfield Primary School",2799,"Mainstream","Open"]
[895,"Cheshire East Council",5.71,260946,7.74,10.48,null,null,null,null,null,213,"All Souls CofE Primary School",3306,"Mainstream","Open"]
[896,"Cheshire West and Chester Council",5.71,0,7.97,10.81,null,null,null,null,null,213,"St Augustine's Federated Schools: CE High School",4723,"Mainstream","Open"]
[908,"Cornwall Council",5.71,439939,7.72,10.46,null,null,null,null,null,213,"College Park School",7042,"Special","Open"]
[916,"Gloucestershire County Council",5.71,0,7.94,10.75,null,null,null,null,null,213,"Queen Elizabeth II Jubilee School",7184,"Special","Open"]
[919,"Hertfordshire County Council",6.25,3467342,8.99,12.19,null,null,null,null,null,301,"Mayesbrook Park School",1100,"Pupil Referral Unit","Open"]
[921,"Isle of Wight Council",5.86,0,8.2200000000000006,11.15,null,null,null,null,null,301,"Manor Primary School",2010,"Mainstream","Open"]
[925,"Lincolnshire County Council",5.71,970350,7.81,10.58,null,null,null,null,null,301,"Ripple Primary School",2015,"Mainstream","Open"]
[926,"Norfolk County Council",5.71,475217,7.94,10.78,null,null,null,null,null,301,"Grafton Primary School",2033,"Mainstream","Open"]
[929,"The Northumberland Council",5.71,0,7.72,10.47,null,null,null,null,null,301,"Thomas Arnold Primary School, Rowdowns Road",2056,"Mainstream","Open"]
[931,"Oxfordshire County Council",6,1194952,8.3800000000000008,11.35,null,null,null,null,null,301,"Valence Primary School",2059,"Mainstream","Open"]
[933,"Somerset Council",5.71,0,7.72,10.46,null,null,null,null,null,301,"Rose Lane Primary School",2061,"Mainstream","Open"]
[935,"Suffolk County Council",5.72,206068,7.95,10.78,null,null,null,null,null,301,"Parsloes Primary School",2064,"Mainstream","Open"]
[936,"Surrey County Council",7.08,1266033,10.01,13.62,null,null,null,null,null,301,"Five Elms Primary School",2065,"Mainstream","Open"]
[937,"Warwickshire County Council",5.83,1202972,8.08,10.95,null,null,null,null,null,301,"Henry Green Primary School",2066,"Mainstream","Open"]
[938,"West Sussex County Council",6.38,1225592,8.93,12.11,null,null,null,null,null,301,"Roding Primary School",2067,"Mainstream","Open"]
[940,"North Northamptonshire Council",5.71,1348073,8,10.86,null,null,null,null,null,301,"Becontree Primary School",2068,"Mainstream","Open"]
[941,"West Northamptonshire Council",5.71,1123331,8.0399999999999991,10.9,null,null,null,null,null,301,"John Perry Primary School",2069,"Mainstream","Open"]
[942,"Cumberland Council",5.71,425426,7.57,10.26,null,null,null,null,null,301,"Richard Alibon Primary School with ARP for Cognitive and Learning Difficulties : SEN Base",2070,"Mainstream","Open"]
[943,"Westmorland And Furness Council",5.71,355362,7.49,10.130000000000001,null,null,null,null,null,301,"Monteagle Primary School",2071,"Mainstream","Open"]
[null,null,null,null,null,null,null,null,null,null,null,301,"Godwin Primary School",2072,"Mainstream","Open"]
[null,null,null,null,null,null,null,null,null,null,null,301,"Hunters Hall Primary School",2073,"Mainstream","Open"]
[null,null,null,null,null,null,null,null,null,null,null,301,"St Peter's Catholic Primary School",3503,"Mainstream","Open"]
[null,null,null,null,null,null,null,null,null,null,null,301,"George Carey Church of England Primary School",3507,"Mainstream","Open"]
[null,null,null,null,null,null,null,null,null,null,null,301,"Barking Abbey School, A Specialist Sports and Humanities College",4021,"Mainstream","Open"]
[null,null,null,null,null,null,null,null,null,null,null,301,"Eastbrook School",4023,"Mainstream","Open"]
[null,null,null,null,null,null,null,null,null,null,null,301,"Eastbury Community School",4024,"Mainstream","Open"]
[null,null,null,null,null,null,null,null,null,null,null,301,"Robert Clack School",4027,"Mainstream","Open"]
[null,null,null,null,null,null,null,null,null,null,null,301,"Jo Richardson Community School",4029,"Mainstream","Open"]
[null,null,null,null,null,null,null,null,null,null,null,301,"All Saints Catholic School and Technology College",4703,"Mainstream","Open"]
[null,null,null,null,null,null,null,null,null,null,null,301,"Dagenham Park CofE School",4704,"Mainstream","Open"]
[null,null,null,null,null,null,null,null,null,null,null,301,"Trinity School",7005,"Special","Open"]
[null,null,null,null,null,null,null,null,null,null,null,302,"Pavilion Study Centre",1100,"Pupil Referral Unit","Open"]
[null,null,null,null,null,null,null,null,null,null,null,302,"Northgate School",1102,"Pupil Referral Unit","Open"]
[null,null,null,null,null,null,null,null,null,null,null,302,"Colindale Primary School",2014,"Mainstream","Open"]
[null,null,null,null,null,null,null,null,null,null,null,302,"Coppetts Wood Primary School",2015,"Mainstream","Open"]
[null,null,null,null,null,null,null,null,null,null,null,302,"Livingstone Primary and Nursery School",2036,"Mainstream","Open"]
[null,null,null,null,null,null,null,null,null,null,null,302,"Chalgrove Primary School",2067,"Mainstream","Open"]
[null,null,null,null,null,null,null,null,null,null,null,302,"Queenswell Junior School",2072,"Mainstream","Open"]
[null,null,null,null,null,null,null,null,null,null,null,302,"The Orion Primary School",2077,"Mainstream","Open"]
[null,null,null,null,null,null,null,null,null,null,null,302,"JCoSS",5427,"Mainstream","Open"]
[null,null,null,null,null,null,null,null,null,null,null,302,"Northway School",7005,"Special","Open"]
[null,null,null,null,null,null,null,null,null,null,null,302,"Oakleigh School & Acorn Assessment Centre",7009,"Special","Open"]
[null,null,null,null,null,null,null,null,null,null,null,302,"Mapledown School",7010,"Special","Open"]
[null,null,null,null,null,null,null,null,null,null,null,303,"Crook Log Primary School",2001,"Mainstream","Open"]
[null,null,null,null,null,null,null,null,null,null,null,303,"Upton Primary School",2016,"Mainstream","Open"]
[null,null,null,null,null,null,null,null,null,null,null,303,"Parkway Primary School",2059,"Mainstream","Open"]
[null,null,null,null,null,null,null,null,null,null,null,303,"Marlborough School",7002,"Special","Open"]
[null,null,null,null,null,null,null,null,null,null,null,304,"Fawood Nursery School & Family Wellbeing Centre",1001,"Mainstream","Open"]
[null,null,null,null,null,null,null,null,null,null,null,304,"Granville Plus Nursery School",1004,"Mainstream","Open"]
[null,null,null,null,null,null,null,null,null,null,null,304,"Brent River College",1105,"Pupil Referral Unit","Open"]
[null,null,null,null,null,null,null,null,null,null,null,304,"Ashley College",1110,"Pupil Referral Unit","Open"]
[null,null,null,null,null,null,null,null,null,null,null,304,"Carlton Vale Infant School",2007,"Mainstream","Open"]
[null,null,null,null,null,null,null,null,null,null,null,304,"Kingsbury Green Primary School",2024,"Mainstream","Open"]
[null,null,null,null,null,null,null,null,null,null,null,304,"Preston Park Primary School",2039,"Mainstream","Open"]
[null,null,null,null,null,null,null,null,null,null,null,304,"Newfield Primary School",2064,"Mainstream","Open"]
[null,null,null,null,null,null,null,null,null,null,null,304,"Fryent Primary School",2074,"Mainstream","Open"]
[null,null,null,null,null,null,null,null,null,null,null,304,"The Kilburn Park School Foundation",5204,"Mainstream","Open"]
[null,null,null,null,null,null,null,null,null,null,null,304,"Phoenix Arch School",7005,"Special","Open"]
[null,null,null,null,null,null,null,null,null,null,null,305,"Poverest Primary School",2080,"Mainstream","Open"]
[null,null,null,null,null,null,null,null,null,null,null,305,"Riverside School",7012,"Special","Open"]
[null,null,null,null,null,null,null,null,null,null,null,306,"Purley Nursery School",1002,"Mainstream","Open"]
[null,null,null,null,null,null,null,null,null,null,null,306,"Winterbourne Nursery and Infants' School",2051,"Mainstream","Open"]
[null,null,null,null,null,null,null,null,null,null,null,306,"Norbury Manor Primary School",2105,"Mainstream","Open"]
[null,null,null,null,null,null,null,null,null,null,null,306,"Bensham Manor School",7000,"Special","Open"]
[null,null,null,null,null,null,null,null,null,null,null,306,"St Giles School",7001,"Special","Open"]
[null,null,null,null,null,null,null,null,null,null,null,306,"St Nicholas School",7005,"Special","Open"]
[null,null,null,null,null,null,null,null,null,null,null,306,"Red Gates School",7006,"Special","Open"]
[null,null,null,null,null,null,null,null,null,null,null,306,"Priory School",7008,"Special","Open"]
[null,null,null,null,null,null,null,null,null,null,null,307,"South Acton Childrens Centre",1003,"Mainstream","Open"]
[null,null,null,null,null,null,null,null,null,null,null,307,"Ealing Alternative Provision",1103,"Pupil Referral Unit","Open"]
[null,null,null,null,null,null,null,null,null,null,null,307,"Ealing Primary Centre",1104,"Pupil Referral Unit","Open"]
[null,null,null,null,null,null,null,null,null,null,null,307,"St John's Primary School",2058,"Mainstream","Open"]
[null,null,null,null,null,null,null,null,null,null,null,307,"West Acton Primary School",2071,"Mainstream","Open"]
[null,null,null,null,null,null,null,null,null,null,null,307,"Beaconsfield Primary and Nursery School",2083,"Mainstream","Open"]
[null,null,null,null,null,null,null,null,null,null,null,307,"Coston Primary School",2088,"Mainstream","Open"]
[null,null,null,null,null,null,null,null,null,null,null,307,"Downe Manor Primary School",2092,"Mainstream","Open"]
[null,null,null,null,null,null,null,null,null,null,null,307,"Drayton Green Primary School",2094,"Mainstream","Open"]
[null,null,null,null,null,null,null,null,null,null,null,307,"Selborne Primary School",2125,"Mainstream","Open"]
[null,null,null,null,null,null,null,null,null,null,null,307,"Allenby Primary School",2161,"Mainstream","Open"]
[null,null,null,null,null,null,null,null,null,null,null,307,"Fielding Primary School",2167,"Mainstream","Open"]
[null,null,null,null,null,null,null,null,null,null,null,307,"Havelock Primary School, Nursery & Arp",2170,"Mainstream","Open"]
[null,null,null,null,null,null,null,null,null,null,null,307,"Willow Tree Primary School",2172,"Mainstream","Open"]
[null,null,null,null,null,null,null,null,null,null,null,307,"Elthorne Park High School",4036,"Mainstream","Open"]
[null,null,null,null,null,null,null,null,null,null,null,307,"Greenford High School",5401,"Mainstream","Open"]
[null,null,null,null,null,null,null,null,null,null,null,307,"Belvue School",7005,"Special","Open"]
[null,null,null,null,null,null,null,null,null,null,null,307,"Castlebar School",7007,"Special","Open"]
[null,null,null,null,null,null,null,null,null,null,null,307,"Mandeville School",7010,"Special","Open"]
[null,null,null,null,null,null,null,null,null,null,null,307,"John Chilton School",7012,"Special","Open"]
[null,null,null,null,null,null,null,null,null,null,null,307,"Springhallow School",7013,"Special","Open"]
[null,null,null,null,null,null,null,null,null,null,null,307,"St Ann's School",7014,"Special","Open"]
[null,null,null,null,null,null,null,null,null,null,null,308,"Orchardside School",1100,"Pupil Referral Unit","Open"]
[null,null,null,null,null,null,null,null,null,null,null,308,"Firs Farm Primary School",2028,"Mainstream","Open"]
[null,null,null,null,null,null,null,null,null,null,null,308,"Suffolks Primary School",2061,"Mainstream","Open"]
[null,null,null,null,null,null,null,null,null,null,null,308,"West Grove Primary",2089,"Mainstream","Open"]
[null,null,null,null,null,null,null,null,null,null,null,308,"Oakthorpe Primary School",2090,"Mainstream","Open"]
[null,null,null,null,null,null,null,null,null,null,null,308,"Highfield Primary School",2092,"Mainstream","Open"]
[null,null,null,null,null,null,null,null,null,null,null,308,"Starks Field Primary School",2094,"Mainstream","Open"]
[null,null,null,null,null,null,null,null,null,null,null,308,"Chace Community School",4037,"Mainstream","Open"]
[null,null,null,null,null,null,null,null,null,null,null,308,"Highlands School",4043,"Mainstream","Open"]
[null,null,null,null,null,null,null,null,null,null,null,308,"St Ignatius College",5403,"Mainstream","Open"]
[null,null,null,null,null,null,null,null,null,null,null,308,"Durants School",7000,"Special","Open"]
[null,null,null,null,null,null,null,null,null,null,null,308,"West Lea School",7002,"Special","Open"]
[null,null,null,null,null,null,null,null,null,null,null,308,"Oaktree School",7005,"Special","Open"]
[null,null,null,null,null,null,null,null,null,null,null,308,"Waverley School",7007,"Special","Open"]
[null,null,null,null,null,null,null,null,null,null,null,308,"Russet House School",7008,"Special","Open"]
[null,null,null,null,null,null,null,null,null,null,null,309,"Haringey Learning Partnership",1101,"Pupil Referral Unit","Open"]
[null,null,null,null,null,null,null,null,null,null,null,309,"Earlsmead Primary School",2020,"Mainstream","Open"]
[null,null,null,null,null,null,null,null,null,null,null,309,"West Green Primary School",2051,"Mainstream","Open"]
[null,null,null,null,null,null,null,null,null,null,null,309,"The Mulberry Primary School",3001,"Mainstream","Open"]
[null,null,null,null,null,null,null,null,null,null,null,309,"Blanche Nevile School",7000,"Special","Open"]
[null,null,null,null,null,null,null,null,null,null,null,309,"Vale School",7001,"Special","Open"]
[null,null,null,null,null,null,null,null,null,null,null,309,"The Brook Special Primary School",7005,"Special","Open"]
[null,null,null,null,null,null,null,null,null,null,null,309,"Riverside School",7006,"Special","Open"]
[null,null,null,null,null,null,null,null,null,null,null,310,"Hillview Nursery School",1003,"Mainstream","Open"]
[null,null,null,null,null,null,null,null,null,null,null,310,"The Helix Education Centre",1101,"Pupil Referral Unit","Open"]
[null,null,null,null,null,null,null,null,null,null,null,310,"Belmont School",2055,"Mainstream","Open"]
[null,null,null,null,null,null,null,null,null,null,null,310,"Grange Primary School",2071,"Mainstream","Open"]
[null,null,null,null,null,null,null,null,null,null,null,310,"Elmgrove Primary School & Nursery",2082,"Mainstream","Open"]
[null,null,null,null,null,null,null,null,null,null,null,310,"Stanburn Primary School",2085,"Mainstream","Open"]
[null,null,null,null,null,null,null,null,null,null,null,310,"West Lodge Primary School",2087,"Mainstream","Open"]
[null,null,null,null,null,null,null,null,null,null,null,310,"Pinner Wood School",3512,"Mainstream","Open"]
[null,null,null,null,null,null,null,null,null,null,null,310,"Cedars Manor School",3514,"Mainstream","Open"]
[null,null,null,null,null,null,null,null,null,null,null,310,"Whitmore High School",4026,"Mainstream","Open"]
[null,null,null,null,null,null,null,null,null,null,null,310,"Shaftesbury High School",7002,"Special","Open"]
[null,null,null,null,null,null,null,null,null,null,null,310,"Kingsley High School",7005,"Special","Open"]
[null,null,null,null,null,null,null,null,null,null,null,310,"Woodlands School",7006,"Special","Open"]
[null,null,null,null,null,null,null,null,null,null,null,311,"Clockhouse Primary School",2038,"Mainstream","Open"]
[null,null,null,null,null,null,null,null,null,null,null,311,"Nelmes Primary School",2086,"Mainstream","Open"]
[null,null,null,null,null,null,null,null,null,null,null,311,"Mead Primary School",2087,"Mainstream","Open"]
[null,null,null,null,null,null,null,null,null,null,null,311,"R J Mitchell Primary School",2093,"Mainstream","Open"]
[null,null,null,null,null,null,null,null,null,null,null,311,"St Edward's Church of England Voluntary Aided Primary School",3301,"Mainstream","Open"]
[null,null,null,null,null,null,null,null,null,null,null,311,"Corbets Tey School",7000,"Special","Open"]
[null,null,null,null,null,null,null,null,null,null,null,312,"Coteford Infant School",2012,"Mainstream","Open"]
[null,null,null,null,null,null,null,null,null,null,null,312,"Deanesfield Primary School",2016,"Mainstream","Open"]
[null,null,null,null,null,null,null,null,null,null,null,312,"Glebe Primary School",2020,"Mainstream","Open"]
[null,null,null,null,null,null,null,null,null,null,null,312,"Ruislip Gardens Primary School",2080,"Mainstream","Open"]
[null,null,null,null,null,null,null,null,null,null,null,312,"Cherry Lane Primary School",2084,"Mainstream","Open"]
[null,null,null,null,null,null,null,null,null,null,null,312,"Hayes Park School",5211,"Mainstream","Open"]
[null,null,null,null,null,null,null,null,null,null,null,312,"Oak Wood School",5409,"Mainstream","Open"]
[null,null,null,null,null,null,null,null,null,null,null,312,"Harlington School",5411,"Mainstream","Open"]
[null,null,null,null,null,null,null,null,null,null,null,312,"Meadow High School",7004,"Special","Open"]
[null,null,null,null,null,null,null,null,null,null,null,312,"Hedgewood School",7009,"Special","Open"]
[null,null,null,null,null,null,null,null,null,null,null,313,"The Woodbridge Park Education Service",1100,"Pupil Referral Unit","Open"]
[null,null,null,null,null,null,null,null,null,null,null,313,"Feltham Hill Infant and Nursery School",2021,"Mainstream","Open"]
[null,null,null,null,null,null,null,null,null,null,null,313,"Hounslow Town Primary School",2033,"Mainstream","Open"]
[null,null,null,null,null,null,null,null,null,null,null,313,"Lionel Primary School",2036,"Mainstream","Open"]
[null,null,null,null,null,null,null,null,null,null,null,313,"Norwood Green Infant and Nursery School",2039,"Mainstream","Open"]
[null,null,null,null,null,null,null,null,null,null,null,313,"Strand-on-the-Green Junior School",2047,"Mainstream","Open"]
[null,null,null,null,null,null,null,null,null,null,null,313,"Strand-on-the-Green Infant and Nursery School",2048,"Mainstream","Open"]
[null,null,null,null,null,null,null,null,null,null,null,313,"Hounslow Heath School",2049,"Mainstream","Open"]
[null,null,null,null,null,null,null,null,null,null,null,313,"Worple Primary School",2051,"Mainstream","Open"]
[null,null,null,null,null,null,null,null,null,null,null,313,"The Smallberry Green Primary School",2064,"Mainstream","Open"]
[null,null,null,null,null,null,null,null,null,null,null,313,"Grove Road Primary School",2071,"Mainstream","Open"]
[null,null,null,null,null,null,null,null,null,null,null,313,"Crane Park Primary School",2078,"Mainstream","Open"]
[null,null,null,null,null,null,null,null,null,null,null,313,"Marjory Kinnon School",7005,"Special","Open"]
[null,null,null,null,null,null,null,null,null,null,null,313,"Oaklands School",7006,"Special","Open"]
[null,null,null,null,null,null,null,null,null,null,null,313,"Lindon Bennett School",7007,"Special","Open"]
[null,null,null,null,null,null,null,null,null,null,null,313,"The Cedars Primary School",7010,"Special","Open"]
[null,null,null,null,null,null,null,null,null,null,null,314,"Surbiton Hill Nursery School",1001,"Mainstream","Open"]
[null,null,null,null,null,null,null,null,null,null,null,314,"Malden Oaks School and Tuition Service",1101,"Pupil Referral Unit","Open"]
[null,null,null,null,null,null,null,null,null,null,null,314,"Lime Tree Primary School",2006,"Mainstream","Open"]
[null,null,null,null,null,null,null,null,null,null,null,314,"Tolworth Junior School",2024,"Mainstream","Open"]
[null,null,null,null,null,null,null,null,null,null,null,314,"Tolworth Infant and Nursery School",2025,"Mainstream","Open"]
[null,null,null,null,null,null,null,null,null,null,null,314,"Alexandra Primary School",2031,"Mainstream","Open"]
[null,null,null,null,null,null,null,null,null,null,null,314,"Grand Avenue Primary and Nursery School",2033,"Mainstream","Open"]
[null,null,null,null,null,null,null,null,null,null,null,314,"King's Oak Primary School",2035,"Mainstream","Open"]
[null,null,null,null,null,null,null,null,null,null,null,315,"Canterbury Campus and Lavender Campus",1100,"Pupil Referral Unit","Open"]
[null,null,null,null,null,null,null,null,null,null,null,315,"Hatfeild Primary School",2059,"Mainstream","Open"]
[null,null,null,null,null,null,null,null,null,null,null,315,"West Wimbledon Primary School",2081,"Mainstream","Open"]
[null,null,null,null,null,null,null,null,null,null,null,315,"Cranmer Primary School",2082,"Mainstream","Open"]
[null,null,null,null,null,null,null,null,null,null,null,315,"Liberty Primary",2085,"Mainstream","Open"]
[null,null,null,null,null,null,null,null,null,null,null,315,"Wimbledon Chase Primary School",2091,"Mainstream","Open"]
[null,null,null,null,null,null,null,null,null,null,null,315,"The Priory CofE School",3506,"Mainstream","Open"]
[null,null,null,null,null,null,null,null,null,null,null,315,"Ricards Lodge High School",4050,"Mainstream","Open"]
[null,null,null,null,null,null,null,null,null,null,null,315,"Raynes Park High School",4052,"Mainstream","Open"]
[null,null,null,null,null,null,null,null,null,null,null,315,"Rutlish School",4500,"Mainstream","Open"]
[null,null,null,null,null,null,null,null,null,null,null,315,"Melrose School",7003,"Special","Open"]
[null,null,null,null,null,null,null,null,null,null,null,315,"Perseid School",7004,"Special","Open"]
[null,null,null,null,null,null,null,null,null,null,null,315,"Cricket Green School",7006,"Special","Open"]
[null,null,null,null,null,null,null,null,null,null,null,316,"Ronald Openshaw Nursery School",1003,"Mainstream","Open"]
[null,null,null,null,null,null,null,null,null,null,null,316,"Tunmarsh School",1100,"Pupil Referral Unit","Open"]
[null,null,null,null,null,null,null,null,null,null,null,316,"New Directions",1101,"Pupil Referral Unit","Open"]
[null,null,null,null,null,null,null,null,null,null,null,316,"Brampton Primary School",2004,"Mainstream","Open"]
[null,null,null,null,null,null,null,null,null,null,null,316,"Colegrave Primary School",2079,"Mainstream","Open"]
[null,null,null,null,null,null,null,null,null,null,null,316,"Calverton Primary School",2089,"Mainstream","Open"]
[null,null,null,null,null,null,null,null,null,null,null,316,"Essex Primary School",2095,"Mainstream","Open"]
[null,null,null,null,null,null,null,null,null,null,null,316,"Sandringham Primary School",2096,"Mainstream","Open"]
[null,null,null,null,null,null,null,null,null,null,null,316,"Sir John Heron Primary School",2101,"Mainstream","Open"]
[null,null,null,null,null,null,null,null,null,null,null,316,"Little Ilford School",4015,"Mainstream","Open"]
[null,null,null,null,null,null,null,null,null,null,null,317,"The Constance Bridgeman Centre",1100,"Pupil Referral Unit","Open"]
[null,null,null,null,null,null,null,null,null,null,null,317,"Redbridge Alternative Provision",1101,"Pupil Referral Unit","Open"]
[null,null,null,null,null,null,null,null,null,null,null,317,"Roding Primary School",2051,"Mainstream","Open"]
[null,null,null,null,null,null,null,null,null,null,null,317,"Mayespark Primary School",2071,"Mainstream","Open"]
[null,null,null,null,null,null,null,null,null,null,null,317,"Cranbrook Primary School",3528,"Mainstream","Open"]
[null,null,null,null,null,null,null,null,null,null,null,317,"Caterham High School",4006,"Mainstream","Open"]
[null,null,null,null,null,null,null,null,null,null,null,317,"Seven Kings School",4032,"Mainstream","Open"]
[null,null,null,null,null,null,null,null,null,null,null,317,"Little Heath School",5950,"Special","Open"]
[null,null,null,null,null,null,null,null,null,null,null,317,"New Rush Hall School",7004,"Special","Open"]
[null,null,null,null,null,null,null,null,null,null,null,317,"Hatton Special School",7007,"Special","Open"]
[null,null,null,null,null,null,null,null,null,null,null,318,"Windham Nursery School",1001,"Mainstream","Open"]
[null,null,null,null,null,null,null,null,null,null,null,318,"Darell Primary and Nursery School",2004,"Mainstream","Open"]
[null,null,null,null,null,null,null,null,null,null,null,318,"East Sheen Primary School",2006,"Mainstream","Open"]
[null,null,null,null,null,null,null,null,null,null,null,318,"Hampton Hill Junior School",2007,"Mainstream","Open"]
[null,null,null,null,null,null,null,null,null,null,null,318,"Heathfield Junior School",2011,"Mainstream","Open"]
[null,null,null,null,null,null,null,null,null,null,null,318,"Heathfield Infant School",2012,"Mainstream","Open"]
[null,null,null,null,null,null,null,null,null,null,null,318,"Stanley Primary School",2021,"Mainstream","Open"]
[null,null,null,null,null,null,null,null,null,null,null,318,"The Vineyard School",2037,"Mainstream","Open"]
[null,null,null,null,null,null,null,null,null,null,null,318,"St James's Roman Catholic Primary School",3316,"Mainstream","Open"]
[null,null,null,null,null,null,null,null,null,null,null,319,"Thomas Wall Nursery School",1001,"Mainstream","Open"]
[null,null,null,null,null,null,null,null,null,null,null,319,"Sutton Tuition and Reintegration Service",1102,"Pupil Referral Unit","Open"]
[null,null,null,null,null,null,null,null,null,null,null,319,"Foresters Primary School",2043,"Mainstream","Open"]
[null,null,null,null,null,null,null,null,null,null,null,319,"Muschamp Primary School and Language Opportunity Base",2049,"Mainstream","Open"]
[null,null,null,null,null,null,null,null,null,null,null,319,"Sherwood Park School",7002,"Special","Open"]
[null,null,null,null,null,null,null,null,null,null,null,320,"Hawkswood Primary PRU",1105,"Pupil Referral Unit","Open"]
[null,null,null,null,null,null,null,null,null,null,null,320,"Burnside Secondary PRU",1107,"Pupil Referral Unit","Open"]
[null,null,null,null,null,null,null,null,null,null,null,320,"Hawkswood (Therapeutic)",1109,"Pupil Referral Unit","Open"]
[null,null,null,null,null,null,null,null,null,null,null,320,"Whitehall Primary School",2006,"Mainstream","Open"]
[null,null,null,null,null,null,null,null,null,null,null,320,"South Grove Primary School",2066,"Mainstream","Open"]
[null,null,null,null,null,null,null,null,null,null,null,320,"Buxton School",4000,"Mainstream","Open"]
[null,null,null,null,null,null,null,null,null,null,null,320,"Frederick Bremer School",4060,"Mainstream","Open"]
[null,null,null,null,null,null,null,null,null,null,null,320,"Heathcote School & Science College",4063,"Mainstream","Open"]
[null,null,null,null,null,null,null,null,null,null,null,320,"Belmont Park School",7011,"Special","Open"]
[null,null,null,null,null,null,null,null,null,null,null,330,"Garretts Green Nursery School",1006,"Mainstream","Open"]
[null,null,null,null,null,null,null,null,null,null,null,330,"Allens Croft Nursery School",1017,"Mainstream","Open"]
[null,null,null,null,null,null,null,null,null,null,null,330,"City of Birmingham School",1100,"Pupil Referral Unit","Open"]
[null,null,null,null,null,null,null,null,null,null,null,330,"Kings Heath Primary School",2005,"Mainstream","Open"]
[null,null,null,null,null,null,null,null,null,null,null,330,"Cherry Orchard Primary School",2040,"Mainstream","Open"]
[null,null,null,null,null,null,null,null,null,null,null,330,"Hawthorn Primary School",2099,"Mainstream","Open"]
[null,null,null,null,null,null,null,null,null,null,null,330,"Ward End Primary School",2108,"Mainstream","Open"]
[null,null,null,null,null,null,null,null,null,null,null,330,"Lyndon Green Junior School",2128,"Mainstream","Open"]
[null,null,null,null,null,null,null,null,null,null,null,330,"Lyndon Green Infant School",2129,"Mainstream","Open"]
[null,null,null,null,null,null,null,null,null,null,null,330,"Allens Croft Primary School",2153,"Mainstream","Open"]
[null,null,null,null,null,null,null,null,null,null,null,330,"St Benedict's Primary School",2183,"Mainstream","Open"]
[null,null,null,null,null,null,null,null,null,null,null,330,"World's End Junior School",2225,"Mainstream","Open"]
[null,null,null,null,null,null,null,null,null,null,null,330,"Welsh House Farm Community School and Special Needs Resources Base",2245,"Mainstream","Open"]
[null,null,null,null,null,null,null,null,null,null,null,330,"The Meadows Primary School",2246,"Mainstream","Open"]
[null,null,null,null,null,null,null,null,null,null,null,330,"Blakesley Hall Primary School",2254,"Mainstream","Open"]
[null,null,null,null,null,null,null,null,null,null,null,330,"Welford Primary School",2308,"Mainstream","Open"]
[null,null,null,null,null,null,null,null,null,null,null,330,"World's End Infant and Nursery School",2317,"Mainstream","Open"]
[null,null,null,null,null,null,null,null,null,null,null,330,"Boldmere Junior School",2401,"Mainstream","Open"]
[null,null,null,null,null,null,null,null,null,null,null,330,"Boldmere Infant School and Nursery",2402,"Mainstream","Open"]
[null,null,null,null,null,null,null,null,null,null,null,330,"Nelson Mandela School",2457,"Mainstream","Open"]
[null,null,null,null,null,null,null,null,null,null,null,330,"Anglesey Primary School",2479,"Mainstream","Open"]
[null,null,null,null,null,null,null,null,null,null,null,330,"Bordesley Green Girls' School & Sixth Form",4115,"Mainstream","Open"]
[null,null,null,null,null,null,null,null,null,null,null,330,"Hamilton School",7006,"Special","Open"]
[null,null,null,null,null,null,null,null,null,null,null,330,"Victoria School",7009,"Special","Open"]
[null,null,null,null,null,null,null,null,null,null,null,330,"Longwill A Primary School for Deaf Children",7012,"Special","Open"]
[null,null,null,null,null,null,null,null,null,null,null,330,"Uffculme School",7014,"Special","Open"]
[null,null,null,null,null,null,null,null,null,null,null,330,"Baskerville School",7016,"Special","Open"]
[null,null,null,null,null,null,null,null,null,null,null,330,"Braidwood School for the Deaf",7030,"Special","Open"]
[null,null,null,null,null,null,null,null,null,null,null,330,"Selly Oak Trust School",7033,"Special","Open"]
[null,null,null,null,null,null,null,null,null,null,null,330,"Priestley Smith School",7034,"Special","Open"]
[null,null,null,null,null,null,null,null,null,null,null,330,"The Dame Ellen Pinsent School",7035,"Special","Open"]
[null,null,null,null,null,null,null,null,null,null,null,330,"The Pines Special School",7045,"Special","Open"]
[null,null,null,null,null,null,null,null,null,null,null,330,"Springfield House Community Special School",7047,"Special","Open"]
[null,null,null,null,null,null,null,null,null,null,null,330,"Fox Hollies School",7050,"Special","Open"]
[null,null,null,null,null,null,null,null,null,null,null,330,"Cherry Oak School",7051,"Special","Open"]
[null,null,null,null,null,null,null,null,null,null,null,330,"Beaufort School",7052,"Special","Open"]
[null,null,null,null,null,null,null,null,null,null,null,330,"Oscott Manor School",7053,"Special","Open"]
[null,null,null,null,null,null,null,null,null,null,null,330,"Langley School",7060,"Special","Open"]
[null,null,null,null,null,null,null,null,null,null,null,330,"Lindsworth School",7062,"Special","Open"]
[null,null,null,null,null,null,null,null,null,null,null,331,"Inspired Pathways",1107,"Pupil Referral Unit","Open"]
[null,null,null,null,null,null,null,null,null,null,null,331,"Aldermoor Farm Primary School",2131,"Mainstream","Open"]
[null,null,null,null,null,null,null,null,null,null,null,331,"Longford Park Primary School",2150,"Mainstream","Open"]
[null,null,null,null,null,null,null,null,null,null,null,331,"Howes Community Primary School",3437,"Mainstream","Open"]
[null,null,null,null,null,null,null,null,null,null,null,331,"Sherbourne Fields School",7009,"Special","Open"]
[null,null,null,null,null,null,null,null,null,null,null,331,"Tiverton School",7017,"Special","Open"]
[null,null,null,null,null,null,null,null,null,null,null,331,"Woodfield",7021,"Special","Open"]
[null,null,null,null,null,null,null,null,null,null,null,331,"Castle Wood Special School",7024,"Special","Open"]
[null,null,null,null,null,null,null,null,null,null,null,332,"Netherton Park Nursery School",1000,"Mainstream","Open"]
[null,null,null,null,null,null,null,null,null,null,null,332,"Sycamore Short Stay School",1104,"Pupil Referral Unit","Open"]
[null,null,null,null,null,null,null,null,null,null,null,332,"Dawley Brook Primary School",2043,"Mainstream","Open"]
[null,null,null,null,null,null,null,null,null,null,null,332,"Caslon Primary Community School",2112,"Mainstream","Open"]
[null,null,null,null,null,null,null,null,null,null,null,332,"Ashwood Park Primary School",2141,"Mainstream","Open"]
[null,null,null,null,null,null,null,null,null,null,null,332,"Sutton School",7001,"Special","Open"]
[null,null,null,null,null,null,null,null,null,null,null,332,"The Brier School",7002,"Special","Open"]
[null,null,null,null,null,null,null,null,null,null,null,332,"Woodsetton School",7003,"Special","Open"]
[null,null,null,null,null,null,null,null,null,null,null,332,"The Old Park School",7004,"Special","Open"]
[null,null,null,null,null,null,null,null,null,null,null,332,"Halesbury School",7005,"Special","Open"]
[null,null,null,null,null,null,null,null,null,null,null,332,"Rosewood School",7008,"Special","Open"]
[null,null,null,null,null,null,null,null,null,null,null,332,"Pens Meadow School",7009,"Special","Open"]
[null,null,null,null,null,null,null,null,null,null,null,333,"Albright Education Centre",1100,"Hospital","Open"]
[null,null,null,null,null,null,null,null,null,null,null,333,"The Primrose Centre",1106,"Pupil Referral Unit","Open"]
[null,null,null,null,null,null,null,null,null,null,null,333,"Sandwell Community School",1107,"Pupil Referral Unit","Open"]
[null,null,null,null,null,null,null,null,null,null,null,333,"Hargate Primary School",2041,"Mainstream","Open"]
[null,null,null,null,null,null,null,null,null,null,null,333,"Great Bridge Primary School",2056,"Mainstream","Open"]
[null,null,null,null,null,null,null,null,null,null,null,333,"Crocketts Community Primary School",2123,"Mainstream","Open"]
[null,null,null,null,null,null,null,null,null,null,null,333,"Grace Mary Primary School",2127,"Mainstream","Open"]
[null,null,null,null,null,null,null,null,null,null,null,333,"Ferndale Primary School",2177,"Mainstream","Open"]
[null,null,null,null,null,null,null,null,null,null,null,333,"Uplands Manor Primary School and Nursery",2180,"Mainstream","Open"]
[null,null,null,null,null,null,null,null,null,null,null,333,"St Martin's CofE Primary School",3003,"Mainstream","Open"]
[null,null,null,null,null,null,null,null,null,null,null,333,"Christ Church CofE Primary School",3400,"Mainstream","Open"]
[null,null,null,null,null,null,null,null,null,null,null,333,"Galton Valley Primary School",3409,"Mainstream","Open"]
[null,null,null,null,null,null,null,null,null,null,null,333,"St Michael's Church of England High School",4500,"Mainstream","Open"]
[null,null,null,null,null,null,null,null,null,null,null,333,"The Meadows School",7017,"Special","Open"]
[null,null,null,null,null,null,null,null,null,null,null,333,"The Orchard School",7018,"Special","Open"]
[null,null,null,null,null,null,null,null,null,null,null,333,"The Westminster School",7019,"Special","Open"]
[null,null,null,null,null,null,null,null,null,null,null,334,"Triple Crown Centre",1102,"Pupil Referral Unit","Open"]
[null,null,null,null,null,null,null,null,null,null,null,334,"Widney Junior School",2028,"Mainstream","Open"]
[null,null,null,null,null,null,null,null,null,null,null,334,"Mill Lodge Primary School",2031,"Mainstream","Open"]
[null,null,null,null,null,null,null,null,null,null,null,334,"Dickens Heath Community Primary School",2098,"Mainstream","Open"]
[null,null,null,null,null,null,null,null,null,null,null,334,"Bishop Wilson Church of England Primary School",3512,"Mainstream","Open"]
[null,null,null,null,null,null,null,null,null,null,null,334,"Hazel Oak School",7001,"Special","Open"]
[null,null,null,null,null,null,null,null,null,null,null,334,"Reynalds Cross School",7002,"Special","Open"]
[null,null,null,null,null,null,null,null,null,null,null,334,"Forest Oak School",7005,"Special","Open"]
[null,null,null,null,null,null,null,null,null,null,null,334,"Merstone School",7007,"Special","Open"]
[null,null,null,null,null,null,null,null,null,null,null,335,"Ogley Hay Nursery School",1009,"Mainstream","Open"]
[null,null,null,null,null,null,null,null,null,null,null,335,"Shepwell Short Stay School (PRU-Medical)",1101,"Pupil Referral Unit","Open"]
[null,null,null,null,null,null,null,null,null,null,null,335,"New Leaf Centre",1108,"Pupil Referral Unit","Open"]
[null,null,null,null,null,null,null,null,null,null,null,335,"New Invention Infant School",2114,"Mainstream","Open"]
[null,null,null,null,null,null,null,null,null,null,null,335,"Short Heath Junior School",2116,"Mainstream","Open"]
[null,null,null,null,null,null,null,null,null,null,null,335,"Rushall Primary School",2205,"Mainstream","Open"]
[null,null,null,null,null,null,null,null,null,null,null,335,"Lindens Primary School",2235,"Mainstream","Open"]
[null,null,null,null,null,null,null,null,null,null,null,335,"Meadow View JMI School",2240,"Mainstream","Open"]
[null,null,null,null,null,null,null,null,null,null,null,335,"Rosedale Church of England C Infant School",3101,"Mainstream","Open"]
[null,null,null,null,null,null,null,null,null,null,null,335,"Blue Coat Church of England Aided Infant School",3301,"Mainstream","Open"]
[null,null,null,null,null,null,null,null,null,null,null,335,"Moorcroft Wood Primary School",3327,"Mainstream","Open"]
[null,null,null,null,null,null,null,null,null,null,null,335,"Castle School",7002,"Special","Open"]
[null,null,null,null,null,null,null,null,null,null,null,335,"Jane Lane School",7004,"Special","Open"]
[null,null,null,null,null,null,null,null,null,null,null,335,"Old Hall School",7007,"Special","Open"]
[null,null,null,null,null,null,null,null,null,null,null,335,"Oakwood School",7011,"Special","Open"]
[null,null,null,null,null,null,null,null,null,null,null,335,"Elmwood School",7014,"Special","Open"]
[null,null,null,null,null,null,null,null,null,null,null,336,"Low Hill Nursery School",1002,"Mainstream","Open"]
[null,null,null,null,null,null,null,null,null,null,null,336,"Windsor Nursery School",1007,"Mainstream","Open"]
[null,null,null,null,null,null,null,null,null,null,null,336,"Bushbury Nursery School",1009,"Mainstream","Open"]
[null,null,null,null,null,null,null,null,null,null,null,336,"Bilston Nursery School",1010,"Mainstream","Open"]
[null,null,null,null,null,null,null,null,null,null,null,336,"Castlecroft Primary School",2043,"Mainstream","Open"]
[null,null,null,null,null,null,null,null,null,null,null,336,"St Michael's Church of England Aided Primary School",3316,"Mainstream","Open"]
[null,null,null,null,null,null,null,null,null,null,null,336,"St Matthias School",4115,"Mainstream","Open"]
[null,null,null,null,null,null,null,null,null,null,null,336,"Colton Hills Community School",4133,"Mainstream","Open"]
[null,null,null,null,null,null,null,null,null,null,null,336,"Penn Fields School",7004,"Special","Open"]
[null,null,null,null,null,null,null,null,null,null,null,336,"Green Park School",7008,"Special","Open"]
[null,null,null,null,null,null,null,null,null,null,null,340,"Meadow Park School",1100,"Pupil Referral Unit","Open"]
[null,null,null,null,null,null,null,null,null,null,null,340,"Northwood Community Primary School (With Designated Special Provision)",3364,"Mainstream","Open"]
[null,null,null,null,null,null,null,null,null,null,null,340,"Bluebell Park School",7005,"Special","Open"]
[null,null,null,null,null,null,null,null,null,null,null,340,"Alt Bridge School",7013,"Special","Open"]
[null,null,null,null,null,null,null,null,null,null,null,340,"Knowsley Central School",7015,"Special","Open"]
[null,null,null,null,null,null,null,null,null,null,null,341,"East Prescot Road Nursery School",1002,"Mainstream","Open"]
[null,null,null,null,null,null,null,null,null,null,null,341,"Everton Nursery School and Family Centre",1003,"Mainstream","Open"]
[null,null,null,null,null,null,null,null,null,null,null,341,"Ellergreen Nursery School and Childcare Centre",1005,"Mainstream","Open"]
[null,null,null,null,null,null,null,null,null,null,null,341,"Abercromby Nursery School",1006,"Mainstream","Open"]
[null,null,null,null,null,null,null,null,null,null,null,341,"New Heights High School",1108,"Pupil Referral Unit","Open"]
[null,null,null,null,null,null,null,null,null,null,null,341,"All Saints' Catholic Voluntary Aided Primary School",2006,"Mainstream","Open"]
[null,null,null,null,null,null,null,null,null,null,null,341,"Blessed Sacrament Catholic Primary School",2025,"Mainstream","Open"]
[null,null,null,null,null,null,null,null,null,null,null,341,"Rice Lane Primary School and Nursery",2034,"Mainstream","Open"]
[null,null,null,null,null,null,null,null,null,null,null,341,"Springwood Heath Primary School",2065,"Mainstream","Open"]
[null,null,null,null,null,null,null,null,null,null,null,341,"Matthew Arnold Primary School",2098,"Mainstream","Open"]
[null,null,null,null,null,null,null,null,null,null,null,341,"Pleasant Street Primary School",2123,"Mainstream","Open"]
[null,null,null,null,null,null,null,null,null,null,null,341,"Mab Lane Junior Mixed and Infant School",2226,"Mainstream","Open"]
[null,null,null,null,null,null,null,null,null,null,null,341,"St Michael-in-the-Hamlet Community Primary School",2237,"Mainstream","Open"]
[null,null,null,null,null,null,null,null,null,null,null,341,"Phoenix Primary School",3026,"Mainstream","Open"]
[null,null,null,null,null,null,null,null,null,null,null,341,"Our Lady and St Swithin's Catholic Primary School",3511,"Mainstream","Open"]
[null,null,null,null,null,null,null,null,null,null,null,341,"Abbot's Lea School",7025,"Special","Open"]
[null,null,null,null,null,null,null,null,null,null,null,341,"Woolton High School",7039,"Special","Open"]
[null,null,null,null,null,null,null,null,null,null,null,341,"Clifford Holroyde Specialist Sen College",7042,"Special","Open"]
[null,null,null,null,null,null,null,null,null,null,null,341,"Ernest Cookson School",7045,"Special","Open"]
[null,null,null,null,null,null,null,null,null,null,null,341,"Palmerston School",7051,"Special","Open"]
[null,null,null,null,null,null,null,null,null,null,null,341,"Redbridge High School",7052,"Special","Open"]
[null,null,null,null,null,null,null,null,null,null,null,341,"Millstead School",7054,"Special","Open"]
[null,null,null,null,null,null,null,null,null,null,null,341,"Sandfield Park School",7059,"Special","Open"]
[null,null,null,null,null,null,null,null,null,null,null,341,"Princes School",7063,"Special","Open"]
[null,null,null,null,null,null,null,null,null,null,null,341,"Hope School",7065,"Special","Open"]
[null,null,null,null,null,null,null,null,null,null,null,341,"Childwall Abbey School",7069,"Special","Open"]
[null,null,null,null,null,null,null,null,null,null,null,341,"Bank View High School",7070,"Special","Open"]
[null,null,null,null,null,null,null,null,null,null,null,342,"Pace",1100,"Pupil Referral Unit","Open"]
[null,null,null,null,null,null,null,null,null,null,null,342,"Launchpad Centre",1101,"Pupil Referral Unit","Open"]
[null,null,null,null,null,null,null,null,null,null,null,342,"Ashurst Primary School",2021,"Mainstream","Open"]
[null,null,null,null,null,null,null,null,null,null,null,342,"Wargrave CofE Primary School",3106,"Mainstream","Open"]
[null,null,null,null,null,null,null,null,null,null,null,342,"Rectory CofE Primary School",3320,"Mainstream","Open"]
[null,null,null,null,null,null,null,null,null,null,null,342,"Willow Bank School",7005,"Special","Open"]
[null,null,null,null,null,null,null,null,null,null,null,342,"Mill Green School",7007,"Special","Open"]
[null,null,null,null,null,null,null,null,null,null,null,342,"Lansbury Bridge School",7008,"Special","Open"]
[null,null,null,null,null,null,null,null,null,null,null,343,"Cambridge Nursery School",1004,"Mainstream","Open"]
[null,null,null,null,null,null,null,null,null,null,null,343,"Greenacre Community Nursery School",1005,"Mainstream","Open"]
[null,null,null,null,null,null,null,null,null,null,null,343,"Jigsaw Primary Pupil Referral Unit",1101,"Pupil Referral Unit","Open"]
[null,null,null,null,null,null,null,null,null,null,null,343,"Marshside Primary School",2047,"Mainstream","Open"]
[null,null,null,null,null,null,null,null,null,null,null,343,"Hudson Primary School",2053,"Mainstream","Open"]
[null,null,null,null,null,null,null,null,null,null,null,343,"Freshfield Primary School",2078,"Mainstream","Open"]
[null,null,null,null,null,null,null,null,null,null,null,343,"Redgate Community Primary School",2086,"Mainstream","Open"]
[null,null,null,null,null,null,null,null,null,null,null,343,"Kings Meadow Primary School and Early Years Education Centre",2087,"Mainstream","Open"]
[null,null,null,null,null,null,null,null,null,null,null,343,"St Michaels Church of England Academy",4011,"Mainstream","Open"]
[null,null,null,null,null,null,null,null,null,null,null,343,"Holy Family Catholic High School",4624,"Mainstream","Open"]
[null,null,null,null,null,null,null,null,null,null,null,343,"Presfield High School and Specialist College",7004,"Special","Open"]
[null,null,null,null,null,null,null,null,null,null,null,343,"Merefield School",7006,"Special","Open"]
[null,null,null,null,null,null,null,null,null,null,null,343,"Crosby High School",7009,"Special","Open"]
[null,null,null,null,null,null,null,null,null,null,null,343,"Newfield School",7011,"Special","Open"]
[null,null,null,null,null,null,null,null,null,null,null,344,"Ganneys Meadow Nursery School and Family Centre",1002,"Mainstream","Open"]
[null,null,null,null,null,null,null,null,null,null,null,344,"Bidston Village CofE (Controlled) Primary School",2001,"Mainstream","Open"]
[null,null,null,null,null,null,null,null,null,null,null,344,"Devonshire Park Primary School",2048,"Mainstream","Open"]
[null,null,null,null,null,null,null,null,null,null,null,344,"New Brighton Primary School",2100,"Mainstream","Open"]
[null,null,null,null,null,null,null,null,null,null,null,344,"Riverside Primary School",2107,"Mainstream","Open"]
[null,null,null,null,null,null,null,null,null,null,null,344,"Eastway Primary School",2112,"Mainstream","Open"]
[null,null,null,null,null,null,null,null,null,null,null,344,"Grove Street Primary School",2205,"Mainstream","Open"]
[null,null,null,null,null,null,null,null,null,null,null,344,"Fender Primary School",2252,"Mainstream","Open"]
[null,null,null,null,null,null,null,null,null,null,null,344,"West Kirby St Bridget's CofE Primary School",3009,"Mainstream","Open"]
[null,null,null,null,null,null,null,null,null,null,null,344,"St John's Catholic Junior School",3360,"Mainstream","Open"]
[null,null,null,null,null,null,null,null,null,null,null,344,"The Priory Parish CofE Primary School",3366,"Mainstream","Open"]
[null,null,null,null,null,null,null,null,null,null,null,344,"St Michael and All Angels Catholic Primary School",3371,"Mainstream","Open"]
[null,null,null,null,null,null,null,null,null,null,null,344,"Hayfield School",7000,"Special","Open"]
[null,null,null,null,null,null,null,null,null,null,null,344,"Clare Mount Specialist Sports College",7001,"Special","Open"]
[null,null,null,null,null,null,null,null,null,null,null,344,"Meadowside School",7002,"Special","Open"]
[null,null,null,null,null,null,null,null,null,null,null,344,"Kilgarth School",7003,"Special","Open"]
[null,null,null,null,null,null,null,null,null,null,null,344,"Foxfield School",7004,"Special","Open"]
[null,null,null,null,null,null,null,null,null,null,null,344,"Elleray Park School",7005,"Special","Open"]
[null,null,null,null,null,null,null,null,null,null,null,344,"Gilbrook School",7010,"Special","Open"]
[null,null,null,null,null,null,null,null,null,null,null,344,"Stanley School",7017,"Special","Open"]
[null,null,null,null,null,null,null,null,null,null,null,344,"Wirral Hospitals' School",7019,"Hospital","Open"]
[null,null,null,null,null,null,null,null,null,null,null,344,"Orrets Meadow School",7020,"Special","Open"]
[null,null,null,null,null,null,null,null,null,null,null,344,"The Observatory School",7215,"Special","Open"]
[null,null,null,null,null,null,null,null,null,null,null,350,"Grosvenor Nursery School and Day Care Centre",1005,"Mainstream","Open"]
[null,null,null,null,null,null,null,null,null,null,null,350,"Sharples Primary School",2024,"Mainstream","Open"]
[null,null,null,null,null,null,null,null,null,null,null,350,"Ladybridge Community Primary School",2036,"Mainstream","Open"]
[null,null,null,null,null,null,null,null,null,null,null,350,"Moorgate Primary School",2038,"Mainstream","Open"]
[null,null,null,null,null,null,null,null,null,null,null,350,"Claypool Primary School",2073,"Mainstream","Open"]
[null,null,null,null,null,null,null,null,null,null,null,350,"Queensbridge Primary School",2084,"Mainstream","Open"]
[null,null,null,null,null,null,null,null,null,null,null,350,"Blackrod Anglican/Methodist Primary School",3023,"Mainstream","Open"]
[null,null,null,null,null,null,null,null,null,null,null,350,"All Saints CofE Primary School",3351,"Mainstream","Open"]
[null,null,null,null,null,null,null,null,null,null,null,350,"Thomasson Memorial School",7002,"Special","Open"]
[null,null,null,null,null,null,null,null,null,null,null,350,"Rumworth School",7003,"Special","Open"]
[null,null,null,null,null,null,null,null,null,null,null,350,"Green Fold School",7008,"Special","Open"]
[null,null,null,null,null,null,null,null,null,null,null,351,"Hoyle Nursery School",1003,"Mainstream","Open"]
[null,null,null,null,null,null,null,null,null,null,null,351,"Chantlers Primary School",2013,"Mainstream","Open"]
[null,null,null,null,null,null,null,null,null,null,null,351,"Mersey Drive Community Primary School",2029,"Mainstream","Open"]
[null,null,null,null,null,null,null,null,null,null,null,351,"Our Lady of Lourdes Roman Catholic Primary School, Bury",3328,"Mainstream","Open"]
[null,null,null,null,null,null,null,null,null,null,null,351,"Cloughside College",7009,"Special","Open"]
[null,null,null,null,null,null,null,null,null,null,null,351,"Millwood Primary Special School",7010,"Special","Open"]
[null,null,null,null,null,null,null,null,null,null,null,352,"Bridgelea Pupil Referral Unit",1102,"Pupil Referral Unit","Open"]
[null,null,null,null,null,null,null,null,null,null,null,352,"Manchester Secondary PRU",1105,"Pupil Referral Unit","Open"]
[null,null,null,null,null,null,null,null,null,null,null,352,"Alma Park Primary School",2006,"Mainstream","Open"]
[null,null,null,null,null,null,null,null,null,null,null,352,"Ashbury Meadow Primary School",2010,"Mainstream","Open"]
[null,null,null,null,null,null,null,null,null,null,null,352,"Bowker Vale Primary School",2039,"Mainstream","Open"]
[null,null,null,null,null,null,null,null,null,null,null,352,"Rack House Primary School",2232,"Mainstream","Open"]
[null,null,null,null,null,null,null,null,null,null,null,352,"Broad Oak Primary School",2298,"Mainstream","Open"]
[null,null,null,null,null,null,null,null,null,null,null,352,"Pike Fold Primary School",2302,"Mainstream","Open"]
[null,null,null,null,null,null,null,null,null,null,null,352,"St Andrew's CofE Primary School",3310,"Mainstream","Open"]
[null,null,null,null,null,null,null,null,null,null,null,352,"St Anne's RC Primary School Crumpsall Manchester",3422,"Mainstream","Open"]
[null,null,null,null,null,null,null,null,null,null,null,352,"St Willibrord's RC Primary School",3472,"Mainstream","Open"]
[null,null,null,null,null,null,null,null,null,null,null,352,"The Barlow RC High School and Specialist Science College",4768,"Mainstream","Open"]
[null,null,null,null,null,null,null,null,null,null,null,352,"St Peter's RC High School",4770,"Mainstream","Open"]
[null,null,null,null,null,null,null,null,null,null,null,352,"Manchester Hospital School",7007,"Hospital","Open"]
[null,null,null,null,null,null,null,null,null,null,null,352,"Camberwell Park Specialist Support School",7023,"Special","Open"]
[null,null,null,null,null,null,null,null,null,null,null,352,"Lancasterian School",7029,"Special","Open"]
[null,null,null,null,null,null,null,null,null,null,null,352,"The Birches School",7041,"Special","Open"]
[null,null,null,null,null,null,null,null,null,null,null,352,"Rodney House School",7047,"Special","Open"]
[null,null,null,null,null,null,null,null,null,null,null,352,"North Ridge High School",7061,"Special","Open"]
[null,null,null,null,null,null,null,null,null,null,null,352,"Ashgate Specialist Support Primary School",7749,"Special","Open"]
[null,null,null,null,null,null,null,null,null,null,null,353,"Kingsland School",1100,"Pupil Referral Unit","Open"]
[null,null,null,null,null,null,null,null,null,null,null,354,"Rochdale Pupil Referral Service",1100,"Pupil Referral Unit","Open, but proposed to close"]
[null,null,null,null,null,null,null,null,null,null,null,354,"Shawclough Community Primary School",2003,"Mainstream","Open"]
[null,null,null,null,null,null,null,null,null,null,null,354,"Marland Hill Community Primary School",2025,"Mainstream","Open"]
[null,null,null,null,null,null,null,null,null,null,null,354,"Boarshaw Community Primary School",2041,"Mainstream","Open"]
[null,null,null,null,null,null,null,null,null,null,null,354,"Cardinal Langley Roman Catholic High School",4611,"Mainstream","Open"]
[null,null,null,null,null,null,null,null,null,null,null,354,"Brownhill School",7006,"Special","Open"]
[null,null,null,null,null,null,null,null,null,null,null,354,"Springside",7013,"Special","Open"]
[null,null,null,null,null,null,null,null,null,null,null,354,"Newlands School",7014,"Special","Open"]
[null,null,null,null,null,null,null,null,null,null,null,354,"Redwood",7015,"Special","Open"]
[null,null,null,null,null,null,null,null,null,null,null,355,"The New Broadwalk PRU",1101,"Pupil Referral Unit","Open"]
[null,null,null,null,null,null,null,null,null,null,null,355,"The Clifton Centre",1105,"Pupil Referral Unit","Open"]
[null,null,null,null,null,null,null,null,null,null,null,355,"The Friars Primary School",2040,"Mainstream","Open"]
[null,null,null,null,null,null,null,null,null,null,null,355,"River View Community Primary School",2041,"Mainstream","Open"]
[null,null,null,null,null,null,null,null,null,null,null,355,"Lewis Street Primary School",2059,"Mainstream","Open"]
[null,null,null,null,null,null,null,null,null,null,null,355,"Monton Green Primary School",2061,"Mainstream","Open"]
[null,null,null,null,null,null,null,null,null,null,null,355,"Peel Hall Primary School",2074,"Mainstream","Open"]
[null,null,null,null,null,null,null,null,null,null,null,355,"Christ Church CofE Primary School",3033,"Mainstream","Open"]
[null,null,null,null,null,null,null,null,null,null,null,355,"Irlam Endowed Primary School",3040,"Mainstream","Open"]
[null,null,null,null,null,null,null,null,null,null,null,355,"St Philip's CofE Primary School",3317,"Mainstream","Open"]
[null,null,null,null,null,null,null,null,null,null,null,355,"All Hallows RC High School",4620,"Mainstream","Open"]
[null,null,null,null,null,null,null,null,null,null,null,355,"St Ambrose Barlow RC High School",5400,"Mainstream","Open"]
[null,null,null,null,null,null,null,null,null,null,null,356,"Hollywood Park Nursery School",1002,"Mainstream","Open"]
[null,null,null,null,null,null,null,null,null,null,null,356,"The Pendlebury Centre",1100,"Pupil Referral Unit","Open"]
[null,null,null,null,null,null,null,null,null,null,null,356,"Moat House",1101,"Pupil Referral Unit","Open"]
[null,null,null,null,null,null,null,null,null,null,null,356,"Highfields College",1103,"Pupil Referral Unit","Open"]
[null,null,null,null,null,null,null,null,null,null,null,356,"Brookside Primary School",2017,"Mainstream","Open"]
[null,null,null,null,null,null,null,null,null,null,null,356,"Etchells Primary School",2030,"Mainstream","Open"]
[null,null,null,null,null,null,null,null,null,null,null,356,"Ladybridge Primary School",2048,"Mainstream","Open"]
[null,null,null,null,null,null,null,null,null,null,null,356,"Queensgate Primary School",2080,"Mainstream","Open"]
[null,null,null,null,null,null,null,null,null,null,null,356,"Rose Hill Primary School",2084,"Mainstream","Open"]
[null,null,null,null,null,null,null,null,null,null,null,356,"Thorn Grove Primary School",2087,"Mainstream","Open"]
[null,null,null,null,null,null,null,null,null,null,null,356,"Vernon Park Primary School",2090,"Mainstream","Open"]
[null,null,null,null,null,null,null,null,null,null,null,356,"Bradshaw Hall Primary School",2116,"Mainstream","Open"]
[null,null,null,null,null,null,null,null,null,null,null,356,"St Paul's Church of England Primary School Brinnington",3008,"Mainstream","Open"]
[null,null,null,null,null,null,null,null,null,null,null,356,"St Bernadette's Catholic Primary School",3509,"Mainstream","Open"]
[null,null,null,null,null,null,null,null,null,null,null,356,"Moorfield Primary School",3526,"Mainstream","Open"]
[null,null,null,null,null,null,null,null,null,null,null,356,"Vale View Primary School",3529,"Mainstream","Open"]
[null,null,null,null,null,null,null,null,null,null,null,356,"Valley School",7504,"Special","Open"]
[null,null,null,null,null,null,null,null,null,null,null,356,"Castle Hill High School",7508,"Special","Open"]
[null,null,null,null,null,null,null,null,null,null,null,356,"Heaton School",7509,"Special","Open"]
[null,null,null,null,null,null,null,null,null,null,null,356,"Windlehurst School",7511,"Special","Open"]
[null,null,null,null,null,null,null,null,null,null,null,357,"Russell Scott Primary School",2042,"Mainstream","Open"]
[null,null,null,null,null,null,null,null,null,null,null,357,"St John Fisher RC Primary School, Denton",3325,"Mainstream","Open"]
[null,null,null,null,null,null,null,null,null,null,null,357,"Hyde High School",4025,"Mainstream","Open"]
[null,null,null,null,null,null,null,null,null,null,null,357,"St Thomas More RC College",4603,"Mainstream","Open"]
[null,null,null,null,null,null,null,null,null,null,null,357,"Oakdale School",7009,"Special","Open"]
[null,null,null,null,null,null,null,null,null,null,null,358,"Trafford Alternative Education Provision",1103,"Pupil Referral Unit","Open"]
[null,null,null,null,null,null,null,null,null,null,null,358,"Firs Primary School",2025,"Mainstream","Open"]
[null,null,null,null,null,null,null,null,null,null,null,358,"Wellfield Junior School",2026,"Mainstream","Open"]
[null,null,null,null,null,null,null,null,null,null,null,358,"Moorlands Junior School",2033,"Mainstream","Open"]
[null,null,null,null,null,null,null,null,null,null,null,358,"Wellfield Infant and Nursery School",2039,"Mainstream","Open"]
[null,null,null,null,null,null,null,null,null,null,null,358,"All Saints' Catholic Primary School",3311,"Mainstream","Open"]
[null,null,null,null,null,null,null,null,null,null,null,358,"Lostock High School",4015,"Mainstream","Open"]
[null,null,null,null,null,null,null,null,null,null,null,358,"Brentwood School",7001,"Special","Open"]
[null,null,null,null,null,null,null,null,null,null,null,358,"Delamere School",7005,"Special","Open"]
[null,null,null,null,null,null,null,null,null,null,null,358,"Egerton High School",7009,"Special","Open"]
[null,null,null,null,null,null,null,null,null,null,null,359,"Marsh Green Primary School",2009,"Mainstream","Open"]
[null,null,null,null,null,null,null,null,null,null,null,359,"Leigh Central Primary School",2034,"Mainstream","Open"]
[null,null,null,null,null,null,null,null,null,null,null,359,"Meadowbank Primary School & Children's Centre",2045,"Mainstream","Open"]
[null,null,null,null,null,null,null,null,null,null,null,359,"Garrett Hall Primary School",2058,"Mainstream","Open"]
[null,null,null,null,null,null,null,null,null,null,null,359,"Westfield Community School",3437,"Mainstream","Open"]
[null,null,null,null,null,null,null,null,null,null,null,359,"Cansfield High School",4015,"Mainstream","Open"]
[null,null,null,null,null,null,null,null,null,null,null,359,"Landgate School, Bryn",7001,"Special","Open"]
[null,null,null,null,null,null,null,null,null,null,null,359,"Hope School",7002,"Special","Open"]
[null,null,null,null,null,null,null,null,null,null,null,359,"Willow Grove Primary School",7018,"Special","Open"]
[null,null,null,null,null,null,null,null,null,null,null,359,"Rowan Tree Primary School",7020,"Special","Open"]
[null,null,null,null,null,null,null,null,null,null,null,359,"Oakfield High School and College",7022,"Special","Open"]
[null,null,null,null,null,null,null,null,null,null,null,359,"Newbridge Learning Community",7023,"Special","Open"]
[null,null,null,null,null,null,null,null,null,null,null,370,"Penistone Grammar School",4027,"Mainstream","Open"]
[null,null,null,null,null,null,null,null,null,null,null,371,"The Levett School",1103,"Pupil Referral Unit","Open"]
[null,null,null,null,null,null,null,null,null,null,null,371,"Maple Medical PRU",1110,"Pupil Referral Unit","Open"]
[null,null,null,null,null,null,null,null,null,null,null,371,"Stone Hill School",7015,"Special","Open"]
[null,null,null,null,null,null,null,null,null,null,null,372,"Rotherham Aspire",1112,"Pupil Referral Unit","Open"]
[null,null,null,null,null,null,null,null,null,null,null,373,"Sheffield Inclusion Centre",1100,"Pupil Referral Unit","Open, but proposed to close"]
[null,null,null,null,null,null,null,null,null,null,null,373,"Nether Green Junior School",2087,"Mainstream","Open"]
[null,null,null,null,null,null,null,null,null,null,null,373,"Angram Bank Primary School",2342,"Mainstream","Open"]
[null,null,null,null,null,null,null,null,null,null,null,373,"Stradbroke Primary School",2350,"Mainstream","Open"]
[null,null,null,null,null,null,null,null,null,null,null,373,"Greystones Primary School",2356,"Mainstream","Open"]
[null,null,null,null,null,null,null,null,null,null,null,373,"Arbourthorne Community Primary School",3429,"Mainstream","Open"]
[null,null,null,null,null,null,null,null,null,null,null,373,"Bents Green School",7010,"Special","Open"]
[null,null,null,null,null,null,null,null,null,null,null,373,"The Rowan School",7013,"Special","Open"]
[null,null,null,null,null,null,null,null,null,null,null,373,"Archdale School",7023,"Special","Open"]
[null,null,null,null,null,null,null,null,null,null,null,373,"Talbot Specialist School",7024,"Special","Open"]
[null,null,null,null,null,null,null,null,null,null,null,373,"Woolley Wood School",7026,"Special","Open"]
[null,null,null,null,null,null,null,null,null,null,null,373,"Mossbrook School",7036,"Special","Open"]
[null,null,null,null,null,null,null,null,null,null,null,373,"Seven Hills School",7043,"Special","Open"]
[null,null,null,null,null,null,null,null,null,null,null,380,"Strong Close Nursery School",1000,"Mainstream","Open"]
[null,null,null,null,null,null,null,null,null,null,null,380,"Hirst Wood Nursery School",1001,"Mainstream","Open"]
[null,null,null,null,null,null,null,null,null,null,null,380,"Abbey Green Nursery School",1008,"Mainstream","Open"]
[null,null,null,null,null,null,null,null,null,null,null,380,"Midland Road Nursery School",1009,"Mainstream","Open"]
[null,null,null,null,null,null,null,null,null,null,null,380,"St Edmund's Nursery School & Children's Centre",1010,"Mainstream","Open"]
[null,null,null,null,null,null,null,null,null,null,null,380,"Canterbury Nursery School and Centre for Children and Families",1012,"Mainstream","Open"]
[null,null,null,null,null,null,null,null,null,null,null,380,"Swain House Primary School",2057,"Mainstream","Open"]
[null,null,null,null,null,null,null,null,null,null,null,380,"Fagley Primary School",2103,"Mainstream","Open"]
[null,null,null,null,null,null,null,null,null,null,null,380,"Crossflatts Primary School",2111,"Mainstream","Open"]
[null,null,null,null,null,null,null,null,null,null,null,380,"Long Lee Primary School",2128,"Mainstream","Open"]
[null,null,null,null,null,null,null,null,null,null,null,380,"Girlington Primary School",2182,"Mainstream","Open"]
[null,null,null,null,null,null,null,null,null,null,null,380,"Titus Salt School",4074,"Mainstream","Open"]
[null,null,null,null,null,null,null,null,null,null,null,380,"Bingley Grammar School",5400,"Mainstream","Open"]
[null,null,null,null,null,null,null,null,null,null,null,380,"Chellow Heights Special School",7031,"Special","Open"]
[null,null,null,null,null,null,null,null,null,null,null,381,"Copley Primary School",2006,"Mainstream","Open"]
[null,null,null,null,null,null,null,null,null,null,null,381,"Central Street Infant and Nursery School",2054,"Mainstream","Open"]
[null,null,null,null,null,null,null,null,null,null,null,381,"Cliffe Hill Community Primary School",2076,"Mainstream","Open"]
[null,null,null,null,null,null,null,null,null,null,null,381,"Riverside Junior School",2082,"Mainstream","Open"]
[null,null,null,null,null,null,null,null,null,null,null,381,"Wood Bank School",7008,"Special","Open"]
[null,null,null,null,null,null,null,null,null,null,null,381,"Ravenscliffe High School",7009,"Special","Open"]
[null,null,null,null,null,null,null,null,null,null,null,381,"Highbury School",7010,"Special","Open"]
[null,null,null,null,null,null,null,null,null,null,null,382,"Windmill CofE (VC) Primary School",2016,"Mainstream","Open"]
[null,null,null,null,null,null,null,null,null,null,null,382,"Netherhall Learning Campus Junior School",2035,"Mainstream","Open"]
[null,null,null,null,null,null,null,null,null,null,null,382,"Dalton School",2157,"Mainstream","Open"]
[null,null,null,null,null,null,null,null,null,null,null,382,"Netherhall St James CofE (VC) Infant and Nursery School",3002,"Mainstream","Open"]
[null,null,null,null,null,null,null,null,null,null,null,382,"Netherhall Learning Campus High School",4009,"Mainstream","Open"]
[null,null,null,null,null,null,null,null,null,null,null,382,"Woodley School and College",7001,"Special","Open"]
[null,null,null,null,null,null,null,null,null,null,null,382,"Ravenshall School",7005,"Special","Open"]
[null,null,null,null,null,null,null,null,null,null,null,382,"Southgate School",7010,"Special","Open"]
[null,null,null,null,null,null,null,null,null,null,null,382,"Fairfield School",7011,"Special","Open"]
[null,null,null,null,null,null,null,null,null,null,null,383,"Iveson Primary School",2410,"Mainstream","Open"]
[null,null,null,null,null,null,null,null,null,null,null,383,"Ireland Wood Primary School",2420,"Mainstream","Open"]
[null,null,null,null,null,null,null,null,null,null,null,383,"Moor Allerton Hall Primary School",2439,"Mainstream","Open"]
[null,null,null,null,null,null,null,null,null,null,null,383,"Parklands Primary School",2467,"Mainstream","Open"]
[null,null,null,null,null,null,null,null,null,null,null,383,"St Margaret's Church of England Voluntary Controlled Primary School",3038,"Mainstream","Open"]
[null,null,null,null,null,null,null,null,null,null,null,383,"St Mary's Church of England Controlled Primary School Boston Spa",3047,"Mainstream","Open"]
[null,null,null,null,null,null,null,null,null,null,null,383,"Beeston Hill St Luke's Church of England Primary School",3913,"Mainstream","Open"]
[null,null,null,null,null,null,null,null,null,null,null,383,"New Bewerley Community School",3927,"Mainstream","Open"]
[null,null,null,null,null,null,null,null,null,null,null,383,"Allerton High School",4032,"Mainstream","Open"]
[null,null,null,null,null,null,null,null,null,null,null,383,"Allerton Grange School",4040,"Mainstream","Open"]
[null,null,null,null,null,null,null,null,null,null,null,383,"Carr Manor Community School",4041,"Mainstream","Open"]
[null,null,null,null,null,null,null,null,null,null,null,383,"Ralph Thoresby School",4062,"Mainstream","Open"]
[null,null,null,null,null,null,null,null,null,null,null,383,"John Jamieson School",7015,"Special","Open"]
[null,null,null,null,null,null,null,null,null,null,null,383,"Broomfield South SILC",7062,"Special","Open"]
[null,null,null,null,null,null,null,null,null,null,null,383,"West Oaks School",7072,"Special","Open"]
[null,null,null,null,null,null,null,null,null,null,null,383,"West Specialist Inclusive Learning Centre",7074,"Special","Open"]
[null,null,null,null,null,null,null,null,null,null,null,384,"Pinderfields Hospital PRU",1102,"Pupil Referral Unit","Open"]
[null,null,null,null,null,null,null,null,null,null,null,384,"Moorthorpe Primary School With Inclusion Resource",2192,"Mainstream","Open"]
[null,null,null,null,null,null,null,null,null,null,null,384,"Newlands Primary School",2206,"Mainstream","Open"]
[null,null,null,null,null,null,null,null,null,null,null,384,"Methodist Voluntary Controlled Junior, Infant and Nursery School: With Communication Resource",3021,"Mainstream","Open"]
[null,null,null,null,null,null,null,null,null,null,null,384,"Highfield School",7002,"Special","Open"]
[null,null,null,null,null,null,null,null,null,null,null,384,"Kingsland Primary School",7054,"Special","Open"]
[null,null,null,null,null,null,null,null,null,null,null,384,"Oakfield Park School",7055,"Special","Open"]
[null,null,null,null,null,null,null,null,null,null,null,384,"High Well School",7056,"Special","Open"]
[null,null,null,null,null,null,null,null,null,null,null,390,"Bede Community Primary School",2039,"Mainstream","Open"]
[null,null,null,null,null,null,null,null,null,null,null,390,"Swalwell Primary School",2172,"Mainstream","Open"]
[null,null,null,null,null,null,null,null,null,null,null,390,"Brandling Primary School",2200,"Mainstream","Open"]
[null,null,null,null,null,null,null,null,null,null,null,390,"Lobley Hill Primary School",2222,"Mainstream","Open"]
[null,null,null,null,null,null,null,null,null,null,null,390,"Rowlands Gill Community Primary School",2239,"Mainstream","Open"]
[null,null,null,null,null,null,null,null,null,null,null,390,"Furrowfield School",7006,"Special","Open"]
[null,null,null,null,null,null,null,null,null,null,null,390,"Gibside School",7007,"Special","Open"]
[null,null,null,null,null,null,null,null,null,null,null,390,"Hill Top School",7008,"Special","Open"]
[null,null,null,null,null,null,null,null,null,null,null,390,"Dryden School",7009,"Special","Open"]
[null,null,null,null,null,null,null,null,null,null,null,390,"Eslington Primary School",7010,"Special","Open"]
[null,null,null,null,null,null,null,null,null,null,null,391,"Regent Farm First School",2003,"Mainstream","Open"]
[null,null,null,null,null,null,null,null,null,null,null,391,"Benton Park Primary School",2050,"Mainstream","Open"]
[null,null,null,null,null,null,null,null,null,null,null,391,"Bridgewater Primary School",2210,"Mainstream","Open"]
[null,null,null,null,null,null,null,null,null,null,null,391,"Broadwood Primary School",2225,"Mainstream","Open"]
[null,null,null,null,null,null,null,null,null,null,null,391,"Hadrian School",7034,"Special","Open"]
[null,null,null,null,null,null,null,null,null,null,null,391,"Sir Charles Parsons School",7035,"Special","Open"]
[null,null,null,null,null,null,null,null,null,null,null,392,"Moorbridge",1100,"Pupil Referral Unit","Open"]
[null,null,null,null,null,null,null,null,null,null,null,392,"Waterville Primary School",2004,"Mainstream","Open"]
[null,null,null,null,null,null,null,null,null,null,null,392,"Whitley Lodge First School",2074,"Mainstream","Open"]
[null,null,null,null,null,null,null,null,null,null,null,392,"Benton Dene Primary School",2078,"Mainstream","Open"]
[null,null,null,null,null,null,null,null,null,null,null,392,"Marden High School",4006,"Mainstream","Open"]
[null,null,null,null,null,null,null,null,null,null,null,392,"Norham High School",4008,"Mainstream","Open"]
[null,null,null,null,null,null,null,null,null,null,null,392,"Valley Gardens Middle School",4026,"Mainstream","Open"]
[null,null,null,null,null,null,null,null,null,null,null,392,"Whitley Bay High School",4029,"Mainstream","Open"]
[null,null,null,null,null,null,null,null,null,null,null,392,"George Stephenson High School",4030,"Mainstream","Open"]
[null,null,null,null,null,null,null,null,null,null,null,392,"Burnside College",4032,"Mainstream","Open"]
[null,null,null,null,null,null,null,null,null,null,null,392,"Woodlawn School",7001,"Special","Open"]
[null,null,null,null,null,null,null,null,null,null,null,392,"Southlands School",7002,"Special","Open"]
[null,null,null,null,null,null,null,null,null,null,null,392,"Benton Dene School",7004,"Special","Open"]
[null,null,null,null,null,null,null,null,null,null,null,392,"Silverdale School",7007,"Special","Open"]
[null,null,null,null,null,null,null,null,null,null,null,392,"Beacon Hill School",7008,"Special","Open"]
[null,null,null,null,null,null,null,null,null,null,null,393,"Clervaux Nursery School",1010,"Mainstream","Open"]
[null,null,null,null,null,null,null,null,null,null,null,393,"The Sue Hedley Nursery School",1021,"Mainstream","Open"]
[null,null,null,null,null,null,null,null,null,null,null,393,"Alternative Education Service - The Beacon Centre",1100,"Pupil Referral Unit","Open"]
[null,null,null,null,null,null,null,null,null,null,null,393,"Valley View Primary School",2056,"Mainstream","Open"]
[null,null,null,null,null,null,null,null,null,null,null,393,"Hedworthfield Primary School",2075,"Mainstream","Open"]
[null,null,null,null,null,null,null,null,null,null,null,393,"Lord Blyton Primary School",2076,"Mainstream","Open"]
[null,null,null,null,null,null,null,null,null,null,null,393,"West Boldon Primary School",2080,"Mainstream","Open"]
[null,null,null,null,null,null,null,null,null,null,null,393,"Hebburn Lakes Primary School",3319,"Mainstream","Open"]
[null,null,null,null,null,null,null,null,null,null,null,393,"Boldon School",4019,"Mainstream","Open"]
[null,null,null,null,null,null,null,null,null,null,null,393,"Jarrow School",4033,"Mainstream","Open"]
[null,null,null,null,null,null,null,null,null,null,null,393,"Bamburgh School",7000,"Special","Open"]
[null,null,null,null,null,null,null,null,null,null,null,393,"Epinay Business and Enterprise School",7004,"Special","Open"]
[null,null,null,null,null,null,null,null,null,null,null,393,"Park View School",7006,"Special","Open"]
[null,null,null,null,null,null,null,null,null,null,null,393,"Keelman's Way School",7007,"Special","Open"]
[null,null,null,null,null,null,null,null,null,null,null,394,"Oxclose Nursery School",1009,"Mainstream","Open"]
[null,null,null,null,null,null,null,null,null,null,null,394,"The Link School",1102,"Pupil Referral Unit","Open"]
[null,null,null,null,null,null,null,null,null,null,null,394,"Mill Hill Primary School",2089,"Mainstream","Open"]
[null,null,null,null,null,null,null,null,null,null,null,394,"Usworth Colliery Primary School",2115,"Mainstream","Open"]
[null,null,null,null,null,null,null,null,null,null,null,394,"Thorney Close Primary School",2174,"Mainstream","Open"]
[null,null,null,null,null,null,null,null,null,null,null,394,"Sunningdale School",7016,"Special","Open"]
[null,null,null,null,null,null,null,null,null,null,null,801,"Ilminster Avenue Nursery School",1005,"Mainstream","Open"]
[null,null,null,null,null,null,null,null,null,null,null,801,"Bristol Hospital Education Service",1101,"Pupil Referral Unit","Open"]
[null,null,null,null,null,null,null,null,null,null,null,801,"Shirehampton Primary School",2027,"Mainstream","Open"]
[null,null,null,null,null,null,null,null,null,null,null,801,"Glenfrome Primary School",2037,"Mainstream","Open"]
[null,null,null,null,null,null,null,null,null,null,null,801,"Broomhill Infant & Nursery School",2115,"Mainstream","Open"]
[null,null,null,null,null,null,null,null,null,null,null,801,"Elmfield School for Deaf Children",7000,"Special","Open"]
[null,null,null,null,null,null,null,null,null,null,null,801,"Kingsweston School",7002,"Special","Open"]
[null,null,null,null,null,null,null,null,null,null,null,801,"Claremont School",7011,"Special","Open"]
[null,null,null,null,null,null,null,null,null,null,null,801,"New Fosseway School",7014,"Special","Open"]
[null,null,null,null,null,null,null,null,null,null,null,801,"Briarwood School",7042,"Special","Open"]
[null,null,null,null,null,null,null,null,null,null,null,802,"Voyage Learning Campus",1102,"Pupil Referral Unit","Open"]
[null,null,null,null,null,null,null,null,null,null,null,802,"Westhaven School",7036,"Special","Open"]
[null,null,null,null,null,null,null,null,null,null,null,802,"Ravenswood School",7037,"Special","Open"]
[null,null,null,null,null,null,null,null,null,null,null,802,"Baytree School",7039,"Special","Open"]
[null,null,null,null,null,null,null,null,null,null,null,803,"Pathways Learning Centre",1100,"Pupil Referral Unit","Open"]
[null,null,null,null,null,null,null,null,null,null,null,803,"Brimsham Green School",4146,"Mainstream","Open"]
[null,null,null,null,null,null,null,null,null,null,null,803,"Warmley Park School",7028,"Special","Open"]
[null,null,null,null,null,null,null,null,null,null,null,803,"New Horizons Learning Centre",7032,"Special","Open"]
[null,null,null,null,null,null,null,null,null,null,null,805,"The Horizon School, Hartlepool",1100,"Pupil Referral Unit","Open"]
[null,null,null,null,null,null,null,null,null,null,null,805,"Kingsley Primary School",2189,"Mainstream","Open"]
[null,null,null,null,null,null,null,null,null,null,null,805,"High Tunstall College of Science",4133,"Mainstream","Open"]
[null,null,null,null,null,null,null,null,null,null,null,806,"Beech Grove Primary School",2120,"Mainstream","Open"]
[null,null,null,null,null,null,null,null,null,null,null,806,"Priory Woods School",7000,"Special","Open"]
[null,null,null,null,null,null,null,null,null,null,null,806,"Beverley School",7003,"Special","Open"]
[null,null,null,null,null,null,null,null,null,null,null,806,"Holmwood School",7005,"Special","Open"]
[null,null,null,null,null,null,null,null,null,null,null,807,"South Bank Community Primary School",3394,"Mainstream","Open"]
[null,null,null,null,null,null,null,null,null,null,null,807,"Kirkleatham Hall School",7008,"Special","Open"]
[null,null,null,null,null,null,null,null,null,null,null,808,"Myton Park Primary School",2003,"Mainstream","Open"]
[null,null,null,null,null,null,null,null,null,null,null,808,"Billingham South Community Primary School",2005,"Mainstream","Open"]
[null,null,null,null,null,null,null,null,null,null,null,808,"Mill Lane Primary School",2030,"Mainstream","Open"]
[null,null,null,null,null,null,null,null,null,null,null,808,"St John the Baptist Church of England Voluntary Controlled Primary School",3001,"Mainstream","Open"]
[null,null,null,null,null,null,null,null,null,null,null,808,"Northfield School and Sports College",4102,"Mainstream","Open"]
[null,null,null,null,null,null,null,null,null,null,null,810,"Northcott School and Sixth Form College",7000,"Special","Open"]
[null,null,null,null,null,null,null,null,null,null,null,810,"Oakfield",7007,"Special","Open"]
[null,null,null,null,null,null,null,null,null,null,null,811,"Brough Primary School",2721,"Mainstream","Open"]
[null,null,null,null,null,null,null,null,null,null,null,811,"Hornsea Community Primary School",2733,"Mainstream","Open"]
[null,null,null,null,null,null,null,null,null,null,null,811,"Springhead Primary School",2770,"Mainstream","Open"]
[null,null,null,null,null,null,null,null,null,null,null,811,"Inmans Primary School",2881,"Mainstream","Open"]
[null,null,null,null,null,null,null,null,null,null,null,811,"Driffield Church of England Voluntary Controlled Infant School",3019,"Mainstream","Open"]
[null,null,null,null,null,null,null,null,null,null,null,811,"Garton-on-the-Wolds Church of England Voluntary Controlled Primary School",3022,"Mainstream","Open"]
[null,null,null,null,null,null,null,null,null,null,null,811,"Cherry Burton Church of England Voluntary Controlled Primary School",3049,"Mainstream","Open"]
[null,null,null,null,null,null,null,null,null,null,null,811,"Thorngumbald Primary School",3509,"Mainstream","Open"]
[null,null,null,null,null,null,null,null,null,null,null,811,"Willerby Carr Lane Primary School",3513,"Mainstream","Open"]
[null,null,null,null,null,null,null,null,null,null,null,811,"Withernsea High School",4054,"Mainstream","Open"]
[null,null,null,null,null,null,null,null,null,null,null,811,"The Market Weighton School",4055,"Mainstream","Open"]
[null,null,null,null,null,null,null,null,null,null,null,811,"Hornsea School and Language College",4061,"Mainstream","Open"]
[null,null,null,null,null,null,null,null,null,null,null,811,"Headlands School",4064,"Mainstream","Open"]
[null,null,null,null,null,null,null,null,null,null,null,811,"Bridlington School",4500,"Mainstream","Open"]
[null,null,null,null,null,null,null,null,null,null,null,811,"Kings Mill School",7016,"Special","Open"]
[null,null,null,null,null,null,null,null,null,null,null,811,"St Anne's School and Sixth Form College",7018,"Special","Open"]
[null,null,null,null,null,null,null,null,null,null,null,811,"Riverside Special School",7025,"Special","Open"]
[null,null,null,null,null,null,null,null,null,null,null,812,"Western Primary School",2899,"Mainstream","Open"]
[null,null,null,null,null,null,null,null,null,null,null,813,"Westcliffe Primary School",2001,"Mainstream","Open"]
[null,null,null,null,null,null,null,null,null,null,null,813,"St Hugh's Special School",7019,"Special","Open"]
[null,null,null,null,null,null,null,null,null,null,null,813,"St Luke's Primary School",7020,"Special","Open"]
[null,null,null,null,null,null,null,null,null,null,null,815,"Scarborough Pupil Referral Unit",1100,"Pupil Referral Unit","Open"]
[null,null,null,null,null,null,null,null,null,null,null,815,"Hambleton/Richmondshire Pupil Referral Service",1102,"Pupil Referral Unit","Open"]
[null,null,null,null,null,null,null,null,null,null,null,815,"Craven Pupil Referral Service",1103,"Pupil Referral Unit","Open"]
[null,null,null,null,null,null,null,null,null,null,null,815,"The Rubicon Centre",1104,"Pupil Referral Unit","Open"]
[null,null,null,null,null,null,null,null,null,null,null,815,"Alverton Primary School",2242,"Mainstream","Open"]
[null,null,null,null,null,null,null,null,null,null,null,815,"Harrogate, Grove Road Community Primary School",2329,"Mainstream","Open"]
[null,null,null,null,null,null,null,null,null,null,null,815,"Beckwithshaw Community Primary School",2348,"Mainstream","Open"]
[null,null,null,null,null,null,null,null,null,null,null,815,"Whitby School",4039,"Mainstream","Open"]
[null,null,null,null,null,null,null,null,null,null,null,815,"The Wensleydale School & Sixth Form",4075,"Mainstream","Open"]
[null,null,null,null,null,null,null,null,null,null,null,815,"Welburn Hall School",7004,"Special","Open"]
[null,null,null,null,null,null,null,null,null,null,null,815,"The Dales School",7015,"Special","Open"]
[null,null,null,null,null,null,null,null,null,null,null,815,"Springhead School",7017,"Special","Open"]
[null,null,null,null,null,null,null,null,null,null,null,815,"Springwater School",7024,"Special","Open"]
[null,null,null,null,null,null,null,null,null,null,null,815,"Brooklands School",7027,"Special","Open"]
[null,null,null,null,null,null,null,null,null,null,null,816,"St Paul's Nursery School",1000,"Mainstream","Open"]
[null,null,null,null,null,null,null,null,null,null,null,816,"Danesgate Community",1100,"Pupil Referral Unit","Open"]
[null,null,null,null,null,null,null,null,null,null,null,816,"St Oswald's Church of England Voluntary Controlled Primary School",3156,"Mainstream","Open"]
[null,null,null,null,null,null,null,null,null,null,null,816,"Huntington School",4063,"Mainstream","Open"]
[null,null,null,null,null,null,null,null,null,null,null,816,"Joseph Rowntree School",4508,"Mainstream","Open"]
[null,null,null,null,null,null,null,null,null,null,null,816,"Applefields School",7032,"Special","Open"]
[null,null,null,null,null,null,null,null,null,null,null,821,"Hart Hill Nursery School",1012,"Mainstream","Open"]
[null,null,null,null,null,null,null,null,null,null,null,821,"Rothesay Nursery School",1014,"Mainstream","Open"]
[null,null,null,null,null,null,null,null,null,null,null,821,"Grasmere Nursery School",1015,"Mainstream","Open"]
[null,null,null,null,null,null,null,null,null,null,null,821,"Chapel Street Nursery School",1016,"Mainstream","Open"]
[null,null,null,null,null,null,null,null,null,null,null,821,"Pastures Way Nursery School",1018,"Mainstream","Open"]
[null,null,null,null,null,null,null,null,null,null,null,821,"The Gill Blowers Nursery School",1023,"Mainstream","Open"]
[null,null,null,null,null,null,null,null,null,null,null,821,"Avenue Centre for Education",1102,"Pupil Referral Unit","Open"]
[null,null,null,null,null,null,null,null,null,null,null,821,"Downside Primary School",2259,"Mainstream","Open"]
[null,null,null,null,null,null,null,null,null,null,null,821,"Surrey Street Primary School",2263,"Mainstream","Open"]
[null,null,null,null,null,null,null,null,null,null,null,821,"Icknield Primary School",2272,"Mainstream","Open"]
[null,null,null,null,null,null,null,null,null,null,null,821,"Someries Infant School and Early Childhood Education Centre",2276,"Mainstream","Open"]
[null,null,null,null,null,null,null,null,null,null,null,821,"Bramingham Primary School",2293,"Mainstream","Open"]
[null,null,null,null,null,null,null,null,null,null,null,821,"Richmond Hill School",7014,"Special","Open"]
[null,null,null,null,null,null,null,null,null,null,null,821,"Woodlands Secondary School",7015,"Special","Open"]
[null,null,null,null,null,null,null,null,null,null,null,821,"Lady Zia Wernher School",7016,"Special","Open"]
[null,null,null,null,null,null,null,null,null,null,null,822,"Ridgeway School",7012,"Special","Open"]
[null,null,null,null,null,null,null,null,null,null,null,823,"Shefford Lower School",2121,"Mainstream","Open"]
[null,null,null,null,null,null,null,null,null,null,null,823,"Heathwood Lower School",2184,"Mainstream","Open"]
[null,null,null,null,null,null,null,null,null,null,null,823,"St Andrew's CofE VC Primary School",3001,"Mainstream","Open"]
[null,null,null,null,null,null,null,null,null,null,null,823,"St Swithun's Church of England VC Primary School",3012,"Mainstream","Open"]
[null,null,null,null,null,null,null,null,null,null,null,823,"Silsoe CofE VC Lower School",3013,"Mainstream","Open"]
[null,null,null,null,null,null,null,null,null,null,null,823,"Ivel Valley School & College",7009,"Special","Open"]
[null,null,null,null,null,null,null,null,null,null,null,823,"The Chiltern School",7017,"Special","Open"]
[null,null,null,null,null,null,null,null,null,null,null,825,"Kite Ridge School",1105,"Pupil Referral Unit","Open"]
[null,null,null,null,null,null,null,null,null,null,null,825,"The Buckinghamshire Primary Pupil Referral Unit",1112,"Pupil Referral Unit","Open"]
[null,null,null,null,null,null,null,null,null,null,null,825,"The Disraeli School",2000,"Mainstream","Open"]
[null,null,null,null,null,null,null,null,null,null,null,825,"Oak Green School",2001,"Mainstream","Open"]
[null,null,null,null,null,null,null,null,null,null,null,825,"Stoke Mandeville Combined School",2108,"Mainstream","Open"]
[null,null,null,null,null,null,null,null,null,null,null,825,"Carrington Junior School",2157,"Mainstream","Open"]
[null,null,null,null,null,null,null,null,null,null,null,825,"Carrington Infant School",2176,"Mainstream","Open"]
[null,null,null,null,null,null,null,null,null,null,null,825,"Juniper Hill School",2199,"Mainstream","Open"]
[null,null,null,null,null,null,null,null,null,null,null,825,"Claytons Primary School",2235,"Mainstream","Open"]
[null,null,null,null,null,null,null,null,null,null,null,825,"Aston Clinton School",2250,"Mainstream","Open"]
[null,null,null,null,null,null,null,null,null,null,null,825,"William Harding School",2288,"Mainstream","Open"]
[null,null,null,null,null,null,null,null,null,null,null,825,"Holtspur School & Pre-School",2345,"Mainstream","Open"]
[null,null,null,null,null,null,null,null,null,null,null,825,"Highworth Combined School and Nursery",2352,"Mainstream","Open"]
[null,null,null,null,null,null,null,null,null,null,null,825,"Kings Wood School and Nursery",3377,"Mainstream","Open"]
[null,null,null,null,null,null,null,null,null,null,null,825,"Pebble Brook School",7010,"Special","Open"]
[null,null,null,null,null,null,null,null,null,null,null,825,"Chiltern Wood School",7013,"Special","Open"]
[null,null,null,null,null,null,null,null,null,null,null,825,"Stony Dean School",7014,"Special","Open"]
[null,null,null,null,null,null,null,null,null,null,null,825,"Stocklake Park Community School",7016,"Special","Open"]
[null,null,null,null,null,null,null,null,null,null,null,825,"Heritage House School",7018,"Special","Open"]
[null,null,null,null,null,null,null,null,null,null,null,825,"Furze Down School",7023,"Special","Open"]
[null,null,null,null,null,null,null,null,null,null,null,825,"Booker Park Community School",7028,"Special","Open"]
[null,null,null,null,null,null,null,null,null,null,null,825,"Westfield School",7035,"Special","Open"]
[null,null,null,null,null,null,null,null,null,null,null,826,"Southwood School",2299,"Mainstream","Open"]
[null,null,null,null,null,null,null,null,null,null,null,826,"Bradwell Village School",2309,"Mainstream","Open"]
[null,null,null,null,null,null,null,null,null,null,null,826,"Germander Park School",2316,"Mainstream","Open"]
[null,null,null,null,null,null,null,null,null,null,null,826,"Stoke Goldington Church of England School",3006,"Mainstream","Open"]
[null,null,null,null,null,null,null,null,null,null,null,826,"St Paul's Catholic School",4702,"Mainstream","Open"]
[null,null,null,null,null,null,null,null,null,null,null,826,"The Radcliffe School",5406,"Mainstream","Open"]
[null,null,null,null,null,null,null,null,null,null,null,826,"White Spire School",7009,"Special","Open"]
[null,null,null,null,null,null,null,null,null,null,null,826,"Romans Field School",7015,"Special","Open"]
[null,null,null,null,null,null,null,null,null,null,null,826,"The Woodlands School",7021,"Special","Open"]
[null,null,null,null,null,null,null,null,null,null,null,826,"Slated Row School",7026,"Special","Open"]
[null,null,null,null,null,null,null,null,null,null,null,826,"The Redway School",7034,"Special","Open"]
[null,null,null,null,null,null,null,null,null,null,null,830,"Brampton Primary School",2011,"Mainstream","Open"]
[null,null,null,null,null,null,null,null,null,null,null,830,"Chapel-en-le-Frith CofE VC Primary School",2013,"Mainstream","Open"]
[null,null,null,null,null,null,null,null,null,null,null,830,"Pilsley Primary School",2190,"Mainstream","Open"]
[null,null,null,null,null,null,null,null,null,null,null,830,"Whaley Bridge Primary School",2268,"Mainstream","Open"]
[null,null,null,null,null,null,null,null,null,null,null,830,"Mundy CofE Junior School",3050,"Mainstream","Open"]
[null,null,null,null,null,null,null,null,null,null,null,830,"Chapel-en-le-Frith High School",4019,"Mainstream","Open"]
[null,null,null,null,null,null,null,null,null,null,null,830,"Tibshelf Community School",4173,"Mainstream","Open"]
[null,null,null,null,null,null,null,null,null,null,null,830,"Holly House Special School",7000,"Special","Open"]
[null,null,null,null,null,null,null,null,null,null,null,830,"Brackenfield Special School",7005,"Special","Open"]
[null,null,null,null,null,null,null,null,null,null,null,830,"Swanwick School and Sports College",7009,"Special","Open"]
[null,null,null,null,null,null,null,null,null,null,null,830,"Alfreton Park Community Special School",7018,"Special","Open"]
[null,null,null,null,null,null,null,null,null,null,null,831,"Central Community Nursery School",1006,"Mainstream","Open"]
[null,null,null,null,null,null,null,null,null,null,null,831,"Castle School",1103,"Pupil Referral Unit","Open"]
[null,null,null,null,null,null,null,null,null,null,null,831,"Bridge Street School",1104,"Pupil Referral Unit","Open"]
[null,null,null,null,null,null,null,null,null,null,null,831,"The Bemrose School",4177,"Mainstream","Open"]
[null,null,null,null,null,null,null,null,null,null,null,831,"Kingsmead School",7029,"Special","Open"]
[null,null,null,null,null,null,null,null,null,null,null,838,"The Forum Centre",1100,"Pupil Referral Unit","Open"]
[null,null,null,null,null,null,null,null,null,null,null,838,"Dorchester Learning Centre",1101,"Pupil Referral Unit","Open"]
[null,null,null,null,null,null,null,null,null,null,null,838,"The Compass",1105,"Pupil Referral Unit","Open"]
[null,null,null,null,null,null,null,null,null,null,null,838,"Bincombe Valley Primary School",2213,"Mainstream","Open"]
[null,null,null,null,null,null,null,null,null,null,null,838,"The Prince of Wales School",2262,"Mainstream","Open"]
[null,null,null,null,null,null,null,null,null,null,null,838,"West Moors Middle School",4033,"Mainstream","Open"]
[null,null,null,null,null,null,null,null,null,null,null,838,"Beaucroft Foundation School",5950,"Special","Open"]
[null,null,null,null,null,null,null,null,null,null,null,838,"Westfield Arts College",5953,"Special","Open"]
[null,null,null,null,null,null,null,null,null,null,null,838,"Mountjoy School",7007,"Special","Open"]
[null,null,null,null,null,null,null,null,null,null,null,838,"Yewstock School",7019,"Special","Open"]
[null,null,null,null,null,null,null,null,null,null,null,839,"Christchurch Learning Centre",1106,"Pupil Referral Unit","Open"]
[null,null,null,null,null,null,null,null,null,null,null,839,"Winchelsea School",7005,"Special","Open"]
[null,null,null,null,null,null,null,null,null,null,null,839,"Linwood School",7012,"Special","Open"]
[null,null,null,null,null,null,null,null,null,null,null,840,"Horden Nursery School",1035,"Mainstream","Open"]
[null,null,null,null,null,null,null,null,null,null,null,840,"Rosemary Lane Nursery School",1038,"Mainstream","Open"]
[null,null,null,null,null,null,null,null,null,null,null,840,"The Woodlands",1100,"Pupil Referral Unit","Open"]
[null,null,null,null,null,null,null,null,null,null,null,840,"Burnopfield Primary School",2234,"Mainstream","Open"]
[null,null,null,null,null,null,null,null,null,null,null,840,"Timothy Hackworth Primary School",2438,"Mainstream","Open"]
[null,null,null,null,null,null,null,null,null,null,null,840,"Belmont Cheveley Park Primary School",2498,"Mainstream","Open"]
[null,null,null,null,null,null,null,null,null,null,null,840,"Wheatley Hill Community Primary School",2526,"Mainstream","Open"]
[null,null,null,null,null,null,null,null,null,null,null,840,"Howletch Lane Primary School",2734,"Mainstream","Open"]
[null,null,null,null,null,null,null,null,null,null,null,840,"Durham Gilesgate Primary School",2747,"Mainstream","Open"]
[null,null,null,null,null,null,null,null,null,null,null,840,"Chester-Le-Street CofE (Controlled) Primary School",3031,"Mainstream","Open"]
[null,null,null,null,null,null,null,null,null,null,null,840,"Seaview Primary School",3520,"Mainstream","Open"]
[null,null,null,null,null,null,null,null,null,null,null,840,"Belmont Community School",4185,"Mainstream","Open"]
[null,null,null,null,null,null,null,null,null,null,null,840,"Elemore Hall School",7006,"Special","Open"]
[null,null,null,null,null,null,null,null,null,null,null,840,"Croft Community School",7013,"Special","Open"]
[null,null,null,null,null,null,null,null,null,null,null,840,"Walworth School",7014,"Special","Open"]
[null,null,null,null,null,null,null,null,null,null,null,840,"Villa Real School",7028,"Special","Open"]
[null,null,null,null,null,null,null,null,null,null,null,840,"Durham Trinity School & Sports College",7032,"Special","Open"]
[null,null,null,null,null,null,null,null,null,null,null,840,"The Oaks Secondary School",7033,"Special","Open"]
[null,null,null,null,null,null,null,null,null,null,null,840,"Evergreen Primary School",7034,"Special","Open"]
[null,null,null,null,null,null,null,null,null,null,null,841,"Rise Carr College",1100,"Pupil Referral Unit","Open"]
[null,null,null,null,null,null,null,null,null,null,null,841,"Red Hall Primary School",2669,"Mainstream","Open"]
[null,null,null,null,null,null,null,null,null,null,null,845,"Grovelands Community Primary School",2059,"Mainstream","Open"]
[null,null,null,null,null,null,null,null,null,null,null,845,"Wallands Community Primary and Nursery School",2072,"Mainstream","Open"]
[null,null,null,null,null,null,null,null,null,null,null,845,"Willingdon Primary School",2090,"Mainstream","Open"]
[null,null,null,null,null,null,null,null,null,null,null,845,"Denton Community Primary School and Nursery",2103,"Mainstream","Open"]
[null,null,null,null,null,null,null,null,null,null,null,845,"Manor Primary School",2107,"Mainstream","Open"]
[null,null,null,null,null,null,null,null,null,null,null,845,"Meridian Community Primary School and Nursery",2153,"Mainstream","Open"]
[null,null,null,null,null,null,null,null,null,null,null,845,"All Saints Church of England Primary School, Bexhill",3006,"Mainstream","Open"]
[null,null,null,null,null,null,null,null,null,null,null,845,"Heathfield Community College",4028,"Mainstream","Open"]
[null,null,null,null,null,null,null,null,null,null,null,845,"Uckfield College",4037,"Mainstream","Open"]
[null,null,null,null,null,null,null,null,null,null,null,845,"Willingdon Community School",4039,"Mainstream","Open"]
[null,null,null,null,null,null,null,null,null,null,null,845,"Priory School",4047,"Mainstream","Open"]
[null,null,null,null,null,null,null,null,null,null,null,845,"Grove Park School",7021,"Special","Open"]
[null,null,null,null,null,null,null,null,null,null,null,846,"Central Hub Brighton",1105,"Pupil Referral Unit","Open"]
[null,null,null,null,null,null,null,null,null,null,null,846,"Carden Nursery and Primary School",2001,"Mainstream","Open"]
[null,null,null,null,null,null,null,null,null,null,null,846,"Bevendean Primary School and Nursery",2163,"Mainstream","Open"]
[null,null,null,null,null,null,null,null,null,null,null,846,"Cottesmore St Mary's Catholic Primary School",3341,"Mainstream","Open"]
[null,null,null,null,null,null,null,null,null,null,null,846,"Longhill High School",4018,"Mainstream","Open"]
[null,null,null,null,null,null,null,null,null,null,null,846,"Hove Park School and Sixth Form Centre",4068,"Mainstream","Open"]
[null,null,null,null,null,null,null,null,null,null,null,846,"Downs View Special School",7006,"Special","Open"]
[null,null,null,null,null,null,null,null,null,null,null,846,"Hill Park School",7018,"Special","Open"]
[null,null,null,null,null,null,null,null,null,null,null,850,"Haven Early Years Centre",1001,"Mainstream","Open"]
[null,null,null,null,null,null,null,null,null,null,null,850,"Bushy Leaze Early Years Centre",1004,"Mainstream","Open"]
[null,null,null,null,null,null,null,null,null,null,null,850,"Lanterns Nursery School and Extended Services",1005,"Mainstream","Open"]
[null,null,null,null,null,null,null,null,null,null,null,850,"Rowhill School",1103,"Pupil Referral Unit","Open"]
[null,null,null,null,null,null,null,null,null,null,null,850,"Smannell Field School",1104,"Pupil Referral Unit","Open"]
[null,null,null,null,null,null,null,null,null,null,null,850,"The Bridge Education Centre",1105,"Pupil Referral Unit","Open"]
[null,null,null,null,null,null,null,null,null,null,null,850,"Greenwood School",1115,"Pupil Referral Unit","Open"]
[null,null,null,null,null,null,null,null,null,null,null,850,"The Key Education Centre",1118,"Pupil Referral Unit","Open"]
[null,null,null,null,null,null,null,null,null,null,null,850,"Ashley Infant School",2005,"Mainstream","Open"]
[null,null,null,null,null,null,null,null,null,null,null,850,"Great Binfields Primary School",2011,"Mainstream","Open"]
[null,null,null,null,null,null,null,null,null,null,null,850,"South View Junior School",2013,"Mainstream","Open"]
[null,null,null,null,null,null,null,null,null,null,null,850,"Stoke Park Infant School",2018,"Mainstream","Open"]
[null,null,null,null,null,null,null,null,null,null,null,850,"Stoke Park Junior School",2030,"Mainstream","Open"]
[null,null,null,null,null,null,null,null,null,null,null,850,"Wildground Junior School",2055,"Mainstream","Open"]
[null,null,null,null,null,null,null,null,null,null,null,850,"Wildground Infant School",2057,"Mainstream","Open"]
[null,null,null,null,null,null,null,null,null,null,null,850,"Cherbourg Primary School",2062,"Mainstream","Open"]
[null,null,null,null,null,null,null,null,null,null,null,850,"Trosnant Junior School",2103,"Mainstream","Open"]
[null,null,null,null,null,null,null,null,null,null,null,850,"Trosnant Infant School",2104,"Mainstream","Open"]
[null,null,null,null,null,null,null,null,null,null,null,850,"Tiptoe Primary School",2111,"Mainstream","Open"]
[null,null,null,null,null,null,null,null,null,null,null,850,"Liss Junior School",2127,"Mainstream","Open"]
[null,null,null,null,null,null,null,null,null,null,null,850,"New Milton Infant School",2137,"Mainstream","Open"]
[null,null,null,null,null,null,null,null,null,null,null,850,"Vigo Primary School",2220,"Mainstream","Open"]
[null,null,null,null,null,null,null,null,null,null,null,850,"South View Infant and Nursery School",2228,"Mainstream","Open"]
[null,null,null,null,null,null,null,null,null,null,null,850,"Hiltingbury Infant School",2237,"Mainstream","Open"]
[null,null,null,null,null,null,null,null,null,null,null,850,"Hiltingbury Junior School",2274,"Mainstream","Open"]
[null,null,null,null,null,null,null,null,null,null,null,850,"Liss Infant School",2291,"Mainstream","Open"]
[null,null,null,null,null,null,null,null,null,null,null,850,"Kings Copse Primary School",2347,"Mainstream","Open"]
[null,null,null,null,null,null,null,null,null,null,null,850,"Shakespeare Junior School",2377,"Mainstream","Open"]
[null,null,null,null,null,null,null,null,null,null,null,850,"Manor Junior School",2520,"Mainstream","Open"]
[null,null,null,null,null,null,null,null,null,null,null,850,"Manor Infant School",2524,"Mainstream","Open"]
[null,null,null,null,null,null,null,null,null,null,null,850,"South Farnborough Junior School",2531,"Mainstream","Open"]
[null,null,null,null,null,null,null,null,null,null,null,850,"Guillemont Junior School",2533,"Mainstream","Open"]
[null,null,null,null,null,null,null,null,null,null,null,850,"Pinewood Infant School",2534,"Mainstream","Open"]
[null,null,null,null,null,null,null,null,null,null,null,850,"Park View Primary School",2732,"Mainstream","Open"]
[null,null,null,null,null,null,null,null,null,null,null,850,"Morelands Primary School",2774,"Mainstream","Open"]
[null,null,null,null,null,null,null,null,null,null,null,850,"Bedenham Primary School",2776,"Mainstream","Open"]
[null,null,null,null,null,null,null,null,null,null,null,850,"Holbrook Primary School",2777,"Mainstream","Open"]
[null,null,null,null,null,null,null,null,null,null,null,850,"Medstead Church of England Primary School",3101,"Mainstream","Open"]
[null,null,null,null,null,null,null,null,null,null,null,850,"Pennington Church of England Junior School",3124,"Mainstream","Open"]
[null,null,null,null,null,null,null,null,null,null,null,850,"Ringwood Church of England Infant School",3132,"Mainstream","Open"]
[null,null,null,null,null,null,null,null,null,null,null,850,"St Jude's Catholic Primary School",3404,"Mainstream","Open"]
[null,null,null,null,null,null,null,null,null,null,null,850,"St Mark's Church of England Primary School",3665,"Mainstream","Open"]
[null,null,null,null,null,null,null,null,null,null,null,850,"The Toynbee School",4113,"Mainstream","Open"]
[null,null,null,null,null,null,null,null,null,null,null,850,"Portchester Community School",4133,"Mainstream","Open"]
[null,null,null,null,null,null,null,null,null,null,null,850,"Cranbourne",4164,"Mainstream","Open"]
[null,null,null,null,null,null,null,null,null,null,null,850,"Horndean Technology College",4173,"Mainstream","Open"]
[null,null,null,null,null,null,null,null,null,null,null,850,"Henry Beaufort School",4174,"Mainstream","Open"]
[null,null,null,null,null,null,null,null,null,null,null,850,"The Vyne Community School",4180,"Mainstream","Open"]
[null,null,null,null,null,null,null,null,null,null,null,850,"Crestwood Community School",4191,"Mainstream","Open"]
[null,null,null,null,null,null,null,null,null,null,null,850,"Cove School",4203,"Mainstream","Open"]
[null,null,null,null,null,null,null,null,null,null,null,850,"The Wavell School",4206,"Mainstream","Open"]
[null,null,null,null,null,null,null,null,null,null,null,850,"Kings' School",4310,"Mainstream","Open"]
[null,null,null,null,null,null,null,null,null,null,null,850,"Ashley Junior School",5208,"Mainstream","Open"]
[null,null,null,null,null,null,null,null,null,null,null,850,"Applemore College",5412,"Mainstream","Open"]
[null,null,null,null,null,null,null,null,null,null,null,850,"Osborne School",5950,"Special","Open"]
[null,null,null,null,null,null,null,null,null,null,null,850,"Henry Tyndale School",7000,"Special","Open"]
[null,null,null,null,null,null,null,null,null,null,null,850,"Prospect School",7001,"Special","Open"]
[null,null,null,null,null,null,null,null,null,null,null,850,"Riverside Community Special School",7009,"Special","Open"]
[null,null,null,null,null,null,null,null,null,null,null,850,"Lakeside School",7014,"Special","Open"]
[null,null,null,null,null,null,null,null,null,null,null,850,"Norman Gate School",7015,"Special","Open"]
[null,null,null,null,null,null,null,null,null,null,null,850,"Maple Ridge School",7016,"Special","Open"]
[null,null,null,null,null,null,null,null,null,null,null,850,"Heathfield Special School",7018,"Special","Open"]
[null,null,null,null,null,null,null,null,null,null,null,850,"Icknield School",7020,"Special","Open"]
[null,null,null,null,null,null,null,null,null,null,null,850,"Rachel Madocks School",7023,"Special","Open"]
[null,null,null,null,null,null,null,null,null,null,null,850,"Limington House School",7026,"Special","Open"]
[null,null,null,null,null,null,null,null,null,null,null,850,"Baycroft School",7032,"Special","Open"]
[null,null,null,null,null,null,null,null,null,null,null,850,"St Francis Special School",7033,"Special","Open"]
[null,null,null,null,null,null,null,null,null,null,null,850,"Forest Park School",7041,"Special","Open"]
[null,null,null,null,null,null,null,null,null,null,null,850,"The Waterloo School",7051,"Special","Open"]
[null,null,null,null,null,null,null,null,null,null,null,850,"Saxon Wood School",7053,"Special","Open"]
[null,null,null,null,null,null,null,null,null,null,null,850,"Wolverdene Special School",7067,"Special","Open"]
[null,null,null,null,null,null,null,null,null,null,null,850,"Oak Lodge School",7070,"Special","Open"]
[null,null,null,null,null,null,null,null,null,null,null,850,"Glenwood School",7072,"Special","Open"]
[null,null,null,null,null,null,null,null,null,null,null,850,"Samuel Cody School",7073,"Special","Open"]
[null,null,null,null,null,null,null,null,null,null,null,850,"The Mark Way School",7075,"Special","Open"]
[null,null,null,null,null,null,null,null,null,null,null,850,"Shepherds Down Special School",7076,"Special","Open"]
[null,null,null,null,null,null,null,null,null,null,null,850,"Hollywater School",7079,"Special","Open"]
[null,null,null,null,null,null,null,null,null,null,null,851,"Devonshire Infant School",2648,"Mainstream","Open"]
[null,null,null,null,null,null,null,null,null,null,null,851,"Southsea Infant School",2680,"Mainstream","Open"]
[null,null,null,null,null,null,null,null,null,null,null,851,"St Edmund's Catholic School",5413,"Mainstream","Open"]
[null,null,null,null,null,null,null,null,null,null,null,852,"Compass School",1100,"Pupil Referral Unit","Open"]
[null,null,null,null,null,null,null,null,null,null,null,852,"Newlands Primary School",2003,"Mainstream","Open"]
[null,null,null,null,null,null,null,null,null,null,null,852,"Mason Moor Primary School, Nursery & Sen Unit",2771,"Mainstream","Open"]
[null,null,null,null,null,null,null,null,null,null,null,852,"Holy Family Catholic Primary School - Part of the Learning Federation Partnership of Schools",3657,"Mainstream","Open"]
[null,null,null,null,null,null,null,null,null,null,null,852,"Redbridge Community School",4270,"Mainstream","Open"]
[null,null,null,null,null,null,null,null,null,null,null,852,"Bitterne Park School",4278,"Mainstream","Open"]
[null,null,null,null,null,null,null,null,null,null,null,852,"Springwell School",7035,"Special","Open"]
[null,null,null,null,null,null,null,null,null,null,null,852,"The Cedar School",7037,"Special","Open"]
[null,null,null,null,null,null,null,null,null,null,null,852,"The Polygon School",7039,"Special","Open"]
[null,null,null,null,null,null,null,null,null,null,null,852,"Vermont School",7040,"Special","Open"]
[null,null,null,null,null,null,null,null,null,null,null,855,"Wigston Menphys Nursery School",1001,"Mainstream","Open"]
[null,null,null,null,null,null,null,null,null,null,null,855,"Oakfield School",1102,"Pupil Referral Unit","Open"]
[null,null,null,null,null,null,null,null,null,null,null,855,"Hugglescote Community Primary School",2024,"Mainstream","Open"]
[null,null,null,null,null,null,null,null,null,null,null,855,"Westfield Junior School",2045,"Mainstream","Open"]
[null,null,null,null,null,null,null,null,null,null,null,855,"Westfield Infant School",2046,"Mainstream","Open"]
[null,null,null,null,null,null,null,null,null,null,null,855,"Newbold Verdon Primary School",2078,"Mainstream","Open"]
[null,null,null,null,null,null,null,null,null,null,null,855,"Thorpe Acre Junior School",2116,"Mainstream","Open"]
[null,null,null,null,null,null,null,null,null,null,null,855,"Woodcote Primary School",2373,"Mainstream","Open"]
[null,null,null,null,null,null,null,null,null,null,null,855,"St Denys Church of England Infant School, Ibstock",3047,"Mainstream","Open"]
[null,null,null,null,null,null,null,null,null,null,null,855,"St Botolph's Church of England Primary School",3082,"Mainstream","Open"]
[null,null,null,null,null,null,null,null,null,null,null,855,"Maplewell Hall School",7002,"Special","Open"]
[null,null,null,null,null,null,null,null,null,null,null,855,"Ashmount School",7006,"Special","Open"]
[null,null,null,null,null,null,null,null,null,null,null,855,"Birch Wood (Melton Area Special School)",7215,"Special","Open"]
[null,null,null,null,null,null,null,null,null,null,null,856,"Elmbrook School",1100,"Pupil Referral Unit","Open"]
[null,null,null,null,null,null,null,null,null,null,null,856,"Leicester Partnership School",1103,"Pupil Referral Unit","Open"]
[null,null,null,null,null,null,null,null,null,null,null,856,"Catherine Infant School",2213,"Mainstream","Open"]
[null,null,null,null,null,null,null,null,null,null,null,856,"Rushey Mead Primary School",2231,"Mainstream","Open"]
[null,null,null,null,null,null,null,null,null,null,null,856,"Imperial Avenue Infant School",2238,"Mainstream","Open"]
[null,null,null,null,null,null,null,null,null,null,null,856,"Inglehurst Junior School",2240,"Mainstream","Open"]
[null,null,null,null,null,null,null,null,null,null,null,856,"King Richard III Infant and Nursery School",2241,"Mainstream","Open"]
[null,null,null,null,null,null,null,null,null,null,null,856,"Stokes Wood Primary School",2304,"Mainstream","Open"]
[null,null,null,null,null,null,null,null,null,null,null,856,"Sandfield Close Primary School",2317,"Mainstream","Open"]
[null,null,null,null,null,null,null,null,null,null,null,856,"Barley Croft Primary School",2320,"Mainstream","Open"]
[null,null,null,null,null,null,null,null,null,null,null,856,"Spinney Hill Primary School",2359,"Mainstream","Open"]
[null,null,null,null,null,null,null,null,null,null,null,856,"Fullhurst Community College",4274,"Mainstream","Open"]
[null,null,null,null,null,null,null,null,null,null,null,856,"The Children's Hospital School",5951,"Hospital","Open"]
[null,null,null,null,null,null,null,null,null,null,null,856,"Nether Hall School",7213,"Special","Open"]
[null,null,null,null,null,null,null,null,null,null,null,856,"Oaklands School",7217,"Special","Open"]
[null,null,null,null,null,null,null,null,null,null,null,856,"Ellesmere College",7218,"Special"]
[null,null,null,null,null,null,null,null,null,null,null,856,"West Gate School",7221,"Special"]
[null,null,null,null,null,null,null,null,null,null,null,860,"Hednesford Nursery School",1022,"Mainstream"]
[null,null,null,null,null,null,null,null,null,null,null,860,"Cedars - Newcastle, Moorlands and Darwin Bases",1106,"Pupil Referral Unit"]
[null,null,null,null,null,null,null,null,null,null,null,860,"Kettlebrook Short Stay School",1109,"Pupil Referral Unit"]
[null,null,null,null,null,null,null,null,null,null,null,860,"Burton PRU",1111,"Pupil Referral Unit"]
[null,null,null,null,null,null,null,null,null,null,null,860,"Samuel Allsopp Primary and Nursery School",2132,"Mainstream"]
[null,null,null,null,null,null,null,null,null,null,null,860,"Norton Canes High School",4066,"Mainstream"]
[null,null,null,null,null,null,null,null,null,null,null,860,"Chasetown Community School",7000,"Special"]
[null,null,null,null,null,null,null,null,null,null,null,860,"Horton Lodge Community Special School",7003,"Special"]
[null,null,null,null,null,null,null,null,null,null,null,860,"Hednesford Valley High School",7023,"Special"]
[null,null,null,null,null,null,null,null,null,null,null,860,"Marshlands School",7037,"Special"]
[null,null,null,null,null,null,null,null,null,null,null,861,"Merit Hospital School and Medical Pupil Referral Unit",1111,"Pupil Referral Unit"]
[null,null,null,null,null,null,null,null,null,null,null,861,"The Willows Primary School",2059,"Mainstream"]
[null,null,null,null,null,null,null,null,null,null,null,861,"Ball Green Primary School",2100,"Mainstream"]
[null,null,null,null,null,null,null,null,null,null,null,865,"St Paul's Primary School",2023,"Mainstream"]
[null,null,null,null,null,null,null,null,null,null,null,865,"Marlborough St Mary's CE Primary School",2027,"Mainstream"]
[null,null,null,null,null,null,null,null,null,null,null,865,"Westbury Infant School",2136,"Mainstream"]
[null,null,null,null,null,null,null,null,null,null,null,865,"Kiwi Primary School",2159,"Mainstream"]
[null,null,null,null,null,null,null,null,null,null,null,865,"Salisbury, Manor Fields Primary School",2191,"Mainstream"]
[null,null,null,null,null,null,null,null,null,null,null,865,"Charter Primary School",2226,"Mainstream"]
[null,null,null,null,null,null,null,null,null,null,null,865,"Westbury Church of England Junior School",3192,"Mainstream"]
[null,null,null,null,null,null,null,null,null,null,null,865,"Sarum St Paul's CofE (VA) Primary School",3383,"Mainstream"]
[null,null,null,null,null,null,null,null,null,null,null,865,"Lyneham Primary School",3471,"Mainstream"]
[null,null,null,null,null,null,null,null,null,null,null,865,"Frogwell Primary School",5205,"Mainstream"]
[null,null,null,null,null,null,null,null,null,null,null,865,"Clarendon Junior School (Clarendon Federation)",5218,"Mainstream"]
[null,null,null,null,null,null,null,null,null,null,null,865,"Clarendon Infants' School",5219,"Mainstream"]
[null,null,null,null,null,null,null,null,null,null,null,865,"Matravers School",5415,"Mainstream"]
[null,null,null,null,null,null,null,null,null,null,null,865,"Silverwood School",7003,"Special"]
[null,null,null,null,null,null,null,null,null,null,null,865,"Downland School",7007,"Special"]
[null,null,null,null,null,null,null,null,null,null,null,866,"EOTAS Swindon",1100,"Pupil Referral Unit"]
[null,null,null,null,null,null,null,null,null,null,null,866,"Eldene Nursery and Primary School",2009,"Mainstream"]
[null,null,null,null,null,null,null,null,null,null,null,866,"Crowdys Hill School",7006,"Special"]
[null,null,null,null,null,null,null,null,null,null,null,867,"Owlsmoor Primary School",2138,"Mainstream"]
[null,null,null,null,null,null,null,null,null,null,null,867,"The Pines School",3357,"Mainstream"]
[null,null,null,null,null,null,null,null,null,null,null,867,"Garth Hill College",4059,"Mainstream"]
[null,null,null,null,null,null,null,null,null,null,null,868,"RBWM Alternative Learning Provision",1103,"Pupil Referral Unit"]
[null,null,null,null,null,null,null,null,null,null,null,868,"Riverside Primary School and Nursery",2074,"Mainstream"]
[null,null,null,null,null,null,null,null,null,null,null,868,"Wessex Primary School",2077,"Mainstream"]
[null,null,null,null,null,null,null,null,null,null,null,868,"Hilltop First School",2096,"Mainstream"]
[null,null,null,null,null,null,null,null,null,null,null,868,"Furze Platt Junior School",2108,"Mainstream"]
[null,null,null,null,null,null,null,null,null,null,null,868,"South Ascot Village Primary School",2109,"Mainstream"]
[null,null,null,null,null,null,null,null,null,null,null,868,"Furze Platt Infant School",2112,"Mainstream"]
[null,null,null,null,null,null,null,null,null,null,null,869,"iCollege Alternative Provision",1111,"Pupil Referral Unit"]
[null,null,null,null,null,null,null,null,null,null,null,869,"Westwood Farm Junior School",2111,"Mainstream"]
[null,null,null,null,null,null,null,null,null,null,null,869,"Westwood Farm Infant School",2131,"Mainstream"]
[null,null,null,null,null,null,null,null,null,null,null,869,"Kennet Valley Primary School",2180,"Mainstream"]
[null,null,null,null,null,null,null,null,null,null,null,869,"Theale C.E. Primary School",3045,"Mainstream"]
[null,null,null,null,null,null,null,null,null,null,null,869,"The Winchcombe School",3359,"Mainstream"]
[null,null,null,null,null,null,null,null,null,null,null,869,"The Castle School",7007,"Special"]
[null,null,null,null,null,null,null,null,null,null,null,870,"Blagdon Nursery School",1000,"Mainstream"]
[null,null,null,null,null,null,null,null,null,null,null,870,"Norcot Early Years Centre",1004,"Mainstream"]
[null,null,null,null,null,null,null,null,null,null,null,870,"New Bridge Nursery School",1006,"Mainstream"]
[null,null,null,null,null,null,null,null,null,null,null,870,"E P Collier Primary School",2006,"Mainstream"]
[null,null,null,null,null,null,null,null,null,null,null,870,"Oxford Road Community School",2016,"Mainstream"]
[null,null,null,null,null,null,null,null,null,null,null,870,"Wilson Primary School",2024,"Mainstream"]
[null,null,null,null,null,null,null,null,null,null,null,870,"Southcote Primary School",2027,"Mainstream"]
[null,null,null,null,null,null,null,null,null,null,null,870,"Christ The King Catholic Primary School",3305,"Mainstream"]
[null,null,null,null,null,null,null,null,null,null,null,870,"Blessed Hugh Faringdon Catholic School",5411,"Mainstream"]
[null,null,null,null,null,null,null,null,null,null,null,870,"The Holy Brook School",7036,"Special"]
[null,null,null,null,null,null,null,null,null,null,null,871,"Slough Centre Nursery School",1020,"Mainstream"]
[null,null,null,null,null,null,null,null,null,null,null,871,"Baylis Court Nursery School",1021,"Mainstream"]
[null,null,null,null,null,null,null,null,null,null,null,871,"Chalvey Nursery School & Early Years Centre",1025,"Mainstream"]
[null,null,null,null,null,null,null,null,null,null,null,871,"Wexham School",4089,"Mainstream"]
[null,null,null,null,null,null,null,null,null,null,null,871,"Priory School",5201,"Mainstream"]
[null,null,null,null,null,null,null,null,null,null,null,872,"The Ambleside Centre",1017,"Mainstream"]
[null,null,null,null,null,null,null,null,null,null,null,872,"Foundry College",1108,"Pupil Referral Unit"]
[null,null,null,null,null,null,null,null,null,null,null,872,"CAMHS Phoenix School",1109,"Hospital"]
[null,null,null,null,null,null,null,null,null,null,null,872,"Lambs Lane Primary School",2089,"Mainstream"]
[null,null,null,null,null,null,null,null,null,null,null,872,"Radstock Primary School",2235,"Mainstream"]
[null,null,null,null,null,null,null,null,null,null,null,872,"Highwood Primary School",2246,"Mainstream"]
[null,null,null,null,null,null,null,null,null,null,null,872,"Loddon Primary School",3371,"Mainstream"]
[null,null,null,null,null,null,null,null,null,null,null,873,"Homerton Early Years Centre",1002,"Mainstream"]
[null,null,null,null,null,null,null,null,null,null,null,873,"Pilgrim Pathways School",1105,"Hospital"]
[null,null,null,null,null,null,null,null,null,null,null,873,"Townley Primary School",2064,"Mainstream"]
[null,null,null,null,null,null,null,null,null,null,null,873,"Colville Primary School",2119,"Mainstream"]
[null,null,null,null,null,null,null,null,null,null,null,873,"Mayfield Primary School",2121,"Mainstream"]
[null,null,null,null,null,null,null,null,null,null,null,873,"Spring Meadow Infant School",2329,"Mainstream"]
[null,null,null,null,null,null,null,null,null,null,null,873,"Samuel Pepys School",7023,"Special"]
[null,null,null,null,null,null,null,null,null,null,null,873,"Granta School",7025,"Special"]
[null,null,null,null,null,null,null,null,null,null,null,873,"Castle School, Cambridge",7026,"Special"]
[null,null,null,null,null,null,null,null,null,null,null,874,"Southfields Primary School",2223,"Mainstream"]
[null,null,null,null,null,null,null,null,null,null,null,874,"St John Fisher Catholic High School",5413,"Mainstream"]
[null,null,null,null,null,null,null,null,null,null,null,874,"Marshfields School",7013,"Special"]
[null,null,null,null,null,null,null,null,null,null,null,874,"Heltwate School",7020,"Special"]
[null,null,null,null,null,null,null,null,null,null,null,876,"The Bridge School",1100,"Pupil Referral Unit"]
[null,null,null,null,null,null,null,null,null,null,null,876,"Victoria Road Primary School",2107,"Mainstream"]
[null,null,null,null,null,null,null,null,null,null,null,876,"The Brow Community Primary School",2295,"Mainstream"]
[null,null,null,null,null,null,null,null,null,null,null,876,"Woodside Primary School",2297,"Mainstream"]
[null,null,null,null,null,null,null,null,null,null,null,876,"Beechwood Primary School",2382,"Mainstream"]
[null,null,null,null,null,null,null,null,null,null,null,876,"Astmoor Primary School",2700,"Mainstream"]
[null,null,null,null,null,null,null,null,null,null,null,876,"Westfield Primary School",2723,"Mainstream"]
[null,null,null,null,null,null,null,null,null,null,null,876,"Oakfield Community Primary School",2727,"Mainstream"]
[null,null,null,null,null,null,null,null,null,null,null,876,"St Basil's Catholic Primary School",3648,"Mainstream"]
[null,null,null,null,null,null,null,null,null,null,null,876,"Chesnut Lodge Special School",7200,"Special"]
[null,null,null,null,null,null,null,null,null,null,null,876,"Ashley High School",7202,"Special"]
[null,null,null,null,null,null,null,null,null,null,null,877,"Sandy Lane Nursery and Forest School",1004,"Mainstream"]
[null,null,null,null,null,null,null,null,null,null,null,877,"Bewsey Lodge Primary School",2013,"Mainstream"]
[null,null,null,null,null,null,null,null,null,null,null,877,"St Gregory's Catholic High School",4622,"Mainstream"]
[null,null,null,null,null,null,null,null,null,null,null,877,"Green Lane Community Special School",7001,"Special"]
[null,null,null,null,null,null,null,null,null,null,null,877,"Fox Wood Special School",7002,"Special"]
[null,null,null,null,null,null,null,null,null,null,null,877,"Woolston Brook School",7103,"Special"]
[null,null,null,null,null,null,null,null,null,null,null,878,"Devon Hospitals' Short Stay School",1110,"Pupil Referral Unit"]
[null,null,null,null,null,null,null,null,null,null,null,878,"West Croft School",2209,"Mainstream"]
[null,null,null,null,null,null,null,null,null,null,null,878,"Great Torrington Bluecoat Church of England Primary School",3061,"Mainstream"]
[null,null,null,null,null,null,null,null,null,null,null,878,"Ilfracombe Church of England Junior School",3065,"Mainstream"]
[null,null,null,null,null,null,null,null,null,null,null,878,"Tiverton High School",4192,"Mainstream"]
[null,null,null,null,null,null,null,null,null,null,null,878,"Ellen Tinkham School",7002,"Special"]
[null,null,null,null,null,null,null,null,null,null,null,878,"Southbrook School",7005,"Special"]
[null,null,null,null,null,null,null,null,null,null,null,878,"Barley Lane School",7008,"Special"]
[null,null,null,null,null,null,null,null,null,null,null,878,"The Lampard Community School",7020,"Special"]
[null,null,null,null,null,null,null,null,null,null,null,878,"Pathfield School",7021,"Special"]
[null,null,null,null,null,null,null,null,null,null,null,878,"Bidwell Brook School",7044,"Special"]
[null,null,null,null,null,null,null,null,null,null,null,878,"Marland School",7088,"Special"]
[null,null,null,null,null,null,null,null,null,null,null,879,"Woodlands School",7062,"Special"]
[null,null,null,null,null,null,null,null,null,null,null,879,"Cann Bridge School",7063,"Special"]
[null,null,null,null,null,null,null,null,null,null,null,879,"Brook Green Centre for Learning",7066,"Special"]
[null,null,null,null,null,null,null,null,null,null,null,879,"Longcause Community Special School",7068,"Special"]
[null,null,null,null,null,null,null,null,null,null,null,879,"Mill Ford School",7069,"Special"]
[null,null,null,null,null,null,null,null,null,null,null,880,"The Spires College",4117,"Mainstream"]
[null,null,null,null,null,null,null,null,null,null,null,880,"Mayfield School",7042,"Special"]
[null,null,null,null,null,null,null,null,null,null,null,881,"The St Aubyn Centre Education Department",1108,"Pupil Referral Unit"]
[null,null,null,null,null,null,null,null,null,null,null,881,"Poplar Adolescent Unit",1115,"Pupil Referral Unit"]
[null,null,null,null,null,null,null,null,null,null,null,881,"Children's Support Service",1120,"Pupil Referral Unit"]
[null,null,null,null,null,null,null,null,null,null,null,881,"Lexden Primary School with Unit for Hearing Impaired Pupils",2006,"Mainstream"]
[null,null,null,null,null,null,null,null,null,null,null,881,"Trinity Road Primary School",2210,"Mainstream"]
[null,null,null,null,null,null,null,null,null,null,null,881,"Ghyllgrove Primary School",2611,"Mainstream"]
[null,null,null,null,null,null,null,null,null,null,null,881,"West Horndon Primary School",2624,"Mainstream"]
[null,null,null,null,null,null,null,null,null,null,null,881,"Bentfield Primary School and Nursery",2747,"Mainstream"]
[null,null,null,null,null,null,null,null,null,null,null,881,"Cedar Hall School",7036,"Special"]
[null,null,null,null,null,null,null,null,null,null,null,881,"The Edith Borthwick School",7048,"Special"]
[null,null,null,null,null,null,null,null,null,null,null,881,"Glenwood School",7054,"Special"]
[null,null,null,null,null,null,null,null,null,null,null,881,"Shorefields School",7060,"Special"]
[null,null,null,null,null,null,null,null,null,null,null,881,"Harlow Fields School and College",7070,"Special"]
[null,null,null,null,null,null,null,null,null,null,null,882,"Fairways Primary School",2407,"Mainstream"]
[null,null,null,null,null,null,null,null,null,null,null,884,"Herefordshire Pupil Referral Service",1109,"Pupil Referral Unit"]
[null,null,null,null,null,null,null,null,null,null,null,884,"Leominster Primary School",2003,"Mainstream"]
[null,null,null,null,null,null,null,null,null,null,null,884,"Hampton Dene Primary School",2057,"Mainstream"]
[null,null,null,null,null,null,null,null,null,null,null,884,"Aylestone School",4015,"Mainstream"]
[null,null,null,null,null,null,null,null,null,null,null,884,"Earl Mortimer College",4027,"Mainstream"]
[null,null,null,null,null,null,null,null,null,null,null,884,"The Bishop of Hereford's Bluecoat School",4600,"Mainstream"]
[null,null,null,null,null,null,null,null,null,null,null,884,"Westfield School",7007,"Special"]
[null,null,null,null,null,null,null,null,null,null,null,885,"Perryfields Primary Pupil Referral Unit",1103,"Pupil Referral Unit"]
[null,null,null,null,null,null,null,null,null,null,null,885,"The Beacon Primary Pupil Referral Unit",1105,"Pupil Referral Unit"]
[null,null,null,null,null,null,null,null,null,null,null,885,"The Forge Secondary Short Stay School",1121,"Pupil Referral Unit"]
[null,null,null,null,null,null,null,null,null,null,null,885,"Meadows First School",2019,"Mainstream"]
[null,null,null,null,null,null,null,null,null,null,null,885,"Batchley First and Nursery School",2128,"Mainstream"]
[null,null,null,null,null,null,null,null,null,null,null,885,"Beaconside Primary and Nursery School",2197,"Mainstream"]
[null,null,null,null,null,null,null,null,null,null,null,885,"Lickey Hills Primary School and Nursery",2901,"Mainstream"]
[null,null,null,null,null,null,null,null,null,null,null,885,"Abbey Park Middle School",2906,"Mainstream"]
[null,null,null,null,null,null,null,null,null,null,null,885,"Chaddesley Corbett Endowed Primary School",3330,"Mainstream"]
[null,null,null,null,null,null,null,null,null,null,null,885,"Parkside Middle School",4403,"Mainstream"]
[null,null,null,null,null,null,null,null,null,null,null,885,"Rigby Hall Day Special School",7001,"Special"]
[null,null,null,null,null,null,null,null,null,null,null,885,"Chadsgrove School",7015,"Special"]
[null,null,null,null,null,null,null,null,null,null,null,885,"Fort Royal",7025,"Special"]
[null,null,null,null,null,null,null,null,null,null,null,885,"Wyre Forest School",7026,"Special"]
[null,null,null,null,null,null,null,null,null,null,null,886,"The Rosewood School",1123,"Pupil Referral Unit"]
[null,null,null,null,null,null,null,null,null,null,null,886,"Birchwood",1124,"Pupil Referral Unit"]
[null,null,null,null,null,null,null,null,null,null,null,886,"Maidstone and Malling Alternative Provision",1127,"Pupil Referral Unit"]
[null,null,null,null,null,null,null,null,null,null,null,886,"Enterprise Learning Alliance",1128,"Pupil Referral Unit"]
[null,null,null,null,null,null,null,null,null,null,null,886,"Two Bridges School",1129,"Pupil Referral Unit"]
[null,null,null,null,null,null,null,null,null,null,null,886,"Slade Primary School and Attached Unit for Children with Hearing Impairment",2155,"Mainstream"]
[null,null,null,null,null,null,null,null,null,null,null,886,"Willesborough Infant School",2276,"Mainstream"]
[null,null,null,null,null,null,null,null,null,null,null,886,"River Primary School",2312,"Mainstream"]
[null,null,null,null,null,null,null,null,null,null,null,886,"West Minster Primary School",2434,"Mainstream"]
[null,null,null,null,null,null,null,null,null,null,null,886,"Whitfield Aspen School",2471,"Mainstream"]
[null,null,null,null,null,null,null,null,null,null,null,886,"Bishops Down Primary and Nursery School",2490,"Mainstream"]
[null,null,null,null,null,null,null,null,null,null,null,886,"Bromstone Primary School, Broadstairs",2603,"Mainstream"]
[null,null,null,null,null,null,null,null,null,null,null,886,"King's Farm Primary School",2674,"Mainstream"]
[null,null,null,null,null,null,null,null,null,null,null,886,"Ulcombe Church of England Primary School",3083,"Mainstream"]
[null,null,null,null,null,null,null,null,null,null,null,886,"Nonington Church of England Primary School",3171,"Mainstream"]
[null,null,null,null,null,null,null,null,null,null,null,886,"Margate, Holy Trinity and St John's Church of England Primary School",3179,"Mainstream"]
[null,null,null,null,null,null,null,null,null,null,null,886,"Langafel Church of England Voluntary Controlled Primary School",3296,"Mainstream"]
[null,null,null,null,null,null,null,null,null,null,null,886,"The John Wesley Church of England Methodist Voluntary Aided Primary School",3299,"Mainstream"]
[null,null,null,null,null,null,null,null,null,null,null,886,"Hythe Bay CofE Primary School",3902,"Mainstream"]
[null,null,null,null,null,null,null,null,null,null,null,886,"Castle Hill Community Primary School",3904,"Mainstream"]
[null,null,null,null,null,null,null,null,null,null,null,886,"Ashford Oaks Community Primary School",3909,"Mainstream"]
[null,null,null,null,null,null,null,null,null,null,null,886,"Joy Lane Primary Foundation School",3910,"Mainstream"]
[null,null,null,null,null,null,null,null,null,null,null,886,"Green Park Community Primary School",3916,"Mainstream"]
[null,null,null,null,null,null,null,null,null,null,null,886,"Garlinge Primary School and Nursery",3917,"Mainstream"]
[null,null,null,null,null,null,null,null,null,null,null,886,"The Judd School",4622,"Mainstream"]
[null,null,null,null,null,null,null,null,null,null,null,886,"Wincheap Foundation Primary School",5221,"Mainstream"]
[null,null,null,null,null,null,null,null,null,null,null,886,"Thamesview School",5407,"Mainstream"]
[null,null,null,null,null,null,null,null,null,null,null,886,"Simon Langton Grammar School for Boys",5412,"Mainstream"]
[null,null,null,null,null,null,null,null,null,null,null,886,"The Malling School",5425,"Mainstream"]
[null,null,null,null,null,null,null,null,null,null,null,886,"The Archbishop's School",5426,"Mainstream"]
[null,null,null,null,null,null,null,null,null,null,null,886,"Broomhill Bank School",7002,"Special"]
[null,null,null,null,null,null,null,null,null,null,null,886,"Valence School",7021,"Special"]
[null,null,null,null,null,null,null,null,null,null,null,886,"Bower Grove School",7032,"Special"]
[null,null,null,null,null,null,null,null,null,null,null,886,"St Anthony's School",7033,"Special"]
[null,null,null,null,null,null,null,null,null,null,null,886,"Ifield School",7039,"Special"]
[null,null,null,null,null,null,null,null,null,null,null,886,"Foreland Fields School",7040,"Special"]
[null,null,null,null,null,null,null,null,null,null,null,886,"Goldwyn School",7041,"Special"]
[null,null,null,null,null,null,null,null,null,null,null,886,"The Beacon Folkestone",7043,"Special"]
[null,null,null,null,null,null,null,null,null,null,null,886,"Rowhill School",7044,"Special"]
[null,null,null,null,null,null,null,null,null,null,null,886,"Elms School",7045,"Special"]
[null,null,null,null,null,null,null,null,null,null,null,886,"Nexus Foundation Special School",7051,"Special"]
[null,null,null,null,null,null,null,null,null,null,null,886,"Grange Park School",7052,"Special"]
[null,null,null,null,null,null,null,null,null,null,null,886,"Five Acre Wood School",7056,"Special"]
[null,null,null,null,null,null,null,null,null,null,null,886,"Stone Bay School",7058,"Special"]
[null,null,null,null,null,null,null,null,null,null,null,886,"The Orchard School",7062,"Special"]
[null,null,null,null,null,null,null,null,null,null,null,886,"St Nicholas' School",7063,"Special"]
[null,null,null,null,null,null,null,null,null,null,null,886,"Portal House School",7067,"Special"]
[null,null,null,null,null,null,null,null,null,null,null,886,"The Wyvern School (Buxford)",7069,"Special"]
[null,null,null,null,null,null,null,null,null,null,null,886,"Oakley School",7070,"Special"]
[null,null,null,null,null,null,null,null,null,null,null,886,"Meadowfield School",7072,"Special"]
[null,null,null,null,null,null,null,null,null,null,null,886,"Laleham Gap School",7073,"Special"]
[null,null,null,null,null,null,null,null,null,null,null,887,"Abbey Court Foundation Special School",7053,"Special"]
[null,null,null,null,null,null,null,null,null,null,null,888,"Basnett Street Nursery School",1047,"Mainstream"]
[null,null,null,null,null,null,null,null,null,null,null,888,"Stepping Stones School",1100,"Pupil Referral Unit"]
[null,null,null,null,null,null,null,null,null,null,null,888,"Golden Hill Pupil Referral Unit",1103,"Pupil Referral Unit"]
[null,null,null,null,null,null,null,null,null,null,null,888,"Larches High School",1109,"Pupil Referral Unit"]
[null,null,null,null,null,null,null,null,null,null,null,888,"Oswaldtwistle School",1113,"Pupil Referral Unit"]
[null,null,null,null,null,null,null,null,null,null,null,888,"Shaftesbury High School",1116,"Pupil Referral Unit"]
[null,null,null,null,null,null,null,null,null,null,null,888,"McKee College House",1117,"Pupil Referral Unit"]
[null,null,null,null,null,null,null,null,null,null,null,888,"The Acorns School",1118,"Pupil Referral Unit"]
[null,null,null,null,null,null,null,null,null,null,null,888,"Chadwick High School",1121,"Pupil Referral Unit"]
[null,null,null,null,null,null,null,null,null,null,null,888,"Morecambe Bay Community Primary School",2025,"Mainstream"]
[null,null,null,null,null,null,null,null,null,null,null,888,"Barrowford School",2074,"Mainstream"]
[null,null,null,null,null,null,null,null,null,null,null,888,"Oswaldtwistle Moor End Primary School",2107,"Mainstream"]
[null,null,null,null,null,null,null,null,null,null,null,888,"Holme Slack Community Primary School",2193,"Mainstream"]
[null,null,null,null,null,null,null,null,null,null,null,888,"Barden Primary School",2228,"Mainstream"]
[null,null,null,null,null,null,null,null,null,null,null,888,"Seven Stars Primary School",2427,"Mainstream"]
[null,null,null,null,null,null,null,null,null,null,null,888,"Delph Side Community Primary School",2552,"Mainstream"]
[null,null,null,null,null,null,null,null,null,null,null,888,"Holland Moor Primary School",2656,"Mainstream"]
[null,null,null,null,null,null,null,null,null,null,null,888,"Clayton Brook Primary School",2702,"Mainstream"]
[null,null,null,null,null,null,null,null,null,null,null,888,"Fleetwood Flakefleet Primary School",2836,"Mainstream"]
[null,null,null,null,null,null,null,null,null,null,null,888,"Padiham St Leonard's Voluntary Aided Church of England Primary School",3313,"Mainstream"]
[null,null,null,null,null,null,null,null,null,null,null,888,"St Francis of Assisi Catholic Primary School",3998,"Mainstream"]
[null,null,null,null,null,null,null,null,null,null,null,888,"Ashton Community Science College",4000,"Mainstream"]
[null,null,null,null,null,null,null,null,null,null,null,888,"Bleasdale School",7007,"Special"]
[null,null,null,null,null,null,null,null,null,null,null,888,"Moorbrook School",7014,"Special"]
[null,null,null,null,null,null,null,null,null,null,null,888,"Morecambe Road School",7034,"Special"]
[null,null,null,null,null,null,null,null,null,null,null,888,"Chorley Astley Park School",7037,"Special"]
[null,null,null,null,null,null,null,null,null,null,null,888,"Great Arley School",7040,"Special"]
[null,null,null,null,null,null,null,null,null,null,null,888,"Rawtenstall Cribden House Community Special School",7044,"Special"]
[null,null,null,null,null,null,null,null,null,null,null,888,"Applebee Wood Community Specialist School",7049,"Special"]
[null,null,null,null,null,null,null,null,null,null,null,888,"Broadfield Specialist School",7060,"Special"]
[null,null,null,null,null,null,null,null,null,null,null,888,"Kirkham Pear Tree School",7076,"Special"]
[null,null,null,null,null,null,null,null,null,null,null,888,"Mayfield School",7089,"Special"]
[null,null,null,null,null,null,null,null,null,null,null,888,"The Loyne Specialist School",7097,"Special"]
[null,null,null,null,null,null,null,null,null,null,null,888,"The Coppice School",7098,"Special"]
[null,null,null,null,null,null,null,null,null,null,null,888,"Oswaldtwistle White Ash School",7099,"Special"]
[null,null,null,null,null,null,null,null,null,null,null,888,"Brookfield School",7100,"Special"]
[null,null,null,null,null,null,null,null,null,null,null,888,"Thornton-Cleveleys Red Marsh School",7102,"Special"]
[null,null,null,null,null,null,null,null,null,null,null,888,"Hope High School",7104,"Special"]
[null,null,null,null,null,null,null,null,null,null,null,888,"Hillside Specialist School and College",7109,"Special"]
[null,null,null,null,null,null,null,null,null,null,null,888,"Royal Cross Primary School",7110,"Special"]
[null,null,null,null,null,null,null,null,null,null,null,888,"The Rose School",7111,"Special"]
[null,null,null,null,null,null,null,null,null,null,null,888,"Pendle View Primary School",7112,"Special"]
[null,null,null,null,null,null,null,null,null,null,null,888,"Ridgewood Community High School",7113,"Special"]
[null,null,null,null,null,null,null,null,null,null,null,888,"Holly Grove School",7114,"Special"]
[null,null,null,null,null,null,null,null,null,null,null,888,"Pendle Community High School & College",7115,"Special"]
[null,null,null,null,null,null,null,null,null,null,null,888,"West Lancashire Community High School",7116,"Special"]
[null,null,null,null,null,null,null,null,null,null,null,888,"Kingsbury Primary Special School",7117,"Special"]
[null,null,null,null,null,null,null,null,null,null,null,888,"Sir Tom Finney Community High School",7118,"Special"]
[null,null,null,null,null,null,null,null,null,null,null,888,"Acorns Primary School",7119,"Special"]
[null,null,null,null,null,null,null,null,null,null,null,888,"Elm Tree Community Primary School",7120,"Special"]
[null,null,null,null,null,null,null,null,null,null,null,889,"St Thomas's Centre",1100,"Pupil Referral Unit"]
[null,null,null,null,null,null,null,null,null,null,null,889,"Lower Darwen Primary School",2008,"Mainstream"]
[null,null,null,null,null,null,null,null,null,null,null,889,"Shadsworth Infant School",2167,"Mainstream"]
[null,null,null,null,null,null,null,null,null,null,null,889,"St Cuthbert's Church of England Primary School",3675,"Mainstream"]
[null,null,null,null,null,null,null,null,null,null,null,889,"Newfield School",7107,"Special"]
[null,null,null,null,null,null,null,null,null,null,null,890,"Educational Diversity",1100,"Pupil Referral Unit"]
[null,null,null,null,null,null,null,null,null,null,null,890,"Woodlands School",7025,"Special"]
[null,null,null,null,null,null,null,null,null,null,null,891,"Prospect Hill Infant and Nursery School",2925,"Mainstream"]
[null,null,null,null,null,null,null,null,null,null,null,891,"Carlton Digby School",7019,"Special"]
[null,null,null,null,null,null,null,null,null,null,null,891,"St Giles School",7021,"Special"]
[null,null,null,null,null,null,null,null,null,null,null,891,"Ash Lea School",7023,"Special"]
[null,null,null,null,null,null,null,null,null,null,null,891,"Newark Orchard School",7041,"Special"]
[null,null,null,null,null,null,null,null,null,null,null,892,"Hospital and Home Education PRU",1109,"Pupil Referral Unit"]
[null,null,null,null,null,null,null,null,null,null,null,892,"Fernwood Primary School",2016,"Mainstream"]
[null,null,null,null,null,null,null,null,null,null,null,892,"Mellers Primary School",2158,"Mainstream"]
[null,null,null,null,null,null,null,null,null,null,null,892,"Rosehill School",7035,"Special"]
[null,null,null,null,null,null,null,null,null,null,null,892,"Oak Field School",7042,"Special"]
[null,null,null,null,null,null,null,null,null,null,null,893,"Tuition, Medical and Behaviour Support Service",1100,"Pupil Referral Unit"]
[null,null,null,null,null,null,null,null,null,null,null,893,"St Lawrence CofE Primary School",3024,"Mainstream"]
[null,null,null,null,null,null,null,null,null,null,null,893,"St Andrew's CofE Primary School",3044,"Mainstream"]
[null,null,null,null,null,null,null,null,null,null,null,893,"Morda CofE Primary School",3074,"Mainstream"]
[null,null,null,null,null,null,null,null,null,null,null,893,"Whittington CofE (VA) Primary School",3329,"Mainstream"]
[null,null,null,null,null,null,null,null,null,null,null,894,"The Linden Centre",1100,"Pupil Referral Unit"]
[null,null,null,null,null,null,null,null,null,null,null,894,"Newport Infant School and Nursery",2074,"Mainstream"]
[null,null,null,null,null,null,null,null,null,null,null,894,"Woodlands Primary School",3363,"Mainstream"]
[null,null,null,null,null,null,null,null,null,null,null,894,"Haughton School",7001,"Special"]
[null,null,null,null,null,null,null,null,null,null,null,894,"Southall School",7012,"Special"]
[null,null,null,null,null,null,null,null,null,null,null,894,"The Bridge at HLC",7017,"Special"]
[null,null,null,null,null,null,null,null,null,null,null,895,"Lindow Community Primary School",2161,"Mainstream"]
[null,null,null,null,null,null,null,null,null,null,null,895,"Middlewich Primary School",2731,"Mainstream"]
[null,null,null,null,null,null,null,null,null,null,null,895,"Wilmslow High School",4225,"Mainstream"]
[null,null,null,null,null,null,null,null,null,null,null,895,"Springfield School",7111,"Special"]
[null,null,null,null,null,null,null,null,null,null,null,895,"Park Lane School",7112,"Special"]
[null,null,null,null,null,null,null,null,null,null,null,896,"The Bridge Short Stay School",1100,"Pupil Referral Unit"]
[null,null,null,null,null,null,null,null,null,null,null,896,"Ancora House School",1103,"Hospital"]
[null,null,null,null,null,null,null,null,null,null,null,896,"Upton Westlea Primary School",2260,"Mainstream"]
[null,null,null,null,null,null,null,null,null,null,null,896,"Darnhall Primary School",2311,"Mainstream"]
[null,null,null,null,null,null,null,null,null,null,null,896,"Dee Point Primary School",2701,"Mainstream"]
[null,null,null,null,null,null,null,null,null,null,null,896,"Woodlands Primary School",3813,"Mainstream"]
[null,null,null,null,null,null,null,null,null,null,null,896,"St Nicholas Catholic High School",4610,"Mainstream"]
[null,null,null,null,null,null,null,null,null,null,null,896,"Dee Banks School",7000,"Special"]
[null,null,null,null,null,null,null,null,null,null,null,896,"Greenbank School",7106,"Special"]
[null,null,null,null,null,null,null,null,null,null,null,896,"Oaklands School",7108,"Special"]
[null,null,null,null,null,null,null,null,null,null,null,896,"Hebden Green Community School",7109,"Special"]
[null,null,null,null,null,null,null,null,null,null,null,896,"Hinderton School",7115,"Special"]
[null,null,null,null,null,null,null,null,null,null,null,896,"Dorin Park School & Specialist SEN College",7118,"Special"]
[null,null,null,null,null,null,null,null,null,null,null,896,"Rosebank School",7120,"Special"]
[null,null,null,null,null,null,null,null,null,null,null,896,"Archers Brook SEMH Residential School",7208,"Special"]
[null,null,null,null,null,null,null,null,null,null,null,908,"Camborne Nursery School",1000,"Mainstream"]
[null,null,null,null,null,null,null,null,null,null,null,908,"Burraton Community Primary School",2730,"Mainstream"]
[null,null,null,null,null,null,null,null,null,null,null,908,"Redruth School",4159,"Mainstream"]
[null,null,null,null,null,null,null,null,null,null,null,908,"Richard Lander School",4160,"Mainstream"]
[null,null,null,null,null,null,null,null,null,null,null,916,"Gloucestershire Hospital Education Service",1104,"Hospital"]
[null,null,null,null,null,null,null,null,null,null,null,916,"The Altus School",1106,"Pupil Referral Unit"]
[null,null,null,null,null,null,null,null,null,null,null,916,"Gastrells Community Primary School",2137,"Mainstream"]
[null,null,null,null,null,null,null,null,null,null,null,916,"Ruardean Church of England Primary School",3065,"Mainstream"]
[null,null,null,null,null,null,null,null,null,null,null,916,"Bettridge School",7015,"Special"]
[null,null,null,null,null,null,null,null,null,null,null,916,"The Shrubberies School",7017,"Special"]
[null,null,null,null,null,null,null,null,null,null,null,916,"Alderman Knight School",7019,"Special"]
[null,null,null,null,null,null,null,null,null,null,null,916,"Heart of the Forest Community Special School",7025,"Special"]
[null,null,null,null,null,null,null,null,null,null,null,919,"North Herts Education Support Centre",1101,"Pupil Referral Unit"]
[null,null,null,null,null,null,null,null,null,null,null,919,"Stevenage Education Support Centre",1102,"Pupil Referral Unit"]
[null,null,null,null,null,null,null,null,null,null,null,919,"Chessbrook Education Support Centre",1105,"Pupil Referral Unit"]
[null,null,null,null,null,null,null,null,null,null,null,919,"Dacorum Education Support Centre",1108,"Pupil Referral Unit"]
[null,null,null,null,null,null,null,null,null,null,null,919,"Rivers Education Support Centre",1109,"Pupil Referral Unit"]
[null,null,null,null,null,null,null,null,null,null,null,919,"Sauncey Wood Primary School",2033,"Mainstream"]
[null,null,null,null,null,null,null,null,null,null,null,919,"Hillshott Infant School and Nursery",2069,"Mainstream"]
[null,null,null,null,null,null,null,null,null,null,null,919,"Summerswood Primary School",2154,"Mainstream"]
[null,null,null,null,null,null,null,null,null,null,null,919,"Margaret Wix Primary School",2168,"Mainstream"]
[null,null,null,null,null,null,null,null,null,null,null,919,"Peartree Spring Primary School",2198,"Mainstream"]
[null,null,null,null,null,null,null,null,null,null,null,919,"Downfield Primary School",2289,"Mainstream"]
[null,null,null,null,null,null,null,null,null,null,null,919,"Moss Bury Primary School and Nursery",2312,"Mainstream"]
[null,null,null,null,null,null,null,null,null,null,null,919,"Maple Primary School",2364,"Mainstream"]
[null,null,null,null,null,null,null,null,null,null,null,919,"The Giles Infant and Nursery School",2394,"Mainstream"]
[null,null,null,null,null,null,null,null,null,null,null,919,"The Priory School",4000,"Mainstream"]
[null,null,null,null,null,null,null,null,null,null,null,919,"Garston Manor School",7008,"Special"]
[null,null,null,null,null,null,null,null,null,null,null,919,"The Valley School",7010,"Special"]
[null,null,null,null,null,null,null,null,null,null,null,919,"Colnbrook School",7011,"Special"]
[null,null,null,null,null,null,null,null,null,null,null,919,"St Luke's School",7012,"Special"]
[null,null,null,null,null,null,null,null,null,null,null,919,"The Collett School",7013,"Special"]
[null,null,null,null,null,null,null,null,null,null,null,919,"Batchwood School",7016,"Special"]
[null,null,null,null,null,null,null,null,null,null,null,919,"Middleton School",7019,"Special"]
[null,null,null,null,null,null,null,null,null,null,null,919,"Lonsdale School",7022,"Special"]
[null,null,null,null,null,null,null,null,null,null,null,919,"Lakeside School",7023,"Special"]
[null,null,null,null,null,null,null,null,null,null,null,919,"Breakspeare School",7024,"Special"]
[null,null,null,null,null,null,null,null,null,null,null,919,"Woodfield School",7025,"Special"]
[null,null,null,null,null,null,null,null,null,null,null,919,"Watling View School",7026,"Special"]
[null,null,null,null,null,null,null,null,null,null,null,919,"Amwell View School",7028,"Special"]
[null,null,null,null,null,null,null,null,null,null,null,919,"Heathlands School",7032,"Special"]
[null,null,null,null,null,null,null,null,null,null,null,919,"Falconer School",7033,"Special"]
[null,null,null,null,null,null,null,null,null,null,null,919,"Greenside School",7042,"Special"]
[null,null,null,null,null,null,null,null,null,null,null,919,"Meadow Wood School",7043,"Special"]
[null,null,null,null,null,null,null,null,null,null,null,919,"Southfield School",7044,"Special"]
[null,null,null,null,null,null,null,null,null,null,null,919,"Haywood Grove School",7047,"Special"]
[null,null,null,null,null,null,null,null,null,null,null,921,"Island Learning Centre",1102,"Pupil Referral Unit"]
[null,null,null,null,null,null,null,null,null,null,null,921,"Hunnyhill Primary School",2018,"Mainstream"]
[null,null,null,null,null,null,null,null,null,null,null,921,"Greenmount Primary School",2039,"Mainstream"]
[null,null,null,null,null,null,null,null,null,null,null,921,"The Bay Church of England School",2044,"Mainstream"]
[null,null,null,null,null,null,null,null,null,null,null,921,"Brading Church of England Controlled Primary School",3003,"Mainstream"]
[null,null,null,null,null,null,null,null,null,null,null,921,"St George's School",7001,"Special"]
[null,null,null,null,null,null,null,null,null,null,null,921,"Medina House School",7003,"Special"]
[null,null,null,null,null,null,null,null,null,null,null,925,"The Pilgrim School",7012,"Special"]
[null,null,null,null,null,null,null,null,null,null,null,925,"The Lincoln St Christopher's School",7015,"Special"]
[null,null,null,null,null,null,null,null,null,null,null,925,"The St Francis Special School, Lincoln",7016,"Special"]
[null,null,null,null,null,null,null,null,null,null,null,925,"Fortuna School",7031,"Special"]
[null,null,null,null,null,null,null,null,null,null,null,925,"Athena School",7032,"Special"]
[null,null,null,null,null,null,null,null,null,null,null,926,"Caister Infant With Nursery School",2034,"Mainstream"]
[null,null,null,null,null,null,null,null,null,null,null,926,"Mundesley Infant School",2115,"Mainstream"]
[null,null,null,null,null,null,null,null,null,null,null,926,"Sprowston Infant School",2147,"Mainstream"]
[null,null,null,null,null,null,null,null,null,null,null,926,"Browick Road Primary and Nursery School",2184,"Mainstream"]
[null,null,null,null,null,null,null,null,null,null,null,926,"Redcastle Family School",2252,"Mainstream"]
[null,null,null,null,null,null,null,null,null,null,null,926,"Suffield Park Infant and Nursery School, Cromer",2259,"Mainstream"]
[null,null,null,null,null,null,null,null,null,null,null,926,"Falcon Junior School",2266,"Mainstream"]
[null,null,null,null,null,null,null,null,null,null,null,926,"White Woman Lane Junior School",2267,"Mainstream"]
[null,null,null,null,null,null,null,null,null,null,null,926,"Hethersett, Woodside Primary & Nursery School",2274,"Mainstream"]
[null,null,null,null,null,null,null,null,null,null,null,926,"Hillside Primary School",2357,"Mainstream"]
[null,null,null,null,null,null,null,null,null,null,null,926,"Drake Primary School",2377,"Mainstream"]
[null,null,null,null,null,null,null,null,null,null,null,926,"Downham Market, Hillcrest Primary School",2411,"Mainstream"]
[null,null,null,null,null,null,null,null,null,null,null,926,"Terrington St Clement Community School",2420,"Mainstream"]
[null,null,null,null,null,null,null,null,null,null,null,926,"St Nicholas Priory CofE VA Primary School",3136,"Mainstream"]
[null,null,null,null,null,null,null,null,null,null,null,926,"Mile Cross Primary School",3424,"Mainstream"]
[null,null,null,null,null,null,null,null,null,null,null,926,"Sidestrand Hall School",7001,"Special"]
[null,null,null,null,null,null,null,null,null,null,null,926,"Fred Nicholson School",7004,"Special"]
[null,null,null,null,null,null,null,null,null,null,null,926,"Hall School",7006,"Special"]
[null,null,null,null,null,null,null,null,null,null,null,926,"Sheringham Woodfields School",7007,"Special"]
[null,null,null,null,null,null,null,null,null,null,null,926,"Chapel Green School",7010,"Special"]
[null,null,null,null,null,null,null,null,null,null,null,926,"The Clare School",7013,"Special"]
[null,null,null,null,null,null,null,null,null,null,null,926,"The Parkside School, Norwich",7014,"Special"]
[null,null,null,null,null,null,null,null,null,null,null,926,"Harford Manor School, Norwich",7016,"Special"]
[null,null,null,null,null,null,null,null,null,null,null,926,"John Grant School, Caister-on-Sea",7020,"Special"]
[null,null,null,null,null,null,null,null,null,null,null,929,"Northumberland Pupil Referral Unit",1100,"Pupil Referral Unit"]
[null,null,null,null,null,null,null,null,null,null,null,929,"Cambois Primary School",2035,"Mainstream"]
[null,null,null,null,null,null,null,null,null,null,null,929,"Red Row Primary School",2101,"Mainstream"]
[null,null,null,null,null,null,null,null,null,null,null,929,"Linton Primary School",2105,"Mainstream"]
[null,null,null,null,null,null,null,null,null,null,null,929,"Seaton Sluice First School",2268,"Mainstream"]
[null,null,null,null,null,null,null,null,null,null,null,929,"Cramlington Northburn Primary School",2530,"Mainstream"]
[null,null,null,null,null,null,null,null,null,null,null,929,"Astley Community High School",5400,"Mainstream"]
[null,null,null,null,null,null,null,null,null,null,null,929,"Cleaswell Hill School",7003,"Special"]
[null,null,null,null,null,null,null,null,null,null,null,929,"Cramlington Hillcrest School",7006,"Special"]
[null,null,null,null,null,null,null,null,null,null,null,929,"Barndale School",7010,"Special"]
[null,null,null,null,null,null,null,null,null,null,null,929,"The Grove Special School",7012,"Special"]
[null,null,null,null,null,null,null,null,null,null,null,929,"The Dales School",7021,"Special"]
[null,null,null,null,null,null,null,null,null,null,null,929,"Collingwood School & Media Arts College",7022,"Special"]
[null,null,null,null,null,null,null,null,null,null,null,929,"Emily Wilding Davison School",7024,"Special"]
[null,null,null,null,null,null,null,null,null,null,null,931,"St Nicholas' Primary and Nursery School",2352,"Mainstream"]
[null,null,null,null,null,null,null,null,null,null,null,931,"St Andrew's Church of England Primary School, Chinnor",3182,"Mainstream"]
[null,null,null,null,null,null,null,null,null,null,null,931,"Sacred Heart Catholic Primary School, Henley-on-Thames",3820,"Mainstream"]
[null,null,null,null,null,null,null,null,null,null,null,931,"Woodeaton Manor School",7002,"Special"]
[null,null,null,null,null,null,null,null,null,null,null,931,"Frank Wise School",7010,"Special"]
[null,null,null,null,null,null,null,null,null,null,null,931,"John Watson School",7011,"Special"]
[null,null,null,null,null,null,null,null,null,null,null,931,"Oxfordshire Hospital School",7017,"Hospital"]
[null,null,null,null,null,null,null,null,null,null,null,933,"Tor School",1109,"Pupil Referral Unit"]
[null,null,null,null,null,null,null,null,null,null,null,933,"South Somerset Partnership School",1112,"Pupil Referral Unit"]
[null,null,null,null,null,null,null,null,null,null,null,933,"Taunton Deane Partnership College",1114,"Pupil Referral Unit"]
[null,null,null,null,null,null,null,null,null,null,null,933,"The Bridge School Sedgemoor",1115,"Pupil Referral Unit"]
[null,null,null,null,null,null,null,null,null,null,null,933,"Holway Park Community Primary School",2332,"Mainstream"]
[null,null,null,null,null,null,null,null,null,null,null,933,"Oaklands Primary School",3494,"Mainstream"]
[null,null,null,null,null,null,null,null,null,null,null,933,"Polden Bower School",7003,"Special"]
[null,null,null,null,null,null,null,null,null,null,null,933,"Fairmead School",7007,"Special"]
[null,null,null,null,null,null,null,null,null,null,null,933,"Fiveways Special School",7016,"Special"]
[null,null,null,null,null,null,null,null,null,null,null,933,"Avalon School",7018,"Special"]
[null,null,null,null,null,null,null,null,null,null,null,935,"Horizon School",1113,"Pupil Referral Unit"]
[null,null,null,null,null,null,null,null,null,null,null,935,"Bildeston Primary School",2002,"Mainstream"]
[null,null,null,null,null,null,null,null,null,null,null,935,"Westgate Community Primary School and Nursery",2034,"Mainstream"]
[null,null,null,null,null,null,null,null,null,null,null,935,"Gorseland Primary School",2132,"Mainstream"]
[null,null,null,null,null,null,null,null,null,null,null,935,"Oulton Broad Primary School",2919,"Mainstream"]
[null,null,null,null,null,null,null,null,null,null,null,935,"St Gregory Church of England Voluntary Controlled Primary School",3124,"Mainstream"]
[null,null,null,null,null,null,null,null,null,null,null,935,"St Edmund's Catholic Primary School",3311,"Mainstream"]
[null,null,null,null,null,null,null,null,null,null,null,935,"King Edward VI CEVC School",4500,"Mainstream"]
[null,null,null,null,null,null,null,null,null,null,null,935,"Hillside Special School",7002,"Special"]
[null,null,null,null,null,null,null,null,null,null,null,936,"The Surrey Teaching Centre",1120,"Hospital"]
[null,null,null,null,null,null,null,null,null,null,null,936,"St Peter's Centre",1121,"Hospital"]
[null,null,null,null,null,null,null,null,null,null,null,936,"The Hope Service",1122,"Pupil Referral Unit"]
[null,null,null,null,null,null,null,null,null,null,null,936,"North East Surrey Secondary Short Stay School",1126,"Pupil Referral Unit"]
[null,null,null,null,null,null,null,null,null,null,null,936,"North West Surrey Short Stay School",1128,"Pupil Referral Unit"]
[null,null,null,null,null,null,null,null,null,null,null,936,"The Orchard Infant School",2099,"Mainstream"]
[null,null,null,null,null,null,null,null,null,null,null,936,"Thames Ditton Infant School",2103,"Mainstream"]
[null,null,null,null,null,null,null,null,null,null,null,936,"Bagshot Infant School",2268,"Mainstream"]
[null,null,null,null,null,null,null,null,null,null,null,936,"Oakfield Junior School",2335,"Mainstream"]
[null,null,null,null,null,null,null,null,null,null,null,936,"Worplesdon Primary School",2349,"Mainstream"]
[null,null,null,null,null,null,null,null,null,null,null,936,"Badshot Lea Village Infant School",2415,"Mainstream"]
[null,null,null,null,null,null,null,null,null,null,null,936,"Bell Farm Primary School",2430,"Mainstream"]
[null,null,null,null,null,null,null,null,null,null,null,936,"William Cobbett Primary School",2478,"Mainstream"]
[null,null,null,null,null,null,null,null,null,null,null,936,"Hythe Primary School",2928,"Mainstream"]
[null,null,null,null,null,null,null,null,null,null,null,936,"Ashford Park Primary School",2937,"Mainstream"]
[null,null,null,null,null,null,null,null,null,null,null,936,"Stepgates Community School",2946,"Mainstream"]
[null,null,null,null,null,null,null,null,null,null,null,936,"Chandlers Field Primary School",2949,"Mainstream"]
[null,null,null,null,null,null,null,null,null,null,null,936,"Epsom Downs Community School & Early Years Centres",2951,"Mainstream"]
[null,null,null,null,null,null,null,null,null,null,null,936,"Furzefield Primary School",2954,"Mainstream"]
[null,null,null,null,null,null,null,null,null,null,null,936,"Leatherhead Trinity School and Nursery",3940,"Mainstream"]
[null,null,null,null,null,null,null,null,null,null,null,936,"Oakwood School",4465,"Mainstream"]
[null,null,null,null,null,null,null,null,null,null,null,936,"Gosden House School",7003,"Special"]
[null,null,null,null,null,null,null,null,null,null,null,936,"Sunnydown School",7014,"Special"]
[null,null,null,null,null,null,null,null,null,null,null,936,"Limpsfield Grange School",7019,"Special"]
[null,null,null,null,null,null,null,null,null,null,null,936,"Walton Leigh School",7043,"Special"]
[null,null,null,null,null,null,null,null,null,null,null,936,"Woodlands School",7048,"Special"]
[null,null,null,null,null,null,null,null,null,null,null,936,"Manor Mead School",7053,"Special"]
[null,null,null,null,null,null,null,null,null,null,null,936,"Portesbery School",7056,"Special"]
[null,null,null,null,null,null,null,null,null,null,null,936,"Freemantles School",7062,"Special"]
[null,null,null,null,null,null,null,null,null,null,null,936,"Woodfield School",7066,"Special"]
[null,null,null,null,null,null,null,null,null,null,null,937,"Welford-on-Avon Primary School",2058,"Mainstream"]
[null,null,null,null,null,null,null,null,null,null,null,937,"Outwoods Primary School",2083,"Mainstream"]
[null,null,null,null,null,null,null,null,null,null,null,937,"Park Hill Junior School",2309,"Mainstream"]
[null,null,null,null,null,null,null,null,null,null,null,937,"Briar Hill Infant School",2327,"Mainstream"]
[null,null,null,null,null,null,null,null,null,null,null,937,"Boughton Leigh Junior School",2590,"Mainstream"]
[null,null,null,null,null,null,null,null,null,null,null,937,"Water Orton Primary School",2618,"Mainstream"]
[null,null,null,null,null,null,null,null,null,null,null,937,"Paddox Primary School",2625,"Mainstream"]
[null,null,null,null,null,null,null,null,null,null,null,937,"Goodyers End Primary School",2634,"Mainstream"]
[null,null,null,null,null,null,null,null,null,null,null,937,"Abbey CofE Infant School",3103,"Mainstream"]
[null,null,null,null,null,null,null,null,null,null,null,937,"St Matthew's Bloxam CofE Primary School",3213,"Mainstream"]
[null,null,null,null,null,null,null,null,null,null,null,937,"St Andrew's Benn CofE (Voluntary Aided) Primary School",3591,"Mainstream"]
[null,null,null,null,null,null,null,null,null,null,null,937,"Middlemarch School",5202,"Mainstream"]
[null,null,null,null,null,null,null,null,null,null,null,937,"Exhall Grange Specialist School",7000,"Special"]
[null,null,null,null,null,null,null,null,null,null,null,937,"Evergreen School",7028,"Special"]
[null,null,null,null,null,null,null,null,null,null,null,938,"Bognor Regis Nursery School",1000,"Mainstream"]
[null,null,null,null,null,null,null,null,null,null,null,938,"Chichester Nursery School",1001,"Mainstream"]
[null,null,null,null,null,null,null,null,null,null,null,938,"Horsham Nursery School",1003,"Mainstream"]
[null,null,null,null,null,null,null,null,null,null,null,938,"Boundstone Nursery School",1004,"Mainstream"]
[null,null,null,null,null,null,null,null,null,null,null,938,"Chalkhill Education Centre, Chalkhill Hospital",1109,"Hospital"]
[null,null,null,null,null,null,null,null,null,null,null,938,"West Sussex Alternative Provision College",1110,"Pupil Referral Unit"]
[null,null,null,null,null,null,null,null,null,null,null,938,"Three Bridges Primary School",2153,"Mainstream"]
[null,null,null,null,null,null,null,null,null,null,null,938,"Parklands Community Primary School",2185,"Mainstream"]
[null,null,null,null,null,null,null,null,null,null,null,938,"London Meed Community Primary School",2202,"Mainstream"]
[null,null,null,null,null,null,null,null,null,null,null,938,"Durrington Junior School",2229,"Mainstream"]
[null,null,null,null,null,null,null,null,null,null,null,938,"Homefield Primary School and Ssc",2239,"Mainstream"]
[null,null,null,null,null,null,null,null,null,null,null,938,"Maidenbower Junior School",2255,"Mainstream"]
[null,null,null,null,null,null,null,null,null,null,null,938,"Steyning CofE Primary School",3033,"Mainstream"]
[null,null,null,null,null,null,null,null,null,null,null,938,"West Park CofE Primary (Controlled) School",3062,"Mainstream"]
[null,null,null,null,null,null,null,null,null,null,null,938,"St Margaret's CofE Primary School",3300,"Mainstream"]
[null,null,null,null,null,null,null,null,null,null,null,938,"Northgate Primary School",3364,"Mainstream"]
[null,null,null,null,null,null,null,null,null,null,null,938,"Oriel High School",4003,"Mainstream"]
[null,null,null,null,null,null,null,null,null,null,null,938,"Bourne Community College",4028,"Mainstream"]
[null,null,null,null,null,null,null,null,null,null,null,938,"Felpham Community College",4059,"Mainstream"]
[null,null,null,null,null,null,null,null,null,null,null,938,"The Angmering School",4060,"Mainstream"]
[null,null,null,null,null,null,null,null,null,null,null,938,"St Anthony's School",7004,"Special"]
[null,null,null,null,null,null,null,null,null,null,null,938,"Manor Green College",7006,"Special"]
[null,null,null,null,null,null,null,null,null,null,null,938,"Palatine Primary School",7008,"Special"]
[null,null,null,null,null,null,null,null,null,null,null,938,"Queen Elizabeth II Silver Jubilee School, Horsham",7009,"Special"]
[null,null,null,null,null,null,null,null,null,null,null,938,"Oak Grove College",7010,"Special"]
[null,null,null,null,null,null,null,null,null,null,null,938,"Manor Green Primary School",7011,"Special"]
[null,null,null,null,null,null,null,null,null,null,null,938,"Fordwater School, Chichester",7012,"Special"]
[null,null,null,null,null,null,null,null,null,null,null,938,"Woodlands Meed",7013,"Special"]
[null,null,null,null,null,null,null,null,null,null,null,938,"Herons Dale School",7021,"Special"]
[null,null,null,null,null,null,null,null,null,null,null,938,"Cornfield School, Littlehampton",7022,"Special"]
[null,null,null,null,null,null,null,null,null,null,null,940,"Mawsley Primary School",2029,"Mainstream"]
[null,null,null,null,null,null,null,null,null,null,null,940,"Denfield Park Primary School",2206,"Mainstream"]
[null,null,null,null,null,null,null,null,null,null,null,940,"Croyland Primary School",2231,"Mainstream"]
[null,null,null,null,null,null,null,null,null,null,null,940,"Rowan Gate Primary School -Three Sites and Two Satellites",7031,"Special"]
[null,null,null,null,null,null,null,null,null,null,null,941,"Vernon Terrace Primary School",2174,"Mainstream"]
[null,null,null,null,null,null,null,null,null,null,null,941,"Kingsthorpe Grove Primary School",2208,"Mainstream"]
[null,null,null,null,null,null,null,null,null,null,null,941,"Hunsbury Park Primary School",2218,"Mainstream"]
[null,null,null,null,null,null,null,null,null,null,null,941,"Fairfields School",7014,"Special"]
[null,null,null,null,null,null,null,null,null,null,null,942,"Gillford Centre",1100,"Pupil Referral Unit"]
[null,null,null,null,null,null,null,null,null,null,null,942,"West Cumbria Learning Centre",1103,"Pupil Referral Unit"]
[null,null,null,null,null,null,null,null,null,null,null,942,"Thomlinson Junior School",2069,"Mainstream"]
[null,null,null,null,null,null,null,null,null,null,null,942,"Wigton Nursery and Infant School",2070,"Mainstream"]
[null,null,null,null,null,null,null,null,null,null,null,942,"Ashfield Junior School",2148,"Mainstream"]
[null,null,null,null,null,null,null,null,null,null,null,942,"Bransty Primary School",2228,"Mainstream"]
[null,null,null,null,null,null,null,null,null,null,null,942,"Kingmoor Nursery and Infant School",2625,"Mainstream"]
[null,null,null,null,null,null,null,null,null,null,null,942,"St Patrick's Catholic Primary School",2717,"Mainstream"]
[null,null,null,null,null,null,null,null,null,null,null,942,"All Saints' CofE School",3102,"Mainstream"]
[null,null,null,null,null,null,null,null,null,null,null,942,"St James' Catholic Primary School",3514,"Mainstream"]
[null,null,null,null,null,null,null,null,null,null,null,942,"Mayfield School",7002,"Special"]
[null,null,null,null,null,null,null,null,null,null,null,943,"Newbridge House PRU",1105,"Pupil Referral Unit"]
[null,null,null,null,null,null,null,null,null,null,null,943,"North Lakes School",2046,"Mainstream"]
[null,null,null,null,null,null,null,null,null,null,null,943,"The Lakes School",4056,"Mainstream"]
[null,null,null,null,null,null,null,null,null,null,null,943,"Ullswater Community College",4310,"Mainstream"]
[null,null,null,null,null,null,null,null,null,null,null,943,"Appleby Primary School",5206,"Mainstream"]
[null,null,null,null,null,null,null,null,null,null,null,943,"Beaconside CofE Primary School",5221,"Mainstream"]
[null,null,null,null,null,null,null,null,null,null,null,943,"Sandgate School",7006,"Special"]
[null,null,null,null,null,null,null,null,null,null,null,943,"Sandside Lodge School",7013,"Special"]

{"sheet":"Admin-MissingRowCheck","index":6,"n_rows":128,"n_cols":14,"rows_kept":128,"cut":false,"hidden":true,"merged":[]}
["LA Table - Error 1033 information for error message",null,null,"Missing rows",null,null,null,"EY table - Error 1043",null,null,"Missing rows",null,"1011 Error","1010 Value"]
["Required Row Numbers","Are they present? If not output the number in column C to add to end of 1033 error message","Check for isna",{"$f":"_xlfn.CONCAT(C3:C148)","v":""},null,null,null,"Required Rows","Are they present? If not output the number in column C to add to end of 1043 error message","Check for isna",{"$f":"_xlfn.CONCAT(J3:J149)","v":""},null,{"$f":"IF(ISERR(ABS('LA Table'!M72 - 'LA Table'!K87)), \"\", IF(ABS('LA Table'!M72 - 'LA Table'!K87) > 10000, \"Y\", \"\"))","v":""},{"$f":"IF(ISERR(ABS('LA Table'!M72-'LA Table'!K87)),\"\",ABS('LA Table'!M72-'LA Table'!K87))","v":0}]
[1,{"$f":"VLOOKUP(A3,LARowCount,1,FALSE)","v":1},{"$f":"IF(ISNA(B3),\", \"&A3,\"\")","v":""},null,null,null,null,"EY1",{"$f":"VLOOKUP(H3,'Early Years Proforma'!A:A,1,FALSE)","v":"EY1"},{"$f":"IF(ISNA(I3),\", \"&MID(H3,3,10),\"\")","v":""}]
[2,{"$f":"VLOOKUP(A4,LARowCount,1,FALSE)","v":2},{"$f":"IF(ISNA(B4),\", \"&A4,\"\")","v":""},null,null,null,null,"EY2a",{"$f":"VLOOKUP(H4,'Early Years Proforma'!A:A,1,FALSE)","v":"EY2a"},{"$f":"IF(ISNA(I4),\", \"&MID(H4,3,10),\"\")","v":""}]
[3,3,"",null,null,null,null,"EY2b",{"$f":"VLOOKUP(H5,'Early Years Proforma'!A:A,1,FALSE)","v":"EY2b"},""]
[6,6,"",null,null,null,null,"EY2c",{"$f":"VLOOKUP(H6,'Early Years Proforma'!A:A,1,FALSE)","v":"EY2c"},""]
[7,7,"",null,null,null,null,"EY2d",{"$f":"VLOOKUP(H7,'Early Years Proforma'!A:A,1,FALSE)","v":"EY2d"},""]
[8,8,"",null,null,null,null,"EY2e",{"$f":"VLOOKUP(H8,'Early Years Proforma'!A:A,1,FALSE)","v":"EY2e"},""]
["1.0.1","1.0.1","",null,null,null,null,"EY3",{"$f":"VLOOKUP(H9,'Early Years Proforma'!A:A,1,FALSE)","v":"EY3"},""]
["1.0.2","1.0.2","",null,null,null,null,"EY4",{"$f":"VLOOKUP(H10,'Early Years Proforma'!A:A,1,FALSE)","v":"EY4"},""]
["1.1.1","1.1.1","",null,null,null,null,"EY5a",{"$f":"VLOOKUP(H11,'Early Years Proforma'!A:A,1,FALSE)","v":"EY5a"},""]
["1.1.2","1.1.2","",null,null,null,null,"EY5b",{"$f":"VLOOKUP(H12,'Early Years Proforma'!A:A,1,FALSE)","v":"EY5b"},""]
["1.1.3","1.1.3","",null,null,null,null,"EY5c",{"$f":"VLOOKUP(H13,'Early Years Proforma'!A:A,1,FALSE)","v":"EY5c"},""]
["1.1.4","1.1.4","",null,null,null,null,"EY5d",{"$f":"VLOOKUP(H14,'Early Years Proforma'!A:A,1,FALSE)","v":"EY5d"},""]
["1.1.5","1.1.5","",null,null,null,null,"EY5e",{"$f":"VLOOKUP(H15,'Early Years Proforma'!A:A,1,FALSE)","v":"EY5e"},""]
["1.1.6","1.1.6","",null,null,null,null,"EY6",{"$f":"VLOOKUP(H16,'Early Years Proforma'!A:A,1,FALSE)","v":"EY6"},{"$f":"IF(ISNA(I16),\", \"&MID(H16,3,10),\"\")","v":""}]
["1.1.7","1.1.7","",null,null,null,null,"EY7",{"$f":"VLOOKUP(H17,'Early Years Proforma'!A:A,1,FALSE)","v":"EY7"},{"$f":"IF(ISNA(I17),\", \"&MID(H17,3,10),\"\")","v":""}]
["1.1.8","1.1.8","",null,null,null,null,"EY8a",{"$f":"VLOOKUP(H18,'Early Years Proforma'!A:A,1,FALSE)","v":"EY8a"},""]
["1.1.9","1.1.9","",null,null,null,null,"EY8b",{"$f":"VLOOKUP(H19,'Early Years Proforma'!A:A,1,FALSE)","v":"EY8b"},""]
["1.10.1","1.10.1","",null,null,null,null,"EY8c",{"$f":"VLOOKUP(H20,'Early Years Proforma'!A:A,1,FALSE)","v":"EY8c"},""]
["1.10.2","1.10.2","",null,null,null,null,"EY8d",{"$f":"VLOOKUP(H21,'Early Years Proforma'!A:A,1,FALSE)","v":"EY8d"},""]
["1.2.1","1.2.1","",null,null,null,null,"EY8e",{"$f":"VLOOKUP(H22,'Early Years Proforma'!A:A,1,FALSE)","v":"EY8e"},""]
["1.2.10","1.2.10","",null,null,null,null,"EY9",{"$f":"VLOOKUP(H23,'Early Years Proforma'!A:A,1,FALSE)","v":"EY9"},""]
["1.2.11","1.2.11","",null,null,null,null,"EY10a",{"$f":"VLOOKUP(H24,'Early Years Proforma'!A:A,1,FALSE)","v":"EY10a"},""]
["1.2.13","1.2.13","",null,null,null,null,"EY10b",{"$f":"VLOOKUP(H25,'Early Years Proforma'!A:A,1,FALSE)","v":"EY10b"},""]
["1.2.2","1.2.2","",null,null,null,null,"EY10c",{"$f":"VLOOKUP(H26,'Early Years Proforma'!A:A,1,FALSE)","v":"EY10c"},""]
["1.2.3","1.2.3","",null,null,null,null,"EY10d",{"$f":"VLOOKUP(H27,'Early Years Proforma'!A:A,1,FALSE)","v":"EY10d"},""]
["1.2.4","1.2.4","",null,null,null,null,"EY10e",{"$f":"VLOOKUP(H28,'Early Years Proforma'!A:A,1,FALSE)","v":"EY10e"},""]
["1.2.5","1.2.5","",null,null,null,null,"EY11ai",{"$f":"VLOOKUP(H29,'Early Years Proforma'!A:A,1,FALSE)","v":"EY11ai"},""]
["1.2.6","1.2.6","",null,null,null,null,"EY11aii",{"$f":"VLOOKUP(H30,'Early Years Proforma'!A:A,1,FALSE)","v":"EY11aii"},""]
["1.2.7","1.2.7","",null,null,null,null,"EY11bi",{"$f":"VLOOKUP(H31,'Early Years Proforma'!A:A,1,FALSE)","v":"EY11bi"},""]
["1.2.8","1.2.8","",null,null,null,null,"EY11bii",{"$f":"VLOOKUP(H32,'Early Years Proforma'!A:A,1,FALSE)","v":"EY11bii"},""]
["1.2.9",{"$f":"VLOOKUP(A33,LARowCount,1,FALSE)","v":"1.2.9"},"",null,null,null,null,"EY11ci",{"$f":"VLOOKUP(H33,'Early Years Proforma'!A:A,1,FALSE)","v":"EY11ci"},""]
["1.3.1","1.3.1","",null,null,null,null,"EY11cii",{"$f":"VLOOKUP(H34,'Early Years Proforma'!A:A,1,FALSE)","v":"EY11cii"},""]
["1.4.1","1.4.1","",null,null,null,null,"EY11di",{"$f":"VLOOKUP(H35,'Early Years Proforma'!A:A,1,FALSE)","v":"EY11di"},""]
["1.4.10","1.4.10","",null,null,null,null,"EY11dii",{"$f":"VLOOKUP(H36,'Early Years Proforma'!A:A,1,FALSE)","v":"EY11dii"},""]
["1.4.11","1.4.11","",null,null,null,null,"EY12a",{"$f":"VLOOKUP(H37,'Early Years Proforma'!A:A,1,FALSE)","v":"EY12a"},""]
["1.4.12","1.4.12","",null,null,null,null,"EY12b",{"$f":"VLOOKUP(H38,'Early Years Proforma'!A:A,1,FALSE)","v":"EY12b"},""]
["1.4.13","1.4.13","",null,null,null,null,"EY12c",{"$f":"VLOOKUP(H39,'Early Years Proforma'!A:A,1,FALSE)","v":"EY12c"},""]
["1.4.14","1.4.14","",null,null,null,null,"EY12d",{"$f":"VLOOKUP(H40,'Early Years Proforma'!A:A,1,FALSE)","v":"EY12d"},""]
["1.4.2","1.4.2","",null,null,null,null,"EY13ai",{"$f":"VLOOKUP(H41,'Early Years Proforma'!A:A,1,FALSE)","v":"EY13ai"},""]
["1.4.3","1.4.3","",null,null,null,null,"EY13aii",{"$f":"VLOOKUP(H42,'Early Years Proforma'!A:A,1,FALSE)","v":"EY13aii"},""]
["1.4.4","1.4.4","",null,null,null,null,"EY13bi",{"$f":"VLOOKUP(H43,'Early Years Proforma'!A:A,1,FALSE)","v":"EY13bi"},""]
["1.4.5","1.4.5","",null,null,null,null,"EY13bii",{"$f":"VLOOKUP(H44,'Early Years Proforma'!A:A,1,FALSE)","v":"EY13bii"},""]
["1.4.6","1.4.6","",null,null,null,null,"EY13ci",{"$f":"VLOOKUP(H45,'Early Years Proforma'!A:A,1,FALSE)","v":"EY13ci"},""]
["1.4.7","1.4.7","",null,null,null,null,"EY13cii",{"$f":"VLOOKUP(H46,'Early Years Proforma'!A:A,1,FALSE)","v":"EY13cii"},""]
["1.4.8","1.4.8","",null,null,null,null,"EY13di",{"$f":"VLOOKUP(H47,'Early Years Proforma'!A:A,1,FALSE)","v":"EY13di"},""]
["1.4.9","1.4.9","",null,null,null,null,"EY13dii",{"$f":"VLOOKUP(H48,'Early Years Proforma'!A:A,1,FALSE)","v":"EY13dii"},""]
["1.5.1","1.5.1","",null,null,null,null,"EY14a",{"$f":"VLOOKUP(H49,'Early Years Proforma'!A:A,1,FALSE)","v":"EY14a"},""]
["1.5.2","1.5.2","",null,null,null,null,"EY14b",{"$f":"VLOOKUP(H50,'Early Years Proforma'!A:A,1,FALSE)","v":"EY14b"},""]
["1.5.3","1.5.3","",null,null,null,null,"EY14c",{"$f":"VLOOKUP(H51,'Early Years Proforma'!A:A,1,FALSE)","v":"EY14c"},""]
["1.6.1","1.6.1","",null,null,null,null,"EY14d",{"$f":"VLOOKUP(H52,'Early Years Proforma'!A:A,1,FALSE)","v":"EY14d"},""]
["1.6.2","1.6.2","",null,null,null,null,"EY15a",{"$f":"VLOOKUP(H53,'Early Years Proforma'!A:A,1,FALSE)","v":"EY15a"},""]
["1.6.3","1.6.3","",null,null,null,null,"EY15b",{"$f":"VLOOKUP(H54,'Early Years Proforma'!A:A,1,FALSE)","v":"EY15b"},""]
["1.6.4","1.6.4","",null,null,null,null,"EY15c",{"$f":"VLOOKUP(H55,'Early Years Proforma'!A:A,1,FALSE)","v":"EY15c"},""]
["1.6.5","1.6.5","",null,null,null,null,"EY15d",{"$f":"VLOOKUP(H56,'Early Years Proforma'!A:A,1,FALSE)","v":"EY15d"},""]
["1.6.6","1.6.6",""]
["1.6.7","1.6.7",""]
["1.7.1","1.7.1",""]
["1.8.1","1.8.1",""]
["1.8.1a","1.8.1a",""]
["1.9.1","1.9.1",""]
["1.9.2","1.9.2",""]
["1.9.3","1.9.3",""]
["1.9.4","1.9.4",""]
["1.9.5","1.9.5",""]
["1.9.6","1.9.6",{"$f":"IF(ISNA(B67),\", \"&A67,\"\")","v":""}]
["2.0.1","2.0.1",""]
["2.0.2","2.0.2",""]
["2.0.3","2.0.3",""]
["2.0.4","2.0.4",""]
["2.0.5","2.0.5",""]
["2.0.6","2.0.6",""]
["2.0.7","2.0.7",""]
["2.1.1","2.1.1",""]
["2.1.2","2.1.2",""]
["2.1.3","2.1.3",""]
["2.1.4","2.1.4",""]
["2.1.5","2.1.5",""]
["2.1.6","2.1.6",""]
["2.1.7","2.1.7",""]
["2.1.8","2.1.8",""]
["2.1.9","2.1.9",""]
["2.2.1","2.2.1",""]
["2.3.1","2.3.1",""]
["2.3.2","2.3.2",""]
["2.3.3","2.3.3",""]
["2.3.4","2.3.4",""]
["2.3.5","2.3.5",""]
["2.4.1","2.4.1",""]
["2.5.1","2.5.1",""]
["3.0.1","3.0.1",""]
["3.0.2","3.0.2",""]
["3.0.3","3.0.3",""]
["3.0.4","3.0.4",""]
["3.0.5","3.0.5",""]
["3.1.1",{"$f":"VLOOKUP(A97,LARowCount,1,FALSE)","v":"3.1.1"},""]
["3.1.10","3.1.10",""]
["3.1.11","3.1.11",""]
["3.1.2a","3.1.2a",""]
["3.1.2b","3.1.2b",""]
["3.1.3","3.1.3",""]
["3.1.4","3.1.4",""]
["3.1.5","3.1.5",""]
["3.1.6","3.1.6",""]
["3.1.7","3.1.7",""]
["3.1.8","3.1.8",""]
["3.1.9","3.1.9",""]
["3.2.1","3.2.1",""]
["3.3.1","3.3.1",""]
["3.3.2","3.3.2",""]
["3.3.3","3.3.3",""]
["3.3.4","3.3.4",""]
["3.4.1","3.4.1",""]
["3.4.2","3.4.2",""]
["3.4.3","3.4.3",""]
["3.4.4","3.4.4",""]
["3.4.5","3.4.5",""]
["3.4.6","3.4.6",""]
["3.5.1","3.5.1",""]
["3.5.2","3.5.2",""]
["3.5.3","3.5.3",""]
["3.6.1","3.6.1",""]
["4.0.1","4.0.1",""]
["5.0.1","5.0.1",""]
["5.0.2","5.0.2",""]
["8a.1","8a.1",""]
["8a.2","8a.2",""]